Workbook

Sheet Health Vote 2017-18 post-Budget
A1: Summary: additional operational funding required | B1: =AA70*1000 -> 1001300061 | C1: 1 | D1: For 2017/18 | AC1: Budget 2017
A2: 1.8 | B2: =B1/(A2*10^9) -> 0.5562778117 | C2: 2016/17 | D2: Medical salary increases | E2: Medical proportion of DHB expenditure | F2: Nursing salary increases | G2: Nursing proportion of DHB expenditure | H2: Other Wage increases - DHB Provider | I2: Other Wage proportion of DHB provider expenditure | J2: Wage increases in DHB funded services | K2: Other Wage proportion of DHB funded activities expenditure | L2: Non-labour health services cost increases | M2: Non-labour proportion | N2: Non-labour general cost increases | O2: Population growth, including ageing effect | P2: Non-demographic growth | Q2: Productivity growth | R2: Capital Goods proportion | S2: Capital Goods price increase | U2: Total increases | W2: Additional costs identified for 2017/18 | X2: Restructuring/ devolution | Y2: Required | Z2: Totals | AA2: Increase Required | AC2: After Supplementary 2016/17 | AD2: Est actual 2016/17 | AE2: 2017/18 | AF2: Increase Budget 2017 on Budget 2016 | AG2: Increase Budget 2017 on Actual | AI2: Labour proportion of expenditure | AJ2: CPI | AK2: Increase in births | AL2: Child popn growth (0 - 19 yrs old) | AM2: DHB provider wage increase | AN2: Total wage increase | AO2: Forecast All Industries Average Wage increase | AP2: Provider proportion of DHB expenditure | AQ2: Wage increases in high MinimumWage sectors | AR2: Other wages increases | AS2: Cost-weighted Maori population growth
A3: Without 'new policy initiatives' and 'savings' | B3: =B1-W70*1000 -> 732326061 | C3: $000 | D3: % | E3: % | F3: % | G3: % | H3: % | I3: % | J3: % | K3: % | L3: % | M3: % | N3: % | O3: % | P3: % | S3: % | U3: % | W3: $000 | Y3: $000 | Z3: $000 | AA3: $000 | AI3: % | AJ3: % | AK3: % | AL3: % | AQ3: % | AR3: % | AS3: %
A4: For sensitivity testing | B4: 1000020329 | C4: Parameters: | D4: =AllIndustriesWageIncr17 -> 0.026 | E4: =DHBProviderProportion17*'DHB Stats'!$Y$59 -> 0.1118293683 | F4: =AllIndustriesWageIncr17 -> 0.026 | G4: =DHBProviderProportion17*'DHB Stats'!$Z$59 -> 0.1356763253 | H4: =AllIndustriesWageIncr17 -> 0.026 | I4: =DHBProviderProportion17*'DHB Stats'!$AA$59 -> 0.1064860623 | J4: =OtherWagesIncreases17*(1-'DHB Stats'!W7)+HighMinWageSectorWageIncrease17*'DHB Stats'!W7 -> 0.02735264412 | K4: =(1-DHBProviderProportion17)*LabourProportion17 -> 0.2760567764 | L4: =_CPI17 -> 0.016 | M4: =1-LabourProportion17 -> 0.3699514678 | N4: =_CPI17 -> 0.016 | O4: =Demographics!W20 -> 0.02510707935 | P4: =IF(NDGandProdSwitch17=0,1,0)*1.5% -> 0 | Q4: =IF(NDGandProdSwitch17=0,1,0)*0.3% -> 0 | R4: 1 | S4: 0.034 | AI4: ='DHB Stats'!W59 -> 0.6300485322 | AJ4: 0.016 | AK4: =Demographics!BD15 -> 0.026272578 | AL4: =Demographics!CJ16 -> 0.005872174066 | AM4: =(MedicalSalaryIncreases17*MedicalProportion17+NursingSalaryIncrease17*NursingProportion17+OtherDHBWageIncreases17*OtherWageProportion17)/(MedicalProportion17+NursingProportion17+OtherWageProportion17) -> 0.026 | AN4: =(MedicalSalaryIncreases17*MedicalProportion17+NursingSalaryIncrease17*NursingProportion17+OtherDHBWageIncreases17*OtherWageProportion17+DHBFundedWageIncreases17*DHBFundedProportion17)/LabourProportion17 -> 0.02659266319 | AO4: 0.026 | AP4: ='DHB Stats'!K33 -> 0.5618483938 | AQ4: ='Notes 2017-18 pre-Budget'!J16 -> 0.0316 | AR4: =AllIndustriesWageIncr17 -> 0.026 | AS4: =Multiyear!X128 -> 0.0291889081
B5: =B4-B1 -> -1279731.64
AI6: Shortfall
AI7: Population, aging, wage and price increases only | AJ7: Including "initiatives" | AK7: After shifts to DHBs/Vote restructuring | AL7: After "savings"
A8: Department operating appropriations | C8: 195677 | J8: =AllIndustriesWageIncr17 -> 0.026 | K8: =113654/190301 -> 0.5972328049 | M8: =1-K8 -> 0.4027671951 | N8: =NonLabourGeneralCostIncreases17 -> 0.016 | Q8: =ProductivityGrowth17 -> 0 | U8: =((1+D8)*E8+(1+F8)*G8+(1+H8)*I8+(1+J8)*K8+(1+L8+N8)*M8)*(1+O8)*(1+P8)*(1-Q8)+R8*(1+S8)-1 -> 0.02197232805 | W8: =E93 -> 3420 | Y8: =C8*(1+U8)+W8+X8 -> 203396.4792 | Z8: =Y8 -> 203396.4792 | AA8: =Z8-C8 -> 7719.479236 | AC8: =178165+20709 -> 198874 | AD8: =176365+20509 -> 196874 | AE8: =177291+20991 -> 198282 | AF8: =AE8-C8 -> 2605 | AG8: =AE8-AD8 -> 1408 | AI8: =Y8-W8-AE8-X8 -> 1694.479236 | AJ8: =AI8+E93 -> 5114.479236 | AK8: =AJ8+G93 -> 5114.479236 | AL8: =AK8+I93 -> 5114.479236 | AU8: Memo: changes from Estimates as result of correction by Ministry after the Budget. | AY8: e.g. see | AZ8: Report on Stuff
AC9: =$C8-AC8 -> -3197 | AD9: =$C8-AD8 -> -1197 | AE9: Below need by | AF9: =AA8-AF8 -> 5114.479236 | AG9: =AD8*U8+W8+X8-AG8 -> 6337.780112 | AU9: * Note that it is before a redistribution of In Between Travel (IBT) funds but after $3.1m devolution of
A10: Non-Departmental Output Expenses | AU10: Diabetes Care Improvement Packages. Pay Equity funds are not included in this table.
A11: DHBs | AE11: (Approximate) | AU11: 2016/17 | AV11: Increase in Estimates | AW11: In Estimates | AX11: "Final" as per MOH* | AY11: Variance | AZ11: Approx New Total
A12: Auckland | C12: 1168145 | D12: =MedicalSalaryIncreases17 -> 0.026 | E12: ='DHB Stats'!$K11*'DHB Stats'!Y37 -> 0.152766387 | F12: =NursingSalaryIncrease17 -> 0.026 | G12: ='DHB Stats'!$K11*'DHB Stats'!Z37 -> 0.1336514627 | H12: =OtherDHBWageIncreases17 -> 0.026 | I12: ='DHB Stats'!$K11*'DHB Stats'!AA37 -> 0.1143766163 | J12: =DHBFundedWageIncreases17 -> 0.02735264412 | K12: =(1-'DHB Stats'!$K11)*'DHB Stats'!W37 -> 0.2139222218 | L12: =NonLabourHealthServicesCostIncrease17 -> 0.016 | M12: =1-'DHB Stats'!W37 -> 0.3852833122 | O12: =Demographics!AC7 -> 0.0313882189 | P12: =NonDemographicGrowth17 -> 0 | Q12: =ProductivityGrowth17 -> 0 | U12: =((1+D12)*E12+(1+F12)*G12+(1+H12)*I12+(1+J12)*K12+(1+L12+N12)*M12)*(1+O12)*(1+P12)*(1-Q12)+R12*(1+S12)-1 -> 0.05452898905 | W12: =E96 -> -10248 | X12: =G96 -> 31289 | Y12: =C12*(1+U12)+W12+X12 -> 1252883.766 | AA12: =Y12-C12 -> 84738.76591 | AC12: 1195267 | AD12: 1195267 | AE12: =AZ12/1000 -> 1250594.244 | AF12: =AE12-C12 -> 82449.244 | AG12: =AE12-AD12 -> 55327.244 | AI12: =Y12-W12-AE12-X12 -> -18751.47809 | AJ12: =AI12+E96 -> -28999.47809 | AK12: =AJ12+G96 -> 2289.521914 | AL12: =AK12+I96 -> 2289.521914 | AU12: =AD12*1000 -> 1195267000 | AV12: =AW12-AU12 -> 44713000 | AW12: 1239980000 | AX12: 1248941205 | AY12: 10614244 | AZ12: =AW12+AY12 -> 1250594244
A13: Bay of Plenty | C13: 670326 | D13: 0.026 | E13: ='DHB Stats'!$K12*'DHB Stats'!Y38 -> 0.08968083063 | F13: 0.026 | G13: ='DHB Stats'!$K12*'DHB Stats'!Z38 -> 0.119537523 | H13: 0.026 | I13: ='DHB Stats'!$K12*'DHB Stats'!AA38 -> 0.08856600973 | J13: 0.02735264412 | K13: =(1-'DHB Stats'!$K12)*'DHB Stats'!W38 -> 0.2967931007 | L13: 0.016 | M13: =1-'DHB Stats'!W38 -> 0.405422536 | O13: =Demographics!AC8 -> 0.0261271078 | P13: 0 | Q13: 0 | U13: =((1+D13)*E13+(1+F13)*G13+(1+H13)*I13+(1+J13)*K13+(1+L13+N13)*M13)*(1+O13)*(1+P13)*(1-Q13)+R13*(1+S13)-1 -> 0.04905820637 | W13: =E97 -> -1187 | X13: =G97 -> -1370 | Y13: =C13*(1+U13)+W13+X13 -> 700653.9912 | AA13: =Y13-C13 -> 30327.99124 | AC13: 664890 | AD13: 664890 | AE13: =AZ13/1000 -> 693973.921 | AF13: =AE13-C13 -> 23647.921 | AG13: =AE13-AD13 -> 29083.921 | AI13: =Y13-W13-AE13-X13 -> 9237.070244 | AJ13: 8050.070244 | AK13: 6680.070244 | AL13: 6680.070244 | AU13: =AD13*1000 -> 664890000 | AV13: 29340000 | AW13: 694230000 | AX13: 691896386 | AY13: -256079 | AZ13: =AW13+AY13 -> 693973921
A14: Canterbury | C14: 1326373 | D14: 0.026 | E14: ='DHB Stats'!$K13*'DHB Stats'!Y39 -> 0.1097879546 | F14: 0.026 | G14: ='DHB Stats'!$K13*'DHB Stats'!Z39 -> 0.1517993444 | H14: 0.026 | I14: ='DHB Stats'!$K13*'DHB Stats'!AA39 -> 0.1154933754 | J14: 0.02735264412 | K14: =(1-'DHB Stats'!$K13)*'DHB Stats'!W39 -> 0.2761847342 | L14: 0.016 | M14: =1-'DHB Stats'!W39 -> 0.3467345914 | O14: =Demographics!AC9 -> 0.02851760986 | P14: 0 | Q14: 0 | U14: 0.05207707464 | W14: -2893 | X14: -2757 | Y14: 1389796.626 | AA14: 63423.62571 | AC14: 1335697 | AD14: 1335697 | AE14: 1372679.024 | AF14: =AE14-C14 -> 46306.024 | AG14: 36982.024 | AI14: 22767.60171 | AJ14: 19874.60171 | AK14: 17117.60171 | AL14: 17117.60171 | AU14: 1335697000 | AV14: 39675000 | AW14: 1375372000 | AX14: 1369543671 | AY14: -2692976 | AZ14: 1372679024
A15: Capital and Coast | C15: 708924 | D15: 0.026 | E15: ='DHB Stats'!$K14*'DHB Stats'!Y40 -> 0.1306936946 | F15: 0.026 | G15: ='DHB Stats'!$K14*'DHB Stats'!Z40 -> 0.163244258 | H15: 0.026 | I15: ='DHB Stats'!$K14*'DHB Stats'!AA40 -> 0.1054160298 | J15: 0.02735264412 | K15: =(1-'DHB Stats'!$K14)*'DHB Stats'!W40 -> 0.2401995624 | L15: 0.016 | M15: =1-'DHB Stats'!W40 -> 0.3604464551 | O15: =Demographics!AC10 -> 0.01962081354 | P15: 0 | Q15: 0 | U15: 0.04278704703 | W15: -594 | X15: -38 | Y15: 738624.7645 | AA15: 29700.76453 | AC15: 702655 | AD15: 702655 | AE15: 735192.011 | AF15: 26268.011 | AG15: 32537.011 | AI15: 4064.753529 | AJ15: 3470.753529 | AK15: 3432.753529 | AL15: 3432.753529 | AU15: 702655000 | AV15: 36246000 | AW15: 738901000 | AX15: 733781035 | AY15: -3708989 | AZ15: 735192011
A16: Counties-Manukau | C16: 1329104 | D16: 0.026 | E16: ='DHB Stats'!$K15*'DHB Stats'!Y41 -> 0.1125639427 | F16: 0.026 | G16: ='DHB Stats'!$K15*'DHB Stats'!Z41 -> 0.1325500516 | H16: 0.026 | I16: ='DHB Stats'!$K15*'DHB Stats'!AA41 -> 0.1037234158 | J16: 0.02735264412 | K16: =(1-'DHB Stats'!$K15)*'DHB Stats'!W41 -> 0.2879238794 | L16: 0.016 | M16: =1-'DHB Stats'!W41 -> 0.3632387106 | O16: =Demographics!AC11 -> 0.02830971208 | P16: 0 | Q16: 0 | U16: 0.05171102966 | W16: -3433 | X16: -2113 | Y16: 1392287.336 | AA16: 63183.33636 | AC16: 1321735 | AD16: 1321735 | AE16: 1371174.514 | AF16: 42070.514 | AG16: 49439.514 | AI16: 26658.82236 | AJ16: 23225.82236 | AK16: 21112.82236 | AL16: 21112.82236 | AU16: 1321735000 | AV16: 56070000 | AW16: 1377805000 | AX16: 1368709343 | AY16: -6630486 | AZ16: 1371174514
A17: Hawkes Bay | C17: 469504 | D17: 0.026 | E17: ='DHB Stats'!$K16*'DHB Stats'!Y42 -> 0.1030054846 | F17: 0.026 | G17: ='DHB Stats'!$K16*'DHB Stats'!Z42 -> 0.1389168386 | H17: 0.026 | I17: ='DHB Stats'!$K16*'DHB Stats'!AA42 -> 0.12247901 | J17: 0.02735264412 | K17: =(1-'DHB Stats'!$K16)*'DHB Stats'!W42 -> 0.299278287 | L17: 0.016 | M17: =1-'DHB Stats'!W42 -> 0.3363203798 | O17: =Demographics!AC12 -> 0.01972448009 | P17: 0 | Q17: 0 | U17: 0.04322057714 | W17: -1039 | X17: -1170 | Y17: 487587.2339 | AA17: 18083.23385 | AC17: 470212 | AD17: 470212 | AE17: 482197.148 | AF17: 12693.148 | AG17: 11985.148 | AI17: 7599.085852 | AJ17: 6560.085852 | AK17: 5390.085852 | AL17: 5390.085852 | AU17: 470212000 | AV17: 13981000 | AW17: 484193000 | AX17: 480885840 | AY17: -1995852 | AZ17: 482197148
A18: Hutt | C18: 375024 | D18: 0.026 | E18: ='DHB Stats'!$K17*'DHB Stats'!Y43 -> 0.08705263152 | F18: 0.026 | G18: ='DHB Stats'!$K17*'DHB Stats'!Z43 -> 0.1053818072 | H18: 0.026 | I18: ='DHB Stats'!$K17*'DHB Stats'!AA43 -> 0.09518996462 | J18: 0.02735264412 | K18: =(1-'DHB Stats'!$K17)*'DHB Stats'!W43 -> 0.3945800989 | L18: 0.016 | M18: =1-'DHB Stats'!W43 -> 0.3177954978 | O18: =Demographics!AC13 -> 0.01566385317 | P18: 0 | Q18: 0 | U18: 0.03938546601 | W18: -1204 | X18: 641 | Y18: 389231.495 | AA18: 14207.49501 | AC18: 372955 | AD18: 372955 | AE18: 384465.345 | AF18: 9441.345 | AG18: 11510.345 | AI18: 5329.150006 | AJ18: 4125.150006 | AK18: 4766.150006 | AL18: 4766.150006 | AU18: 372955000 | AV18: 15166000 | AW18: 388121000 | AX18: 383573704 | AY18: -3655655 | AZ18: 384465345
A19: Lakes | C19: 300118 | D19: 0.026 | E19: ='DHB Stats'!$K18*'DHB Stats'!Y44 -> 0.09254949434 | F19: 0.026 | G19: ='DHB Stats'!$K18*'DHB Stats'!Z44 -> 0.1161567874 | H19: 0.026 | I19: ='DHB Stats'!$K18*'DHB Stats'!AA44 -> 0.08941791466 | J19: 0.02735264412 | K19: =(1-'DHB Stats'!$K18)*'DHB Stats'!W44 -> 0.3126936075 | L19: 0.016 | M19: =1-'DHB Stats'!W44 -> 0.3891821962 | O19: =Demographics!AC14 -> 0.01983778498 | P19: 0 | Q19: 0 | U19: 0.04281589412 | W19: -1108 | X19: -560 | Y19: 311299.8205 | AA19: 11181.82051 | AC19: 298534 | AD19: 298534 | AE19: 313549.204 | AF19: 13431.204 | AG19: 15015.204 | AI19: -581.3834889 | AJ19: -1689.383489 | AK19: -2249.383489 | AL19: -2249.383489 | AU19: 298534000 | AV19: 11562000 | AW19: 310096000 | AX19: 312816685 | AY19: 3453204 | AZ19: 313549204
A20: MidCentral | C20: 484891 | D20: 0.026 | E20: ='DHB Stats'!$K19*'DHB Stats'!Y45 -> 0.09540028523 | F20: 0.026 | G20: ='DHB Stats'!$K19*'DHB Stats'!Z45 -> 0.118373998 | H20: 0.026 | I20: ='DHB Stats'!$K19*'DHB Stats'!AA45 -> 0.07689466964 | J20: 0.02735264412 | K20: =(1-'DHB Stats'!$K19)*'DHB Stats'!W45 -> 0.2497998144 | L20: 0.016 | M20: =1-'DHB Stats'!W45 -> 0.4595312328 | O20: =Demographics!AC15 -> 0.01602098422 | P20: 0 | Q20: 0 | U20: 0.03811189964 | W20: -2002 | X20: -1078 | Y20: 500291.1171 | AA20: 15400.11713 | AC20: 482764 | AD20: 482764 | AE20: 493959.867 | AF20: 9068.867 | AG20: 11195.867 | AI20: 9411.25013 | AJ20: 7409.25013 | AK20: 6331.25013 | AL20: 6331.25013 | AU20: 482764000 | AV20: 16692000 | AW20: 499456000 | AX20: 492530322 | AY20: -5496133 | AZ20: 493959867
A21: Nelson-Marlborough | C21: 405579 | D21: 0.026 | E21: ='DHB Stats'!$K20*'DHB Stats'!Y46 -> 0.09787461538 | F21: 0.026 | G21: ='DHB Stats'!$K20*'DHB Stats'!Z46 -> 0.1140285046 | H21: 0.026 | I21: ='DHB Stats'!$K20*'DHB Stats'!AA46 -> 0.1309028964 | J21: 0.02735264412 | K21: =(1-'DHB Stats'!$K20)*'DHB Stats'!W46 -> 0.2978161431 | L21: 0.016 | M21: =1-'DHB Stats'!W46 -> 0.3593778404 | O21: =Demographics!AC16 -> 0.02317345693 | P21: 0 | Q21: 0 | U21: 0.04651108257 | W21: -1298 | X21: -762 | Y21: 422382.9184 | AA21: 16803.91836 | AC21: 403203 | AD21: 403203 | AE21: 418167.216 | AF21: 12588.216 | AG21: 14964.216 | AI21: 6275.702358 | AJ21: 4977.702358 | AK21: 4215.702358 | AL21: 4215.702358 | AU21: 403203000 | AV21: 15101000 | AW21: 418304000 | AX21: 416947940 | AY21: -136784 | AZ21: 418167216
A22: Northland | C22: 539583 | D22: 0.026 | E22: ='DHB Stats'!$K21*'DHB Stats'!Y47 -> 0.1013353056 | F22: 0.026 | G22: ='DHB Stats'!$K21*'DHB Stats'!Z47 -> 0.1336070633 | H22: 0.026 | I22: ='DHB Stats'!$K21*'DHB Stats'!AA47 -> 0.1107630494 | J22: 0.02735264412 | K22: =(1-'DHB Stats'!$K21)*'DHB Stats'!W47 -> 0.296804585 | L22: 0.016 | M22: =1-'DHB Stats'!W47 -> 0.3574899967 | O22: =Demographics!AC17 -> 0.02452327164 | P22: 0 | Q22: 0 | U22: 0.04790962485 | W22: -1835 | X22: -853 | Y22: 562746.2191 | AA22: 23163.2191 | AC22: 536635 | AD22: 536635 | AE22: 563461.498 | AF22: 23878.498 | AG22: 26826.498 | AI22: 1972.721103 | AJ22: 137.7211029 | AK22: -715.2788971 | AL22: -715.2788971 | AU22: 536635000 | AV22: 20530000 | AW22: 557165000 | AX22: 561924498 | AY22: 6296498 | AZ22: 563461498
A23: South Canterbury | C23: 172374 | D23: 0.026 | E23: ='DHB Stats'!$K23*'DHB Stats'!Y49 -> 0.08645848254 | F23: 0.026 | G23: ='DHB Stats'!$K23*'DHB Stats'!Z49 -> 0.1329954667 | H23: 0.026 | I23: ='DHB Stats'!$K23*'DHB Stats'!AA49 -> 0.08565843904 | J23: 0.02735264412 | K23: =(1-'DHB Stats'!$K23)*'DHB Stats'!W49 -> 0.3231216681 | L23: 0.016 | M23: =1-'DHB Stats'!W49 -> 0.3717659436 | O23: =Demographics!AC18 -> 0.01842065458 | P23: 0 | Q23: 0 | U23: 0.04155857016 | W23: -472 | X23: -375 | Y23: 178690.617 | AA23: 6316.616972 | AC23: 171495 | AD23: 171495 | AE23: 176918.736 | AF23: 4544.736 | AG23: 5423.736 | AI23: 2618.880972 | AJ23: 2146.880972 | AK23: 1771.880972 | AL23: 1771.880972 | AU23: 171495000 | AV23: 6602000 | AW23: 178097000 | AX23: 176367063 | AY23: -1178264 | AZ23: 176918736
A24: Southern | C24: 822938 | D24: 0.026 | E24: ='DHB Stats'!$K24*'DHB Stats'!Y50 -> 0.1231773899 | F24: 0.026 | G24: ='DHB Stats'!$K24*'DHB Stats'!Z50 -> 0.1379041327 | H24: 0.026 | I24: ='DHB Stats'!$K24*'DHB Stats'!AA50 -> 0.09686736287 | J24: 0.02735264412 | K24: =(1-'DHB Stats'!$K24)*'DHB Stats'!W50 -> 0.2843508879 | L24: 0.016 | M24: =1-'DHB Stats'!W50 -> 0.3577002266 | O24: =Demographics!AC19 -> 0.01808535086 | P24: 0 | Q24: 0 | U24: 0.04130545802 | W24: -1753 | X24: -1362 | Y24: 853814.831 | AA24: 30876.83101 | AC24: 818589 | AD24: 818589 | AE24: 846419.045 | AF24: 23481.045 | AG24: 27830.045 | AI24: 10510.78601 | AJ24: 8757.78601 | AK24: 7395.78601 | AL24: 7395.78601 | AU24: 818589000 | AV24: 33498000 | AW24: 852087000 | AX24: 844244569 | AY24: -5667955 | AZ24: 846419045
A25: Tairawhiti | C25: 154899 | D25: 0.026 | E25: ='DHB Stats'!$K26*'DHB Stats'!Y52 -> 0.1079197316 | F25: 0.026 | G25: ='DHB Stats'!$K26*'DHB Stats'!Z52 -> 0.1280273516 | H25: 0.026 | I25: ='DHB Stats'!$K26*'DHB Stats'!AA52 -> 0.1028265454 | J25: 0.02735264412 | K25: =(1-'DHB Stats'!$K26)*'DHB Stats'!W52 -> 0.3050258438 | L25: 0.016 | M25: =1-'DHB Stats'!W52 -> 0.3562005277 | O25: =Demographics!AC20 -> 0.01984640927 | P25: 0 | Q25: 0 | U25: 0.0431504975 | W25: -259 | X25: -257 | Y25: 161066.9689 | AA25: 6167.968912 | AC25: 154032 | AD25: 154032 | AE25: 160572.123 | AF25: 5673.123 | AG25: 6540.123 | AI25: 1010.845912 | AJ25: 751.8459115 | AK25: 494.8459115 | AL25: 494.8459115 | AU25: 154032000 | AV25: 6081000 | AW25: 160113000 | AX25: 160239372 | AY25: 459123 | AZ25: 160572123
A26: Taranaki | C26: 327231 | D26: 0.026 | E26: ='DHB Stats'!$K27*'DHB Stats'!Y53 -> 0.09037698549 | F26: 0.026 | G26: ='DHB Stats'!$K27*'DHB Stats'!Z53 -> 0.1244606645 | H26: 0.026 | I26: ='DHB Stats'!$K27*'DHB Stats'!AA53 -> 0.1113836196 | J26: 0.02735264412 | K26: =(1-'DHB Stats'!$K27)*'DHB Stats'!W53 -> 0.291726543 | L26: 0.016 | M26: =1-'DHB Stats'!W53 -> 0.3820521873 | O26: =Demographics!AC21 -> 0.01954832601 | P26: 0 | Q26: 0 | U26: 0.04256369181 | W26: -808 | X26: -605 | Y26: 339746.1594 | AA26: 12515.15943 | AC26: 324724 | AD26: 324724 | AE26: 335485.129 | AF26: 8254.129 | AG26: 10761.129 | AI26: 5674.030434 | AJ26: 4866.030434 | AK26: 4261.030434 | AL26: 4261.030434 | AU26: 324724000 | AV26: 14235000 | AW26: 338959000 | AX26: 334589558 | AY26: -3473871 | AZ26: 335485129
A27: Waikato | C27: 1096798 | D27: 0.026 | E27: ='DHB Stats'!$K28*'DHB Stats'!Y54 -> 0.1142602755 | F27: 0.026 | G27: ='DHB Stats'!$K28*'DHB Stats'!Z54 -> 0.1447311422 | H27: 0.026 | I27: ='DHB Stats'!$K28*'DHB Stats'!AA54 -> 0.1160652888 | J27: 0.02735264412 | K27: =(1-'DHB Stats'!$K28)*'DHB Stats'!W54 -> 0.2280796969 | L27: 0.016 | M27: =1-'DHB Stats'!W54 -> 0.3968635966 | O27: =Demographics!AC22 -> 0.02706869134 | P27: 0 | Q27: 0 | U27: =((1+D27)*E27+(1+F27)*G27+(1+H27)*I27+(1+J27)*K27+(1+L27+N27)*M27)*(1+O27)*(1+P27)*(1-Q27)+R27*(1+S27)-1 -> 0.05001327721 | W27: -2886 | X27: -1838 | Y27: 1146928.462 | AA27: 50130.46242 | AC27: 1088800 | AD27: 1088800 | AE27: 1139123.402 | AF27: 42325.402 | AG27: 50323.402 | AI27: 12529.06042 | AJ27: 9643.060418 | AK27: 7805.060418 | AL27: 7805.060418 | AU27: 1088800000 | AV27: 45939000 | AW27: 1134739000 | AX27: 1136366636 | AY27: 4384402 | AZ27: 1139123402
A28: Wairarapa | C28: 131668 | D28: 0.026 | E28: ='DHB Stats'!$K29*'DHB Stats'!Y55 -> 0.06599342892 | F28: 0.026 | G28: ='DHB Stats'!$K29*'DHB Stats'!Z55 -> 0.1202477127 | H28: 0.026 | I28: ='DHB Stats'!$K29*'DHB Stats'!AA55 -> 0.06531399287 | J28: 0.02735264412 | K28: =(1-'DHB Stats'!$K29)*'DHB Stats'!W55 -> 0.3316625898 | L28: 0.016 | M28: =1-'DHB Stats'!W55 -> 0.4167822757 | O28: =Demographics!AC23 -> 0.01839443992 | P28: 0 | Q28: 0 | U28: 0.04108508143 | W28: -231 | X28: -284 | Y28: 136562.5905 | AA28: 4894.590501 | AC28: 130946 | AD28: 130946 | AE28: 135179.29 | AF28: 3511.29 | AG28: 4233.29 | AI28: 1898.300501 | AJ28: 1667.300501 | AK28: 1383.300501 | AL28: 1383.300501 | AU28: 130946000 | AV28: 5711000 | AW28: 136657000 | AX28: 134773978 | AY28: -1477710 | AZ28: 135179290
A29: Waitemata | C29: 1399525 | D29: 0.026 | E29: ='DHB Stats'!$K30*'DHB Stats'!Y56 -> 0.1012477107 | F29: 0.026 | G29: ='DHB Stats'!$K30*'DHB Stats'!Z56 -> 0.135151383 | H29: 0.026 | I29: ='DHB Stats'!$K30*'DHB Stats'!AA56 -> 0.1105201079 | J29: 0.02735264412 | K29: =(1-'DHB Stats'!$K30)*'DHB Stats'!W56 -> 0.3161251072 | L29: 0.016 | M29: =1-'DHB Stats'!W56 -> 0.3369556912 | O29: =Demographics!AC24 -> 0.03371792883 | P29: 0 | Q29: 0 | U29: 0.0575534463 | W29: -2763 | X29: -1165 | Y29: 1476144.487 | AA29: 76619.48694 | AC29: 1391675 | AD29: 1391675 | AE29: 1463410.891 | AF29: 63885.891 | AG29: 71735.891 | AI29: 16661.59594 | AJ29: 13898.59594 | AK29: 12733.59594 | AL29: 12733.59594 | AU29: 1391675000 | AV29: 59133000 | AW29: 1450808000 | AX29: 1460305314 | AY29: 12602891 | AZ29: 1463410891
A30: West Coast | C30: 125017 | D30: 0.026 | E30: ='DHB Stats'!$K31*'DHB Stats'!Y57 -> 0.06973394362 | F30: 0.026 | G30: ='DHB Stats'!$K31*'DHB Stats'!Z57 -> 0.1742609246 | H30: 0.026 | I30: ='DHB Stats'!$K31*'DHB Stats'!AA57 -> 0.1142357459 | J30: 0.02735264412 | K30: =(1-'DHB Stats'!$K31)*'DHB Stats'!W57 -> 0.2642103507 | L30: 0.016 | M30: =1-'DHB Stats'!W57 -> 0.3775590352 | O30: =Demographics!AC25 -> 0.01362141064 | P30: 0 | Q30: 0 | U30: 0.03651079873 | W30: -58 | X30: -112 | Y30: 129411.4705 | AA30: 4394.470525 | AC30: 124489 | AD30: 124489 | AE30: 128042.078 | AF30: 3025.078 | AG30: 3553.078 | AI30: 1539.392525 | AJ30: 1481.392525 | AK30: 1369.392525 | AL30: 1369.392525 | AU30: 124489000 | AV30: 4334000 | AW30: 128823000 | AX30: 127800271 | AY30: -780922 | AZ30: 128042078
A31: Whanganui | C31: 211894 | D31: 0.026 | E31: ='DHB Stats'!$K32*'DHB Stats'!Y58 -> 0.08501726734 | F31: 0.026 | G31: ='DHB Stats'!$K32*'DHB Stats'!Z58 -> 0.135074714 | H31: 0.026 | I31: ='DHB Stats'!$K32*'DHB Stats'!AA58 -> 0.08415439273 | J31: 0.02735264412 | K31: =(1-'DHB Stats'!$K32)*'DHB Stats'!W58 -> 0.3104785222 | L31: 0.016 | M31: =1-'DHB Stats'!W58 -> 0.3852751037 | O31: =Demographics!AC26 -> 0.01358474307 | P31: 0 | Q31: 0 | U31: 0.03645852881 | W31: -414 | X31: -187 | Y31: =C31*(1+U31)+W31+X31 -> 219018.3435 | AA31: 7124.343503 | AC31: 210551 | AD31: 210551 | AE31: 218200.324 | AF31: =AE31-C31 -> 6306.324 | AG31: =AE31-AD31 -> 7649.324 | AI31: 1419.019503 | AJ31: 1005.019503 | AK31: 818.0195031 | AL31: 818.0195031 | AU31: 210551000 | AV31: 8308000 | AW31: 218859000 | AX31: 217597347 | AY31: -658676 | AZ31: 218200324
A32: Total DHBs | C32: =SUM(C12:C31) -> 12219915 | D32: 0.026 | E32: =MedicalProportion17 -> 0.1118293683 | F32: 0.026 | G32: =NursingProportion17 -> 0.1356763253 | H32: 0.026 | I32: =OtherWageProportion17 -> 0.1064860623 | J32: 0.02735264412 | K32: =DHBFundedProportion17 -> 0.2760567764 | L32: 0.016 | M32: =NonLabourProportion17 -> 0.3699514678 | O32: =PopulationGrowth17 -> 0.02510707935 | P32: 0 | Q32: 0 | U32: =((1+D32)*E32+(1+F32)*G32+(1+H32)*I32+(1+J32)*K32+(1+L32+N32)*M32)*(1+O32)*(1+P32)*(1-Q32)+R32*(1+S32)-1 -> 0.04835024645 | W32: =E117 -> -34985 | X32: =G117 -> 15044 | Y32: =SUM(Y12:Y31)-SUM(W12:W31)+W32-SUM(X12:X31)+X32 -> 12790669.22 | Z32: =Y32 -> 12790669.22 | AA32: =Y32-C32 -> 570754.2179 | AC32: =SUM(AC12:AC31) -> 12199848 | AD32: =SUM(AD12:AD31) -> 12199848 | AE32: =SUM(AE12:AE31) -> 12682765.01 | AF32: =AE32-C32 -> 462850.01 | AG32: 482917.01 | AI32: 127845.2079 | AJ32: =AI32+E117 -> 92860.20794 | AK32: =AJ32+G117 -> 107904.2079 | AL32: =AK32+I117 -> 107904.2079 | AU32: =SUM(AU12:AU31) -> 12199848000 | AV32: 482917000 | AW32: 12682765000 | AX32: 12653834737 | AY32: 10 | AZ32: 12682765010
V33: Without additional costs | Y33: =Y32-W32-X32 -> 12810610.22 | Z33: Increase | AA33: =AA32/C32 -> 0.04670688936 | AC33: =AC32-$C32 -> -20067 | AD33: =AD32-$C32 -> -20067 | AE33: Below need by | AF33: =AA32-AF32 -> 107904.2079 | AG33: =SUMPRODUCT(AD12:AD31,U12:U31)+W32+X32-AG32 -> 87124.22643 | AU33: Of which demog | AV33: ='2017 Health appropriations'!D4*1000 -> 439000000 | AX33: Underfunded | AY33: =SUMIF(AY12:AY31,">0") -> 37810362
V34: Increase | Y34: =Y33-C32 -> 590695.2179 | Z34: Increase | AA34: =Y34/C32 -> 0.04833873377 | AU34: Remaining | AV34: =AV32-AV33 -> 43917000 | AX34: Overfunded | AY34: =SUMIF(AY12:AY31,"<0") -> -37810352
A36: Auckland Health Projects Integrated Investment Plan | W36: =E121 -> 650 | X36: =G121 -> 0 | Y36: =C36*(1+U36)+W36+X36 -> 650 | AA36: =Y36-C36 -> 650 | AC36: 720 | AD36: 320 | AE36: 650 | AF36: =AE36-C36 -> 650 | AG36: =AE36-AD36 -> 330 | AI36: =Y36-W36-AE36-X36 -> -650 | AJ36: =AI36+E121 -> 0 | AK36: =AJ36+G121 -> 0 | AL36: =AK36+I121 -> 0
A37: Health Workforce Training and Development | C37: 180014 | J37: =AllIndustriesWageIncr17 -> 0.026 | K37: =LabourProportion17 -> 0.6300485322 | M37: =NonLabourProportion17 -> 0.3699514678 | N37: =NonLabourGeneralCostIncreases17 -> 0.016 | P37: =NonDemographicGrowth17 -> 0 | Q37: =ProductivityGrowth17 -> 0 | U37: =((1+D37)*E37+(1+F37)*G37+(1+H37)*I37+(1+J37)*K37+(1+L37+N37)*M37)*(1+O37)*(1+P37)*(1-Q37)+R37*(1+S37)-1 -> 0.02230048532 | W37: =E122 -> 0 | X37: =G122 -> 0 | Y37: 184028.3996 | AA37: =Y37-C37 -> 4014.399565 | AC37: 185014 | AD37: 184514 | AE37: 186745 | AF37: =AE37-C37 -> 6731 | AG37: =AE37-AD37 -> 2231 | AI37: =Y37-W37-AE37-X37 -> -2716.600435 | AJ37: -2716.600435 | AK37: -2716.600435 | AL37: -2716.600435
A38: Monitoring and Protecting Health and Disability Consumer Interests | C38: 27596 | J38: =AllIndustriesWageIncr17 -> 0.026 | K38: 0.6300485322 | M38: 0.3699514678 | N38: 0.016 | P38: 0 | Q38: 0 | U38: 0.02230048532 | W38: 0 | X38: 0 | Y38: 28211.40419 | AA38: =Y38-C38 -> 615.404193 | AC38: 28746 | AD38: 28746 | AE38: 28746 | AF38: 1150 | AG38: 0 | AI38: -534.595807 | AJ38: -534.595807 | AK38: -534.595807 | AL38: -534.595807
A39: National Child Health Services | C39: 85001 | J39: =DHBProviderWageIncrease17 -> 0.026 | K39: 0.6300485322 | M39: 0.3699514678 | N39: 0.016 | O39: =ChildPopGrowth17 -> 0.005872174066 | P39: 0 | Q39: 0 | U39: 0.02830361172 | W39: 0 | X39: 0 | Y39: 87406.8353 | AA39: 2405.8353 | AC39: 83501 | AD39: 83401 | AE39: 85001 | AF39: 0 | AG39: 1600 | AI39: 2405.8353 | AJ39: 2405.8353 | AK39: 2405.8353 | AL39: 2405.8353
A40: National Contracted Services - Other | C40: 37155 | J40: =AllIndustriesWageIncr17 -> 0.026 | K40: 0.6300485322 | M40: 0.3699514678 | N40: 0.016 | O40: =PopulationGrowth17 -> 0.02510707935 | P40: 0 | Q40: 0 | U40: 0.04796746473 | W40: 0 | X40: 0 | Y40: 38937.23115 | AA40: 1782.231152 | AC40: 26607 | AD40: 26607 | AE40: 28720 | AF40: -8435 | AG40: 2113 | AI40: 10217.23115 | AJ40: 10217.23115 | AK40: 10217.23115 | AL40: 10217.23115
A41: National Disability Support Services | C41: 1165888 | J41: =HighMinWageSectorWageIncrease17 -> 0.0316 | K41: 0.6300485322 | M41: 0.3699514678 | N41: 0.016 | O41: =PopulationGrowth17 -> 0.02510707935 | P41: 0 | Q41: 0 | U41: 0.05158432111 | W41: 0 | X41: 0 | Y41: 1226029.541 | AA41: 60141.54097 | AC41: 1183865 | AD41: 1183365 | AE41: 1208374 | AF41: 42486 | AG41: 25009 | AI41: 17655.54097 | AJ41: 17655.54097 | AK41: 17655.54097 | AL41: 17655.54097
A42: National Elective Services | C42: 355517 | J42: =DHBProviderWageIncrease17 -> 0.026 | K42: 0.6300485322 | M42: 0.3699514678 | N42: 0.016 | O42: =PopulationGrowth17 -> 0.02510707935 | P42: 0 | Q42: 0 | U42: 0.04796746473 | W42: 0 | X42: 0 | Y42: 372570.2492 | AA42: 17053.24916 | AC42: 356205 | AD42: 347205 | AE42: 346517 | AF42: -9000 | AG42: -688 | AI42: 26053.24916 | AJ42: 26053.24916 | AK42: 26053.24916 | AL42: 26053.24916
A43: National Emergency Services | C43: 99946 | J43: =AllIndustriesWageIncr17 -> 0.026 | K43: 0.6300485322 | M43: 0.3699514678 | N43: 0.016 | O43: =PopulationGrowth17 -> 0.02510707935 | P43: 0 | Q43: 0 | U43: 0.04796746473 | W43: 8571 | X43: 0 | Y43: 113311.1562 | AA43: 13365.15623 | AC43: 101050 | AD43: 100550 | AE43: 109958 | AF43: 10012 | AG43: 9408 | AI43: -5217.84377 | AJ43: 3353.15623 | AK43: 3353.15623 | AL43: 3353.15623
A44: National Health Information Systems | C44: 13065 | J44: =AllIndustriesWageIncr17 -> 0.026 | K44: 0.6300485322 | M44: 0.3699514678 | N44: 0.016 | P44: 0 | Q44: 0 | U44: 0.02230048532 | W44: 0 | X44: 0 | Y44: 13356.35584 | AA44: 291.3558407 | AC44: 5418 | AD44: 5418 | AE44: 8236 | AF44: -4829 | AG44: 2818 | AI44: 5120.355841 | AJ44: 5120.355841 | AK44: 5120.355841 | AL44: 5120.355841
A45: National Māori Health Services | C45: 6828 | J45: =AllIndustriesWageIncr17 -> 0.026 | K45: 0.6300485322 | M45: 0.3699514678 | N45: 0.016 | O45: =MaoriPopGrowth17 -> 0.0291889081 | P45: 0 | Q45: 0 | U45: 0.05214032024 | W45: 0 | X45: 0 | Y45: 7184.014107 | AA45: 356.0141066 | AC45: 3828 | AD45: 3328 | AE45: 6828 | AF45: 0 | AG45: 3500 | AI45: 356.0141066 | AJ45: 356.0141066 | AK45: 356.0141066 | AL45: 356.0141066
A46: National Maternity Services | C46: 146767 | J46: =DHBProviderWageIncrease17 -> 0.026 | K46: 0.6300485322 | M46: 0.3699514678 | N46: 0.016 | O46: =BirthGrowth17 -> 0.026272578 | P46: 0 | Q46: 0 | U46: 0.04915895456 | W46: 0 | X46: 0 | Y46: 153981.9123 | AA46: 7214.912284 | AC46: 152847 | AD46: 152347 | AE46: 146767 | AF46: 0 | AG46: -5580 | AI46: 7214.912284 | AJ46: 7214.912284 | AK46: 7214.912284 | AL46: 7214.912284
A47: National Mental Health Services | C47: 58962 | J47: =DHBProviderWageIncrease17 -> 0.026 | K47: 0.6300485322 | M47: 0.3699514678 | N47: 0.016 | O47: 0.05 | P47: 0 | Q47: 0 | U47: 0.07341550959 | W47: 0 | X47: 0 | Y47: 63290.72528 | AA47: 4328.725276 | AC47: 69669 | AD47: 69169 | AE47: 62183 | AF47: 3221 | AG47: -6986 | AI47: 1107.725276 | AJ47: 1107.725276 | AK47: 1107.725276 | AL47: 1107.725276
A48: National Personal Health Services | C48: 98694 | J48: =DHBProviderWageIncrease17 -> 0.026 | K48: 0.6300485322 | M48: 0.3699514678 | N48: 0.016 | O48: =PopulationGrowth17 -> 0.02510707935 | P48: 0 | Q48: 0 | U48: 0.04796746473 | W48: 700 | X48: -15044 | Y48: 89084.10096 | AA48: -9609.899036 | AC48: 85450 | AD48: 84950 | AE48: 84057 | AF48: -14637 | AG48: -893 | AI48: 19371.10096 | AJ48: 20071.10096 | AK48: 5027.100964 | AL48: 5027.100964
A49: Primary Health Care Strategy | C49: 186019 | J49: =AllIndustriesWageIncr17 -> 0.026 | K49: 0.6300485322 | M49: 0.3699514678 | N49: 0.016 | O49: =PopulationGrowth17 -> 0.02510707935 | P49: 0 | Q49: 0 | U49: 0.04796746473 | W49: 0 | X49: 0 | Y49: 194941.8598 | AA49: 8922.859822 | AC49: 185794 | AD49: 185294 | AE49: 195405 | AF49: 9386 | AG49: 10111 | AI49: -463.1401783 | AJ49: -463.1401783 | AK49: -463.1401783 | AL49: -463.1401783
A50: Problem Gambling Services | C50: 17440 | J50: =AllIndustriesWageIncr17 -> 0.026 | K50: 0.6300485322 | M50: 0.3699514678 | N50: 0.016 | O50: =PopulationGrowth17 -> 0.02510707935 | P50: 0 | Q50: 0 | U50: 0.04796746473 | W50: 0 | X50: 0 | Y50: 18276.55258 | AA50: 836.5525849 | AC50: 19865 | AD50: 16065 | AE50: 17521 | AF50: 81 | AG50: 1456 | AI50: 755.5525849 | AJ50: 755.5525849 | AK50: 755.5525849 | AL50: 755.5525849
A51: Public Health Service Purchasing | C51: 400644 | J51: =DHBProviderWageIncrease17 -> 0.026 | K51: 0.6300485322 | M51: 0.3699514678 | N51: 0.016 | O51: =PopulationGrowth17 -> 0.02510707935 | P51: 0 | Q51: 0 | U51: 0.04796746473 | W51: 11618 | X51: 0 | Y51: 431479.8769 | AA51: 30835.87694 | AC51: 393311 | AD51: 386311 | AE51: 405471 | AF51: 4827 | AG51: 19160 | AI51: 14390.87694 | AJ51: 26008.87694 | AK51: 26008.87694 | AL51: 26008.87694
A52: Supporting Equitable Pay for Care and Support Workers | W52: 279000 | X52: 0 | Y52: 279000 | AA52: 279000 | AC52: 0 | AD52: 0 | AE52: 279000 | AF52: =AE52-C52 -> 279000 | AG52: 279000 | AI52: -279000 | AJ52: 0 | AK52: 0 | AL52: 0
A53: Health Sector Projects Operating Expense | W53: 0 | X53: 0 | Y53: 0 | AA53: 0 | AC53: 6252 | AD53: 6252 | AE53: 0 | AF53: =AE53-C53 -> 0 | AG53: -6252 | AI53: 0 | AJ53: 0 | AK53: 0 | AL53: 0
A54: Total non-DHB | C54: =SUM(C36:C53) -> 2879536 | U54: =SUM(C37:C51*U37:U51)/SUM(C37:C51) -> 0.04747612615 | W54: =E139 -> 300539 | X54: =G139 -> -15044 | Y54: =SUM(Y36:Y53)-SUM(W36:W53)+W54-SUM(X36:X53)+X54 -> 3301740.214 | Z54: =Y54 -> 3301740.214 | AA54: =Y54-C54 -> 422204.2144 | AC54: =SUM(AC36:AC53) -> 2888142 | AD54: =SUM(AD36:AD53) -> 2863842 | AE54: =SUM(AE36:AE53) -> 3200179 | AF54: =AE54-C54 -> 320643 | AG54: 336337 | AI54: =Y54-W54-AE54-X54 -> -183933.7856 | AJ54: 116605.2144 | AK54: 101561.2144 | AL54: 101561.2144
V55: Without additional costs | Y55: =Y54-W54-X54 -> 3016245.214 | Z55: Increase | AA55: =AA54/C54 -> 0.146622308 | AC55: =AC54-$C55 -> 2888142 | AD55: =AD54-$C55 -> 2863842 | AE55: Below need by | AF55: =AA54-AF54 -> 101561.2144 | AG55: =SUMPRODUCT(AD36:AD51,U36:U51)+W54+X54-AG54 -> 85196.89345
V56: Increase | Y56: =Y55-C54 -> 136709.2144 | Z56: Increase | AA56: =Y56/C54 -> 0.04747612615
A57: Total Non-Departmental Output Expenses | C57: =C54+C32 -> 15099451 | U57: =SUM(C32:C51*U32:U51)/SUM(C32:C51) -> 0.04818354762 | W57: =W54+W32 -> 265554 | X57: =X54+X32 -> 0 | Y57: =Y32+Y54 -> 16092409.43 | Z57: =Y57 -> 16092409.43 | AA57: =Y57-C57 -> 992958.4323 | AC57: =AC32+AC54 -> 15087990 | AD57: =AD32+AD54 -> 15063690 | AE57: =AE54+AE32 -> 15882944.01 | AF57: =AE57-C57 -> 783493.01 | AG57: =AE57-AD57 -> 819254.01 | AI57: =AI54+AI32 -> -56088.57767 | AJ57: =AJ54+AJ32 -> 209465.4223 | AK57: =AK54+AK32 -> 209465.4223 | AL57: =AL54+AL32 -> 209465.4223
V58: Without additional costs | Y58: =Y57-W57 -> 15826855.43 | Z58: Increase | AA58: =AA57/C57 -> 0.0657612275 | AC58: =AC57-$C57 -> -11461 | AD58: =AD57-$C57 -> -35761 | AE58: Below need by | AF58: =AA57-AF57 -> 209465.4223 | AG58: =AG55+AG33 -> 172321.1199
A59: Departmental Other Expenses
A61: Total Departmental Other Expenses | C61: =SUM(C58:C60) -> 0 | U61: =IFERROR(SUM(C60*U60)/SUM(C60),U60) -> 0 | Y61: =SUM(C58:C60*(1+U58:U60)) -> 0 | Z61: =Y61 -> 0 | AA61: =Y61-C61 -> 0
A63: Non-Departmental Other Expenses
A64: International Health Organisations | C64: 2030 | M64: 1 | N64: =NonLabourGeneralCostIncreases17 -> 0.016 | U64: =((1+D64)*E64+(1+F64)*G64+(1+H64)*I64+(1+J64)*K64+(1+L64+N64)*M64)*(1+O64)*(1+P64)*(1-Q64)+R64*(1+S64)-1 -> 0.016 | Y64: =C64*(1+U64) -> 2062.48 | AC64: 2030 | AD64: 2030 | AE64: 2030 | AF64: =AE64-C64 -> 0 | AG64: =AE64-AD64 -> 0
A65: Legal Expenses | C65: 1028 | J65: =AllIndustriesWageIncr17 -> 0.026 | K65: =LabourProportion17 -> 0.6300485322 | M65: =NonLabourProportion17 -> 0.3699514678 | N65: =NonLabourGeneralCostIncreases17 -> 0.016 | Q65: =ProductivityGrowth17 -> 0 | U65: =((1+D65)*E65+(1+F65)*G65+(1+H65)*I65+(1+J65)*K65+(1+L65+N65)*M65)*(1+O65)*(1+P65)*(1-Q65)+R65*(1+S65)-1 -> 0.02230048532 | Y65: =C65*(1+U65) -> 1050.924899 | AC65: 1028 | AD65: 778 | AE65: 1028 | AF65: 0 | AG65: =AE65-AD65 -> 250
A66: Provider Development | C66: 25414 | J66: =AllIndustriesWageIncr17 -> 0.026 | K66: =LabourProportion17 -> 0.6300485322 | M66: =NonLabourProportion17 -> 0.3699514678 | N66: =NonLabourGeneralCostIncreases17 -> 0.016 | Q66: =ProductivityGrowth17 -> 0 | U66: =((1+D66)*E66+(1+F66)*G66+(1+H66)*I66+(1+J66)*K66+(1+L66+N66)*M66)*(1+O66)*(1+P66)*(1-Q66)+R66*(1+S66)-1 -> 0.02230048532 | Y66: =C66*(1+U66) -> 25980.74453 | AC66: 24434 | AD66: 23434 | AE66: 24289 | AF66: -1125 | AG66: =AE66-AD66 -> 855
A67: Repayment of District Health Board Loans | AC67: 275000 | AD67: 75974 | AE67: 0 | AF67: =AE67-C67 -> 0 | AG67: =AE67-AD67 -> -75974
A68: Total Non-Departmental Other Expenses | C68: =SUM(C64:C67) -> 28472 | U68: =SUM(C64:C66*U64:U66)/SUM(C64:C66) -> 0.02185127258 | Y68: =SUM(C64:C66*(1+U64:U66)) -> 29094.14943 | Z68: =Y68 -> 29094.14943 | AA68: =Y68-C68 -> 622.1494329 | AC68: =SUM(AC64:AC66) -> 27492 | AD68: =SUM(AD64:AD66) -> 26242 | AE68: =SUM(AE64:AE66) -> 27347 | AF68: =AE68-C68 -> -1125 | AG68: =AE68-AD68 -> 1105 | AI68: =Y68-W68-AE68-X68 -> 1747.149433 | AJ68: =AI68+E153 -> 1747.149433 | AK68: =AJ68+G153 -> 1747.149433 | AL68: =AK68+I153 -> 1747.149433
AC69: =AC68-$C68 -> -980 | AD69: =AD68-$C68 -> -2230 | AE69: Below need by | AF69: =AA68-AF68 -> 1747.149433 | AG69: =SUMPRODUCT(AD64:AD66,U64:U66)+W68+X68-AG68 -> -532.5806494
A70: Total Operational Expenses | C70: =C68+C61+C57+C8 -> 15323600 | U70: =(C8*U8+C57*U57+C61*U61+C68*U68)/(C8+C57+C68) -> 0.04779991288 | W70: =W68+W57+W61+W8 -> 268974 | X70: =X68+X57+X61+X8 -> 0 | Y70: =Y68+Y57+Y61+Y8 -> 16324900.06 | Z70: =Z68+Z57+Z61+Z8 -> 16324900.06 | AA70: =AA68+AA57+AA61+AA8 -> 1001300.061 | AC70: =AC68+AC61+AC57+AC8 -> 15314356 | AD70: =AD68+AD61+AD57+AD8 -> 15286806 | AE70: =AE68+AE61+AE57+AE8 -> 16108573.01 | AF70: 784973.01 | AG70: =AE70-AD70 -> 821767.01 | AI70: =AI57+AI68+AI8 -> -52646.94901 | AJ70: =AJ57+AJ68+AJ8 -> 216327.051 | AK70: =AK57+AK68+AK8 -> 216327.051 | AL70: =AL57+AL68+AL8 -> 216327.051
V71: Without additional costs | Y71: =Y70-W70 -> 16055926.06 | Z71: Increase | AA71: =AA70/C70 -> 0.06534365691 | AC71: =$C70-AC70 -> 9244 | AD71: =$C70-AD70 -> 36794 | AE71: Below need by | AF71: =AA70-AF70 -> 216327.051 | AG71: =AG69+AG62+AG58+AG9 -> 178126.3193
V72: Increase | Y72: =Y71-C70 -> 732326.061 | Z72: or | AA72: =Y72/C70 -> 0.04779073201 | AF72: =IF(ROUND(AF71,0)=ROUND(J144,0),"OK","ERROR") -> OK
A73: Departmental Capital Expenditure
A74: Ministry of Health - Capital Expenditure PLA | C74: 15010 | R74: =CapitalGoodsProportion17 -> 1 | S74: =CapitalPI17 -> 0.034 | U74: =((1+D74)*E74+(1+F74)*G74+(1+H74)*I74+(1+L74+N74)*M74)*(1+O74)*(1+P74)+R74*(1+S74)-1 -> 0.034 | Y74: =C74*(1+U74) -> 15520.34 | AC74: 17010 | AD74: 17010 | AE74: 8000 | AF74: =AE74-C74 -> -7010 | AG74: =AE74-AD74 -> -9010
A75: Total Departmental Capital Expenditure | C75: =SUM(C74) -> 15010 | Y75: =SUM(C74*(1+U74)) -> 15520.34 | AA75: =Y75-C75 -> 510.34 | AC75: =SUM(AC74) -> 17010 | AD75: =SUM(AD74) -> 17010 | AE75: =SUM(AE74) -> 8000 | AF75: =AE75-C75 -> -7010 | AG75: =AE75-AD75 -> -9010
AC76: =$C75-AC75 -> -2000 | AD76: =$C75-AD75 -> -2000 | AE76: Below need by | AF76: =AA75-AF75 -> 7520.34 | AG76: =AD74*U74+W74+X74-AG75 -> 9588.34
A77: Non-Departmental Capital Expenditure | AI77: Financing DHB debt restructure
A78: Deficit Support for DHBs | C78: 50000 | R78: =CapitalGoodsProportion17 -> 1 | S78: =CapitalPI17 -> 0.034 | U78: =((1+D78)*E78+(1+F78)*G78+(1+H78)*I78+(1+L78+N78)*M78)*(1+O78)*(1+P78)+R78*(1+S78)-1 -> 0.034 | Y78: =C78*(1+U78) -> 51700 | AC78: 74624 | AD78: 74624 | AE78: 50000 | AF78: =AE78-C78 -> 0 | AG78: =AE78-AD78 -> -24624
A79: Equity for Capital Projects for DHBs and Health Sector Crown Agencies | C79: 185299 | R79: 1 | S79: 0.034 | U79: 0.034 | Y79: 191599.166 | AC79: 2722345 | AD79: 2682345 | AE79: 303388 | AF79: 118089 | AG79: -2378957 | AI79: 2415000
A80: Health Sector Projects | C80: 402397 | R80: 1 | S80: 0.034 | U80: 0.034 | Y80: 416078.498 | AC80: 241059 | AD80: 211059 | AE80: 288108 | AF80: -114289 | AG80: 77049
A81: Loans for Capital Projects | C81: 90000 | R81: 1 | S81: 0.034 | U81: 0.034 | Y81: 93060 | AC81: 85000 | AD81: 85000 | AF81: -90000 | AG81: -85000
A82: Refinance of Crown Loans | C82: 60500 | R82: 1 | S82: 0.034 | U82: 0.034 | Y82: 62557 | AC82: 204214 | AD82: 204214 | AF82: -60500 | AG82: -204214 | AI82: 204214
A83: Residential Care Loans | C83: 15000 | R83: 1 | S83: 0.034 | U83: 0.034 | Y83: 15510 | AC83: 15000 | AD83: 15000 | AE83: 15000 | AF83: 0 | AG83: 0
A84: Total Non-Departmental Capital Expenditure | C84: =SUM(C78:C83) -> 803196 | Y84: =SUM(C78:C83*(1+U78:U83)) -> 830504.664 | AA84: =Y84-C84 -> 27308.664 | AC84: =SUM(AC78:AC83) -> 3342242 | AD84: =SUM(AD78:AD83) -> 3272242 | AE84: =SUM(AE78:AE83) -> 656496 | AF84: -146700 | AG84: -2615746 | AI84: =SUM(AI78:AI83) -> 2619214
AC85: =$C84-AC84 -> -2539046 | AD85: =$C84-AD84 -> -2469046 | AE85: Below need by | AF85: =AA84-AF84 -> 174008.664 | AG85: =SUMPRODUCT(AD78:AD83,U78:U83)+W84+X84-AG84 -> 2727002.228
A86: Total Capital Expenditure | C86: =C84+C75 -> 818206 | U86: =SUM(C74*U74,C78:C81*U78:U81)/SUM(C74,C78:C81) -> 0.034 | Y86: =Y84+Y75 -> 846025.004 | Z86: =Y86 -> 846025.004 | AA86: =AA84+AA75 -> 27819.004 | AC86: =AC84+AC75 -> 3359252 | AD86: =AD84+AD75 -> 3289252 | AE86: =AE84+AE75 -> 664496 | AF86: =AE86-C86 -> -153710 | AG86: =AE86-AD86 -> -2624756
A88: Total Annual and Permanent Appropriations | C88: =C86+C70 -> 16141806 | U88: =(C70*U70+C86*U86)/(C70+C86) -> 0.04710041423 | Z88: =Z86+Z70 -> 17170925.06 | AA88: =AA86+AA70 -> 1029119.065 | AC88: =AC86+AC70 -> 18673608 | AD88: =AD86+AD70 -> 18576058 | AE88: =AE86+AE70 -> 16773069.01 | AF88: =AE88-C88 -> 631263.01 | AG88: =AE88-AD88 -> -1802988.99
A90: Summary of position, including "initiatives"
B91: Required for rising costs and population | C91: Appropriation | D91: Shortfall on rising costs and population | E91: Initiatives | F91: Shortfall after initiatives | G91: Devolution to DHBs/restructured vote | H91: Shortfall after devolution/restructured vote | I91: Savings | J91: Shortfall after savings and restructuring | K91: Net additional costs of initiatives
A92: Departmental
A93: Departmental appropriation | B93: =C8*(1+U8) -> 199976.4792 | C93: =AE8 -> 198282 | D93: =B93-C93 -> 1694.479236 | E93: ='2017 Health appropriations'!D12+'2017 Health appropriations'!D16 -> 3420 | F93: =D93+E93 -> 5114.479236 | G93: 0 | H93: =F93+G93 -> 5114.479236 | I93: 0 | J93: =H93+I93 -> 5114.479236 | K93: =I93+E93 -> 3420
A95: DHB
A96: Auckland | B96: =C12*(1+U12) -> 1231842.766 | C96: =AE12 -> 1250594.244 | D96: =B96-C96 -> -18751.47809 | E96: ='2017 Health appropriations'!D143+'2017 Health appropriations'!F143 -> -10248 | F96: =D96+E96 -> -28999.47809 | G96: ='2017 Health appropriations'!G143+'2017 Health appropriations'!H143+'2017 Health appropriations'!I143 -> 31289 | H96: =F96+G96 -> 2289.521914 | I96: 0 | J96: =H96+I96 -> 2289.521914 | K96: =I96+E96 -> -10248
A97: Bay of Plenty | B97: 703210.9912 | C97: 693973.921 | D97: 9237.070244 | E97: ='2017 Health appropriations'!D144+'2017 Health appropriations'!F144 -> -1187 | F97: =D97+E97 -> 8050.070244 | G97: ='2017 Health appropriations'!G144+'2017 Health appropriations'!H144+'2017 Health appropriations'!I144 -> -1370 | H97: =F97+G97 -> 6680.070244 | I97: 0 | J97: =H97+I97 -> 6680.070244 | K97: =I97+E97 -> -1187
A98: Canterbury | B98: 1395446.626 | C98: 1372679.024 | D98: 22767.60171 | E98: ='2017 Health appropriations'!D145+'2017 Health appropriations'!F145 -> -2893 | F98: 19874.60171 | G98: ='2017 Health appropriations'!G145+'2017 Health appropriations'!H145+'2017 Health appropriations'!I145 -> -2757 | H98: 17117.60171 | I98: 0 | J98: 17117.60171 | K98: -2893
A99: Capital and Coast | B99: 739256.7645 | C99: 735192.011 | D99: 4064.753529 | E99: ='2017 Health appropriations'!D146+'2017 Health appropriations'!F146 -> -594 | F99: 3470.753529 | G99: ='2017 Health appropriations'!G146+'2017 Health appropriations'!H146+'2017 Health appropriations'!I146 -> -38 | H99: 3432.753529 | I99: 0 | J99: 3432.753529 | K99: -594
A100: Counties-Manukau | B100: 1397833.336 | C100: 1371174.514 | D100: 26658.82236 | E100: ='2017 Health appropriations'!D147+'2017 Health appropriations'!F147 -> -3433 | F100: 23225.82236 | G100: ='2017 Health appropriations'!G147+'2017 Health appropriations'!H147+'2017 Health appropriations'!I147 -> -2113 | H100: 21112.82236 | I100: 0 | J100: 21112.82236 | K100: -3433
A101: Hawkes Bay | B101: 489796.2339 | C101: 482197.148 | D101: 7599.085852 | E101: ='2017 Health appropriations'!D148+'2017 Health appropriations'!F148 -> -1039 | F101: 6560.085852 | G101: ='2017 Health appropriations'!G148+'2017 Health appropriations'!H148+'2017 Health appropriations'!I148 -> -1170 | H101: 5390.085852 | I101: 0 | J101: 5390.085852 | K101: -1039
A102: Hutt | B102: 389794.495 | C102: 384465.345 | D102: 5329.150006 | E102: ='2017 Health appropriations'!D149+'2017 Health appropriations'!F149 -> -1204 | F102: 4125.150006 | G102: ='2017 Health appropriations'!G149+'2017 Health appropriations'!H149+'2017 Health appropriations'!I149 -> 641 | H102: 4766.150006 | I102: 0 | J102: 4766.150006 | K102: -1204
A103: Lakes | B103: 312967.8205 | C103: 313549.204 | D103: -581.3834889 | E103: ='2017 Health appropriations'!D150+'2017 Health appropriations'!F150 -> -1108 | F103: -1689.383489 | G103: ='2017 Health appropriations'!G150+'2017 Health appropriations'!H150+'2017 Health appropriations'!I150 -> -560 | H103: -2249.383489 | I103: 0 | J103: -2249.383489 | K103: -1108
A104: MidCentral | B104: 503371.1171 | C104: 493959.867 | D104: 9411.25013 | E104: ='2017 Health appropriations'!D151+'2017 Health appropriations'!F151 -> -2002 | F104: 7409.25013 | G104: ='2017 Health appropriations'!G151+'2017 Health appropriations'!H151+'2017 Health appropriations'!I151 -> -1078 | H104: 6331.25013 | I104: 0 | J104: 6331.25013 | K104: -2002
A105: Nelson-Marlborough | B105: 424442.9184 | C105: 418167.216 | D105: 6275.702358 | E105: ='2017 Health appropriations'!D152+'2017 Health appropriations'!F152 -> -1298 | F105: 4977.702358 | G105: ='2017 Health appropriations'!G152+'2017 Health appropriations'!H152+'2017 Health appropriations'!I152 -> -762 | H105: 4215.702358 | I105: 0 | J105: 4215.702358 | K105: -1298
A106: Northland | B106: 565434.2191 | C106: 563461.498 | D106: 1972.721103 | E106: ='2017 Health appropriations'!D153+'2017 Health appropriations'!F153 -> -1835 | F106: 137.7211029 | G106: ='2017 Health appropriations'!G153+'2017 Health appropriations'!H153+'2017 Health appropriations'!I153 -> -853 | H106: -715.2788971 | I106: 0 | J106: -715.2788971 | K106: -1835
A107: South Canterbury | B107: 179537.617 | C107: 176918.736 | D107: 2618.880972 | E107: ='2017 Health appropriations'!D154+'2017 Health appropriations'!F154 -> -472 | F107: 2146.880972 | G107: ='2017 Health appropriations'!G154+'2017 Health appropriations'!H154+'2017 Health appropriations'!I154 -> -375 | H107: 1771.880972 | I107: 0 | J107: 1771.880972 | K107: -472
A108: Southern | B108: 856929.831 | C108: 846419.045 | D108: 10510.78601 | E108: ='2017 Health appropriations'!D155+'2017 Health appropriations'!F155 -> -1753 | F108: 8757.78601 | G108: ='2017 Health appropriations'!G155+'2017 Health appropriations'!H155+'2017 Health appropriations'!I155 -> -1362 | H108: 7395.78601 | I108: 0 | J108: 7395.78601 | K108: -1753
A109: Tairawhiti | B109: 161582.9689 | C109: 160572.123 | D109: 1010.845912 | E109: ='2017 Health appropriations'!D156+'2017 Health appropriations'!F156 -> -259 | F109: 751.8459115 | G109: ='2017 Health appropriations'!G156+'2017 Health appropriations'!H156+'2017 Health appropriations'!I156 -> -257 | H109: 494.8459115 | I109: 0 | J109: 494.8459115 | K109: -259
A110: Taranaki | B110: 341159.1594 | C110: 335485.129 | D110: 5674.030434 | E110: ='2017 Health appropriations'!D157+'2017 Health appropriations'!F157 -> -808 | F110: 4866.030434 | G110: ='2017 Health appropriations'!G157+'2017 Health appropriations'!H157+'2017 Health appropriations'!I157 -> -605 | H110: 4261.030434 | I110: 0 | J110: 4261.030434 | K110: -808
A111: Waikato | B111: 1151652.462 | C111: 1139123.402 | D111: 12529.06042 | E111: ='2017 Health appropriations'!D158+'2017 Health appropriations'!F158 -> -2886 | F111: 9643.060418 | G111: ='2017 Health appropriations'!G158+'2017 Health appropriations'!H158+'2017 Health appropriations'!I158 -> -1838 | H111: 7805.060418 | I111: 0 | J111: 7805.060418 | K111: -2886
A112: Wairarapa | B112: 137077.5905 | C112: 135179.29 | D112: 1898.300501 | E112: ='2017 Health appropriations'!D159+'2017 Health appropriations'!F159 -> -231 | F112: 1667.300501 | G112: ='2017 Health appropriations'!G159+'2017 Health appropriations'!H159+'2017 Health appropriations'!I159 -> -284 | H112: 1383.300501 | I112: 0 | J112: 1383.300501 | K112: -231
A113: Waitemata | B113: 1480072.487 | C113: 1463410.891 | D113: 16661.59594 | E113: ='2017 Health appropriations'!D160+'2017 Health appropriations'!F160 -> -2763 | F113: 13898.59594 | G113: ='2017 Health appropriations'!G160+'2017 Health appropriations'!H160+'2017 Health appropriations'!I160 -> -1165 | H113: 12733.59594 | I113: 0 | J113: 12733.59594 | K113: -2763
A114: West Coast | B114: 129581.4705 | C114: 128042.078 | D114: 1539.392525 | E114: ='2017 Health appropriations'!D161+'2017 Health appropriations'!F161 -> -58 | F114: 1481.392525 | G114: ='2017 Health appropriations'!G161+'2017 Health appropriations'!H161+'2017 Health appropriations'!I161 -> -112 | H114: 1369.392525 | I114: 0 | J114: 1369.392525 | K114: -58
A115: Whanganui | B115: 219619.3435 | C115: 218200.324 | D115: 1419.019503 | E115: ='2017 Health appropriations'!D162+'2017 Health appropriations'!F162 -> -414 | F115: 1005.019503 | G115: ='2017 Health appropriations'!G162+'2017 Health appropriations'!H162+'2017 Health appropriations'!I162 -> -187 | H115: 818.0195031 | I115: 0 | J115: 818.0195031 | K115: -414
A116: Unallocated | E116: ='2017 Health appropriations'!D27 -> 1500 | F116: 1500 | H116: 1500 | I116: 0 | J116: 1500 | K116: 1500
A117: DHB Appropriations | B117: =SUM(B96:B116) -> 12810610.22 | C117: =SUM(C96:C116) -> 12682765.01 | D117: =B117-C117 -> 127845.2079 | E117: =SUM(E96:E116) -> -34985 | F117: =E117+D117 -> 92860.20794 | G117: =SUM(G96:G116) -> 15044 | H117: =F117+G117 -> 107904.2079 | I117: =SUM(I96:I116) -> 0 | J117: =H117+I117 -> 107904.2079 | K117: =SUM(K96:K116) -> -34985
B118: =Y33 -> 12810610.22 | C118: =AE32 -> 12682765.01 | D118: =SUM(D96:D116) -> 127845.2079 | E118: ='2017 Health appropriations'!D7+'2017 Health appropriations'!D26+'2017 Health appropriations'!D27 -> -34985 | F118: =SUM(F96:F116) -> 92860.20794 | G118: ='2017 Health appropriations'!D28 -> 15044 | H118: =SUM(H96:H116) -> 107904.2079 | I118: ='2017 Health appropriations'!D34 -> 0 | J118: =SUM(J96:J116) -> 107904.2079 | K118: =I117+E118 -> -34985
A119: Check | B119: =IF(B117=B118,"OK","ERROR") -> OK | C119: =IF(C117=C118,"OK","ERROR") -> OK | D119: =IF(ROUND(D117,0)=ROUND(D118,0),"OK","ERROR") -> OK | E119: OK | F119: =IF(ROUND(F117,0)=ROUND(F118,0),"OK","ERROR") -> OK | G119: OK | H119: =IF(ROUND(H117,0)=ROUND(H118,0),"OK","ERROR") -> OK | I119: OK | J119: =IF(ROUND(J117,0)=ROUND(J118,0),"OK","ERROR") -> OK | K119: OK
A120: National health services
A121: =A36 -> Auckland Health Projects Integrated Investment Plan | B121: =C36*(1+U36) -> 0 | C121: =AE36 -> 650 | D121: =B121-C121 -> -650 | E121: 650 | F121: =D121+E121 -> 0 | G121: 0 | H121: =F121+G121 -> 0 | I121: 0 | J121: =H121+I121 -> 0 | K121: =I121+E121 -> 650
A122: Health Workforce Training and Development | B122: 184028.3996 | C122: 186745 | D122: -2716.600435 | E122: 0 | F122: -2716.600435 | G122: 0 | H122: =F122+G122 -> -2716.600435 | I122: 0 | J122: =H122+I122 -> -2716.600435 | K122: =I122+E122 -> 0
A123: Monitoring and Protecting Health and Disability Consumer Interests | B123: 28211.40419 | C123: 28746 | D123: -534.595807 | E123: 0 | F123: -534.595807 | G123: 0 | H123: -534.595807 | I123: 0 | J123: -534.595807 | K123: 0
A124: National Child Health Services | B124: 87406.8353 | C124: 85001 | D124: 2405.8353 | E124: 0 | F124: 2405.8353 | G124: 0 | H124: 2405.8353 | I124: 0 | J124: 2405.8353 | K124: 0
A125: National Contracted Services - Other | B125: 38937.23115 | C125: 28720 | D125: 10217.23115 | E125: 0 | F125: 10217.23115 | G125: 0 | H125: 10217.23115 | I125: 0 | J125: 10217.23115 | K125: 0
A126: National Disability Support Services | B126: 1226029.541 | C126: 1208374 | D126: 17655.54097 | E126: 0 | F126: 17655.54097 | G126: 0 | H126: 17655.54097 | I126: 0 | J126: 17655.54097 | K126: 0
A127: National Elective Services | B127: 372570.2492 | C127: 346517 | D127: 26053.24916 | E127: 0 | F127: 26053.24916 | G127: 0 | H127: 26053.24916 | I127: 0 | J127: 26053.24916 | K127: 0
A128: National Emergency Services | B128: 104740.1562 | C128: 109958 | D128: -5217.84377 | E128: ='2017 Health appropriations'!D9 -> 8571 | F128: 3353.15623 | G128: 0 | H128: 3353.15623 | I128: 0 | J128: 3353.15623 | K128: 8571
A129: National Health Information Systems | B129: 13356.35584 | C129: 8236 | D129: 5120.355841 | E129: 0 | F129: 5120.355841 | G129: 0 | H129: 5120.355841 | I129: 0 | J129: 5120.355841 | K129: 0
A130: National Māori Health Services | B130: 7184.014107 | C130: 6828 | D130: 356.0141066 | E130: 0 | F130: 356.0141066 | G130: 0 | H130: 356.0141066 | I130: 0 | J130: 356.0141066 | K130: 0
A131: National Maternity Services | B131: 153981.9123 | C131: 146767 | D131: 7214.912284 | E131: 0 | F131: 7214.912284 | G131: 0 | H131: 7214.912284 | I131: 0 | J131: 7214.912284 | K131: 0
A132: National Mental Health Services | B132: 63290.72528 | C132: 62183 | D132: 1107.725276 | E132: 0 | F132: 1107.725276 | G132: 0 | H132: 1107.725276 | I132: 0 | J132: 1107.725276 | K132: 0
A133: National Personal Health Services | B133: 103428.101 | C133: 84057 | D133: 19371.10096 | E133: ='2017 Health appropriations'!D17 -> 700 | F133: 20071.10096 | G133: ='2017 Health appropriations'!D29 -> -15044 | H133: 5027.100964 | I133: 0 | J133: 5027.100964 | K133: 700
A134: Primary Health Care Strategy | B134: 194941.8598 | C134: 195405 | D134: -463.1401783 | E134: 0 | F134: -463.1401783 | G134: 0 | H134: -463.1401783 | I134: 0 | J134: -463.1401783 | K134: 0
A135: Problem Gambling Services | B135: 18276.55258 | C135: 17521 | D135: 755.5525849 | E135: 0 | F135: 755.5525849 | G135: 0 | H135: 755.5525849 | I135: 0 | J135: 755.5525849 | K135: 0
A136: Public Health Service Purchasing | B136: 419861.8769 | C136: 405471 | D136: 14390.87694 | E136: ='2017 Health appropriations'!D10+'2017 Health appropriations'!D13+'2017 Health appropriations'!D15 -> 11618 | F136: 26008.87694 | G136: 0 | H136: 26008.87694 | I136: 0 | J136: 26008.87694 | K136: 11618
A137: Supporting Equitable Pay for Care and Support Workers | B137: 0 | C137: 279000 | D137: -279000 | E137: ='2017 Health appropriations'!D5 -> 279000 | F137: 0 | G137: 0 | H137: 0 | I137: 0 | J137: 0 | K137: 279000
A138: Health Sector Projects Operating Expense | B138: 0 | C138: 0 | D138: 0 | E138: 0 | F138: 0 | G138: 0 | H138: 0 | I138: 0 | J138: 0 | K138: 0
A139: Totals | B139: =SUM(B121:B138) -> 3016245.214 | C139: 3200179 | D139: -183933.7856 | E139: 300539 | F139: 116605.2144 | G139: -15044 | H139: 101561.2144 | I139: 0 | J139: 101561.2144 | K139: 300539
A141: Non-Departmental Other Expenses
A142: Total Non-Departmental Other Expenses | B142: =C68*(1+U68) -> 29094.14943 | C142: =AE68 -> 27347 | D142: =B142-C142 -> 1747.149433 | E142: 0 | F142: =D142+E142 -> 1747.149433 | G142: 0 | H142: =F142+G142 -> 1747.149433 | I142: 0 | J142: =H142+I142 -> 1747.149433 | K142: =I142+E142 -> 0
A144: Total | B144: =B93+B139+B117+B142 -> 16055926.06 | C144: =C93+C139+C117+C142 -> 16108573.01 | D144: =D93+D139+D117+D142 -> -52646.94901 | E144: =E93+E139+E118+E142 -> 268974 | F144: =F93+F139+F117+F142 -> 216327.051 | G144: =G93+G139+G118+G142 -> 0 | H144: =H93+H139+H117+H142 -> 216327.051 | I144: =I93+I139+I117+I142 -> 0 | J144: =J93+J139+J117+J142 -> 216327.051 | K144: =K93+K139+K118+K142 -> 268974
B146: Total initiatives as % operating expenses | E146: =E144/C70 -> 0.0175529249

Sheet 2017 Health appropriations
A1: 1. 1 - New Policy Initiatives (p.12-13 of Health Estimates) | M1: Summary of Financial Activity (p.14 of Health Estimates)
M2: 2012/13 | N2: 2013/14 | O2: 2014/15 | P2: 2015/16 | Q2: 2016/17 | S2: 2017/18 | V2: 2018/19 | W2: 2019/20 | X2: 2020/21
A3: Policy Initiative | B3: Appropriation | C3: 2016/17 Final Budgeted $000 | D3: 2017/18 Budget $000 | E3: 2018/19 Estimated $000 | F3: 2019/20 Estimated $000 | G3: 2020/21 Estimated $000 | H3: Demo/cost pressure | M3: Actual $000 | N3: Actual $000 | O3: Actual $000 | P3: Actual $000 | Q3: Final Budgeted $000 | R3: Estimated Actual $000 | S3: Departmental Transactions Budget $000 | T3: Non- Departmental Transactions Budget $000 | U3: Total Budget $000 | V3: Estimated $000 | W3: Estimated $000 | X3: Estimated $000
A4: District Health Boards - Additional Support | B4: Health and Disability Support Services - DHBs Non-departmental output expense | C4: - | D4: 439000 | E4: 439000 | F4: 439000 | G4: 439000 | H4: 1 | I4: See allocations to DHBs below | L4: Appropriations
A5: Equitable Pay for Care and Support Workers | B5: Supporting Equitable Pay for Care and Support Workers Non-departmental output expense | C5: - | D5: 279000 | E5: 348000 | F5: 377000 | G5: 356000 | L5: Output Expenses | M5: 13564860 | N5: 14002497 | O5: 14297234 | P5: 14746556 | Q5: 15266155 | R5: 15240055 | S5: 177291 | T5: 15882944 | U5: 16060235 | V5: 16096143 | W5: 16112555 | X5: 16087836
A6: Disability Support Services - Additional Support | B6: National Disability Support Services Non-departmental output expense | C6: - | D6: 44562 | E6: 44562 | F6: 44562 | G6: 44562 | H6: 1 | L6: Benefits or Related Expenses | M6: - | N6: - | O6: - | P6: - | Q6: - | R6: - | S6: N/A | T6: - | U6: - | V6: - | W6: - | X6: -
A7: Pharmaceuticals - More Publicly Funded Medicines | B7: Health and Disability Support Services - DHBs Non-departmental output expense | C7: - | D7: 20000 | E7: 20000 | F7: 14000 | G7: 6000 | I7: See allocations to DHBs below | L7: Borrowing Expenses | M7: - | N7: - | O7: - | P7: - | Q7: - | R7: - | S7: - | T7: - | U7: - | V7: - | W7: - | X7: -
A8: Primary Health Care - Additional Support | B8: Primary Health Care Strategy Non-departmental output expense | C8: - | D8: 9585 | E8: 9585 | F8: 9585 | G8: 9585 | H8: 1 | L8: Other Expenses | M8: 26100 | N8: 27873 | O8: 26480 | P8: 25307 | Q8: 302492 | R8: 102216 | S8: - | T8: 27347 | U8: 27347 | V8: 27347 | W8: 27347 | X8: 27347
A9: Emergency Ambulance Services - Additional support | B9: National Emergency Services Non-departmental output expense | C9: - | D9: 8571 | E9: 11571 | F9: 14571 | G9: 17571 | I9: Double crewing | L9: Capital Expenditure | M9: 259582 | N9: 336432 | O9: 689136 | P9: 487272 | Q9: 3359252 | R9: 3289252 | S9: 8000 | T9: 656496 | U9: 664496 | V9: 62211 | W9: 62211 | X9: 62211
A10: National Bowel Screening Programme | B10: Public Health Service Purchasing Non-departmental output expense | C10: 164 | D10: 7238 | E10: 6282 | F10: 5701 | G10: 6898 | L10: Intelligence and Security Department Expenses and Capital Expenditure | M10: - | N10: - | O10: - | P10: - | Q10: - | R10: - | S10: - | T10: N/A | U10: - | V10: - | W10: - | X10: -
A11: Elective Surgery - Government’s Health Target | B11: National Elective Services Non-departmental output expense | C11: - | D11: 6000 | E11: 6000 | F11: 6000 | G11: 6000 | H11: 1 | L11: Multi-Category Expenses and Capital
A12: Disability Support Services - Enabling Good Lives | B12: Managing the Purchase of Services Departmental output expense | C12: - | D12: 3300 | L12: Expenditure (MCA)
A13: Water Fluoridation (Assistance) | B13: Public Health Service Purchasing Non-departmental output expense | C13: - | D13: 3000 | E13: 3000 | F13: 3000 | G13: 3000 | L13: Output Expenses | M13: 15750 | N13: 20036 | O13: 20878 | P13: 20705 | Q13: 20709 | R13: 20509 | S13: 20991 | T13: - | U13: 20991 | V13: 20991 | W13: 20991 | X13: 20991
A14: Health Workforce Training and Development - Additional Support | B14: Health Workforce Training and Development Non-departmental output expense | C14: - | D14: 1919 | E14: 1919 | F14: 1919 | G14: 1919 | H14: 1 | L14: Other Expenses | M14: - | N14: - | O14: - | P14: - | Q14: - | R14: - | S14: - | T14: - | U14: - | V14: - | W14: - | X14: -
A15: Contraceptive Services for Low Income Women | B15: Public Health Service Purchasing Non-departmental output expense | C15: - | D15: 1380 | E15: 3880 | F15: 5880 | G15: 5880 | L15: Capital Expenditure | M15: - | N15: - | O15: - | P15: - | Q15: - | R15: - | S15: N/A | T15: - | U15: - | V15: - | W15: - | X15: -
B16: Managing the Purchase of Services Departmental output expense | C16: - | D16: 120 | E16: 120 | F16: 120 | G16: 120 | L16: Total Appropriations | M16: 13866292 | N16: 14386838 | O16: 15033728 | P16: 15279840 | Q16: 18948608 | R16: 18652032 | S16: 206282 | T16: 16566787 | U16: 16773069 | V16: 16206692 | W16: 16223104 | X16: 16198385
A17: Organ Donation - National Strategy | B17: National Personal Health Services Non-departmental output expense | C17: - | D17: 700 | E17: 700 | F17: 700 | G17: 700 | L17: Crown Revenue and Capital Receipts
A18: Total new operating expenditure | C18: 164 | D18: 824375 | E18: 894619 | F18: 922038 | G18: 897235 | I18: =2.2%*303 -> 6.666 | J18: =303-I18 -> 296.334 | L18: Tax Revenue | M18: - | N18: - | O18: - | P18: - | Q18: - | R18: - | S18: N/A | T18: - | U18: - | V18: - | W18: - | X18: -
A19: DHB Capital Investment Pool | B19: Equity for Capital Projects for DHBs and Health Sector Crown Agencies | C19: - | D19: 150000 | E19: - | F19: - | G19: - | J19: =279/303 -> 0.9207920792 | L19: Non-Tax Revenue | M19: 625524 | N19: 655187 | O19: 669571 | P19: 687880 | Q19: 659638 | R19: 659638 | S19: N/A | T19: 748686 | U19: 748686 | V19: 772866 | W19: 794560 | X19: 794560
B20: Non-departmental capital expenditure | L20: Capital Receipts | M20: 25645 | N20: 375698 | O20: 147800 | P20: 24648 | Q20: 27499 | R20: 27499 | S20: N/A | T20: 27499 | U20: 27499 | V20: 27499 | W20: 27499 | X20: 27499
A21: Total capital expenditure | C21: - | D21: 150000 | E21: - | F21: - | G21: - | L21: Total Crown Revenue and Capital Receipts | M21: 651169 | N21: 1030885 | O21: 817371 | P21: 712528 | Q21: 687137 | R21: 687137 | S21: N/A | T21: 776185 | U21: 776185 | V21: 800365 | W21: 822059 | X21: 822059
A22: Total Initiatives | C22: 164 | D22: 974375 | E22: 894619 | F22: 922038 | G22: 897235
L23: Operational expenses | M23: =M5+M8+M13 -> 13606710 | N23: =N5+N8+N13 -> 14050406 | O23: 14344592 | P23: 14792568 | Q23: 15589356 | R23: 15362780 | U23: 16108573 | V23: 16144481 | W23: 16160893 | X23: 16136174
A24: Other initiatives/service requirements
A25: Establish Auckland Health Projects Integrated Plan | B25: Auckland Health Projects Integrated Investment Plan (new appropriation) | C25: 720 | D25: 650 | E25: - | F25: - | G25: -
A26: DHB capital charge rate change 8% to 6% | B26: Health and Disability Support Services - DHBs Non-departmental output expense | C26: =Q163 -> -44238 | D26: =F163 -> -56485 | E26: =D26 -> -56485 | F26: =E26 -> -56485 | G26: =F26 -> -56485 | I26: See allocations to DHBs below
A27: Quality Initiative in Mental Health | B27: Health and Disability Support Services - DHBs Non-departmental output expense | D27: 1500 | E27: 1500 | F27: 1500 | G27: 1500
A28: Devolve Hospice Funding to DHBs | B28: Health and Disability Support Services - DHBs Non-departmental output expense | C28: =D28 -> 15044 | D28: =G163 -> 15044 | E28: =D28 -> 15044 | F28: =E28 -> 15044 | G28: =F28 -> 15044 | I28: See allocations to DHBs below
A29: Devolve Hospice Funding to DHBs | B29: National Personal Health Services Non-departmental output expense | C29: =-C28 -> -15044 | D29: =-D28 -> -15044 | E29: =-E28 -> -15044 | F29: =-F28 -> -15044 | G29: =-G28 -> -15044 | I29: See allocations to DHBs below
B30: Total other initiatives/service requirements | D30: =SUM(D25:D29) -> -54335 | E30: =SUM(E25:E29) -> -54985 | F30: =SUM(F25:F29) -> -54985 | G30: =SUM(G25:G29) -> -54985
B32: Total to meet cost and population pressures | D32: =SUM(D$4:D$17*$H$4:$H$17) -> 501066 | E32: =SUM(E$4:E$17*$H$4:$H$17) -> 501066 | F32: =SUM(F$4:F$17*$H$4:$H$17) -> 501066 | G32: =SUM(G$4:G$17*$H$4:$H$17) -> 501066
B33: New initiatives | D33: =D18-D32+D30 -> 268974 | E33: =E18-E32+E30 -> 338568 | F33: =F18-F32+F30 -> 365987 | G33: =G18-G32+G30 -> 341184
B34: Savings | D34: 0 | E34: 0 | F34: 0 | G34: 0
B35: Leaving additional requirements | D35: =D33-D34 -> 268974 | E35: =E33-E34 -> 338568 | F35: =F33-F34 -> 365987 | G35: =G33-G34 -> 341184
B36: Cost pressures | D36: ='Health Vote 2017-18 post-Budget'!B3/1000 -> 732326.061
B37: Total | D37: =D36+D35 -> 1001300.061
B38: Provided | D38: ='Health Vote 2017-18 post-Budget'!AF70 -> 784973.01
B39: Shortfall | D39: =D37-D38 -> 216327.051
A42: Programmes ending or reducing (from Estimates) | H42: Year of first impact | I42: Ending?
A43: Funding Emerging Health Sector Risks from Contingency | B43: National Disability Support Services Non-departmental output expense | C43: 16700 | H43: 2016/17
A44: Enabling Good Lives Christchurch And Waikato | B44: National Disability Support Services Non-departmental output expense | C44: 1277 | H44: 2016/17
A45: Enabling Good Lives - Transfer to Vote Social Development | B45: National Disability Support Services Non-departmental output expense | C45: -4500 | H45: 2015/16 | I45: 1
A46: Enabling Good Lives - Hamilton demonstration | B46: National Disability Support Services Non-departmental output expense | C46: 1360 | H46: 2014/15 | I46: 1
A47: Bowel Cancer Screening Pilot Extension | B47: Public Health Service Purchasing Non-departmental output expense | C47: 6000 | D47: 3000 | H47: 2015/16 | I47: 1
A48: Rheumatic Fever | B48: Public Health Service Purchasing Non-departmental output expense | C48: 10000 | D48: 5000 | E48: 5000 | F48: 5000 | G48: 5000 | H48: 2013/14 | I48: 1
A49: More Elective Surgery, Reducing Pain, and Increasing Prevention | B49: National Elective Services Non-departmental output expense | C49: 27000 | D49: 12000 | H49: 2015/16 | I49: 1
A50: Proceeds of Crime 2016 - Methamphetamine Demand Reduction in | B50: National Mental Health Services | C50: 5092 | H50: 2016/17
A51: Northland | B51: Managing the Purchase of Services Departmental output expense | C51: 120 | H51: 2016/17
A52: Better Public Services seed funding: social bonds pilots | B52: Managing the Purchase of Services Departmental output expense | C52: 360 | H52: 2014/15
A53: Cancer: Faster Cancer Treatment | B53: National Personal Health Services Non-departmental output expense | C53: 5690 | D53: 5350 | E53: 5350 | F53: 5350 | G53: 5350 | H53: 2015/16 | I53: 1
A54: Cancer: next phase of Faster Cancer Treatment | B54: Sector Planning and Performance | C54: 330 | H54: 2014/15
A55: Long Term Conditions - Cardiovascular Disease (CVD)/Diabetes | B55: National Personal Health Services Non-departmental output expense | C55: 4300 | D55: 3100 | E55: 3100 | F55: 3100 | G55: 3100 | H55: 2013/14 | I55: 1
A56: Whanau Ora IT Solutions | B56: National Health Information Systems | C56: 1877 | H56: 2013/14 | I56: 1
A57: Funding Emerging Health Sector Risks from Contingency | B57: National Maternity Services | C57: 2300 | H57: 2016/17
A58: Pacific Provider | B58: Provider Development | C58: 1125 | H58: 2013/14 | I58: 1
B59: Total programmes ending or reducing compared to 2016 Budget | D59: =SUM(C43:C58*$I$43:$I$58)-SUM(D43:D58*$I$43:$I$58) -> 24402 | E59: =SUM(D43:D58*$I$43:$I$58)-SUM(E43:E58*$I$43:$I$58) -> 15000 | F59: =SUM(E43:E58*$I$43:$I$58)-SUM(F43:F58*$I$43:$I$58) -> 0 | G59: =SUM(F43:F58*$I$43:$I$58)-SUM(G43:G58*$I$43:$I$58) -> 0
A62: From Supplementary Estimates
A63: National Contracted Services ongoing transfers
A64: Item | B64: Transferred to
A65: Healthy Homes initiative | B65: Public Health Service Purchasing | C65: 4500
A66: Palliative care nurses | B66: National Personal Health Services | C66: 3900
A67: Fund the Health and Disability Commissioner | B67: Monitoring and Protecting Health and Disability Consumer Interests | C67: 1150
A69: Health Sector Projects Operating Expenses appropriation created with one-off transfers | B69: Purpose to provide operating expenses associated with the governance, planning and development of health sector capital projects
A70: Item | B70: Transferred from
A71: Operating costs of the Southern Partnership Group | B71: Equity for Capital Projects for DHBs and Health Sector Crown Agencies | C71: 5902
A72: Operating costs of the Buller Integrated Family Health Centre Project | B72: Equity for Capital Projects for DHBs and Health Sector Crown Agencies | C72: 350
B73: Total | C73: =SUM(C71:C72) -> 6252
A75: National Child Health Services funding Transferred to National Maternity Services
A76: From | B76: To
A77: National Child Health Services | B77: National Maternity Services "for pressures on maternity services" (2016/17 only) | C77: 800
A79: National Disability Support Services
A80: Item | B80: Transferred from
A81: For cost pressures, in 2016/17 only | B81: Risk Pool for Emerging Health Sector Risks | C81: 16700
A83: National Elective Services
A84: Item | B84: Transferred to
A85: Pressures on immunisation services | B85: Public Health Service Purchasing | C85: 200
A87: National Health Information Systems
A88: Item | B88: Transferred to
A89: 2016/17 only | B89: Health Workforce Training and Development | C89: 4000
A90: Whanau Ora IT Solutions ($1.5m carried forward from 2015/16) | B90: Ministry for Vulnerable Children (2016/17 only) | C90: 5147
B91: Total | C91: =SUM(C89:C90) -> 9147
A92: National Māori Health Services
A93: Item | B93: Transferred to
A94: Immunisation services for 2016/17 only | B94: Public Health Service Purchasing | C94: 3828
A96: National Maternity Services
A97: Item | B97: Transferred from
A98: Maternity pressures for 2016/17 only | B98: National Child Health Services, Provider Development, and National Contracted Services | C98: 3080
A99: Cost pressures for 2016/17 only | B99: Risk Pool for Emerging Health Sector Risks | C99: 2300
B100: Total | C100: =SUM(C98:C99) -> 5380
A102: National Mental Health Services
A103: Item | B103: Transferred from
A104: Canterbury Mental Health 'All Right Campaign' | B104: Canterbury DHB | C104: 5480
A105: Methamphetamine Demand Reduction in Northland (2016/17 only) | B105: Proceeds of Crime | C105: 5092
A106: Downie Stewart Foundation | B106: South Island DHBs | C106: 335
A107: Pressures on immunisation services (2016/17 only) | B107: to Public Health Service Purchasing | C107: -200
B108: Total | C108: =SUM(C104:C107) -> 10707
A109: The standard for the number of parents receiving the Triple P Parenting Programme was increased from 800 to 1,800
A111: National Personal Health Services
A112: Item | B112: Transferred to
A113: Budget 2015 Hospice Community Palliative Care initiative | B113: DHBs | C113: 15044
A114: Pressures on immunisation services (2016/17 only) | B114: Public Health Service Purchasing | C114: 2100
A115: Palliative care nurses | B115: From National Contracted Services - Other | C115: -3900
B116: Total | C116: =SUM(C113:C115) -> 13244
A118: Public Health Service Purchasing
A119: Item | B119: Transferred from
A120: Pressures on immunisation services (2016/17 only) | B120: National Elective, National Mental Health, National Personal Health and National Māori Health Services | C120: 5500
A121: Healthy Homes initiative | B121: National Contracted Services - Other | C121: 4500
A122: National Bowel Screening Programme rollout | B122: Provided | C122: 164
B123: Total | C123: =SUM(C120:C122) -> 10164
A125: Repayment of District Health Board Loans(new appropriation)
A126: Repayment DHB loans, converting them to equity attracting the Capital Charge | C126: 275000
A127: "This is a newly established appropriation in 2016/17 of $275 million for the estimated financial cost to Treasury's Debt Management Office of the early repayment of the DHB's Crown loans (Note: this is a technical financial matter)."
A130: Equity for Capital Projects for DHBs and Health Sector Crown Agencies
A131: $2,415 million was provided so that DHB debt funding can be converted to equity. Note that this is fiscally neutral to the Crown
A132: $130 million being the equity portion of the transfer of the new Burwood Hospital to Canterbury DHB. Note $85 million of loan funding was also provided to the DHB to bring the total cost to $215 million,
A134: $30.919 million was carried forward from 2015/16 to fund future DHB capital projects
A135: Various reductions including "$1.370 million was Transferred to Auckland Health Projects Integrated Investment Plan appropriation to fund the development of a Health Sector projects integrated investment plan for the Auckland metro DHBs
A138: Policy Advice and Ministerial Servicing
A139: Reduction of $49,000 due to a technical change following the reduction in the Capital Charge rate from 8% to 6%.
A141: DHBs (2017/18) | B141: Demo/cost pressure | C141: 1 | M141: Estimated effect of debt to equity swap
A142: Unless noted, the 2017/18 value applies to all years to 2020/21 | C142: District Health Boards - Additional support | D142: Pharmaceuticals - More Publicly Funded Medicines | E142: DHB Efficiency Savings | F142: DHB capital charge rate change 8% to 6% | G142: Devolve Hospice Funding to DHBs from National Personal Health Services | H142: Transfer of other DHBs' paediatric cardiac services to Auckland DHB in 2016/17 | I142: Transfer of other DHBs' paediatric rheumatology and paediatric and adult metabolic services to Auckland DHB in 2016/17 | J142: Total | K142: Total excluding "Efficiency savings" | M142: Increase expense due to conversion to equity | N142: Reduced expense due to Cap Charge change 8% to 6% | O142: Net reduction in expense | Q142: DHB capital charge rate change 8% to 6% in 2016/17
B143: Auckland | C143: 41419 | D143: 1887 | E143: -874 | F143: -12135 | G143: 608 | H143: 30408 | I143: 273 | J143: =SUM(C143:I143) -> 61586 | K143: =J143-E143 -> 62460 | M143: ='Notes 2017-18 pre-Budget'!O28 -> 6100 | N143: ='Notes 2017-18 pre-Budget'!Q28 -> 18682.90452 | O143: =M143-N143 -> -12582.90452 | Q143: -9096
B144: Bay of Plenty | C144: 24622 | D144: 1122 | E144: -524 | F144: -2309 | G144: 511 | H144: -1865 | I144: -16 | J144: =SUM(C144:I144) -> 21541 | K144: =J144-E144 -> 22065 | M144: ='Notes 2017-18 pre-Budget'!O29 -> 3000 | N144: ='Notes 2017-18 pre-Budget'!Q29 -> 5400.774811 | O144: =M144-N144 -> -2400.774811 | Q144: -1736
B145: Canterbury | C145: 47755 | D145: 2176 | E145: -1055 | F145: -5069 | G145: 937 | H145: -3661 | I145: -33 | J145: 41050 | K145: 42105 | M145: ='Notes 2017-18 pre-Budget'!O30 -> 7400 | N145: ='Notes 2017-18 pre-Budget'!Q30 -> 10971.72 | O145: -3571.72 | Q145: -3506
B146: Capital and Coast | C146: 25001 | D146: 1138 | E146: -558 | F146: -1732 | G146: 1909 | H146: -1929 | I146: -18 | J146: 23811 | K146: 24369 | M146: ='Notes 2017-18 pre-Budget'!O31 -> 7000 | N146: ='Notes 2017-18 pre-Budget'!Q31 -> 8456.866176 | O146: -1456.866176 | Q146: -1333
B147: Counties-Manukau | C147: 47822 | D147: 2179 | E147: -1044 | F147: -5612 | G147: 1550 | H147: -3630 | I147: -33 | J147: 41232 | K147: 42276 | M147: ='Notes 2017-18 pre-Budget'!O32 -> 5200 | N147: ='Notes 2017-18 pre-Budget'!Q32 -> 11703.3 | O147: -6503.3 | Q147: -4201
B148: Hawkes Bay | C148: 17072 | D148: 778 | E148: 0 | F148: -1817 | G148: 168 | H148: -1326 | I148: -12 | J148: 14863 | K148: 14863 | M148: ='Notes 2017-18 pre-Budget'!O33 -> 900 | N148: ='Notes 2017-18 pre-Budget'!Q33 -> 2730.139925 | O148: -1830.139925 | Q148: -1364
B149: Hutt | C149: 13155 | D149: 599 | E149: -302 | F149: -1803 | G149: 1684 | H149: -1034 | I149: -9 | J149: 12290 | K149: 12592 | M149: ='Notes 2017-18 pre-Budget'!O34 -> 1200 | N149: ='Notes 2017-18 pre-Budget'!Q34 -> 3385.86 | O149: -2185.86 | Q149: -1359
B150: Lakes | C150: 11157 | D150: 508 | E150: -236 | F150: -1616 | G150: 281 | H150: -834 | I150: -7 | J150: 9253 | K150: 9489 | M150: ='Notes 2017-18 pre-Budget'!O35 -> 900 | N150: ='Notes 2017-18 pre-Budget'!Q35 -> 2666.42 | O150: -1766.42 | Q150: -1217
B151: MidCentral | C151: 17681 | D151: 806 | E151: -389 | F151: -2808 | G151: 293 | H151: -1359 | I151: -12 | J151: 14212 | K151: 14601 | M151: ='Notes 2017-18 pre-Budget'!O36 -> 1000 | N151: ='Notes 2017-18 pre-Budget'!Q36 -> 4000.24 | O151: -3000.24 | Q151: -2110
B152: Nelson-Marlborough | C152: 14852 | D152: 677 | E152: -320 | F152: -1975 | G152: 395 | H152: -1146 | I152: -11 | J152: 12472 | K152: 12792 | M152: ='Notes 2017-18 pre-Budget'!O37 -> 1200 | N152: ='Notes 2017-18 pre-Budget'!Q37 -> 3133.87202 | O152: -1933.87202 | Q152: -1479
B153: Northland | C153: 20266 | D153: 923 | E153: -409 | F153: -2758 | G153: 673 | H153: -1513 | I153: -13 | J153: 17169 | K153: 17578 | M153: ='Notes 2017-18 pre-Budget'!O38 -> 700 | N153: ='Notes 2017-18 pre-Budget'!Q38 -> 3046.027541 | O153: -2346.027541 | Q153: -1864
B154: South Canterbury | C154: 6248 | D154: 285 | E154: -140 | F154: -757 | G154: 116 | H154: -487 | I154: -4 | J154: 5261 | K154: 5401 | M154: ='Notes 2017-18 pre-Budget'!O39 -> 400 | N154: ='Notes 2017-18 pre-Budget'!Q39 -> 851.4 | O154: -451.4 | Q154: -757
B155: Southern | C155: 29681 | D155: 1352 | E155: -651 | F155: -3105 | G155: 935 | H155: -2277 | I155: -20 | J155: 25915 | K155: 26566 | M155: ='Notes 2017-18 pre-Budget'!O40 -> 2200 | N155: ='Notes 2017-18 pre-Budget'!Q40 -> 3470.541176 | O155: -1270.541176 | Q155: -3105
B156: Tairawhiti | C156: 5661 | D156: 258 | E156: -120 | F156: -517 | G156: 172 | H156: -425 | I156: -4 | J156: 5025 | K156: 5145 | M156: ='Notes 2017-18 pre-Budget'!O41 -> 200 | N156: ='Notes 2017-18 pre-Budget'!Q41 -> 816.9 | O156: -616.9 | Q156: -392
B157: Taranaki | C157: 11616 | D157: 529 | E157: -258 | F157: -1337 | G157: 333 | H157: -929 | I157: -9 | J157: 9945 | K157: 10203 | M157: ='Notes 2017-18 pre-Budget'!O42 -> 2100 | N157: ='Notes 2017-18 pre-Budget'!Q42 -> 3006.76 | O157: -906.76 | Q157: -1003
B158: Waikato | C158: 39525 | D158: 1801 | E158: -827 | F158: -4687 | G158: 1178 | H158: -2989 | I158: -27 | J158: 33974 | K158: 34801 | M158: ='Notes 2017-18 pre-Budget'!O43 -> 4900 | N158: ='Notes 2017-18 pre-Budget'!Q43 -> 9138.090251 | O158: -4238.090251 | Q158: -3508
B159: Wairarapa | C159: 4760 | D159: 217 | E159: -104 | F159: -448 | G159: 93 | H159: -373 | I159: -4 | J159: 4141 | K159: 4245 | M159: ='Notes 2017-18 pre-Budget'!O44 -> 700 | N159: ='Notes 2017-18 pre-Budget'!Q44 -> 627.9863322 | O159: 72.0136678 | Q159: -448
B160: Waitemata | C160: 49544 | D160: 2257 | E160: -1072 | F160: -5020 | G160: 2635 | H160: -3767 | I160: -33 | J160: 44544 | K160: 45616 | M160: ='Notes 2017-18 pre-Budget'!O45 -> 6300 | N160: ='Notes 2017-18 pre-Budget'!Q45 -> 12328.78 | O160: -6028.78 | Q160: -5020
B161: West Coast | C161: 3896 | D161: 177 | E161: -86 | F161: -235 | G161: 190 | H161: -299 | I161: -3 | J161: 3640 | K161: 3726 | M161: ='Notes 2017-18 pre-Budget'!O46 -> 300 | N161: ='Notes 2017-18 pre-Budget'!Q46 -> 529.5 | O161: -229.5 | Q161: -179
B162: Whanganui | C162: 7267 | D162: 331 | E162: -161 | F162: -745 | G162: 383 | H162: -565 | I162: -5 | J162: 6505 | K162: 6666 | M162: ='Notes 2017-18 pre-Budget'!O47 -> 700 | N162: ='Notes 2017-18 pre-Budget'!Q47 -> 1488.62 | O162: -788.62 | Q162: -561
B163: Total | C163: =SUM(C143:C162) -> 439000 | D163: 20000 | E163: -9130 | F163: -56485 | G163: 15044 | H163: 0 | I163: 0 | J163: 408429 | K163: 417559 | M163: =SUM(M143:M162) -> 52400 | N163: ='Notes 2017-18 pre-Budget'!Q48 -> 106436.7028 | O163: -54036.70275 | Q163: =SUM(Q143:Q162) -> -44238

Sheet Notes 2017-18 pre-Budget
A2: Equal pay settlement - 2017/18 impact | E2: Source: TerraNova Questions and Answers | I2: http://beehive.govt.nz/sites/all/files/TerraNova%20Questions%20and%20Answers.pdf
A3: MOH/DHBs | C3: 303000
A4: ACC | C4: 31000
A5: From private individuals in aged care (est) | C5: =11000*66*52/1000 -> 37752 | E5: For the 11,000 people with assets over the threshold, they are required to pay the maximum contribution for their care….It is estimated that it could increase by around up to 6 per cent or an average of $66 per week on 1 July 2017.
A6: Total | C6: =SUM(C3:C5) -> 371752 | E6: $2.048 billion settlement over five years will be funded through an increase of $1.856 billion to Vote Health and $192 million to ACC. Est $530m/year in long run
P7: From TerraNova Questions and Answers
A8: Existing pay | B8: Workers | C8: FTE est | D8: Est Income | E8: Est split | F8: Across the sector there are an estimated 55,000 workers (equal to approximately 29,300 full-time equivalents). | Q8: Estimated number of workers | R8: Average Wage Rate | S8: 1 July 2017 rates
A9: Aged Residential care | B9: 22000 | C9: =ROUND((B9*(29300-C$11)/SUM($B$9:$B$10))/100,0)*100 -> 9700 | D9: =C9*16.22*40*52/1000 -> 327254.72 | E9: =C9*$C$3/$C$12 -> 100310.5802 | P9: Aged Residential Care | Q9: 22000 | R9: 16.65 | S9: From $19.00 to $23.50
A10: Home and Community Support Services | B10: 24000 | C10: =ROUND((B10*(29300-C$11)/SUM($B$9:$B$10))/100,0)*100 -> 10600 | D10: =C10*16.65*40*52/1000 -> 367099.2 | E10: =C10*$C$3/$C$12 -> 109617.7474 | P10: Home and Community Support Services | Q10: 24000 | R10: 16.22
A11: Community Residential Living | B11: 9000 | C11: 9000 | D11: =C11*17.72*40*52/1000 -> 331718.4 | E11: =C11*$C$3/$C$12 -> 93071.67235 | G11: Mainly DSS | P11: Community Residential Living | Q11: 9000 | R11: 17.72
B12: =SUM(B9:B11) -> 55000 | C12: =SUM(C9:C11) -> 29300 | D12: =SUM(D9:D11) -> 1026072.32 | E12: =SUM(E9:E11) -> 303000
A13: Increase | D13: =C6/D12 -> 0.362305846
A14: Min Wage increase would be | B14: ='Wage, price statistics'!BM44 -> 0.03278688525 | C14: Allow | D14: =J16 -> 0.0316 | E14: =D14*D12 -> 32423.88531 | F14: Vote Health | G14: =E14*C3/C6 -> 26427.39582 | I14: 0.8 | J14: 0.033
A15: Net increase to Vote Health (rounded to nearest $1,000) | E15: =ROUND((C3-G14)/1000,0)*1000 -> 277000 | I15: 0.2 | J15: =OtherWagesIncreases17 -> 0.026
I16: total | J16: =SUM(I14:I15*J14:J15) -> 0.0316
A17: From Treasury to LP 21 April 2017
A18: The new wage rates will be phased in over five years, and the $1.856 billion cost for Vote Health is the five-year cost. The profile is as follows (FY18 to FY22): $303m, $348m, $377m, $356m, $472m. As noted above, about 90% of this cost will come from the unallocated contingencies line. The remainder will be managed outside the Budget 2017 operating allowance. It represents new expenditure, so there will be on OBEGAL and net debt in BEFU, but the change compared to the HYEFU forecasts will be fairly small.
A19: Funds will be appropriated to Vote Health in Budget 2017 and reflected in the Budget documents in due course. Initially, they will be allocated to a separate appropriation (“supporting equitable pay for care and support workers”). The profile of this appropriation will be $279m, $348m, $377m, $356m (the balance of funding in 2017/18 will be held in contingency). Funds will be transferred to the DHB and national disability support services appropriations once the implementation arrangements have been finalised.
A22: Balance sheet
A23: One-off restructuring of DHB balance sheets in 2016/17 | B23: DHBs | C23: =-(313-27)*1000 -> -286000 | E23: HYEFU showed "other expenses" rose from $27m in 2016 to $313m in 2017, falling back to a forecast $27m in 2018. It notes: 1. The increase in other expenses in the 2017 forecast year relates to a one off restructuring of District Health Board balance sheets. These expenses are offset by additional revenue for the New Zealand Debt Management Office (excluded from these tables) and therefore have no impact on OBEGAL.
A25: Source: monthly financial reports summarising DHB financial performance for January and February 2017 | E25: http://www.health.govt.nz/new-zealand-health-system/key-health-sector-organisations-and-people/district-health-boards/accountability-and-funding/summary-financial-reports/dhb-sector-financial-reports-2016-17 | M25: Cap Charge Rate = | O25: 0.06
B26: Term Loans - Non-current | E26: Crown Equity | H26: Interest Costs | K26: Capital Charge | M26: Full year at this equity | P26: Capital Charge at 8% | Q26: Saving at 6% Cap Charge | R26: Net saving
A27: Calculation of impact of conversion of debt to Crown equity | B27: 2017-01-01 | C27: 2017-02-01 | D27: Change | E27: 2017-01-01 | F27: 2017-02-01 | G27: Change | H27: 2017-01-01 | I27: 2017-02-01 | J27: Rate | K27: 2017-01-01 | L27: 2017-02-01 | M27: Interest | N27: Cap Charge | O27: Net change*
A28: Auckland DHB | B28: 254814.928 | C28: 279.149 | D28: =C28-B28 -> -254535.779 | E28: 625963.36 | F28: 934145.226 | G28: =F28-E28 -> 308181.866 | H28: 7239.355 | I28: 7735.738 | J28: =(12/7)*H28/B28 -> 0.04870328028 | K28: 24732.3 | L28: 28265.95 | M28: =J28*D28 -> -12396.72739 | N28: =$O$25*G28 -> 18490.91196 | O28: =ROUND(SUM(M28:N28)/100,0)*100 -> 6100 | P28: =8%*F28 -> 74731.61808 | Q28: =P28-F28*$O$25 -> 18682.90452 | R28: =Q28-O28 -> 12582.90452
A29: Bay of Plenty DHB | B29: 152200 | C29: 0 | D29: =C29-B29 -> -152200 | E29: 116703.045 | F29: 270038.7406 | G29: =F29-E29 -> 153335.6955 | H29: 3589.27151 | I29: 3838.71289 | J29: =(12/7)*H29/B29 -> 0.04042731192 | K29: 4438.03669 | L29: 5492.07153 | M29: =J29*D29 -> -6153.036874 | N29: =$O$25*G29 -> 9200.141733 | O29: =ROUND(SUM(M29:N29)/100,0)*100 -> 3000 | P29: =8%*F29 -> 21603.09925 | Q29: =P29-F29*$O$25 -> 5400.774811 | R29: =Q29-O29 -> 2400.774811
A30: Canterbury DHB | B30: 145985 | C30: 0 | D30: -145985 | E30: 318078 | F30: 548586 | G30: 230508 | H30: 3776 | I30: 4055 | J30: 0.04434115051 | K30: 8623 | L30: 10446 | M30: -6473.142857 | N30: 13830.48 | O30: 7400 | P30: 43886.88 | Q30: 10971.72 | R30: 3571.72
A31: Capital & Coast DHB | B31: 277628.1603 | C31: 628.16 | D31: -277000.0003 | E31: 81449.97281 | F31: 422843.3088 | G31: 341393.336 | H31: 7892.62316 | I31: 8401.13616 | J31: 0.04873500988 | K31: 3734.24834 | L31: 4199.48634 | M31: -13499.59775 | N31: 20483.60016 | O31: 7000 | P31: 33827.4647 | Q31: 8456.866176 | R31: 1456.866176
A32: Counties Manukau DHB | B32: 287500 | C32: 0 | D32: -287500 | E32: 288923 | F32: 585165 | G32: 296242 | H32: 7345 | I32: 7860 | J32: 0.04379627329 | K32: 10586 | L32: 12098 | M32: -12591.42857 | N32: 17774.52 | O32: 5200 | P32: 46813.2 | Q32: 11703.3 | R32: 6503.3
A33: Hawke’s Bay DHB | B33: 42500 | C33: 0 | D33: -42500 | E33: 88814.96328 | F33: 136506.9963 | G33: 47692.03298 | H33: 1147.55548 | I33: 777.17424 | J33: 0.04628795213 | K33: 3183.965 | L33: 3183.965 | M33: -1967.237966 | N33: 2861.521979 | O33: 900 | P33: 10920.5597 | Q33: 2730.139925 | R33: 1830.139925
A34: Hutt Valley DHB | B34: 70479 | C34: 479 | D34: -70000 | E34: 89556 | F34: 169293 | G34: 79737 | H34: 2119 | I34: 2257 | J34: 0.05154118856 | K34: 3795 | L34: 4268 | M34: -3607.883199 | N34: 4784.22 | O34: 1200 | P34: 13543.44 | Q34: 3385.86 | R34: 2185.86
A35: Lakes DHB | B35: 49431 | C35: 3866 | D35: -45565 | E35: 83206 | F35: 133321 | G35: 50115 | H35: 1307 | I35: 1419 | J35: 0.04532725271 | K35: 1843 | L35: 2095 | M35: -2065.33627 | N35: 3006.9 | O35: 900 | P35: 10665.68 | Q35: 2666.42 | R35: 1766.42
A36: MidCentral DHB | B36: 57547 | C36: 777 | D36: -56770 | E36: 140744 | F36: 200012 | G36: 59268 | H36: 1506 | I36: 1696 | J36: 0.04486270849 | K36: 5780 | L36: 5666 | M36: -2546.855961 | N36: 3556.08 | O36: 1000 | P36: 16000.96 | Q36: 4000.24 | R36: 3000.24
A37: Nelson Marlborough DHB | B37: 41828.56602 | C37: 7308.59717 | D37: -34519.96885 | E37: 100091.7377 | F37: 156693.601 | G37: 56601.86325 | H37: 1527.39033 | I37: 1633.11349 | J37: 0.06259797244 | K37: 4020.18188 | L37: 4599.07076 | M37: -2160.880059 | N37: 3396.111795 | O37: 1200 | P37: 12535.48808 | Q37: 3133.87202 | R37: 1933.87202
A38: Northland DHB | B38: 26422.772 | C38: 1704.572 | D38: -24718.2 | E38: 126903.6431 | F38: 152301.3771 | G38: 25397.73397 | H38: 530.07158 | I38: 570.04081 | J38: 0.034390568 | K38: 5078.54517 | L38: 5593.766 | M38: -850.0729379 | N38: 1523.864038 | O38: 700 | P38: 12184.11016 | Q38: 3046.027541 | R38: 2346.027541
A39: South Canterbury DHB | B39: 13769 | C39: 975 | D39: -12794 | E39: 29268 | F39: 42570 | G39: 13302 | H39: 244 | I39: 254 | J39: 0.03037880124 | K39: 314 | L39: 382 | M39: -388.6663831 | N39: 798.12 | O39: 400 | P39: 3405.6 | Q39: 851.4 | R39: 451.4
A40: Southern DHB | B40: 69550.92296 | C40: 3971.51661 | D40: -65579.40635 | E40: 73791.09415 | F40: 173527.0588 | G40: 99735.96467 | H40: 2312.62987 | I40: 2471.18714 | J40: 0.05700152032 | K40: 3380.12 | L40: 3863.12 | M40: -3738.125864 | N40: 5984.15788 | O40: 2200 | P40: 13882.16471 | Q40: 3470.541176 | R40: 1270.541176
A41: Tairawhiti DHB | B41: 15711 | C41: 882 | D41: -14829 | E41: 26111 | F41: 40845 | G41: 14734 | H41: 395 | I41: 424 | J41: 0.04309992089 | K41: 1216 | L41: 1337 | M41: -639.1287269 | N41: 884.04 | O41: 200 | P41: 3267.6 | Q41: 816.9 | R41: 616.9
A42: Taranaki DHB | B42: 74000 | C42: 0 | D42: -74000 | E42: 76288 | F42: 150338 | G42: 74050 | H42: 1368 | I42: 1457 | J42: 0.03169111969 | K42: 2729 | L42: 3120 | M42: -2345.142857 | N42: 4443 | O42: 2100 | P42: 12027.04 | Q42: 3006.76 | R42: 906.76
A43: Waikato DHB | B43: 212079.0124 | C43: 327.60732 | D43: -211751.405 | E43: 241516.8589 | F43: 456904.5126 | G43: 215387.6537 | H43: 4682.84594 | I43: 4983.41651 | J43: 0.03785257112 | K43: 9490.073 | L43: 10472.473 | M43: -8015.335118 | N43: 12923.25922 | O43: 4900 | P43: 36552.361 | Q43: 9138.090251 | R43: 4238.090251
A44: Wairarapa DHB | B44: 19760 | C44: 254 | D44: -19506 | E44: 5581.69208 | F44: 31399.31661 | G44: 25817.62453 | H44: 531.08605 | I44: 568.91811 | J44: 0.0460745561 | K44: 326.66669 | L44: 373.33336 | M44: -898.7302913 | N44: 1549.057472 | O44: 700 | P44: 2511.945329 | Q44: 627.9863322 | R44: -72.0136678
A45: Waitemata DHB | B45: 251445 | C45: 427 | D45: -251018 | E45: 336717 | F45: 616439 | G45: 279722 | H45: 6133 | I45: 6532 | J45: 0.04181317698 | K45: 13439 | L45: 15387 | M45: -10495.86006 | N45: 16783.32 | O45: 6300 | P45: 49315.12 | Q45: 12328.78 | R45: 6028.78
A46: West Coast DHB | B46: 10945 | C46: 0 | D46: -10945 | E46: 11896 | F46: 26475 | G46: 14579 | H46: 320 | I46: 343 | J46: 0.05012073354 | K46: 471 | L46: 542 | M46: -548.5714286 | N46: 874.74 | O46: 300 | P46: 2118 | Q46: 529.5 | R46: 229.5
A47: Whanganui DHB | B47: 37147 | C47: 413 | D47: -36734 | E47: 36859 | F47: 74431 | G47: 37572 | H47: 908 | I47: 967 | J47: 0.04190301851 | K47: 835 | L47: 893 | M47: -1539.265482 | N47: 2254.32 | O47: 700 | P47: 5954.48 | Q47: 1488.62 | R47: 788.62
A48: Sector Total | B48: 2110743.362 | C48: 22292.6021 | D48: =C48-B48 -> -2088450.759 | E48: 2898462.367 | F48: 5321835.138 | G48: =F48-E48 -> 2423372.771 | H48: 54873.82892 | I48: 58243.43735 | J48: 0.04456696286 | K48: 108015.1368 | L48: 122277.236 | M48: -93075.90744 | N48: 145402.3662 | O48: =SUM(O28:O47) -> 52400 | P48: =8%*F48 -> 425746.811 | Q48: 106436.7028 | R48: 54036.70275
M49: * Rounded to nearest 100

Sheet Multiyear
P1: Estimated needs ($000)
P2: This estimates funding needs and compares to actual funding from the year ended June 2010. It uses a simplified version of the annual year-to-year estimate. Because of opaque transfers of responsibilities between appropriations from year to year and initiatives are added to grand totals, estimates for the individual appropriations are not necessarily meaningful. It is totals that count, and they do not necessarily coincide exactly with annual year-on-year calculations.
C3: Actuals
A4: Vote | B4: Health
A6: Sum of Amount $000 | C6: Year
A7: Appropriation or Category Type | B7: Appropriation Name | C7: 2009 | D7: 2010 | E7: 2011 | F7: 2012 | G7: 2013 | H7: 2014 | I7: 2015 | J7: 2016 | K7: 2017 | L7: 2018 | P7: 2010 | Q7: 2011 | R7: 2012 | S7: 2013 | T7: 2014 | U7: 2015 | V7: 2016 | W7: 2017 | X7: 2018
A8: Departmental Output Expenses | B8: Administration of Funding and Purchasing of Health and Disability Support Services | C8: 27325 | D8: 26148
B9: Administration of Legislation and Regulations | C9: 33171 | D9: 34453
B10: Funding and Performance of Crown Entities | C10: 8061 | D10: 7702
B11: Health and Disability System Leadership and Planning | E11: 24212
B12: Health and Disability System Performance Monitoring and Service Delivery | E12: 26950
B13: Health Sector Information Systems | E13: 59991 | I13: 50338 | J13: 50109 | K13: 54178 | L13: 51618
B14: Information and Payment Services | F14: 74897 | G14: 74697 | H14: 69417
B15: Information Services | C15: 61329 | D15: 67518
B16: Managing the Purchase of Services | F16: 33859 | G16: 26310 | H16: 28626 | I16: 31252 | J16: 31790 | K16: 33764 | L16: 36213
B17: Payment Services | C17: 19314 | D17: 17679 | E17: 16254 | I17: 17908 | J17: 17907 | K17: 17818 | L17: 17340
B18: Policy Advice | F18: 14065
B19: Policy Advice and Ministerial Servicing | G19: 15750 | H19: 20036 | I19: 20878 | J19: 20705 | K19: 20509 | L19: 20991
B20: Regulatory and Enforcement Services | E20: 30988 | F20: 22518 | G20: 23102 | H20: 23980 | I20: 22910 | J20: 22739 | K20: 22333 | L20: 24694
B21: Responding to National and International Health Emergencies | E21: 1923
B22: Sector Planning and Performance | F22: 44107 | G22: 36521 | H22: 46456 | I22: 49900 | J22: 47050 | K22: 48272 | L22: 47426
B23: Servicing of Ministers and Ministerial Committees | C23: 13865 | D23: 13303
B24: Strategy, Policy and System Performance | C24: 47784 | D24: 48007 | E24: 40936
B25: Supporting Ministerial Committees | E25: 3977
A26: Departmental Output Expenses Total | C26: =SUM(C8:C25) -> 210849 | D26: 214810 | E26: 205231 | F26: 189446 | G26: 176380 | H26: 188515 | I26: 193186 | J26: 190300 | K26: 196874 | L26: 198282 | P26: =D26 -> 214810 | Q26: =P26*(Q$113*(1+Q$136)+(1-Q$113)*(1+Q$138)) -> 223005.1908 | R26: 227069.4362 | S26: 226613.2527 | T26: 230921.0698 | U26: 235005.2307 | V26: 236360.2754 | W26: 241410.5886 | X26: 246794.1619
A27: Non-Departmental Output Expenses | B27: Health and Disability Support Services - Auckland DHB | C27: 881089 | D27: 929801 | E27: 961356 | F27: 992268 | G27: 1051151 | H27: 1081812 | I27: 1092298 | J27: 1118297 | K27: 1195267 | L27: ='Health Vote 2017-18 post-Budget'!AE12 -> 1250594.244 | P27: 929801 | Q27: =P27*(Q$114*(Q$113*(1+Q$134)+(1-Q$113)*(1+Q$138))+(1-Q$114)*(Q$113*(1+Q$135)+(1-Q$113)*(1+Q$140)))*(1+Q$125) -> 973276.2102 | R27: 1006928.874 | S27: 1029487.206 | T27: 1065751.382 | U27: 1104639.775 | V27: 1148475.066 | W27: 1202750.051 | X27: 1260889.295
B28: Health and Disability Support Services - Bay of Plenty DHB | C28: 491063 | D28: 523202 | E28: 544162 | F28: 567609 | G28: 584772 | H28: 594254 | I28: 614392 | J28: 638060 | K28: 664890 | L28: ='Health Vote 2017-18 post-Budget'!AE13 -> 693973.921 | P28: 523202 | Q28: 547665.64 | R28: 566602.1014 | S28: 579295.7475 | T28: 599701.7155 | U28: 621584.3385 | V28: 646250.5972 | W28: 676791.3048 | X28: 709506.444
B29: Health and Disability Support Services - Canterbury DHB | C29: 1026481 | D29: 1078987 | E29: 1128270 | F29: 1178937 | G29: 1221996 | H29: 1252765 | I29: 1268439 | J29: 1314527 | K29: 1335697 | L29: ='Health Vote 2017-18 post-Budget'!AE14 -> 1372679.024 | P29: 1078987 | Q29: 1129437.781 | R29: 1168489.994 | S29: 1194667.797 | T29: 1236750.538 | U29: 1281878.549 | V29: 1332747.186 | W29: 1395730.558 | X29: 1463198.209
B30: Health and Disability Support Services - Capital and Coast DHB | C30: 536365 | D30: 569196 | E30: 597437 | F30: 623437 | G30: 643506 | H30: 672682 | I30: 678807 | J30: 690915 | K30: 702655 | L30: ='Health Vote 2017-18 post-Budget'!AE15 -> 735192.011 | P30: 569196 | Q30: 595810.2064 | R30: 616411.3473 | S30: 630220.8752 | T30: 652420.705 | U30: 676227.0005 | V30: 703061.6377 | W30: 736287.1386 | X30: 771878.2227
B31: Health and Disability Support Services - Counties-Manukau DHB | C31: 931177 | D31: 1004832 | E31: 1058245 | F31: 1121978 | G31: 1174745 | H31: 1208599 | I31: 1246364 | J31: 1274349 | K31: 1321735 | L31: ='Health Vote 2017-18 post-Budget'!AE16 -> 1371174.514 | P31: 1004832 | Q31: 1051815.475 | R31: 1088183.766 | S31: 1112562.461 | T31: 1151753.002 | U31: 1193779.523 | V31: 1241152.136 | W31: 1299806.882 | X31: 1362637.718
B32: Health and Disability Support Services - Hawkes Bay DHB | C32: 357786 | D32: 378247 | E32: 392959 | F32: 401785 | G32: 419205 | H32: 426971 | I32: 435492 | J32: 457148 | K32: 470212 | L32: ='Health Vote 2017-18 post-Budget'!AE17 -> 482197.148 | P32: 378247 | Q32: 395932.9004 | R32: 409622.9469 | S32: 418799.7726 | T32: 433552.1936 | U32: 449372.157 | V32: 467204.5398 | W32: 489283.8343 | X32: 512935.1262
B33: Health and Disability Support Services - Hutt DHB | C33: 286986 | D33: 308597 | E33: 320061 | F33: 333279 | G33: 342306 | H33: 350076 | I33: 357834 | J33: 365331 | K33: 372955 | L33: ='Health Vote 2017-18 post-Budget'!AE18 -> 384465.345 | P33: 308597 | Q33: 323026.2375 | R33: 334195.4134 | S33: 341682.4282 | T33: 353718.3541 | U33: 366625.2463 | V33: 381173.9931 | W33: 399187.6298 | X33: 418483.798
B34: Health and Disability Support Services - Lakes DHB | C34: 234112 | D34: 244578 | E34: 251977 | F34: 259791 | G34: 268494 | H34: 273225 | I34: 278253 | J34: 284778 | K34: 298534 | L34: ='Health Vote 2017-18 post-Budget'!AE19 -> 313549.204 | P34: 244578 | Q34: 256013.8663 | R34: 264865.9768 | S34: 270799.7969 | T34: 280338.8484 | U34: 290568.1827 | V34: 302098.766 | W34: 316375.4415 | X34: 331668.5851
B35: Health and Disability Support Services - MidCentral DHB | C35: 372802 | D35: 396915 | E35: 409407 | F35: 424655 | G35: 440480 | H35: 448449 | I35: 458021 | J35: 467256 | K35: 482764 | L35: ='Health Vote 2017-18 post-Budget'!AE20 -> 493959.867 | P35: 396915 | Q35: 415473.7702 | R35: 429839.4752 | S35: 439469.2139 | T35: 454949.7258 | U35: 471550.4675 | V35: 490262.9497 | W35: 513431.9455 | X35: 538250.5231
B36: Health and Disability Support Services - Nelson-Marlborough DHB | C36: 309489 | D36: 324101 | E36: 333921 | F36: 345821 | G36: 359054 | H36: 368535 | I36: 378204 | J36: 394740 | K36: 403203 | L36: ='Health Vote 2017-18 post-Budget'!AE21 -> 418167.216 | P36: 324101 | Q36: 339255.1664 | R36: 350985.4849 | S36: 358848.6494 | T36: 371489.2636 | U36: 385044.6017 | V36: 400324.2817 | W36: 419242.9285 | X36: 439508.5416
B37: Health and Disability Support Services - Northland DHB | C37: 389332 | D37: 418039 | E37: 430962 | F37: 447987 | G37: 465630 | H37: 476203 | I37: 487868 | J37: 511786 | K37: 536635 | L37: ='Health Vote 2017-18 post-Budget'!AE22 -> 563461.498 | P37: 418039 | Q37: 437585.4765 | R37: 452715.731 | S37: 462857.9688 | T37: 479162.3607 | U37: 496646.6016 | V37: 516354.9708 | W37: 540757.0312 | X37: 566896.4651
B38: Health and Disability Support Services - Otago DHB | C38: 418527 | D38: 362709 | P38: 362709
B39: Health and Disability Support Services - South Canterbury DHB | C39: 137705 | D39: 143397 | E39: 148374 | F39: 152692 | G39: 156132 | H39: 161180 | I39: 164568 | J39: 167795 | K39: 171495 | L39: ='Health Vote 2017-18 post-Budget'!AE23 -> 176918.736 | P39: 143397 | Q39: =P39*(Q$114*(Q$113*(1+Q$134)+(1-Q$113)*(1+Q$138))+(1-Q$114)*(Q$113*(1+Q$135)+(1-Q$113)*(1+Q$140)))*(1+Q$125) -> 150101.8914 | R39: 155291.917 | S39: 158770.938 | T39: 164363.7198 | U39: 170361.2169 | V39: 177121.6411 | W39: 185492.1096 | X39: 194458.5371
B40: Health and Disability Support Services - Southern DHB | D40: 113580 | E40: 701674 | F40: 722810 | G40: 742987 | H40: 759117 | I40: 776461 | J40: 791729 | K40: 818589 | L40: ='Health Vote 2017-18 post-Budget'!AE24 -> 846419.045 | P40: 113580 | Q40: =P40*(Q$114*(Q$113*(1+Q$134)+(1-Q$113)*(1+Q$138))+(1-Q$114)*(Q$113*(1+Q$135)+(1-Q$113)*(1+Q$140)))*(1+Q$125)+P38*(Q$114*(Q$113*(1+Q$134)+(1-Q$113)*(1+Q$138))+(1-Q$114)*(Q$113*(1+Q$135)+(1-Q$113)*(1+Q$140)))*(1+Q$125)+P41*(Q$114*(Q$113*(1+Q$134)+(1-Q$113)*(1+Q$138))+(1-Q$114)*(Q$113*(1+Q$135)+(1-Q$113)*(1+Q$140)))*(1+Q$125) -> 713345.3771 | R40: 738010.4944 | S40: 754544.2207 | T40: 781123.3994 | U40: 809625.9505 | V40: 841754.2426 | W40: 881534.121 | X40: 924146.2398
B41: Health and Disability Support Services - Southland DHB | C41: 234601 | D41: 205192 | P41: 205192
B42: Health and Disability Support Services - Tairawhiti DHB | C42: 115404 | D42: 124073 | E42: 128385 | F42: 133819 | G42: 137333 | H42: 141540 | I42: 144332 | J42: 147136 | K42: 154032 | L42: ='Health Vote 2017-18 post-Budget'!AE25 -> 160572.123 | P42: 124073 | Q42: =P42*(Q$114*(Q$113*(1+Q$134)+(1-Q$113)*(1+Q$138))+(1-Q$114)*(Q$113*(1+Q$135)+(1-Q$113)*(1+Q$140)))*(1+Q$125) -> 129874.3486 | R42: 134364.9729 | S42: 137375.1654 | T42: 142214.2709 | U42: 147403.5528 | V42: 153252.9508 | W42: 160495.4254 | X42: 168253.5484
B43: Health and Disability Support Services - Taranaki DHB | C43: 257639 | D43: 266194 | E43: 275360 | F43: 282559 | G43: 290877 | H43: 297728 | I43: 304188 | J43: 318643 | K43: 324724 | L43: ='Health Vote 2017-18 post-Budget'!AE26 -> 335485.129 | P43: 266194 | Q43: 278640.5774 | R43: 288275.0444 | S43: 294733.3004 | T43: 305115.4209 | U43: 316248.832 | V43: 328798.4975 | W43: 344336.957 | X43: 360981.7209
B44: Health and Disability Support Services - Waikato DHB | C44: 781121 | D44: 840495 | E44: 872148 | F44: 918893 | G44: 948108 | H44: 981493 | I44: 1002406 | J44: 1042740 | K44: 1088800 | L44: ='Health Vote 2017-18 post-Budget'!AE27 -> 1139123.402 | P44: 840495 | Q44: 879794.4811 | R44: 910214.8563 | S44: 930606.4949 | T44: 963387.5509 | U44: 998540.7712 | V44: 1038165.748 | W44: 1087227.701 | X44: 1139782.758
B45: Health and Disability Support Services - Wairarapa DHB | C45: 99868 | D45: 105025 | E45: 108153 | F45: 112592 | G45: 115965 | H45: 119820 | I45: 122511 | J45: 128179 | K45: 130946 | L45: ='Health Vote 2017-18 post-Budget'!AE28 -> 135179.29 | P45: 105025 | Q45: 109935.711 | R45: 113736.9232 | S45: 116284.9834 | T45: 120381.1772 | U45: 124773.7875 | V45: 129725.1711 | W45: 135855.7627 | X45: 142422.8391
B46: Health and Disability Support Services - Waitemata DHB | C46: 1012346 | D46: 1074747 | E46: 1124558 | F46: 1173790 | G46: 1217875 | H46: 1258963 | I46: 1311848 | J46: 1349320 | K46: 1391675 | L46: ='Health Vote 2017-18 post-Budget'!AE29 -> 1463410.891 | P46: 1074747 | Q46: 1124999.529 | R46: 1163898.282 | S46: 1189973.216 | T46: 1231890.588 | U46: 1276841.264 | V46: 1327510.007 | W46: 1390245.879 | X46: 1457448.408
B47: Health and Disability Support Services - West Coast DHB | C47: 101682 | D47: 106821 | E47: 109818 | F47: 112998 | G47: 114610 | H47: 117472 | I47: 119604 | J47: 121928 | K47: 124489 | L47: ='Health Vote 2017-18 post-Budget'!AE30 -> 128042.078 | P47: 106821 | Q47: 111815.6875 | R47: 115681.9031 | S47: 118273.5369 | T47: 122439.7784 | U47: 126907.5054 | V47: 131943.5611 | W47: 138178.9901 | X47: 144858.368
B48: Health and Disability Support Services - Whanganui DHB | C48: 171453 | D48: 180492 | E48: 185626 | F48: 191186 | G48: 195688 | H48: 198470 | I48: 202295 | J48: 206464 | K48: 210551 | L48: ='Health Vote 2017-18 post-Budget'!AE31 -> 218200.324 | P48: 180492 | Q48: 188931.3624 | R48: 195463.9824 | S48: 199842.9824 | T48: 206882.5464 | U48: 214431.5206 | V48: 222940.7816 | W48: 233476.5849 | X48: 244762.5144
B49: Auckland Health Projects Integrated Investment Plan | K49: 320 | L49: 650 | W49: =K49 -> 320 | X49: =L49 -> 650
B50: Crown Health Financing Agency | C50: 1751 | D50: 1700 | E50: 1800 | F50: 1900 | P50: =D50 -> 1700 | Q50: =P50*(Q$113*(1+Q$136)+(1-Q$113)*(1+Q$140)) -> 1764.856498 | R50: =Q50*(R$113*(1+R$136)+(1-R$113)*(1+R$140)) -> 1797.020817
B51: Health Sector Projects Operating Expenses | K51: 6252 | W51: =K51 -> 6252
B52: Health Services Funding | C52: 174858 | P52: =D52 -> 0 | Q52: 0 | R52: 0 | S52: 0 | T52: 0 | U52: 0 | V52: 0 | W52: =K52 -> 0 | X52: =L52 -> 0
B53: Health Workforce Training and Development | C53: 117188 | D53: 117420 | E53: 126616 | F53: 155749 | G53: 166061 | H53: 169280 | I53: 176560 | J53: 176252 | K53: 184514 | L53: 186745 | P53: 117420 | Q53: =P53*(Q$113*(1+Q$136)+(1-Q$113)*(1+Q$140)) -> 121899.6765 | R53: 124121.2849 | S53: 123871.9246 | T53: 126226.6748 | U53: 128459.1694 | V53: 129199.8675 | W53: 131960.4828 | X53: 134903.2656
B54: Meningococcal Vaccine Programme | C54: 1177 | D54: 560 | E54: 6 | P54: 560 | Q54: 6 | R54: 0 | X54: =O54 -> 0
B55: Monitoring and Protecting Health and Disability Consumer Interests | C55: 14641 | D55: 14790 | E55: 14834 | F55: 14482 | G55: 12838 | H55: 26995 | I55: 27583 | J55: 27510 | K55: 28746 | L55: 28746 | P55: 14790 | Q55: =P55*(Q$113*(1+Q$136)+(1-Q$113)*(1+Q$140)) -> 15354.25153 | R55: =Q55*(R$113*(1+R$136)+(1-R$113)*(1+R$140)) -> 15634.0811 | S55: =R55*(S$113*(1+S$136)+(1-S$113)*(1+S$140)) -> 15602.67216 | T55: =S55*(T$113*(1+T$136)+(1-T$113)*(1+T$140))+12976 -> 28875.27202 | U55: =T55*(U$113*(1+U$136)+(1-U$113)*(1+U$140)) -> 29385.97144 | V55: =U55*(V$113*(1+V$136)+(1-V$113)*(1+V$140)) -> 29555.41152 | W55: =V55*(W$113*(1+W$136)+(1-W$113)*(1+W$140)) -> 30186.9224 | X55: =W55*(X$113*(1+X$136)+(1-X$113)*(1+X$140)) -> 30860.10542
B56: National Advisory and Support Services | C56: 299 | D56: 337 | E56: 322 | F56: 258 | G56: 282 | H56: 230 | I56: 242 | J56: 0 | K56: 0 | L56: 0 | P56: 337 | Q56: =P56*(Q$113*(1+Q$136)+(1-Q$113)*(1+Q$138)) -> 349.8568469 | R56: =Q56*(R$113*(1+R$136)+(1-R$113)*(1+R$138)) -> 356.2329501 | S56: =R56*(S$113*(1+S$136)+(1-S$113)*(1+S$138)) -> 355.5172765 | T56: =S56*(T$113*(1+T$136)+(1-T$113)*(1+T$138)) -> 362.2755016 | U56: =T56*(U$113*(1+U$136)+(1-U$113)*(1+U$138)) -> 368.6828487
B57: National Child Health Services | C57: 52292 | D57: 57583 | E57: 59821 | F57: 77768 | G57: 81366 | H57: 78821 | I57: 82538 | J57: 83559 | K57: 83401 | L57: 85001 | P57: 57583 | Q57: =P57*(Q$113*(1+Q$136)+(1-Q$113)*(1+Q$140))*(1+Q$127) -> 59780.33009 | R57: 60741.15125 | S57: 60548.71939 | T57: 61873.51852 | U57: 63300.49509 | V57: 64121.58495 | W57: 65968.363 | X57: 67835.50593
B58: National Contracted Services - Other | C58: 115471 | D58: 143826 | E58: 150035 | F58: 92979 | G58: 114224 | H58: 22927 | I58: 21171 | J58: 24518 | K58: 26607 | L58: 28720 | P58: 143826 | Q58: =P58*(Q$113*(1+Q$136)+(1-Q$113)*(1+Q$140))*(1+Q$125) -> 151887.2107 | R58: =Q58*(R$113*(1+R$136)+(1-R$113)*(1+R$140))*(1+R$125) -> 156895.523 | S58: =R58*(S$113*(1+S$136)+(1-S$113)*(1+S$140))*(1+S$125) -> 158797.4953 | T58: =S58*(T$113*(1+T$136)+(1-T$113)*(1+T$140))*(1+T$125)-71251-8854-4509-12976 -> 66724.01876 | U58: =T58*(U$113*(1+U$136)+(1-U$113)*(1+U$140))*(1+U$125) -> 69348.81597 | V58: =U58*(V$113*(1+V$136)+(1-V$113)*(1+V$140))*(1+V$125)+240 -> 71764.79313 | W58: =V58*(W$113*(1+W$136)+(1-W$113)*(1+W$140))*(1+W$125) -> 75260.45374 | X58: =W58*(X$113*(1+X$136)+(1-X$113)*(1+X$140))*(1+X$125) -> 78870.5069
B59: National Disability Support Services | C59: 888648 | D59: 929829 | E59: 970784 | F59: 1028966 | G59: 1027890 | H59: 1086767 | I59: 1126061 | J59: 1167483 | K59: 1183365 | L59: 1208374 | P59: 929829 | Q59: =P59*(Q$113*(1+Q$137)+(1-Q$113)*(1+Q$139))*(1+Q$125) -> 968079.5929 | R59: =Q59*(R$113*(1+R$137)+(1-R$113)*(1+R$139))*(1+R$125) -> 1004042.086 | S59: 1040941.497 | T59: 1072943.436 | U59: 1121933.679 | V59: 1175415.086 | W59: 1238342.629 | X59: 1302085.333
B60: National Elective Services | C60: 176373 | D60: 208066 | E60: 251023 | F60: 265056 | G60: 277877 | H60: 301566 | I60: 289972 | J60: 323180 | K60: 347205 | L60: 346517 | P60: 208066 | Q60: =P60*(Q$113*(1+Q$134)+(1-Q$113)*(1+Q$138))*(1+Q$125) -> 216587.3115 | R60: 224440.7216 | S60: 230378.609 | T60: 238633.2014 | U60: 246561.8719 | V60: 257249.2095 | W60: 268813.9557 | X60: 281708.2797
B61: National Emergency Services | C61: 68539 | D61: 81300 | E61: 85179 | F61: 87481 | G61: 90274 | H61: 95490 | I61: 97105 | J61: 95540 | K61: 100550 | L61: 109958 | P61: 81300 | Q61: =P61*(Q$113*(1+Q$136)+(1-Q$113)*(1+Q$138))*(1+Q$125) -> 85856.73129 | R61: 88687.76174 | S61: 89762.88271 | T61: 92881.18786 | U61: 96534.95883 | V61: 99563.96318 | W61: 104413.7204 | X61: 109422.1819
B62: National Health Information Systems | G62: 0 | H62: 8962 | I62: 13851 | J62: 10534 | K62: 5418 | L62: 8236 | P62: 0 | Q62: =E62 -> 0 | R62: =F62 -> 0 | S62: =G62 -> 0 | T62: =H62 -> 8962 | U62: =T62*(U$113*(1+U$136)+(1-U$113)*(1+U$140))*(1+U$128) -> 9383.853804 | V62: =U62*(V$113*(1+V$136)+(1-V$113)*(1+V$140))*(1+V$128) -> 9718.364611 | W62: =V62*(W$113*(1+W$136)+(1-W$113)*(1+W$140))*(1+W$128) -> 10224.50222 | X62: =W62*(X$113*(1+X$136)+(1-X$113)*(1+X$140))*(1+X$128) -> 10757.61104
B63: National Maori Health Services | C63: 6858 | D63: 7371 | E63: 8211 | F63: 4045 | G63: 5285 | H63: 4697 | I63: 4195 | J63: 4066 | K63: 3328 | L63: 6828 | P63: 7371 | Q63: =P63*(Q$113*(1+Q$136)+(1-Q$113)*(1+Q$140))*(1+Q$125) -> 7784.132427 | R63: =Q63*(R$113*(1+R$136)+(1-R$113)*(1+R$140))*(1+R$125) -> 8040.805557 | S63: =R63*(S$113*(1+S$136)+(1-S$113)*(1+S$140))*(1+S$125) -> 8138.280547 | T63: =S63*(T$113*(1+T$136)+(1-T$113)*(1+T$140))*(1+T$125) -> 8420.999209 | U63: =T63*(U$113*(1+U$136)+(1-U$113)*(1+U$140))*(1+U$125) -> 8752.265455 | V63: =U63*(V$113*(1+V$136)+(1-V$113)*(1+V$140))*(1+V$125)+20 -> 9046.887732 | W63: =V63*(W$113*(1+W$136)+(1-W$113)*(1+W$140))*(1+W$125) -> 9487.561323 | X63: =W63*(X$113*(1+X$136)+(1-X$113)*(1+X$140))*(1+X$125) -> 9942.655586
B64: National Maternity Services | C64: 130512 | D64: 132167 | E64: 137415 | F64: 136408 | G64: 143998 | H64: 141096 | I64: 143848 | J64: 144589 | K64: 152347 | L64: 146767 | P64: 132167 | Q64: =P64*(Q$113*(1+Q$136)+(1-Q$113)*(1+Q$138))*(1+Q$126) -> 134021.4875 | R64: 132919.4948 | S64: 130093.3516 | T64: 129753.9543 | U64: 134239.1218 | V64: 133580.5752 | W64: 140106.5511 | X64: 146994.0427
B65: National Mental Health Services | C65: 49044 | D65: 54775 | E65: 56839 | F65: 40924 | G65: 29262 | H65: 47590 | I65: 45626 | J65: 53114 | K65: 69169 | L65: 62183 | P65: 54775 | Q65: =P65*(Q$113*(1+Q$134)+(1-Q$113)*(1+Q$138))*(1+Q$129) -> 61364.14306 | R65: =Q65*(R$113*(1+R$134)+(1-R$113)*(1+R$138))*(1+R$129) -> 65849.75722 | S65: =R65*(S$113*(1+S$134)+(1-S$113)*(1+S$138))*(1+S$129) -> 72378.73427 | T65: =S65*(T$113*(1+T$134)+(1-T$113)*(1+T$138))*(1+T$129)+4509 -> 80576.26253 | U65: =T65*(U$113*(1+U$134)+(1-U$113)*(1+U$138))*(1+U$129) -> 81640.35025 | V65: =U65*(V$113*(1+V$134)+(1-V$113)*(1+V$138))*(1+V$129) -> 87864.41815 | W65: =V65*(W$113*(1+W$134)+(1-W$113)*(1+W$138))*(1+W$129) -> 93891.55505 | X65: =W65*(X$113*(1+X$134)+(1-X$113)*(1+X$138))*(1+X$129) -> 100784.6514
B66: National Personal Health Services | G66: 0 | H66: 85233 | I66: 84748 | J66: 105563 | K66: 84950 | L66: 84057 | P66: 0 | Q66: =E66 -> 0 | R66: =F66 -> 0 | S66: =G66 -> 0 | T66: =H66 -> 85233 | U66: =T66*(U$113*(1+U$134)+(1-U$113)*(1+U$138))*(1+U$125) -> 88064.89582 | V66: =U66*(V$113*(1+V$134)+(1-V$113)*(1+V$138))*(1+V$125) -> 91882.10919 | W66: =V66*(W$113*(1+W$134)+(1-W$113)*(1+W$138))*(1+W$125) -> 96012.70799 | X66: =W66*(X$113*(1+X$134)+(1-X$113)*(1+X$138))*(1+X$125) -> 100618.1942
B67: Primary Health Care Strategy | D67: 168133 | E67: 174789 | F67: 171536 | G67: 172752 | H67: 161290 | I67: 154935 | J67: 179615 | K67: 185294 | L67: 195405 | P67: 168133 | Q67: =P67*(Q$113*(1+Q$136)+(1-Q$113)*(1+Q$140))*(1+Q$125) -> 177556.5781 | R67: 183411.3093 | S67: 185634.7203 | T67: 192083.5518 | U67: 199639.7569 | V67: 205903.9092 | W67: 215933.4816 | X67: 226291.2633
B68: Problem Gambling Services | C68: 16627 | D68: 17492 | E68: 16407 | F68: 17942 | G68: 17144 | H68: 17670 | I68: 15735 | J68: 18205 | K68: 16065 | L68: 17521 | P68: 17492 | Q68: 18472.39783 | R68: 19081.50465 | S68: 19312.82096 | T68: 19983.73602 | U68: 20769.85855 | V68: 21421.5602 | W68: 22465.00366 | X68: 23542.59293
B69: Public Health Service Purchasing | C69: 426904 | D69: 477081 | E69: 426738 | F69: 436751 | G69: 374063 | H69: 396050 | I69: 396571 | J69: 372112 | K69: 386311 | L69: 405471 | P69: 477081 | Q69: =P69*(Q$113*(1+Q$136)+(1-Q$113)*(1+Q$140))*(1+Q$125) -> 503820.6054 | R69: =Q69*(R$113*(1+R$136)+(1-R$113)*(1+R$140))*(1+R$125) -> 520433.5309 | S69: =R69*(S$113*(1+S$136)+(1-S$113)*(1+S$140))*(1+S$125) -> 526742.5073 | T69: =S69*(T$113*(1+T$136)+(1-T$113)*(1+T$140))*(1+T$125)+8854 -> 553895.2052 | U69: =T69*(U$113*(1+U$136)+(1-U$113)*(1+U$140))*(1+U$125) -> 575684.3992 | V69: =U69*(V$113*(1+V$136)+(1-V$113)*(1+V$140))*(1+V$125) -> 593747.8093 | W69: =V69*(W$113*(1+W$136)+(1-W$113)*(1+W$140))*(1+W$125) -> 622669.2448 | X69: =W69*(X$113*(1+X$136)+(1-X$113)*(1+X$140))*(1+X$125) -> 652537.1098
B70: Supporting Equitable Pay for Care and Support Workers | L70: 279000 | X70: =L70 -> 279000
A71: Non-Departmental Output Expenses Total | C71: =SUM(C27:C70) -> 11388210 | D71: 12111650 | E71: 12563672 | F71: 13031131 | G71: 13404230 | H71: 13834018 | I71: 14124926 | J71: 14576961 | K71: 15063690 | L71: 15882944.01 | P71: =D71 -> 12111650 | Q71: =SUM(Q27:Q70) -> 12677316.86 | R71: 13110231.75 | S71: 13401656.49 | T71: 13884814.84 | U71: 14397118.99 | V71: 14960354.28 | W71: 15678797.41 | X71: 16709771.16
A72: Departmental Other Expenses | B72: Earthquake/Storm Damages | F72: 256 | P72: 0 | Q72: 0 | R72: 256 | S72: 0 | T72: 0 | U72: 0 | V72: 0 | W72: 0 | X72: =O72 -> 0
A73: Departmental Other Expenses Total | F73: 256 | P73: 0 | Q73: 0 | R73: 256 | S73: 0 | T73: 0 | U73: 0 | V73: 0 | W73: 0 | X73: =O73 -> 0
A74: Non-Departmental Other Expenses | B74: International Health Organisations | C74: 1908 | D74: 2177 | E74: 2158 | F74: 1742 | G74: 1543 | H74: 1582 | I74: 1480 | J74: 1639 | K74: 2030 | L74: 2030 | P74: 2177 | Q74: =P74*(Q$113*(1+Q$136)+(1-Q$113)*(1+Q$140)) -> 2260.054468 | R74: 2301.243716 | S74: 2296.620507 | T74: 2340.278241 | U74: 2381.669323 | V74: 2395.402074 | W74: 2446.584663 | X74: 2501.144688
B75: Legal Expenses | C75: 1587 | D75: 474 | E75: 858 | F75: 5186 | G75: 713 | H75: 836 | I75: 607 | J75: 959 | K75: 778 | L75: 1028 | P75: 474 | Q75: 492.0835176 | R75: 501.0516865 | S75: 500.0450713 | T75: 509.5507056 | U75: 518.5628199 | V75: 521.5528631 | W75: 532.6968903 | X75: 544.5762895
B76: Provider Development | C76: 18685 | D76: 19225 | E76: 24908 | F76: 24588 | G76: 23844 | H76: 25455 | I76: 24393 | J76: 22709 | K76: 23434 | L76: 24289 | P76: 19225 | Q76: 19958.45069 | R76: 20322.19129 | S76: 20281.36392 | T76: 20666.90362 | U76: 21032.42661 | V76: 21153.69999 | W76: 21605.69138 | X76: 22087.50879
A77: Non-Departmental Other Expenses Total | C77: =SUM(C74:C76) -> 22180 | D77: 21876 | E77: 27924 | F77: 31516 | G77: 26100 | H77: 27873 | I77: 26480 | J77: 25307 | K77: 26242 | L77: 27347 | P77: 21876 | Q77: =SUM(Q74:Q76) -> 22710.58867 | R77: 23124.4867 | S77: 23078.0295 | T77: 23516.73256 | U77: 23932.65875 | V77: 24070.65492 | W77: 24584.97294 | X77: 25133.22976
A78: Grand Total | C78: =C77+C71+C26 -> 11621239 | D78: 12348336 | E78: 12796827 | F78: 13252093 | G78: 13606710 | H78: 14050406 | I78: 14344592 | J78: 14792568 | K78: 15286806 | L78: 16108573.01 | O78: Total appropriations needed for demographic, wage and price increases | P78: 12348336 | Q78: =Q26+Q71+Q73+Q77 -> 12923032.64 | R78: 13360681.67 | S78: 13651347.77 | T78: 14139252.64 | U78: 14656056.88 | V78: 15220785.21 | W78: 15944792.97 | X78: 16981698.55
O79: Less new appropriations accounted for in Net initiatives | Q79: 0 | R79: 0 | S79: 0 | T79: 0 | U79: 0 | V79: 0 | W79: 0 | X79: =X49+X70 -> 279650
O80: Required for demographic, wage and price increases | P80: =P78 -> 12348336 | Q80: =Q78-Q79 -> 12923032.64 | R80: =R78-R79 -> 13360681.67 | S80: 13651347.77 | T80: 14139252.64 | U80: 14656056.88 | V80: 15220785.21 | W80: 15944792.97 | X80: 16702048.55
O81: Add net initiatives and additional costs to give funding needed | P81: =P80 -> 12348336 | Q81: =(P81*Q80/P80)+Q131 -> 13024425.64 | R81: 13551064.43 | S81: 13870285.37 | T81: 14418004.16 | U81: 14979024.05 | V81: 15630170.97 | W81: 16490735.01 | X81: 17542892.66
O82: Increase in funding needed over previous year | Q82: =Q81-P81 -> 676089.6376 | R82: =R81-Q81 -> 526638.7932 | S82: 319220.9363 | T82: 547718.7891 | U82: 561019.896 | V82: 651146.9227 | W82: 860564.0384 | X82: 1052157.647
O83: Funding needed less what has actually been provided | Q83: =Q81-$P$84 -> 676089.6376 | R83: =R81-Q84 -> 754237.4307 | S83: =S81-R84 -> 618192.367 | T83: 811294.1561 | U83: 928618.0521 | V83: 1285578.975 | W83: 1698167.013 | X83: 2256086.661
O84: Actuals (forecast for most recent two years) | P84: =D78 -> 12348336 | Q84: 12796827 | R84: 13252093 | S84: 13606710 | T84: 14050406 | U84: 14344592 | V84: 14792568 | W84: 15286806 | X84: 16108573.01
O85: Actual increase provided | Q85: =Q84-P84 -> 448491 | R85: =R84-Q84 -> 455266 | S85: 354617 | T85: 443696 | U85: 294186 | V85: 447976 | W85: 494238 | X85: 821767.01
O86: Shortfall from funding needed for year | Q86: =Q83-Q85 -> 227598.6376 | R86: 298971.4307 | S86: 263575.367 | T86: 367598.1561 | U86: 634432.0521 | V86: 837602.9748 | W86: =W83-W85 -> 1203929.013 | X86: =X83-X85 -> 1434319.651
O87: Accumulated shortfall from funding needed | Q87: =Q86+P87 -> 227598.6376 | R87: =R86+Q87 -> 526570.0683 | S87: 790145.4353 | T87: 1157743.591 | U87: 1792175.644 | V87: 2629778.618 | W87: 3833707.632 | X87: 5268027.282
O88: Implied "efficiency" gain if no service or quality deterioration
O89: Annual | Q89: =((Q81-P81)-(Q84-P84))/P81 -> 0.01843152288 | R89: =((R81-Q81)-(R84-Q84))/Q81 -> 0.005479918668 | S89: -0.002612050435 | T89: 0.007499686298 | U89: 0.01850699258 | V89: 0.01356369561 | W89: 0.02343711012 | X89: 0.0139709138
O90: Since 2010 | Q90: =((Q81-$P81)-(Q84-$P84))/$P81 -> 0.01843152288 | R90: =((R81-$P81)-(R84-$P84))/$P81 -> 0.02421147519 | S90: 0.02134501094 | T90: 0.02976904387 | U90: 0.05137793887 | V90: 0.06783124259 | W90: 0.0974972671 | X90: 0.1161548933
O92: Shortfall from actual for year, disregarding previous shortfalls | Q92: =(P84*Q80/P80)-Q84+Q131 -> 227598.6376 | R92: 63664.97976 | S92: -41900.28715 | T92: 94602.49548 | U92: 253397.8049 | V92: 178724.9374 | W92: 326483.7404 | X92: 173213.2274
O94: Options | P94: Select
O95: Wages series for DHB provider wage costs | P95: DHB Provider actual
O96: Wage series for other wage costs | P96: Health (Average wage)
O97: Price index for DHB provider non-wage costs | P97: CPI
O98: Price index for other non-wage costs | P98: CPI
O99: Minimum wage proportion of high MW sectors | P99: 0.8
O101: Parameters
O102: Wage increases (QES average total hourly wage)
O103: Health Care and Social Assistance | Q103: =VLOOKUP(TEXT(Q$7,"0000Q2"),'Wage, price statistics'!$AC$3:$AH$45,5) -> 0.04197622585 | R103: =VLOOKUP(TEXT(R$7,"0000Q2"),'Wage, price statistics'!$AC$3:$AH$45,5) -> 0.02352941176 | S103: =VLOOKUP(TEXT(S$7,"0000Q2"),'Wage, price statistics'!$AC$3:$AH$45,5) -> -0.007314524556 | T103: =VLOOKUP(TEXT(T$7,"0000Q2"),'Wage, price statistics'!$AC$3:$AH$45,5) -> 0.02070175439 | U103: =VLOOKUP(TEXT(U$7,"0000Q2"),'Wage, price statistics'!$AC$3:$AH$45,5) -> 0.02578205569 | V103: =VLOOKUP(TEXT(V$7,"0000Q2"),'Wage, price statistics'!$AC$3:$AH$45,5) -> 0.006702412869 | W103: =VLOOKUP(TEXT(W$7,"0000Q2"),'Wage, price statistics'!$AC$3:$AH$45,5) -> 0.02188804469 | X103: =X104 -> 0.026
O104: Public Administration and Safety | Q104: =VLOOKUP(TEXT(Q$7,"0000Q2"),'Wage, price statistics'!$AJ$3:$AM$45,3) -> 0.02730485063 | R104: =VLOOKUP(TEXT(R$7,"0000Q2"),'Wage, price statistics'!$AJ$3:$AM$45,3) -> 0.01813633521 | S104: =VLOOKUP(TEXT(S$7,"0000Q2"),'Wage, price statistics'!$AJ$3:$AM$45,3) -> 0.02457002457 | T104: =VLOOKUP(TEXT(T$7,"0000Q2"),'Wage, price statistics'!$AJ$3:$AM$45,3) -> 0.01199040767 | U104: =VLOOKUP(TEXT(U$7,"0000Q2"),'Wage, price statistics'!$AJ$3:$AM$45,3) -> 0.03702606635 | V104: =VLOOKUP(TEXT(V$7,"0000Q2"),'Wage, price statistics'!$AJ$3:$AM$45,3) -> 0.02485004284 | W104: =VLOOKUP(TEXT(W$7,"0000Q2"),'Wage, price statistics'!$AJ$3:$AM$45,3) -> 0.03544348875 | X104: =X105 -> 0.026
O105: All QES industries | Q105: =VLOOKUP(TEXT(Q$7,"0000Q2"),'Wage, price statistics'!$AO$3:$AR$45,3) -> 0.03060023539 | R105: =VLOOKUP(TEXT(R$7,"0000Q2"),'Wage, price statistics'!$AO$3:$AR$45,3) -> 0.02778835173 | S105: =VLOOKUP(TEXT(S$7,"0000Q2"),'Wage, price statistics'!$AO$3:$AR$45,3) -> 0.02037037037 | T105: =VLOOKUP(TEXT(T$7,"0000Q2"),'Wage, price statistics'!$AO$3:$AR$45,3) -> 0.02540834846 | U105: =VLOOKUP(TEXT(U$7,"0000Q2"),'Wage, price statistics'!$AO$3:$AR$45,3) -> 0.02796460177 | V105: =VLOOKUP(TEXT(V$7,"0000Q2"),'Wage, price statistics'!$AO$3:$AR$45,3) -> 0.02169421488 | W105: =VLOOKUP(TEXT(W$7,"0000Q2"),'Wage, price statistics'!$AO$3:$AR$45,3) -> 0.012 | X105: 0.026
O106: Minimum wage | Q106: =VLOOKUP(DATE(Q$7-1,6,1),'Wage, price statistics'!$BK$3:$BM$45,3) -> 0.02 | R106: =VLOOKUP(DATE(R$7-1,6,1),'Wage, price statistics'!$BK$3:$BM$45,3) -> 0.01960784314 | S106: =VLOOKUP(DATE(S$7-1,6,1),'Wage, price statistics'!$BK$3:$BM$45,3) -> 0.03846153846 | T106: =VLOOKUP(DATE(T$7-1,6,1),'Wage, price statistics'!$BK$3:$BM$45,3) -> 0.01851851852 | U106: =VLOOKUP(DATE(U$7-1,6,1),'Wage, price statistics'!$BK$3:$BM$45,3) -> 0.03636363636 | V106: =VLOOKUP(DATE(V$7-1,6,1),'Wage, price statistics'!$BK$3:$BM$45,3) -> 0.0350877193 | W106: =VLOOKUP(DATE(W$7-1,6,1),'Wage, price statistics'!$BK$3:$BM$45,3) -> 0.03389830508 | X106: =VLOOKUP(DATE(X$7-1,6,1),'Wage, price statistics'!$BK$3:$BM$44,3) -> 0.03278688525
O107: Wage increases (LCI)
O108: Health Care and Social Assistance - Central Govt Sector | Q108: =VLOOKUP(TEXT(Q$7,"0000Q2"),'Wage, price statistics'!$BV$16:$CB$45,6) -> 0.01669941061 | R108: =VLOOKUP(TEXT(R$7,"0000Q2"),'Wage, price statistics'!$BV$16:$CB$45,6) -> 0.0193236715 | S108: =VLOOKUP(TEXT(S$7,"0000Q2"),'Wage, price statistics'!$BV$16:$CB$45,6) -> 0.01421800948 | T108: =VLOOKUP(TEXT(T$7,"0000Q2"),'Wage, price statistics'!$BV$16:$CB$45,6) -> 0.006542056075 | U108: =VLOOKUP(TEXT(U$7,"0000Q2"),'Wage, price statistics'!$BV$16:$CB$45,6) -> 0.004642525534 | V108: =VLOOKUP(TEXT(V$7,"0000Q2"),'Wage, price statistics'!$BV$16:$CB$45,6) -> 0.01663585952 | W108: =VLOOKUP(TEXT(W$7,"0000Q2"),'Wage, price statistics'!$BV$16:$CB$45,6) -> 0.02007805002 | X108: 0.02
O109: Health Care and Social Assistance - all | Q109: =VLOOKUP(DATE(Q$7,6,1),'Wage, price statistics'!$DB$8:$DF$69,4) -> 0.01571709234 | R109: =VLOOKUP(DATE(R$7,6,1),'Wage, price statistics'!$DB$8:$DF$69,4) -> 0.01934235977 | S109: =VLOOKUP(DATE(S$7,6,1),'Wage, price statistics'!$DB$8:$DF$69,4) -> 0.01612903226 | T109: =VLOOKUP(DATE(T$7,6,1),'Wage, price statistics'!$DB$8:$DF$69,4) -> 0.01120448179 | U109: =VLOOKUP(DATE(U$7,6,1),'Wage, price statistics'!$DB$8:$DF$69,4) -> 0.009233610342 | V109: =VLOOKUP(DATE(V$7,6,1),'Wage, price statistics'!$DB$8:$DF$69,4) -> 0.01463860933 | W109: =VLOOKUP(DATE(W$7,6,1),'Wage, price statistics'!$DB$8:$DF$69,4) -> 0.01814610275 | X109: 0.02
O110: Central Govt Sector | Q110: =VLOOKUP(TEXT(Q$7,"0000Q2"),'Wage, price statistics'!$BV$16:$CB$45,5) -> 0.006944444444 | R110: =VLOOKUP(TEXT(R$7,"0000Q2"),'Wage, price statistics'!$BV$16:$CB$45,5) -> 0.009852216749 | S110: =VLOOKUP(TEXT(S$7,"0000Q2"),'Wage, price statistics'!$BV$16:$CB$45,5) -> 0.01756097561 | T110: =VLOOKUP(TEXT(T$7,"0000Q2"),'Wage, price statistics'!$BV$16:$CB$45,5) -> 0.01054650048 | U110: =VLOOKUP(TEXT(U$7,"0000Q2"),'Wage, price statistics'!$BV$16:$CB$45,5) -> 0.01328273245 | V110: =VLOOKUP(TEXT(V$7,"0000Q2"),'Wage, price statistics'!$BV$16:$CB$45,5) -> 0.01123595506 | W110: =VLOOKUP(TEXT(W$7,"0000Q2"),'Wage, price statistics'!$BV$16:$CB$45,5) -> 0.0240727802 | X110: 0.02 | AB110: Summary
O111: All | Q111: =VLOOKUP(DATE(Q$7,6,1),'Wage, price statistics'!$DB$8:$DF$69,5) -> 0.0187007874 | R111: =VLOOKUP(DATE(R$7,6,1),'Wage, price statistics'!$DB$8:$DF$69,5) -> 0.02028985507 | S111: =VLOOKUP(DATE(S$7,6,1),'Wage, price statistics'!$DB$8:$DF$69,5) -> 0.01704545455 | T111: =VLOOKUP(DATE(T$7,6,1),'Wage, price statistics'!$DB$8:$DF$69,5) -> 0.01675977654 | U111: =VLOOKUP(DATE(U$7,6,1),'Wage, price statistics'!$DB$8:$DF$69,5) -> 0.01648351648 | V111: =VLOOKUP(DATE(V$7,6,1),'Wage, price statistics'!$DB$8:$DF$69,5) -> 0.01531531532 | W111: =VLOOKUP(DATE(W$7,6,1),'Wage, price statistics'!$DB$8:$DF$69,5) -> 0.01794337791 | X111: 0.02
O112: DHB provider - per FTE cost | Q112: ='DHB Stats'!Q184 -> 0.01759857873 | R112: ='DHB Stats'!R184 -> 0.02873927374 | S112: ='DHB Stats'!S184 -> 0.01528428136 | T112: ='DHB Stats'!T184 -> 0.02241371495 | U112: ='DHB Stats'!U184 -> 0.01620790255 | V112: ='DHB Stats'!V184 -> 0.02520655998 | W112: ='DHB Stats'!W184*4/3 -> 0.01608427946 | X112: ='Health Vote 2017-18 post-Budget'!DHBProviderWageIncrease17 -> 0.026 | AC112: =P7 -> 2010 | AD112: 2011 | AE112: 2012 | AF112: 2013 | AG112: 2014 | AH112: 2015 | AI112: 2016 | AJ112: 2017 | AK112: 2018
O113: Labour proportion of expenditure | Q113: =HLOOKUP(Q$7,'DHB Stats'!$N$2:$W$59,ROW('DHB Stats'!$M$59)-1) -> 0.608660395 | R113: =HLOOKUP(R$7,'DHB Stats'!$N$2:$W$59,ROW('DHB Stats'!$M$59)-1) -> 0.6217019481 | S113: =HLOOKUP(S$7,'DHB Stats'!$N$2:$W$59,ROW('DHB Stats'!$M$59)-1) -> 0.6254179631 | T113: =HLOOKUP(T$7,'DHB Stats'!$N$2:$W$59,ROW('DHB Stats'!$M$59)-1) -> 0.6277027826 | U113: =HLOOKUP(U$7,'DHB Stats'!$N$2:$W$59,ROW('DHB Stats'!$M$59)-1) -> 0.6251653444 | V113: =HLOOKUP(V$7,'DHB Stats'!$N$2:$W$59,ROW('DHB Stats'!$M$59)-1) -> 0.6307226796 | W113: =HLOOKUP(W$7,'DHB Stats'!$N$2:$W$59,ROW('DHB Stats'!$M$59)-1) -> 0.6300485322 | X113: =W113 -> 0.6300485322 | AC113: Actual | AD113: Actual | AE113: Actual | AF113: Actual | AG113: Actual | AH113: Actual | AI113: Actual | AJ113: Budget/Est | AK113: Estimate
O114: Provider proportion of DHB expenditure | Q114: =HLOOKUP(Q$7,'DHB Stats'!$A$2:$K$33,ROW('DHB Stats'!$A$33)-1) -> 0.5435189539 | R114: =HLOOKUP(R$7,'DHB Stats'!$A$2:$K$33,ROW('DHB Stats'!$A$33)-1) -> 0.550800354 | S114: =HLOOKUP(S$7,'DHB Stats'!$A$2:$K$33,ROW('DHB Stats'!$A$33)-1) -> 0.5468406953 | T114: =HLOOKUP(T$7,'DHB Stats'!$A$2:$K$33,ROW('DHB Stats'!$A$33)-1) -> 0.5525966341 | U114: =HLOOKUP(U$7,'DHB Stats'!$A$2:$K$33,ROW('DHB Stats'!$A$33)-1) -> 0.5584905222 | V114: =HLOOKUP(V$7,'DHB Stats'!$A$2:$K$33,ROW('DHB Stats'!$A$33)-1) -> 0.5655932351 | W114: =HLOOKUP(W$7,'DHB Stats'!$A$2:$K$33,ROW('DHB Stats'!$A$33)-1) -> 0.5618483938 | X114: =W114 -> 0.5618483938 | AB114: Actual in 2010 | AC114: =P84 -> 12348336 | AD114: =AC114 -> 12348336 | AE114: 12348336 | AF114: 12348336 | AG114: 12348336 | AH114: 12348336 | AI114: 12348336 | AJ114: 12348336 | AK114: 12348336
O115: Non-labour cost increases | AB115: Total funded | AC115: =P84 -> 12348336 | AD115: 12796827 | AE115: 13252093 | AF115: 13606710 | AG115: 14050406 | AH115: 14344592 | AI115: 14792568 | AJ115: 15286806 | AK115: 16108573.01
O116: CPI | Q116: =VLOOKUP(TEXT(Q$7,"0000Q2"),'Wage, price statistics'!$N$4:$S$45,6) -> 0.03220122555 | R116: =VLOOKUP(TEXT(R$7,"0000Q2"),'Wage, price statistics'!$N$4:$S$45,6) -> 0.009507346586 | S116: =VLOOKUP(TEXT(S$7,"0000Q2"),'Wage, price statistics'!$N$4:$S$45,6) -> 0.006849315068 | T116: =VLOOKUP(TEXT(T$7,"0000Q2"),'Wage, price statistics'!$N$4:$S$45,6) -> 0.01615646259 | U116: =VLOOKUP(TEXT(U$7,"0000Q2"),'Wage, price statistics'!$N$4:$S$45,6) -> 0.004184100418 | V116: =VLOOKUP(TEXT(V$7,"0000Q2"),'Wage, price statistics'!$N$4:$S$45,6) -> 0.004166666667 | W116: =VLOOKUP(TEXT(W$7,"0000Q2"),'Wage, price statistics'!$N$4:$S$45,6) -> 0.02047966805 | X116: 0.016
O117: CPI Health Group | Q117: =VLOOKUP(TEXT(Q$7,"0000Q2"),'Wage, price statistics'!$V$4:$AA$45,5) -> 0.04586639002 | R117: =VLOOKUP(TEXT(R$7,"0000Q2"),'Wage, price statistics'!$V$4:$AA$45,5) -> 0.0207253886 | S117: =VLOOKUP(TEXT(S$7,"0000Q2"),'Wage, price statistics'!$V$4:$AA$45,5) -> 0.03976311337 | T117: =VLOOKUP(TEXT(T$7,"0000Q2"),'Wage, price statistics'!$V$4:$AA$45,5) -> 0.01708706265 | U117: =VLOOKUP(TEXT(U$7,"0000Q2"),'Wage, price statistics'!$V$4:$AA$45,5) -> 0.0176 | V117: =VLOOKUP(TEXT(V$7,"0000Q2"),'Wage, price statistics'!$V$4:$AA$45,5) -> 0 | W117: =VLOOKUP(TEXT(W$7,"0000Q2"),'Wage, price statistics'!$V$4:$AA$45,5) -> 0.0282327044 | X117: =X116 -> 0.016 | AB117: Including population increases | AC117: 12348336 | AD117: 12439701.84 | AE117: 12504416.9 | AF117: 12597179.43 | AG117: 12802195.98 | AH117: 13036637.79 | AI117: 13301788.83 | AJ117: 13569738.04 | AK117: 13805003.2
O118: Health Care and Social Assistance PPI inputs | Q118: =VLOOKUP(TEXT(Q$7,"0000Q2"),'Wage, price statistics'!$B$3:$D$45,3) -> 0.01345978739 | R118: =VLOOKUP(TEXT(R$7,"0000Q2"),'Wage, price statistics'!$B$3:$D$45,3) -> 0.0197044335 | S118: =VLOOKUP(TEXT(S$7,"0000Q2"),'Wage, price statistics'!$B$3:$D$45,3) -> -0.00193236715 | T118: =VLOOKUP(TEXT(T$7,"0000Q2"),'Wage, price statistics'!$B$3:$D$45,3) -> 0.00968054211 | U118: =VLOOKUP(TEXT(U$7,"0000Q2"),'Wage, price statistics'!$B$3:$D$45,3) -> 0.006711409396 | V118: =VLOOKUP(TEXT(V$7,"0000Q2"),'Wage, price statistics'!$B$3:$D$45,3) -> 0.005714285714 | W118: =VLOOKUP(TEXT(W$7,"0000Q2"),'Wage, price statistics'!$B$3:$D$45,3) -> 0.01534753788 | X118: =X116 -> 0.016 | AB118: Including aging and other social changes | AC118: 12348336 | AD118: 12552165.33 | AE118: 12724844.24 | AF118: 12897253.8 | AG118: 13109355.65 | AH118: 13377229.01 | AI118: 13705044.59 | AJ118: 14069048.43 | AK118: 14407089.12
O119: Hospitals PPI inputs | Q119: =VLOOKUP(TEXT(Q$7,"0000Q2"),'Wage, price statistics'!$F$3:$L$44,3) -> 0.01101101101 | R119: =VLOOKUP(TEXT(R$7,"0000Q2"),'Wage, price statistics'!$F$3:$L$44,3) -> 0.01782178218 | S119: =VLOOKUP(TEXT(S$7,"0000Q2"),'Wage, price statistics'!$F$3:$L$44,3) -> -0.01070038911 | T119: =VLOOKUP(TEXT(T$7,"0000Q2"),'Wage, price statistics'!$F$3:$L$44,3) -> 0.004916420846 | U119: =VLOOKUP(TEXT(U$7,"0000Q2"),'Wage, price statistics'!$F$3:$L$44,3) -> 0.003913894325 | V119: =VLOOKUP(TEXT(V$7,"0000Q2"),'Wage, price statistics'!$F$3:$L$44,3) -> 0.005847953216 | W119: =VLOOKUP(TEXT(W$7,"0000Q2"),'Wage, price statistics'!$F$3:$L$44,3) -> 0.01260911736 | X119: =X117 -> 0.016 | AB119: Including wage rises | AC119: 12348336 | AD119: 12768598.46 | AE119: 13148570.46 | AF119: 13399010.79 | AG119: 13799490.52 | AH119: 14280806.57 | AI119: 14806821.17 | AJ119: 15397754.43 | AK119: 16035444.4
O120: Medical and Other Health Care Services PPI inputs | Q120: =VLOOKUP(TEXT(Q$7,"0000Q2"),'Wage, price statistics'!$F$3:$L$44,5) -> 0.00792864222 | R120: =VLOOKUP(TEXT(R$7,"0000Q2"),'Wage, price statistics'!$F$3:$L$44,5) -> 0.01868239921 | S120: =VLOOKUP(TEXT(S$7,"0000Q2"),'Wage, price statistics'!$F$3:$L$44,5) -> 0.0009652509653 | T120: =VLOOKUP(TEXT(T$7,"0000Q2"),'Wage, price statistics'!$F$3:$L$44,5) -> 0.01446480231 | U120: =VLOOKUP(TEXT(U$7,"0000Q2"),'Wage, price statistics'!$F$3:$L$44,5) -> 0.01045627376 | V120: =VLOOKUP(TEXT(V$7,"0000Q2"),'Wage, price statistics'!$F$3:$L$44,5) -> 0.003762935089 | W120: =VLOOKUP(TEXT(W$7,"0000Q2"),'Wage, price statistics'!$F$3:$L$44,5) -> 0.01881467545 | X120: =X118 -> 0.016 | AB120: Including price rises | AC120: 12348336 | AD120: 12923032.64 | AE120: 13360681.67 | AF120: 13651347.77 | AG120: 14139252.64 | AH120: 14656056.88 | AI120: 15220785.21 | AJ120: 15944792.97 | AK120: 16702048.55
O121: Residential Care Services and Social Assistance PPI inputs | Q121: =VLOOKUP(TEXT(Q$7,"0000Q2"),'Wage, price statistics'!$F$3:$L$44,7) -> 0.02208835341 | R121: =VLOOKUP(TEXT(R$7,"0000Q2"),'Wage, price statistics'!$F$3:$L$44,7) -> 0.02554027505 | S121: =VLOOKUP(TEXT(S$7,"0000Q2"),'Wage, price statistics'!$F$3:$L$44,7) -> 0.01053639847 | T121: =VLOOKUP(TEXT(T$7,"0000Q2"),'Wage, price statistics'!$F$3:$L$44,7) -> 0.008530805687 | U121: =VLOOKUP(TEXT(U$7,"0000Q2"),'Wage, price statistics'!$F$3:$L$44,7) -> 0.006578947368 | V121: =VLOOKUP(TEXT(V$7,"0000Q2"),'Wage, price statistics'!$F$3:$L$44,7) -> 0.008403361345 | W121: =VLOOKUP(TEXT(W$7,"0000Q2"),'Wage, price statistics'!$F$3:$L$44,7) -> 0.01682242991 | X121: =X119 -> 0.016 | AB121: Including new initiatives (less savings) | AC121: 12348336 | AD121: 13024425.64 | AE121: 13551064.43 | AF121: 13870285.37 | AG121: 14418004.16 | AH121: 14979024.05 | AI121: 15630170.97 | AJ121: 16490735.01 | AK121: 17542892.66
O122: Population increases | Y122: Enter 1 to zero series
O123: Total population | Q123: =(Demographics!DN3/Demographics!DM3-1)*(1-ZeroPop) -> 0.00765397593 | R123: =(Demographics!DO3/Demographics!DN3-1)*(1-ZeroPop) -> 0.005490444756 | S123: =(Demographics!DP3/Demographics!DO3-1)*(1-ZeroPop) -> 0.007722235456 | T123: =(Demographics!DQ3/Demographics!DP3-1)*(1-ZeroPop) -> 0.01523156892 | U123: =(Demographics!DR3/Demographics!DQ3-1)*(1-ZeroPop) -> 0.01906314097 | V123: =(Demographics!DS3/Demographics!DR3-1)*(1-ZeroPop) -> 0.02110659483 | W123: 0.02003178041 | X123: 0.01811434741 | AB123: Baseline: 2010 actual | AC123: =AC114 -> 12348336 | AD123: =AD114 -> 12348336 | AE123: 12348336 | AF123: 12348336 | AG123: 12348336 | AH123: 12348336 | AI123: 12348336 | AJ123: 12348336 | AK123: 12348336
O124: Ageing effect | Q124: =(VLOOKUP(Q$7,Demographics!$V$8:$W$35,2)-(Demographics!DN3/Demographics!DM3-1))*(1-ZeroAging) -> 0.009585786154 | R124: =(VLOOKUP(R$7,Demographics!$V$8:$W$35,2)-(Demographics!DO3/Demographics!DN3-1))*(1-ZeroAging) -> 0.008994566139 | S124: =(VLOOKUP(S$7,Demographics!$V$8:$W$35,2)-(Demographics!DP3/Demographics!DO3-1))*(1-ZeroAging) -> 0.006437757072 | T124: =(VLOOKUP(T$7,Demographics!$V$8:$W$35,2)-(Demographics!DQ3/Demographics!DP3-1))*(1-ZeroAging) -> 0.0002047983008 | U124: =(VLOOKUP(U$7,Demographics!$V$8:$W$35,2)-(Demographics!DR3/Demographics!DQ3-1))*(1-ZeroAging) -> 0.002212295934 | V124: =(VLOOKUP(V$7,Demographics!$V$8:$W$35,2)-(Demographics!DS3/Demographics!DR3-1))*(1-ZeroAging) -> 0.004357836629 | W124: 0.006739156684 | X124: 0.006992731942 | AB124: Population increases | AD124: =AD117-AD114 -> 91365.83966 | AE124: 156080.8998 | AF124: 248843.4264 | AG124: 453859.975 | AH124: 688301.787 | AI124: 953452.8278 | AJ124: 1221402.038 | AK124: 1456667.204
O125: Cost-weighted demographics | Q125: =SUM(Q123:Q124)*(1-ZeroCostWeightedDemog) -> 0.01723976208 | R125: 0.01448501089 | S125: 0.01415999253 | T125: 0.01543636722 | U125: 0.02127543691 | V125: 0.02546443146 | W125: 0.0267709371 | X125: 0.02510707935 | AB125: Aging population | AD125: =AD118-AD117 -> 112463.4914 | AE125: 220427.3385 | AF125: 300074.3708 | AG125: 307159.671 | AH125: 340591.2194 | AI125: 403255.766 | AJ125: 499310.3904 | AK125: 602085.9166
O126: Births | Q126: =VLOOKUP(Q$7,Demographics!$BC$6:$BD$30,2)*(1-ZeroBirths) -> -0.02323312114 | R126: =VLOOKUP(R$7,Demographics!$BC$6:$BD$30,2)*(1-ZeroBirths) -> -0.02597402597 | S126: =VLOOKUP(S$7,Demographics!$BC$6:$BD$30,2)*(1-ZeroBirths) -> -0.01929181929 | T126: =VLOOKUP(T$7,Demographics!$BC$6:$BD$30,2)*(1-ZeroBirths) -> -0.02121513944 | U126: =VLOOKUP(U$7,Demographics!$BC$6:$BD$30,2)*(1-ZeroBirths) -> 0.01658695431 | V126: =VLOOKUP(V$7,Demographics!$BC$6:$BD$30,2)*(1-ZeroBirths) -> -0.01061061061 | W126: =VLOOKUP(W$7,Demographics!$BC$6:$BD$30,2)*(1-ZeroBirths) -> 0.0269121813 | X126: =VLOOKUP(X$7,Demographics!$BC$6:$BD$30,2)*(1-ZeroBirths) -> 0.026272578 | AB126: Wage rises | AD126: 216433.1294 | AE126: 423726.217 | AF126: 501756.9947 | AG126: 690134.8708 | AH126: 903577.5669 | AI126: 1101776.581 | AJ126: 1328705.996 | AK126: 1628355.281
O127: Child population (0 - 19 yrs old) | Q127: =VLOOKUP(Q$7,Demographics!$CI$6:$CJ$31,2)*(1-ZeroChildPop) -> 8.161599673e-06 | R127: =VLOOKUP(R$7,Demographics!$CI$6:$CJ$31,2)*(1-ZeroChildPop) -> -0.002113837063 | S127: =VLOOKUP(S$7,Demographics!$CI$6:$CJ$31,2)*(1-ZeroChildPop) -> -0.00116139269 | T127: =VLOOKUP(T$7,Demographics!$CI$6:$CJ$31,2)*(1-ZeroChildPop) -> 0.00281678608 | U127: =VLOOKUP(U$7,Demographics!$CI$6:$CJ$31,2)*(1-ZeroChildPop) -> 0.005282969568 | V127: =VLOOKUP(V$7,Demographics!$CI$6:$CJ$31,2)*(1-ZeroChildPop) -> 0.007163975438 | W127: =VLOOKUP(W$7,Demographics!$CI$6:$CJ$31,2)*(1-ZeroChildPop) -> 0.007278654659 | X127: =VLOOKUP(X$7,Demographics!$CI$6:$CJ$31,2)*(1-ZeroChildPop) -> 0.005872174066 | AB127: Price rises | AD127: 154434.177 | AE127: 212111.2188 | AF127: 252336.9779 | AG127: 339762.121 | AH127: 375250.3056 | AI127: 413964.0305 | AJ127: 547038.5475 | AK127: 666604.1518
O128: Maori cost-weighted population | U128: =VLOOKUP(U7,Demographics!$EC$10:$EE$28,3)*(1-ZeroMaoriPop) -> 0.02887431469 | V128: =VLOOKUP(V7,Demographics!$EC$10:$EE$28,3)*(1-ZeroMaoriPop) -> 0.02971015841 | W128: =VLOOKUP(W7,Demographics!$EC$10:$EE$28,3)*(1-ZeroMaoriPop) -> 0.03007099213 | X128: =VLOOKUP(X7,Demographics!$EC$10:$EE$28,3)*(1-ZeroMaoriPop) -> 0.0291889081 | AB128: New initiatives (less savings) | AD128: 101393 | AE128: 190382.7566 | AF128: 218937.5971 | AG128: 278751.5182 | AH128: 322967.1732 | AI128: 409385.7695 | AJ128: 545942.0406 | AK128: 840844.1074
O129: Mental health clients | Q129: ='Mental Health'!AI9*(1-ZeroMentalHealthClients) -> 0.09477210469 | R129: ='Mental Health'!AJ9*(1-ZeroMentalHealthClients) -> 0.05054943399 | S129: ='Mental Health'!AK9*(1-ZeroMentalHealthClients) -> 0.08598239459 | T129: ='Mental Health'!AL9*(1-ZeroMentalHealthClients) -> 0.03026939897 | U129: ='Mental Health'!AM9*(1-ZeroMentalHealthClients) -> 0.001487599066 | V129: ='Mental Health'!AN9*(1-ZeroMentalHealthClients) -> 0.05779290351 | W129: =5%*(1-ZeroMentalHealthClients) -> 0.05 | X129: =5%*(1-ZeroMentalHealthClients) -> 0.05 | AB129: Total | AC129: =SUM(AC123:AC128) -> 12348336 | AD129: =SUM(AD123:AD128) -> 13024425.64 | AE129: 13551064.43 | AF129: 13870285.37 | AG129: 14418004.16 | AH129: 14979024.05 | AI129: 15630170.97 | AJ129: 16490735.01 | AK129: 17542892.66
O130: Financial | AB130: Check (should be zero) | AC130: =AC129-AC26 -> 12348336 | AD130: 13024425.64 | AE130: 13551064.43 | AF130: 13870285.37 | AG130: 14418004.16 | AH130: 14979024.05 | AI130: 15630170.97 | AJ130: 16490735.01 | AK130: 17542892.66
O131: Net initiatives and additional costs ($000) | Q131: =101393*(1-ZeroNetInitiatives) -> 101393 | R131: =85556*(1-ZeroNetInitiatives) -> 85556 | S131: =24413*(1-ZeroNetInitiatives) -> 24413 | T131: =51989*(1-ZeroNetInitiatives) -> 51989 | U131: =34027*(1-ZeroNetInitiatives) -> 34027 | V131: =73974*(1-ZeroNetInitiatives) -> 73974 | W131: =117083*(1-ZeroNetInitiatives) -> 117083 | X131: =268974*(1-ZeroNetInitiatives) -> 268974
AB132: Increase actually funded | AD132: =AD115-AD114 -> 448491 | AE132: 903757 | AF132: 1258374 | AG132: 1702070 | AH132: 1996256 | AI132: 2444232 | AJ132: 2938470 | AK132: 3760237.01
O133: Calculated series based on options selected
O134: DHB Provider wage | Q134: =CHOOSE(MATCH(ProviderWageSector,WageSelection,0),Q$112,Q$103,Q$104,Q$105,Q$108,Q$109,Q$110,Q$111)*(1-ZeroDHBProviderWage) -> 0.01759857873 | R134: 0.02873927374 | S134: 0.01528428136 | T134: 0.02241371495 | U134: 0.01620790255 | V134: 0.02520655998 | W134: 0.01608427946 | X134: 0.026
O135: DHB funder arm wage | Q135: =('DHB Stats'!Q7*Q137+(1-'DHB Stats'!Q7)*Q136)*(1-ZeroDHBFunderArmWage) -> 0.03812950726 | R135: =('DHB Stats'!R7*R137+(1-'DHB Stats'!R7)*R136)*(1-ZeroDHBFunderArmWage) -> 0.022798487 | S135: =('DHB Stats'!S7*S137+(1-'DHB Stats'!S7)*S136)*(1-ZeroDHBFunderArmWage) -> 0.001182382228 | T135: =('DHB Stats'!T7*T137+(1-'DHB Stats'!T7)*T136)*(1-ZeroDHBFunderArmWage) -> 0.02029191841 | U135: =('DHB Stats'!U7*U137+(1-'DHB Stats'!U7)*U136)*(1-ZeroDHBFunderArmWage) -> 0.02778634647 | V135: =('DHB Stats'!V7*V137+(1-'DHB Stats'!V7)*V136)*(1-ZeroDHBFunderArmWage) -> 0.01217095985 | W135: =('DHB Stats'!W7*W137+(1-'DHB Stats'!W7)*W136)*(1-ZeroDHBFunderArmWage) -> 0.02420884584 | X135: =('DHB Stats'!W7*X137+(1-'DHB Stats'!W7)*X136)*(1-ZeroDHBFunderArmWage) -> 0.02731146291
O136: Funded sector wage other than DHB provider | Q136: =CHOOSE(MATCH(NonProviderWageSector,WageSelection,0),Q$112,Q$103,Q$104,Q$105,Q$108,Q$109,Q$110,Q$111)*(1-ZeroNonDHBProviderWage) -> 0.04197622585 | R136: 0.02352941176 | S136: -0.007314524556 | T136: 0.02070175439 | U136: 0.02578205569 | V136: 0.006702412869 | W136: 0.02188804469 | X136: 0.026
O137: Wage in high Minimum Wage sectors | Q137: =(MinWageProportion*Q$106+(1-MinWageProportion)*Q136)*(1-ZeroWageInHighMinWageSectors) -> 0.02439524517 | R137: 0.02039215686 | S137: 0.02930632586 | T137: 0.01895516569 | U137: 0.03424732023 | V137: 0.02941065801 | W137: 0.03149625301 | X137: 0.0314295082
O138: Price index for DHB provider non-wage costs | Q138: =CHOOSE(MATCH(ProviderPriceIndex,PriceIndexSelection,0),Q$116,Q$117,Q$118,Q$119,Q$120,Q$121)*(1-ZeroProviderPrices) -> 0.03220122555 | R138: 0.009507346586 | S138: 0.006849315068 | T138: 0.01615646259 | U138: 0.004184100418 | V138: 0.004166666667 | W138: 0.02047966805 | X138: 0.016
O139: Price index for Residential Care Services and Social Assistance | Q139: =Q121*(1-ZeroResidentialCarePrices) -> 0.02208835341 | R139: 0.02554027505 | S139: 0.01053639847 | T139: 0.008530805687 | U139: 0.006578947368 | V139: 0.008403361345 | W139: 0.01682242991 | X139: 0.016
O140: Price index for other non-wage costs | Q140: =CHOOSE(MATCH(NonProviderPriceIndex,PriceIndexSelection,0),Q$116,Q$117,Q$118,Q$119,Q$120,Q$121)*(1-ZeroNonProviderPrices) -> 0.03220122555 | R140: 0.009507346586 | S140: 0.006849315068 | T140: 0.01615646259 | U140: 0.004184100418 | V140: 0.004166666667 | W140: 0.02047966805 | X140: 0.016
O143: Drop-down list values
O144: DHB Provider actual
O145: Health (Average wage)
O146: Public (Average wage)
O147: Total (Average wage)
O148: Health, public (LCI)
O149: Health, all (LCI)
O150: Public (LCI)
O151: Total (LCI)
O152: CPI
O153: CPI Health Group
O154: Health Care and Social Assistance PPI inputs
O155: Hospitals PPI inputs
O156: Medical and Other Health Care Services PPI inputs
O157: Residential Care Services and Social Assistance PPI inputs

Sheet Compared to Total Exp, GDP
B1: Actual | C1: Actual | D1: Actual | E1: Actual | F1: Actual | G1: Actual | H1: Actual | I1: Actual | J1: Actual | K1: Actual | L1: Actual | M1: Actual | N1: Actual | O1: Actual | P1: Actual | Q1: Actual | R1: Forecast | S1: Forecast | T1: Forecast | U1: Forecast | V1: Forecast | Y1: Actual | Z1: Actual | AA1: Actual | AB1: Actual | AC1: Actual | AD1: Actual | AE1: Actual | AF1: Actual | AG1: Forecast | AH1: Forecast
A2: Year ended June | B2: 2001 | C2: 2002 | D2: 2003 | E2: 2004 | F2: 2005 | G2: 2006 | H2: 2007 | I2: 2008 | J2: 2009 | K2: 2010 | L2: 2011 | M2: 2012 | N2: 2013 | O2: 2014 | P2: 2015 | Q2: 2016 | R2: 2017 | S2: 2018 | T2: 2019 | U2: 2020 | V2: 2021 | X2: Rolling 3 years to June | Y2: 2009 | Z2: 2010 | AA2: 2011 | AB2: 2012 | AC2: 2013 | AD2: 2014 | AE2: 2015 | AF2: 2016 | AG2: 2017 | AH2: 2018
A3: Core Crown Health expenses | B3: 6.66 | C3: 7.032 | D3: 7.501 | E3: 8.111 | F3: 8.813 | G3: 9.547 | H3: 10.355 | I3: 11.297 | J3: 12.368 | K3: 13.128 | L3: 13.753 | M3: 14.16 | N3: 14.498 | O3: 14.898 | P3: 15.058 | Q3: 15.626 | R3: 16.202 | S3: 17.096 | T3: 17.225 | U3: 17.234 | V3: 17.193 | X3: Core Crown Health expenses | Y3: =AVERAGE(H3:J3) -> 11.34 | Z3: 12.26433333 | AA3: 13.083 | AB3: 13.68033333 | AC3: 14.137 | AD3: 14.51866667 | AE3: 14.818 | AF3: 15.194 | AG3: =AVERAGE(P3:R3) -> 15.62866667 | AH3: 16.308
A4: Core Crown total expenses | B4: 36.559 | C4: 37.513 | D4: 39.897 | E4: 41.882 | F4: 44.895 | G4: 49.084 | H4: 53.764 | I4: 56.753 | J4: 63.711 | K4: 63.554 | L4: 70.099 | M4: 68.939 | N4: 69.962 | O4: 71.174 | P4: 72.363 | Q4: 73.929 | R4: 77.464 | S4: 80.486 | T4: 83.466 | U4: 86.234 | V4: 89.223 | X4: Core Crown total expenses | Y4: 58.076 | Z4: 61.33933333 | AA4: 65.788 | AB4: 67.53066667 | AC4: 69.66666667 | AD4: 70.025 | AE4: 71.16633333 | AF4: 72.48866667 | AG4: 74.58533333 | AH4: 77.293
A5: GDP (Nominal) | B5: 122.21 | C5: 130.005 | D5: 137.146 | E5: 147.586 | F5: 156.794 | G5: 164.618 | H5: 175.54 | I5: 189.041 | J5: 189.549 | K5: 196.742 | L5: 205.85 | M5: 215.109 | N5: 218.719 | O5: 236.269 | P5: 242.989 | Q5: 253.071 | R5: 268.877 | S5: 281.801 | T5: 297.042 | U5: 311.862 | V5: 324.898 | X5: GDP (Nominal) | Y5: 184.71 | Z5: 191.7773333 | AA5: 197.3803333 | AB5: 205.9003333 | AC5: 213.226 | AD5: 223.3656667 | AE5: 232.659 | AF5: 244.1096667 | AG5: 254.979 | AH5: 267.9163333
A6: Crown as % GDP | B6: =B4/B5 -> 0.2991490058 | C6: 0.2885504404 | D6: 0.2909089583 | E6: 0.2837803044 | F6: 0.2863311096 | G6: 0.2981690945 | H6: =H4/H5 -> 0.3062777714 | I6: =I4/I5 -> 0.3002152972 | J6: 0.3361188927 | K6: 0.3230321944 | L6: 0.3405343697 | M6: 0.3204840337 | N6: 0.3198716161 | O6: 0.3012413816 | P6: 0.2978036043 | Q6: 0.2921275057 | R6: 0.2881019946 | S6: 0.285612897 | T6: 0.280990567 | U6: 0.2765133296 | V6: 0.2746184957 | X6: Crown as % GDP | Y6: =Y4/Y5 -> 0.3144171945 | Z6: =Z4/Z5 -> 0.3198466277 | AA6: 0.3333057498 | AB6: 0.3279774519 | AC6: 0.3267268845 | AD6: 0.3134993889 | AE6: 0.3058825721 | AF6: =AF4/AF5 -> 0.2969512337 | AG6: =AG4/AG5 -> 0.2925155928 | AH6: =AH4/AH5 -> 0.288496782
A7: Health as % Crown | B7: =B3/B4 -> 0.1821712848 | C7: 0.1874550156 | D7: 0.1880091235 | E7: 0.1936631488 | F7: 0.1963024836 | G7: 0.1945033005 | H7: 0.1926009969 | I7: 0.1990555565 | J7: 0.1941266029 | K7: 0.2065644963 | L7: 0.1961939543 | M7: 0.2053989759 | N7: 0.2072267803 | O7: 0.2093180094 | P7: 0.2080897696 | Q7: 0.2113649583 | R7: 0.2091552205 | S7: 0.2124096116 | T7: 0.2063714566 | U7: 0.1998515667 | V7: 0.1926969503 | X7: Health as % Crown | Y7: =Y3/Y4 -> 0.1952613816 | Z7: 0.1999423969 | AA7: 0.1988660546 | AB7: 0.2025795688 | AC7: 0.202923445 | AD7: 0.2073354754 | AE7: =AE3/AE4 -> 0.2082164319 | AF7: =AF3/AF4 -> 0.2096051797 | AG7: =AG3/AG4 -> 0.2095407497 | AH7: =AH3/AH4 -> 0.2109893522
A8: Health as % GDP | B8: =B3/B5 -> 0.05449635873 | C8: 0.0540902273 | D8: 0.05469353827 | E8: 0.05495778732 | F8: 0.05620750794 | G8: 0.05799487298 | H8: 0.05898940412 | I8: 0.05975952307 | J8: 0.06524961883 | K8: 0.06672698255 | L8: 0.06681078455 | M8: 0.06582709231 | N8: 0.0662859651 | O8: 0.06305524635 | P8: 0.06196988341 | Q8: 0.06174551806 | R8: 0.0602580362 | S8: 0.06066692453 | T8: 0.05798843261 | U8: 0.05526162213 | V8: 0.05291814662 | X8: Health as % GDP | Y8: =Y3/Y5 -> 0.06139353581 | Z8: 0.06395090139 | AA8: 0.06628319944 | AB8: 0.06644153077 | AC8: 0.06630054496 | AD8: 0.06499954484 | AE8: =AE3/AE5 -> 0.06368977774 | AF8: =AF3/AF5 -> 0.06224251668 | AG8: =AG3/AG5 -> 0.06129393662 | AH8: =AH3/AH5 -> 0.06086974914
A9: Shortfall from 2009/10 % of GDP ($bn) | L9: =$K8*L5-L3 -> -0.01725064297 | M9: 0.1935744884 | N9: 0.09645889541 | O9: 0.8675174391 | P9: 1.155922762 | Q9: 1.2606642 | R9: =$K8*R5-R3 -> 1.739350886 | S9: =$K8*S5-S3 -> 1.707730408 | T9: =$K8*T5-T3 -> 2.595716349 | U9: =$K8*U5-U3 -> 3.575610231 | V9: =$K8*V5-V3 -> 4.486463175
K10: =K6-S6 -> 0.0374192974
A11: Year ended June | B11: 2001 | C11: 2002 | D11: 2003 | E11: 2004 | F11: 2005 | G11: 2006 | H11: 2007 | I11: 2008 | J11: 2009 | K11: 2010 | L11: 2011 | M11: 2012 | N11: 2013 | O11: 2014 | P11: 2015 | Q11: 2016 | R11: 2017 | S11: 2018 | T11: 2019 | U11: 2020 | V11: 2021 | X11: Year ended June | Y11: 2009 | Z11: 2010 | AA11: 2011 | AB11: 2012 | AC11: 2013 | AD11: 2014 | AE11: 2015 | AF11: 2016 | AG11: 2017 | AH11: 2018
A12: Vote Health expenses | B12: 7.125754 | C12: 7.293521 | D12: 7.802353 | E12: 8.570691 | F12: 9.366348 | G12: 9.099603 | H12: 9.857598 | I12: 10.772336 | J12: =Multiyear!C78/1000000 -> 11.621239 | K12: =Multiyear!D78/1000000 -> 12.348336 | L12: =Multiyear!E78/1000000 -> 12.796827 | M12: =Multiyear!F78/1000000 -> 13.252093 | N12: =Multiyear!G78/1000000 -> 13.60671 | O12: =Multiyear!H78/1000000 -> 14.050406 | P12: =Multiyear!I78/1000000 -> 14.344592 | Q12: =Multiyear!J78/1000000 -> 14.792568 | R12: =Multiyear!K78/1000000 -> 15.286806 | S12: =Multiyear!L78/1000000 -> 16.10857301 | T12: =(16096143+27347+20991)/1000000 -> 16.144481 | U12: =(16112555+27347+20991)/1000000 -> 16.160893 | V12: =(16087836+27347+20991)/1000000 -> 16.136174 | X12: Vote Health expenses | Y12: =AVERAGE(H12:J12) -> 10.750391 | Z12: =AVERAGE(I12:K12) -> 11.580637 | AA12: 12.25546733 | AB12: 12.79908533 | AC12: 13.21854333 | AD12: 13.636403 | AE12: 14.00056933 | AF12: 14.39585533 | AG12: 14.80798867 | AH12: 15.39598234
A13: Vote Health as % Crown | B13: =B12/B4 -> 0.1949110752 | C13: 0.1944264921 | D13: 0.1955623982 | E13: 0.2046390096 | F13: 0.208627865 | G13: 0.185388375 | H13: 0.183349416 | I13: =I12/I4 -> 0.1898108646 | J13: =J12/J4 -> 0.1824055344 | K13: 0.1942967555 | L13: 0.1825536313 | M13: 0.1922292607 | N13: 0.1944871502 | O13: 0.1974092506 | P13: 0.1982310297 | Q13: 0.2000915473 | R13: 0.1973407777 | S13: 0.2001413042 | T13: 0.1934258381 | U13: 0.1874074379 | V13: 0.1808521794 | X13: Vote Health as % Crown | Y13: =Y12/Y4 -> 0.1851090123 | Z13: =Z12/Z4 -> 0.1887962645 | AA13: 0.1862872763 | AB13: 0.1895299716 | AC13: 0.1897398565 | AD13: 0.1947362085 | AE13: 0.1967302329 | AF13: 0.1985945665 | AG13: 0.1985375409 | AH13: =AH12/AH4 -> 0.1991898663
A14: Vote Health as % GDP | B14: =B12/B5 -> 0.05830745438 | C14: 0.05610184993 | D14: 0.05689085354 | E14: 0.05807252043 | F14: 0.05973664809 | G14: 0.05527708392 | H14: 0.05615585052 | I14: =I12/I5 -> 0.05698412514 | J14: =J12/J5 -> 0.06130994624 | K14: 0.06276410731 | L14: 0.06216578577 | M14: 0.06160640884 | N14: 0.06221091903 | O14: 0.05946783539 | P14: 0.05903391512 | Q14: 0.05845224463 | R14: 0.05685427166 | S14: 0.05716293771 | T14: 0.05435083591 | U14: 0.05182065465 | V14: 0.04966535343 | X14: Vote Health as % GDP | Y14: =Y12/Y5 -> 0.05820145634 | Z14: =Z12/Z5 -> 0.06038584852 | AA14: 0.06209062031 | AB14: 0.06216155713 | AC14: 0.06199311216 | AD14: 0.06104968236 | AE14: 0.06017634965 | AF14: 0.05897290152 | AG14: 0.05807532646 | AH14: =AH12/AH5 -> 0.05746563543
A15: Shortfall from 2009/10 % of GDP ($bn) | L15: =$K14*L5-L12 -> 0.1231644894 | M15: 0.2490313589 | N15: 0.1209927863 | O15: 0.7788068696 | P15: 0.9063956707 | Q15: 1.091207401 | R15: 1.589018881 | S15: =$K14*S5-S12 -> 1.578415194 | T15: =$K14*T5-T12 -> 2.499094963 | U15: =$K14*U5-U12 -> 3.412847033 | V15: =$K14*V5-V12 -> 4.255758936 | X15: Shortfall from 2009/10 % of GDP ($bn)
A17: Vote Health (expenses and capital) | B17: =B12+B78 -> 7.188443 | C17: 7.543728 | D17: 8.297352 | E17: 9.43945 | F17: 9.591273 | G17: 9.591814 | H17: 10.175786 | I17: 11.041305 | J17: 11.806472 | K17: 12.599301 | L17: 13.158345 | M17: 13.548993 | N17: 13.866292 | O17: 14.386838 | P17: 15.033728 | Q17: 15.27984 | R17: 18.576058 | S17: 16.77306901 | T17: 16.206692 | U17: =U12+U78 -> 16.223104 | V17: =V12+V78 -> 16.198385 | X17: Vote Health (expenses and capital) | Y17: =AVERAGE(H17:J17) -> 11.00785433 | Z17: =AVERAGE(I17:K17) -> 11.81569267 | AA17: 12.52137267 | AB17: 13.102213 | AC17: 13.52454333 | AD17: 13.934041 | AE17: 14.42895267 | AF17: 14.90013533 | AG17: 16.296542 | AH17: 16.87632234
A18: Vote Health (expenses and capital) as % GDP | B18: =B17/B5 -> 0.05882041568 | C18: =C17/C5 -> 0.05802644514 | D18: 0.06050013854 | E18: 0.06395897985 | F18: 0.06117117364 | G18: 0.05826710323 | H18: 0.05796847442 | I18: 0.05840693289 | J18: 0.0622871764 | K18: 0.06403971191 | L18: 0.06392200632 | M18: 0.06298663933 | N18: 0.0633977478 | O18: 0.06089177167 | P18: 0.06186999411 | Q18: 0.06037768057 | R18: 0.06908756792 | S18: 0.05952097051 | T18: 0.05456027094 | U18: 0.05202013711 | V18: =V17/V5 -> 0.04985683199 | X18: Vote Health (expenses and capital) as % GDP | Y18: =Y17/Y5 -> 0.05959533503 | Z18: =Z17/Z5 -> 0.06161151822 | AA18: 0.06343779269 | AB18: 0.06363376294 | AC18: 0.06342820919 | AD18: 0.06238219691 | AE18: 0.06201759943 | AF18: 0.06103869436 | AG18: 0.06391327129 | AH18: =AH17/AH5 -> 0.06299101711
A20: Annual increase | C20: 2002 | D20: 2003 | E20: 2004 | F20: 2005 | G20: 2006 | H20: 2007 | I20: 2008 | J20: 2009 | K20: 2010 | L20: 2011 | M20: 2012 | N20: 2013 | O20: 2014 | P20: 2015 | Q20: 2016 | R20: 2017 | S20: 2018 | T20: 2019 | U20: 2020 | V20: 2021 | X20: Annual increase | Z20: 2010 | AA20: 2011 | AB20: 2012 | AC20: 2013 | AD20: 2014 | AE20: 2015 | AF20: 2016 | AG20: 2017 | AH20: 2018
A21: Vote Health expenses | C21: =C12/B12-1 -> 0.02354375411 | D21: =D12/C12-1 -> 0.06976493247 | E21: 0.09847516512 | F21: 0.09283463842 | G21: -0.02847908278 | H21: 0.08329978791 | I21: 0.09279522253 | J21: 0.07880398458 | K21: 0.06256622035 | L21: 0.03631995436 | M21: 0.03557647532 | N21: 0.02675932021 | O21: 0.03260861737 | P21: 0.0209379003 | Q21: 0.03122960904 | R21: 0.03341123732 | S21: 0.05375661927 | T21: 0.002229122963 | U21: 0.001016570307 | V21: -0.001529556566 | X21: Vote Health expenses | Z21: =Z12/Y12-1 -> 0.07722937705 | AA21: 0.05827229826 | AB21: 0.04435718241 | AC21: 0.03277249812 | AD21: 0.0316116274 | AE21: 0.02670545402 | AF21: 0.02823356612 | AG21: 0.02862861037 | AH21: 0.03970786872
A22: Core Crown Health expenses | C22: =C3/B3-1 -> 0.05585585586 | D22: 0.06669510808 | E22: 0.08132249033 | F22: 0.08654913081 | G22: 0.08328605469 | H22: 0.08463391641 | I22: 0.09097054563 | J22: 0.09480393025 | K22: 0.06144890039 | L22: 0.04760816575 | M22: 0.02959354323 | N22: 0.0238700565 | O22: 0.02759001242 | P22: 0.0107396966 | Q22: 0.03772081286 | R22: =R3/Q3-1 -> 0.03686164085 | S22: =S3/R3-1 -> 0.05517837304 | T22: =T3/S3-1 -> 0.007545624708 | U22: =U3/T3-1 -> 0.0005224963716 | V22: =V3/U3-1 -> -0.00237901822 | X22: Core Crown Health expenses | Z22: =Z3/Y3-1 -> 0.08151087596 | AA22: 0.06675182779 | AB22: 0.0456572142 | AC22: 0.03338125289 | AD22: 0.02699771286 | AE22: 0.02061713656 | AF22: 0.02537454447 | AG22: 0.02860778377 | AH22: 0.04346713305
A23: Core Crown total expenses | C23: 0.02609480566 | D23: 0.06355130222 | E23: 0.04975311427 | F23: 0.07194021298 | G23: 0.0933066043 | H23: 0.09534675251 | I23: 0.05559482181 | J23: 0.1226014484 | K23: -0.002464252641 | L23: 0.1029832898 | M23: -0.01654802494 | N23: 0.01483920567 | O23: 0.01732369 | P23: 0.01670553854 | Q23: 0.02164089383 | R23: 0.04781614793 | S23: =S4/R4-1 -> 0.03901166994 | T23: 0.03702507268 | U23: 0.03316320418 | V23: 0.03466150242 | X23: Core Crown total expenses | Z23: 0.05619073857 | AA23: 0.07252551381 | AB23: 0.02648912669 | AC23: 0.03163007424 | AD23: 0.00514354067 | AE23: 0.01629894085 | AF23: 0.01858088328 | AG23: 0.02892406169 | AH23: 0.03630293713
A24: GDP (Nominal) | C24: 0.06378365109 | D24: 0.05492865659 | E24: 0.07612325551 | F24: 0.06239074167 | G24: 0.04989986862 | H24: 0.06634754401 | I24: 0.0769112453 | J24: 0.00268724774 | K24: 0.03794797124 | L24: 0.0462941314 | M24: 0.0449793539 | N24: 0.01678218949 | O24: 0.08023994257 | P24: 0.02844215703 | Q24: 0.04149159015 | R24: 0.0624567809 | S24: 0.04806658807 | T24: 0.05408426514 | U24: 0.04989193447 | V24: 0.04180053998 | X24: GDP (Nominal) | Z24: 0.03826177973 | AA24: 0.02921617431 | AB24: 0.04316539473 | AC24: 0.03557870232 | AD24: 0.04755361291 | AE24: 0.04160591676 | AF24: 0.04921652146 | AG24: 0.04452643552 | AH24: 0.05073881901
Q26: Vote Health 2018: increase from Vote Health 2017 required
Q27: Maintain %GDP as 2017 f/c | S27: =R14*S5-R12 -> 0.7347846069
Q28: Maintain %GDP as 2010 | S28: =K14*S5-R12 -> 2.400182204
Q30: 1.011772942 | R30: =R5*$Q$30 -> 272.0424733 | S30: =S5*$Q$30 -> 285.1186268
R31: =R12/R30 -> 0.05619271805
Y49: 2018 Forecast | Z49: 2019 Forecast | AA49: 2020 Forecast
Y50: 185 | Z50: 185 | AA50: 185
Y51: 14261 | Z51: 14249 | AA51: 14247
Y52: 354 | Z52: 367 | AA52: 367
Y53: 838 | Z53: 905 | AA53: 905
Y54: 30 | Z54: 29 | AA54: 29
Y55: 15668 | Z55: 15735 | AA55: 15733
B66: Year ended June
B67: Actual | C67: Actual | D67: Actual | E67: Actual | F67: Actual | G67: Actual | H67: Actual | I67: Actual | J67: Actual | K67: Actual | L67: Actual | M67: Actual | N67: Actual | O67: Actual | P67: Actual | Q67: Actual | R67: Forecast | S67: Forecast | T67: Forecast | U67: Forecast | V67: Forecast
B68: 2001 | C68: 2002 | D68: 2003 | E68: 2004 | F68: 2005 | G68: 2006 | H68: 2007 | I68: 2008 | J68: 2009 | K68: 2010 | L68: 2011 | M68: 2012 | N68: 2013 | O68: 2014 | P68: 2015 | Q68: 2016 | R68: 2017 | S68: 2018 | T68: 2019 | U68: 2020 | V68: 2021
A69: Core Crown Health expenses | B69: =B3 -> 6.66 | C69: 7.032 | D69: 7.501 | E69: 8.111 | F69: 8.813 | G69: 9.547 | H69: 10.355 | I69: 11.297 | J69: 12.368 | K69: 13.128 | L69: 13.753 | M69: 14.16 | N69: 14.498 | O69: 14.898 | P69: 15.058 | Q69: 15.626 | R69: =R3 -> 16.202 | S69: =S3 -> 17.096 | T69: =T3 -> 17.225 | U69: =U3 -> 17.234 | V69: =V3 -> 17.193
A70: Health as % GDP | B70: =B69/B$75 -> 0.05449635873 | C70: 0.0540902273 | D70: 0.05469353827 | E70: 0.05495778732 | F70: 0.05620750794 | G70: 0.05799487298 | H70: 0.05898940412 | I70: 0.05975952307 | J70: 0.06524961883 | K70: 0.06672698255 | L70: 0.06681078455 | M70: 0.06582709231 | N70: 0.0662859651 | O70: 0.06305524635 | P70: 0.06196988341 | Q70: 0.06174551806 | R70: 0.0602580362 | S70: 0.06066692453 | T70: 0.05798843261 | U70: 0.05526162213 | V70: 0.05291814662
A71: Shortfall from 2009/10 % of GDP ($bn) | L71: =$K70*L$75-L69 -> -0.01725064297 | M71: 0.1935744884 | N71: 0.09645889541 | O71: 0.8675174391 | P71: 1.155922762 | Q71: 1.2606642 | R71: 1.739350886 | S71: 1.707730408 | T71: 2.595716349 | U71: 3.575610231 | V71: 4.486463175
A72: Payments to District Health Boards | B72: 4.476 | C72: 4.936 | D72: 5.328 | E72: 6.441 | F72: 7.262 | G72: 7.814 | H72: 8.547 | I72: 9.132 | J72: =10.038 -> 10.038 | K72: 10.67 | L72: 11.133 | M72: 11.542 | N72: 11.946 | O72: 12.165 | P72: 12.414 | Q72: 12.822 | R72: 13.283 | S72: 13.789 | T72: 13.784 | U72: 13.785 | V72: 13.78
A73: DHB funding as % GDP | B73: =B72/B$75 -> 0.03662548073 | C73: 0.03796777047 | D73: 0.03884910971 | E73: 0.0436423509 | F73: 0.04631554779 | G73: 0.04746747014 | H73: 0.04868975732 | I73: 0.04830698103 | J73: 0.05295728281 | K73: 0.05423346311 | L73: 0.0540830702 | M73: 0.05365651832 | N73: 0.05461802587 | O73: 0.05148792266 | P73: 0.05108873241 | Q73: 0.05066562348 | R73: 0.04940177107 | S73: 0.04893169293 | T73: 0.0464042122 | U73: 0.0442022433 | V73: 0.04241331125
A74: Shortfall from 2009/10 % of GDP ($bn) | L74: =$K73*L$75-L72 -> 0.03095838204 | M74: 0.124106017 | N74: -0.08411118114 | O74: 0.6486860965 | P74: 0.7641349686 | Q74: 0.9029167438 | R74: 1.299130862 | S74: 1.494044139 | T74: 2.32561635 | U74: 3.128356274 | V74: 3.840343699
A75: GDP (Nominal) | B75: =B5 -> 122.21 | C75: 130.005 | D75: 137.146 | E75: 147.586 | F75: 156.794 | G75: 164.618 | H75: 175.54 | I75: 189.041 | J75: 189.549 | K75: 196.742 | L75: 205.85 | M75: 215.109 | N75: 218.719 | O75: 236.269 | P75: 242.989 | Q75: 253.071 | R75: 268.877 | S75: 281.801 | T75: 297.042 | U75: 311.862 | V75: 324.898
A76: Annual increase in GDP | C76: =C75/B75-1 -> 0.06378365109 | D76: 0.05492865659 | E76: 0.07612325551 | F76: 0.06239074167 | G76: 0.04989986862 | H76: 0.06634754401 | I76: =I75/H75-1 -> 0.0769112453 | J76: =J75/I75-1 -> 0.00268724774 | K76: 0.03794797124 | L76: 0.0462941314 | M76: 0.0449793539 | N76: 0.01678218949 | O76: 0.08023994257 | P76: 0.02844215703 | Q76: 0.04149159015 | R76: =R75/Q75-1 -> 0.0624567809 | S76: =S75/R75-1 -> 0.04806658807 | T76: =T75/S75-1 -> 0.05408426514 | U76: =U75/T75-1 -> 0.04989193447 | V76: =V75/U75-1 -> 0.04180053998
A78: Capital expenditure | B78: 0.062689 | C78: 0.250207 | D78: 0.494999 | E78: 0.868759 | F78: 0.224925 | G78: 0.492211 | H78: 0.318188 | I78: 0.268969 | J78: 0.185233 | K78: 0.250965 | L78: 0.361518 | M78: 0.2969 | N78: 0.259582 | O78: 0.336432 | P78: 0.689136 | Q78: 0.487272 | R78: 3.289252 | S78: 0.664496 | T78: 0.062211 | U78: 0.062211 | V78: 0.062211

Sheet Wage, price statistics
B1: Inputs (ANZSIC06) - NZSIOC level 3, Base: Dec. 2010 quarter (=1000) (Qrtly-Mar/Jun/Sep/Dec) | D1: Annual increase | F1: Inputs (ANZSIC06) - NZSIOC level 4, Base: Dec. 2010 quarter (=1000) (Qrtly-Mar/Jun/Sep/Dec) | N1: CPI All Groups for New Zealand (Qrtly-Mar/Jun/Sep/Dec) | V1: CPI Level 1 Groups for New Zealand (Qrtly-Mar/Jun/Sep/Dec) | AC1: Average Hourly Earnings by Industry (ANZSIC06) and Sex (Qrtly-Mar/Jun/Sep/Dec) (Total hourly) | AF1: Health Care and Social Assistance | AJ1: Average Hourly Earnings by Industry (ANZSIC06) and Sex (Qrtly-Mar/Jun/Sep/Dec)(Total hourly) | AM1: Public Administration and Safety | AO1: Average Hourly Earnings by Industry (ANZSIC06) and Sex (Qrtly-Mar/Jun/Sep/Dec) (Total hourly) | AR1: All Industries | AT1: Total Gross Earnings by Industry (ANZSIC06) (Qrtly-Mar/Jun/Sep/Dec) | AX1: Total Paid Hours by Industry (ANZSIC06) (Qrtly-Mar/Jun/Sep/Dec) | BC1: LCI: All Sectors Combined and Industry Group (ANZSIC06)(Base: June 2009 qtr (=1000)) (Qrtly-Mar/Jun/Sep/Dec) | BG1: Annual increase y/y | BK1: Adult Minimum Wage (LHS) | BQ1: Real hourly earnings | BS1: 2017-03-01 | BU1: LCI | BV1: Central Govt Sector and Industry Group (ANZSIC06)(Base: June 2009 qtr (=1000)) (Qrtly-Mar/Jun/Sep/Dec) | BZ1: Annual increases | CD1: Private Sector and Industry Group (ANZSIC06)(Base: June 2009 qtr (=1000)) (Qrtly-Mar/Jun/Sep/Dec) | CL1: All Sectors Combined and Industry Group (ANZSIC06)(Base: June 2009 qtr (=1000)) (Qrtly-Mar/Jun/Sep/Dec) | CO1: Public Sector and Industry Group (ANZSIC06)(Base: June 2009 qtr (=1000)) (Qrtly-Mar/Jun/Sep/Dec) | CQ1: (DISC) All Sectors Combined and Industry Group (Base: June 2001 quarter (=1000)) (Qrtly-Mar/Jun/Sep/Dec) | CW1: All Sectors Combined and Industry Group (ANZSIC06)(Base: June 2009 qtr (=1000)) (Qrtly-Mar/Jun/Sep/Dec) | DC1: LCI | DH1: QEX - Average Hourly Earnings by Sector and Sex (Qrtly-Mar/Jun/Sep/Dec) | DM1: Average Hourly Earnings by Industry (ANZSIC06) and Sex (Qrtly-Mar/Jun/Sep/Dec) | DV1: Quarterly Index ; Ordinary time hourly rates of pay excluding bonuses ; Australia ; Private and Public ; Health care and social assistance ; | DW1: Quarterly Index ; Ordinary time hourly rates of pay excluding bonuses ; Australia ; Private ; Health care and social assistance ; | DX1: Quarterly Index ; Ordinary time hourly rates of pay excluding bonuses ; Australia ; Public ; Health care and social assistance ; | DZ1: Index Numbers ; All groups CPI ; Australia ; | ED1: Real LCI/WPI | EJ1: Total Gross Earnings by Industry (ANZSIC06) (Qrtly-Mar/Jun/Sep/Dec) | EN1: Total Paid Hours by Industry (ANZSIC06) (Qrtly-Mar/Jun/Sep/Dec) | ER1: Average wage (quarterly) | ET1: Annual increase | EW1: Average wage (annual) | EY1: Annual increase
B2: Health Care and Social Assistance | G2: Hospitals | H2: Annual increase | I2: Medical and Other Health Care Services | J2: Annual increase | K2: Residential Care Services and Social Assistance | L2: Annual increase | O2: All groups | R2: Exl GST | W2: Health | Y2: Exl GST | AD2: Male | AE2: Female | AF2: Total Both Sexes | AG2: Annual increase | AH2: Quarterly increase | AK2: Total Both Sexes | AL2: Annual increase | AM2: Quarterly increase | AP2: Total Both Sexes | AQ2: Annual increase | AR2: Quarterly increase | AT2: Health Care and Social Assistance | AX2: Health Care and Social Assistance | AZ2: Annual increase q/q | BA2: Annual increase y/y | BC2: Health Care and Social Assistance | BD2: Salary and Ordinary Time Wage Rates | BE2: All Salary and Wage Rates | BF2: All Labour Costs | BG2: Salary and Ordinary Time Wage Rates | BH2: All Salary and Wage Rates | BI2: All Labour Costs | BL2: $ | BM2: Annual Increase | BQ2: Health Care and Social Assistance | BR2: Public Administration and Safety | BS2: Total All Industries | BV2: Salary and Ordinary Time Wage Rates | BW2: Central Government Administration, Defence and Public Safety | BX2: Health Care and Social Assistance | BY2: All Industries Combined | BZ2: Central Government Administration, Defence and Public Safety | CA2: Health Care and Social Assistance | CB2: All Industries Combined | CD2: Salary and Ordinary Time Wage Rates | CE2: Health Care and Social Assistance | CF2: Annual increase | CG2: Quarterly increase | CH2: All Industries Combined | CI2: Annual increase | CJ2: Quarterly increase | CL2: Salary and Ordinary Time Wage Rates | CM2: Central Government Administration, Defence and Public Safety | CN2: Health Care and Social Assistance | CO2: Health Care and Social Assistance | CR2: Health and Community Services | CT2: All Industries Combined | CX2: Salary and Ordinary Time Wage Rates | CY2: All Salary and Wage Rates | CZ2: All Labour Costs | DC2: Health | DD2: All industries | DE2: Health | DF2: All industries | DG2: Health - public sector | DI2: Public Sector | DJ2: Private Sector | DK2: Total All Sectors | DM2: Total (Ordinary Time + Overtime) Hourly | DP2: Annual increase q/q | DR2: Annual average increase | DV2: Index Numbers | DW2: Index Numbers | DX2: Index Numbers | DZ2: Index Numbers | ED2: Labour Cost Index, New Zealand | EE2: Labour Cost Index, New Zealand | EF2: Wage Price Index, Australia | EG2: Wage Price Index, Australia | EK2: Health Care and Social Assistance | EL2: Total All Industries | EO2: Health Care and Social Assistance | EP2: Total All Industries | ER2: Health Care and Social Assistance | ES2: Total All Industries | ET2: Health Care and Social Assistance | EU2: Total All Industries | EW2: Health Care and Social Assistance | EX2: Total All Industries | EY2: Health Care and Social Assistance | EZ2: Total All Industries
A3: 2007-03-01 | B3: 2007Q1 | C3: 914.893617 | F3: 2007Q1 | G3: 912 | I3: 938 | K3: 886 | N3: 2007Q1 | O3: 1010 | P3: Annual increase | Q3: Quarterly increase | R3: =O3 -> 1010 | S3: Annual increase | T3: Quarterly increase | V3: 2007Q1 | W3: 1005 | X3: Annual increase | Y3: =W3 -> 1005 | Z3: Annual increase | AA3: Quarterly increase | AC3: 2007Q1 | AD3: 32.78 | AE3: 22.03 | AF3: 23.86 | AJ3: 2007Q1 | AK3: 26.64 | AO3: 2007Q1 | AP3: 22.7 | AT3: 2007Q1 | AU3: 116668500 | AX3: 2007Q1 | AY3: 4890000 | BC3: 2007Q1 | BD3: .. | BE3: .. | BF3: .. | BK3: 2007-03-01 | BL3: 10.25 | BP3: 2007-03-01 | BQ3: =AF3*VLOOKUP(TEXT(YEAR($BS$1),"0000Q"&(MONTH($BS$1)/3)),$N$3:$O$44,2)/$O3 -> 28.96273267 | BR3: =AK3*VLOOKUP(TEXT(YEAR($BS$1),"0000Q"&(MONTH($BS$1)/3)),$N$3:$O$44,2)/$O3 -> 32.33726733 | BS3: =AP3*VLOOKUP(TEXT(YEAR($BS$1),"0000Q"&(MONTH($BS$1)/3)),$N$3:$O$44,2)/$O3 -> 27.55465347 | BV3: 2007Q1 | BW3: .. | BX3: .. | BY3: 926.127527 | CD3: 2007Q1 | CE3: .. | CH3: 935.064935 | CL3: 2007Q1 | CM3: .. | CN3: .. | CO3: .. | CR3: All Salary and Wage Rates | CS3: All Labour Costs | CT3: All Salary and Wage Rates | CU3: All Labour Costs | CX3: All Industries Combined | CY3: All Industries Combined | CZ3: All Industries Combined | DE3: Annual increase | DI3: Total (Ordinary Time + Overtime) Hourly | DN3: Health Care and Social Assistance | DO3: All industries | DP3: Health Care and Social Assistance | DQ3: Total All Industries | DR3: Health Care and Social Assistance | DS3: All industries | DV3: Original | DW3: Original | DX3: Original | DZ3: Original | ED3: Public and Private Sectors | EE3: Public Sector only | EF3: Public and Private Sectors | EG3: Public Sector only | EJ3: 1989Q1 | EK3: 41481000 | EL3: 497885400 | EN3: 1989Q1 | EO3: 3021300 | EP3: 38104900 | ER3: =EK3/EO3 -> 13.72952041 | ES3: =EL3/EP3 -> 13.06617784
A4: 2007-06-01 | B4: 2007Q2 | C4: 926.291793 | F4: 2007Q2 | G4: 917 | I4: 958 | K4: 900 | N4: 2007Q2 | O4: 1020 | Q4: =O4/O3-1 -> 0.009900990099 | R4: 1020 | T4: =R4/R3-1 -> 0.009900990099 | V4: 2007Q2 | W4: 1024 | Y4: 1024 | AA4: =Y4/Y3-1 -> 0.01890547264 | AC4: 2007Q2 | AD4: 33.24 | AE4: 22.16 | AF4: 24.06 | AH4: =AF4/AF3-1 -> 0.008382229673 | AJ4: 2007Q2 | AK4: 27.2 | AM4: =AK4/AK3-1 -> 0.02102102102 | AO4: 2007Q2 | AP4: 22.89 | AR4: =AP4/AP3-1 -> 0.008370044053 | AT4: 2007Q2 | AU4: 116171600 | AX4: 2007Q2 | AY4: 4828700 | BC4: 2007Q2 | BD4: .. | BE4: .. | BF4: .. | BK4: 2007-06-01 | BL4: 11.25 | BP4: 2007-06-01 | BQ4: 28.91917647 | BR4: 32.69333333 | BS4: 27.51288235 | BV4: 2007Q2 | BW4: .. | BX4: .. | BY4: 928.460342 | CD4: 2007Q2 | CE4: .. | CH4: 941.558442 | CL4: 2007Q2 | CM4: .. | CN4: .. | CO4: .. | CQ4: 2001Q2 | CR4: 1000 | CS4: 1000 | CT4: 1000 | CU4: 1000 | CW4: 1992Q4 | CX4: 697.793855 | CY4: 699.615771 | CZ4: 697.471665 | DB4: 2001-06-01 | DC4: =CR4 -> 1000 | DD4: =CT4 -> 1000 | DH4: 1989Q1 | DI4: 14.98 | DJ4: 12.19 | DK4: 13.07 | DM4: 1989-03-01 | DN4: 13.73 | DO4: 13.07 | DV4: INDEX | DW4: INDEX | DX4: INDEX | DZ4: INDEX | EC4: 2009-06-01 | ED4: =1000*(CN12/$CN$12)*($O$12/$O12) -> 1000 | EE4: =1000*(CO12/$CO$12)*($O$12/$O12) -> 1000 | EF4: =1000*($DV58/$DV$58)*($DZ$254/$DZ254) -> 1000 | EG4: =1000*($DX58/$DX$58)*($DZ$254/$DZ254) -> 1000 | EJ4: 1989Q2 | EK4: 39883400 | EL4: 491185000 | EN4: 1989Q2 | EO4: 2897300 | EP4: 37250200 | ER4: =EK4/EO4 -> 13.76571291 | ES4: 13.1861037
A5: 2007-09-01 | B5: 2007Q3 | C5: 930.851064 | F5: 2007Q3 | G5: 922 | I5: 960 | K5: 905 | N5: 2007Q3 | O5: 1025 | Q5: =O5/O4-1 -> 0.004901960784 | R5: 1025 | T5: 0.004901960784 | V5: 2007Q3 | W5: 992 | Y5: 992 | AA5: -0.03125 | AC5: 2007Q3 | AD5: 33.22 | AE5: 22.56 | AF5: 24.36 | AH5: 0.01246882793 | AJ5: 2007Q3 | AK5: 27.75 | AM5: 0.02022058824 | AO5: 2007Q3 | AP5: 23.19 | AR5: 0.0131061599 | AT5: 2007Q3 | AU5: 119118400 | AX5: 2007Q3 | AY5: 4890500 | BC5: 2007Q3 | BD5: .. | BE5: .. | BF5: .. | BK5: 2007-09-01 | BL5: 11.25 | BP5: 2007-09-01 | BQ5: 29.13693659 | BR5: 33.19170732 | BS5: 27.73750244 | BV5: 2007Q3 | BW5: .. | BX5: .. | BY5: 936.236392 | CD5: 2007Q3 | CE5: .. | CH5: 950.487013 | CL5: 2007Q3 | CM5: .. | CN5: .. | CO5: .. | CQ5: 2001Q3 | CR5: 1007 | CS5: .. | CT5: 1006 | CU5: .. | CW5: 1993Q1 | CX5: 699.887237 | CY5: 701.714618 | CZ5: 696.774194 | DB5: 2001-09-01 | DC5: 1007 | DD5: =CT5 -> 1006 | DH5: 1989Q2 | DI5: 15.26 | DJ5: 12.24 | DK5: 13.19 | DM5: 1989-06-01 | DN5: 13.77 | DO5: 13.19 | DV5: Quarter | DW5: Quarter | DX5: Quarter | DZ5: Quarter | EC5: 2009-09-01 | ED5: =1000*(CN13/$CN$12)*$O$12/$O13 -> 993.1378995 | EE5: 994.1251142 | EF5: 1006.079184 | EG5: 1013.869799 | EJ5: 1989Q3 | EK5: 39999400 | EL5: 485420600 | EN5: 1989Q3 | EO5: 2911500 | EP5: 36465900 | ER5: 13.73841662 | ES5: 13.31163087
A6: 2007-12-01 | B6: 2007Q4 | C6: 941.489362 | F6: 2007Q4 | G6: 936 | I6: 968 | K6: 913 | N6: 2007Q4 | O6: 1037 | Q6: 0.01170731707 | R6: 1037 | T6: 0.01170731707 | V6: 2007Q4 | W6: 996 | Y6: 996 | AA6: 0.004032258065 | AC6: 2007Q4 | AD6: 33.47 | AE6: 23.02 | AF6: 24.8 | AH6: 0.01806239737 | AJ6: 2007Q4 | AK6: 28.57 | AM6: 0.02954954955 | AO6: 2007Q4 | AP6: 23.4 | AR6: 0.009055627426 | AT6: 2007Q4 | AU6: 120987300 | AX6: 2007Q4 | AY6: 4877800 | BC6: 2007Q4 | BD6: .. | BE6: .. | BF6: .. | BK6: 2007-12-01 | BL6: 11.25 | BP6: 2007-12-01 | BQ6: 29.31996143 | BR6: 33.77706847 | BS6: 27.66480231 | BV6: 2007Q4 | BW6: .. | BX6: .. | BY6: 942.457232 | CD6: 2007Q4 | CE6: .. | CH6: 961.038961 | CL6: 2007Q4 | CM6: .. | CN6: .. | CO6: .. | CQ6: 2001Q4 | CR6: 1016 | CS6: .. | CT6: 1011 | CU6: .. | CW6: 1993Q2 | CX6: 701.980618 | CY6: 703.813466 | CZ6: 698.169137 | DB6: 2001-12-01 | DC6: 1016 | DD6: 1011 | DH6: 1989Q3 | DI6: 15.34 | DJ6: 12.35 | DK6: 13.31 | DM6: 1989-09-01 | DN6: 13.74 | DO6: 13.31 | DV6: 3 | DW6: 3 | DX6: 3 | DZ6: 3 | EC6: 2009-12-01 | ED6: 999.9002745 | EE6: 1002.867338 | EF6: 1010.489074 | EG6: 1019.191654 | EJ6: 1989Q4 | EK6: 40267200 | EL6: 489803300 | EN6: 1989Q4 | EO6: 2891700 | EP6: 36405900 | ER6: 13.92509596 | ES6: 13.45395389 | EV6: 1989-12-01 | EW6: =SUM(EK3:EK6)/SUM(EO3:EO6) -> 13.7889232 | EX6: =SUM(EL3:EL6)/SUM(EP3:EP6) -> 13.25194212
A7: 2008-03-01 | B7: 2008Q1 | C7: 956.68693 | D7: =C7/C3-1 -> 0.04568106305 | F7: 2008Q1 | G7: 957 | H7: =G7/G3-1 -> 0.04934210526 | I7: 978 | J7: =I7/I3-1 -> 0.04264392324 | K7: 921 | L7: =K7/K3-1 -> 0.039503386 | N7: 2008Q1 | O7: 1044 | P7: =O7/O3-1 -> 0.03366336634 | Q7: 0.00675024108 | R7: 1044 | S7: 0.03366336634 | T7: 0.00675024108 | V7: 2008Q1 | W7: 1000 | X7: =W7/W3-1 -> -0.004975124378 | Y7: 1000 | Z7: =Y7/Y3-1 -> -0.004975124378 | AA7: 0.004016064257 | AC7: 2008Q1 | AD7: 34.34 | AE7: 23.49 | AF7: 25.36 | AG7: =AF7/AF3-1 -> 0.06286672255 | AH7: 0.02258064516 | AJ7: 2008Q1 | AK7: 28.8 | AL7: =AK7/AK3-1 -> 0.08108108108 | AM7: 0.00805040252 | AO7: 2008Q1 | AP7: 23.75 | AQ7: =AP7/AP3-1 -> 0.04625550661 | AR7: 0.01495726496 | AT7: 2008Q1 | AU7: 125989700 | AV7: =AU7/AU3-1 -> 0.07989474451 | AX7: 2008Q1 | AY7: 4967700 | AZ7: =AY7/AY3-1 -> 0.01588957055 | BC7: 2008Q1 | BD7: .. | BE7: .. | BF7: .. | BK7: 2008-03-01 | BL7: 11.25 | BP7: 2008-03-01 | BQ7: 29.78099617 | BR7: 33.82068966 | BS7: 27.89032567 | BV7: 2008Q1 | BW7: .. | BX7: .. | BY7: 952.566096 | CD7: 2008Q1 | CE7: .. | CH7: 967.532468 | CI7: =CH7/CH3-1 -> 0.03472222279 | CL7: 2008Q1 | CM7: .. | CN7: .. | CO7: .. | CQ7: 2002Q1 | CR7: 1022 | CS7: .. | CT7: 1016 | CU7: .. | CW7: 1993Q3 | CX7: 704.074 | CY7: 705.212697 | CZ7: 700.261552 | DB7: 2002-03-01 | DC7: 1022 | DD7: 1016 | DH7: 1989Q4 | DI7: 15.32 | DJ7: 12.6 | DK7: 13.45 | DM7: 1989-12-01 | DN7: 13.93 | DO7: 13.45 | DV7: 1997-09-01 | DW7: 1997-09-01 | DX7: 1997-09-01 | DZ7: 1948-09-01 | EC7: 2010-03-01 | ED7: 1000.195989 | EE7: 1002.166819 | EF7: 1008.657914 | EG7: 1013.409707 | EJ7: 1990Q1 | EK7: 40945900 | EL7: 507868400 | EN7: 1990Q1 | EO7: 2850200 | EP7: 36584000 | ER7: 14.36597432 | ES7: 13.88225454 | ET7: =ER7/ER3-1 -> 0.04635660196 | EU7: =ES7/ES3-1 -> 0.06245718578 | EV7: 1990-03-01 | EW7: =SUM(EK4:EK7)/SUM(EO4:EO7) -> 13.94685171 | EX7: 13.45737257
A8: 2008-06-01 | B8: 2008Q2 | C8: 976.443769 | D8: =C8/C4-1 -> 0.05414274031 | F8: 2008Q2 | G8: 977 | H8: =G8/G4-1 -> 0.06543075245 | I8: 992 | J8: 0.03549060543 | K8: 952 | L8: 0.05777777778 | N8: 2008Q2 | O8: 1061 | P8: 0.04019607843 | Q8: 0.0162835249 | R8: =O8 -> 1061 | S8: 0.04019607843 | T8: 0.0162835249 | V8: 2008Q2 | W8: 1010 | X8: =W8/W4-1 -> -0.013671875 | Y8: 1010 | Z8: -0.013671875 | AA8: 0.01 | AC8: 2008Q2 | AD8: 34.24 | AE8: 23.79 | AF8: 25.6 | AG8: =AF8/AF4-1 -> 0.06400665004 | AH8: 0.009463722397 | AJ8: 2008Q2 | AK8: 28.83 | AL8: =AK8/AK4-1 -> 0.05992647059 | AM8: 0.001041666667 | AO8: 2008Q2 | AP8: 24.1 | AQ8: =AP8/AP4-1 -> 0.05286151158 | AR8: 0.01473684211 | AT8: 2008Q2 | AU8: 129711200 | AV8: =AU8/AU4-1 -> 0.1165482786 | AX8: 2008Q2 | AY8: 5066100 | AZ8: =AY8/AY4-1 -> 0.04916437136 | BC8: 2008Q2 | BD8: .. | BE8: .. | BF8: .. | BK8: 2008-06-01 | BL8: 12 | BM8: =BL8/BL4-1 -> 0.06666666667 | BP8: 2008-06-01 | BQ8: 29.58114986 | BR8: 33.313459 | BS8: 27.84787936 | BV8: 2008Q2 | BW8: .. | BX8: .. | BY8: 963.452566 | CD8: 2008Q2 | CE8: .. | CH8: 974.837662 | CI8: 0.03534482674 | CL8: 2008Q2 | CM8: .. | CN8: .. | CO8: .. | CQ8: 2002Q2 | CR8: 1026 | CS8: 1024 | CT8: 1021 | CU8: 1018 | CW8: 1993Q4 | CX8: 704.771793 | CY8: 706.611929 | CZ8: 701.656495 | DB8: 2002-06-01 | DC8: 1026 | DD8: 1021 | DE8: =DC8/DC4-1 -> 0.026 | DF8: =DD8/DD4-1 -> 0.021 | DH8: 1990Q1 | DI8: 15.69 | DJ8: 13.1 | DK8: 13.88 | DM8: 1990-03-01 | DN8: 14.37 | DO8: 13.88 | DP8: =DN8/DN4-1 -> 0.04661325564 | DQ8: 0.06197398623 | DV8: 2016-03-01 | DW8: 2016-03-01 | DX8: 2016-03-01 | DZ8: 2016-03-01 | EC8: 2010-06-01 | ED8: 1001.326661 | EE8: 1001.326661 | EF8: 1008.095707 | EG8: 1011.849093 | EJ8: 1990Q2 | EK8: 41633700 | EL8: 501705100 | EN8: 1990Q2 | EO8: 2868500 | EP8: 35742600 | ER8: 14.51410145 | ES8: 14.03661457 | ET8: =ER8/ER4-1 -> 0.05436613031 | EU8: 0.06450054486 | EV8: 1990-06-01 | EW8: 14.13362379 | EX8: 13.66955421
A9: 2008-09-01 | B9: 2008Q3 | C9: 985.56231 | D9: =C9/C5-1 -> 0.05877550998 | F9: 2008Q3 | G9: 984 | H9: 0.06724511931 | I9: 1001 | J9: 0.04270833333 | K9: 968 | L9: 0.06961325967 | N9: 2008Q3 | O9: 1077 | P9: 0.05073170732 | Q9: 0.0150801131 | R9: 1077 | S9: 0.05073170732 | T9: 0.0150801131 | V9: 2008Q3 | W9: 1024 | X9: 0.03225806452 | Y9: 1024 | Z9: 0.03225806452 | AA9: 0.01386138614 | AC9: 2008Q3 | AD9: 34.96 | AE9: 24.18 | AF9: 26.09 | AG9: =AF9/AF5-1 -> 0.0710180624 | AH9: 0.019140625 | AJ9: 2008Q3 | AK9: 29.17 | AL9: =AK9/AK5-1 -> 0.05117117117 | AM9: 0.0117932709 | AO9: 2008Q3 | AP9: 24.48 | AQ9: =AP9/AP5-1 -> 0.05562742561 | AR9: 0.01576763485 | AT9: 2008Q3 | AU9: 133403000 | AV9: =AU9/AU5-1 -> 0.1199193408 | AX9: 2008Q3 | AY9: 5112600 | AZ9: =AY9/AY5-1 -> 0.04541457929 | BC9: 2008Q3 | BD9: .. | BE9: .. | BF9: .. | BK9: 2008-09-01 | BL9: 12 | BM9: =BL9/BL5-1 -> 0.06666666667 | BP9: 2008-09-01 | BQ9: 29.69948004 | BR9: 33.2055896 | BS9: 27.86674095 | BV9: 2008Q3 | BW9: .. | BX9: .. | BY9: 981.337481 | CD9: 2008Q3 | CE9: .. | CH9: 985.38961 | CI9: 0.03672075107 | CL9: 2008Q3 | CM9: .. | CN9: .. | CO9: .. | CQ9: 2002Q3 | CR9: 1034 | CS9: .. | CT9: 1028 | CU9: .. | CW9: 1994Q1 | CX9: 706.865175 | CY9: 708.710776 | CZ9: 706.538797 | DB9: 2002-09-01 | DC9: 1034 | DD9: 1028 | DE9: =DC9/DC5-1 -> 0.0268123138 | DF9: 0.02186878728 | DH9: 1990Q2 | DI9: 15.89 | DJ9: 13.21 | DK9: 14.04 | DM9: 1990-06-01 | DN9: 14.51 | DO9: 14.04 | DP9: 0.05374001452 | DQ9: 0.06444275967 | DV9: 75 | DW9: 75 | DX9: 75 | DZ9: 271 | EC9: 2010-09-01 | ED9: 993.430243 | EE9: 993.430243 | EF9: 1014.114174 | EG9: 1016.863674 | EJ9: 1990Q3 | EK9: 42525500 | EL9: 504236400 | EN9: 1990Q3 | EO9: 2938800 | EP9: 35606800 | ER9: 14.47036205 | ES9: 14.16123886 | ET9: 0.05327727706 | EU9: 0.06382448604 | EV9: 1990-09-01 | EW9: 14.31893984 | EX9: 13.88127281
A10: 2008-12-01 | B10: 2008Q4 | C10: 987.082067 | D10: =C10/C6-1 -> 0.04842614993 | F10: 2008Q4 | G10: 985 | H10: 0.05235042735 | I10: 1005 | J10: 0.0382231405 | K10: 967 | L10: 0.0591456736 | N10: 2008Q4 | O10: 1072 | P10: 0.0337512054 | Q10: -0.004642525534 | R10: 1072 | S10: 0.0337512054 | T10: -0.004642525534 | V10: 2008Q4 | W10: 1030 | X10: 0.03413654618 | Y10: 1030 | Z10: 0.03413654618 | AA10: 0.005859375 | AC10: 2008Q4 | AD10: 36.38 | AE10: 24.35 | AF10: 26.51 | AG10: =AF10/AF6-1 -> 0.0689516129 | AH10: 0.01609812189 | AJ10: 2008Q4 | AK10: 29.29 | AL10: =AK10/AK6-1 -> 0.02520126006 | AM10: 0.004113815564 | AO10: 2008Q4 | AP10: 24.71 | AQ10: =AP10/AP6-1 -> 0.05598290598 | AR10: 0.009395424837 | AT10: 2008Q4 | AU10: 135940300 | AV10: =AU10/AU6-1 -> 0.1235914844 | AX10: 2008Q4 | AY10: 5127800 | AZ10: =AY10/AY6-1 -> 0.05125261388 | BA10: =SUM(AY7:AY10)/SUM(AY3:AY6)-1 -> 0.04039616154 | BC10: 2008Q4 | BD10: .. | BE10: .. | BF10: .. | BK10: 2008-12-01 | BL10: 12 | BM10: 0.06666666667 | BP10: 2008-12-01 | BQ10: 30.31833955 | BR10: 33.49770522 | BS10: 28.25975746 | BV10: 2008Q4 | BW10: .. | BX10: .. | BY10: 989.891135 | CD10: 2008Q4 | CE10: .. | CH10: 991.883117 | CI10: 0.03209459476 | CL10: 2008Q4 | CM10: .. | CN10: .. | CO10: .. | CQ10: 2002Q4 | CR10: 1042 | CS10: .. | CT10: 1033 | CU10: .. | CW10: 1994Q2 | CX10: 708.958557 | CY10: 710.110008 | CZ10: 709.328684 | DB10: 2002-12-01 | DC10: 1042 | DD10: 1033 | DE10: 0.02559055118 | DF10: 0.02176063304 | DH10: 1990Q3 | DI10: 16.05 | DJ10: 13.31 | DK10: 14.16 | DM10: 1990-09-01 | DN10: 14.47 | DO10: 14.16 | DP10: 0.05312954876 | DQ10: 0.06386175808 | DV10: A2639409J | DW10: A2638839R | DX10: A2639789W | DZ10: A2325846C | EC10: 2010-12-01 | ED10: 974.5162709 | EE10: 972.6147757 | EF10: 1018.462547 | EG10: 1022.130263 | EJ10: 1990Q4 | EK10: 43526800 | EL10: 512761100 | EN10: 1990Q4 | EO10: 2950800 | EP10: 35838100 | ER10: 14.75084723 | ES10: 14.30770884 | ET10: 0.05929950254 | EU10: 0.06345754934 | EV10: 1990-12-01 | EW10: 14.52683856 | EX10: 14.09577698 | EY10: =EW10/EW6-1 -> 0.05351508174 | EZ10: =EX10/EX6-1 -> 0.0636763161
A11: 2009-03-01 | B11: 2009Q1 | C11: 993.161094 | D11: =C11/C7-1 -> 0.03812549629 | F11: 2009Q1 | G11: 989 | H11: 0.03343782654 | I11: 1015 | J11: 0.03783231084 | K11: 971 | L11: 0.0542888165 | N11: 2009Q1 | O11: 1075 | P11: 0.02969348659 | Q11: 0.002798507463 | R11: 1075 | S11: 0.02969348659 | T11: 0.002798507463 | V11: 2009Q1 | W11: 1038 | X11: 0.038 | Y11: 1038 | Z11: 0.038 | AA11: 0.007766990291 | AC11: 2009Q1 | AD11: 36.15 | AE11: 24.62 | AF11: 26.66 | AG11: =AF11/AF7-1 -> 0.05126182965 | AH11: 0.005658242173 | AJ11: 2009Q1 | AK11: 29.88 | AL11: =AK11/AK7-1 -> 0.0375 | AM11: 0.02014339365 | AO11: 2009Q1 | AP11: 25.03 | AQ11: =AP11/AP7-1 -> 0.05389473684 | AR11: 0.01295022258 | AT11: 2009Q1 | AU11: 139120900 | AV11: =AU11/AU7-1 -> 0.1042243929 | AX11: 2009Q1 | AY11: 5218600 | AZ11: =AY11/AY7-1 -> 0.05050627051 | BA11: =SUM(AY8:AY11)/SUM(AY4:AY7)-1 -> 0.04908840923 | BC11: 2009Q1 | BD11: .. | BE11: .. | BF11: .. | BK11: 2009-03-01 | BL11: 12 | BM11: 0.06666666667 | BP11: 2009-03-01 | BQ11: 30.4048 | BR11: 34.07709767 | BS11: 28.54584186 | BV11: 2009Q1 | BW11: .. | BX11: .. | BY11: 995.33437 | CD11: 2009Q1 | CE11: .. | CH11: 996.753247 | CI11: 0.03020134204 | CL11: 2009Q1 | CM11: .. | CN11: .. | CO11: .. | CQ11: 2003Q1 | CR11: 1049 | CS11: .. | CT11: 1039 | CU11: .. | CW11: 1994Q3 | CX11: 711.749732 | CY11: 713.608086 | CZ11: 712.11857 | DB11: 2003-03-01 | DC11: 1049 | DD11: 1039 | DE11: 0.02641878669 | DF11: 0.02263779528 | DH11: 1990Q4 | DI11: 16.35 | DJ11: 13.48 | DK11: 14.31 | DM11: 1990-12-01 | DN11: 14.75 | DO11: 14.31 | DP11: 0.05886575736 | DQ11: 0.06394052045 | DR11: =GEOMEAN(DN8:DN11)/GEOMEAN(DN4:DN7)-1 -> 0.05307814885 | DS11: 0.06355434094 | DU11: 1997-09-01 | DV11: 66.3 | DW11: 68 | DX11: 64.3 | DY11: 1948-09-01 | DZ11: 3.7 | EC11: 2011-03-01 | ED11: 974.4092496 | EE11: 976.2958115 | EF11: 1009.566186 | EG11: 1012.237655 | EJ11: 1991Q1 | EK11: 45138500 | EL11: 530237600 | EN11: 1991Q1 | EO11: 2965800 | EP11: 36653900 | ER11: 15.21967092 | ES11: 14.46606227 | ET11: 0.05942490072 | EU11: 0.04205424525 | EV11: 1991-03-01 | EW11: 14.7412124 | EX11: 14.24444006 | EY11: =EW11/EW7-1 -> 0.05695627271 | EZ11: 0.05848597002
A12: 2009-06-01 | B12: 2009Q2 | C12: 1002.279635 | D12: =C12/C8-1 -> 0.0264591437 | F12: 2009Q2 | G12: 994 | H12: 0.01740020471 | I12: 1026 | J12: 0.03427419355 | K12: 989 | L12: 0.03886554622 | N12: 2009Q2 | O12: 1081 | P12: 0.01885014138 | Q12: 0.005581395349 | R12: 1081 | S12: 0.01885014138 | T12: 0.005581395349 | V12: 2009Q2 | W12: 1047 | X12: 0.03663366337 | Y12: 1047 | Z12: 0.03663366337 | AA12: 0.008670520231 | AC12: 2009Q2 | AD12: 36.36 | AE12: 24.85 | AF12: 26.91 | AG12: =AF12/AF8-1 -> 0.051171875 | AH12: 0.009377344336 | AJ12: 2009Q2 | AK12: 30.04 | AL12: =AK12/AK8-1 -> 0.04197016996 | AM12: 0.005354752343 | AO12: 2009Q2 | AP12: 25.21 | AQ12: =AP12/AP8-1 -> 0.04605809129 | AR12: 0.007191370356 | AT12: 2009Q2 | AU12: 137269000 | AV12: =AU12/AU8-1 -> 0.05826636405 | AX12: 2009Q2 | AY12: 5101700 | AZ12: =AY12/AY8-1 -> 0.007027101715 | BA12: 0.03830906823 | BC12: 2009Q2 | BD12: 1000 | BE12: 1000 | BF12: 1000 | BK12: 2009-06-01 | BL12: 12.5 | BM12: 0.04166666667 | BP12: 2009-06-01 | BQ12: 30.51957447 | BR12: 34.06941721 | BS12: 28.59154487 | BV12: 2009Q2 | BW12: 1000 | BX12: 1000 | BY12: 1000 | CD12: 2009Q2 | CE12: 1000 | CH12: 1000 | CI12: 0.02581182384 | CL12: 2009Q2 | CM12: 1000 | CN12: 1000 | CO12: 1000 | CQ12: 2003Q2 | CR12: 1054 | CS12: 1053 | CT12: 1044 | CU12: 1040 | CW12: 1994Q4 | CX12: 713.843114 | CY12: 715.007318 | CZ12: 713.513514 | DB12: 2003-06-01 | DC12: 1054 | DD12: 1044 | DE12: 0.02729044834 | DF12: 0.02252693438 | DH12: 1991Q1 | DI12: 16.6 | DJ12: 13.64 | DK12: 14.47 | DM12: 1991-03-01 | DN12: 15.22 | DO12: 14.47 | DP12: 0.05915100905 | DQ12: 0.04250720461 | DR12: 0.05621787902 | DS12: 0.05864653683 | DU12: 1997-12-01 | DV12: 66.9 | DW12: 68.4 | DX12: 65.2 | DY12: 1948-12-01 | DZ12: 3.8 | EC12: 2011-06-01 | ED12: 966.079516 | EE12: 967.0138289 | EF12: 1008.743539 | EG12: 1013.223259 | EJ12: 1991Q2 | EK12: 44582500 | EL12: 515865200 | EN12: 1991Q2 | EO12: 2997500 | EP12: 35450400 | ER12: 14.87322769 | ES12: 14.55174554 | ET12: 0.02474326394 | EU12: 0.03669908886 | EV12: 1991-06-01 | EW12: 14.8295607 | EX12: 14.37207801 | EY12: 0.04923980669 | EZ12: 0.05139332158
A13: 2009-09-01 | B13: 2009Q3 | C13: 1009.118541 | D13: =C13/C9-1 -> 0.02390131071 | F13: 2009Q3 | G13: 999 | H13: 0.01524390244 | I13: 1029 | J13: 0.02797202797 | K13: 1006 | L13: 0.03925619835 | N13: 2009Q3 | O13: 1095 | P13: 0.01671309192 | Q13: 0.01295097132 | R13: 1095 | S13: 0.01671309192 | T13: 0.01295097132 | V13: 2009Q3 | W13: 1062 | X13: 0.037109375 | Y13: 1062 | Z13: 0.037109375 | AA13: 0.01432664756 | AC13: 2009Q3 | AD13: 36.41 | AE13: 24.63 | AF13: 26.69 | AG13: =AF13/AF9-1 -> 0.02299731698 | AH13: -0.00817539948 | AJ13: 2009Q3 | AK13: 30.45 | AL13: =AK13/AK9-1 -> 0.04388069935 | AM13: 0.01364846871 | AO13: 2009Q3 | AP13: 25.43 | AQ13: =AP13/AP9-1 -> 0.03880718954 | AR13: 0.008726695756 | AT13: 2009Q3 | AU13: 138455700 | AV13: =AU13/AU9-1 -> 0.03787546007 | AX13: 2009Q3 | AY13: 5187000 | AZ13: =AY13/AY9-1 -> 0.0145522826 | BA13: 0.03050808522 | BC13: 2009Q3 | BD13: 1006 | BE13: 1006 | BF13: .. | BK13: 2009-09-01 | BL13: 12.5 | BM13: 0.04166666667 | BP13: 2009-09-01 | BQ13: 29.88305023 | BR13: 34.09287671 | BS13: 28.4723105 | BV13: 2009Q3 | BW13: 1002 | BX13: 1007 | BY13: 1011 | CD13: 2009Q3 | CE13: 1005 | CG13: =CE13/CE12-1 -> 0.005 | CH13: 1004 | CI13: 0.0188863266 | CJ13: =CH13/CH12-1 -> 0.004 | CL13: 2009Q3 | CM13: 1002 | CN13: 1006 | CO13: 1007 | CQ13: 2003Q3 | CR13: 1064 | CS13: .. | CT13: 1052 | CU13: .. | CW13: 1995Q1 | CX13: 715.936495 | CY13: 717.805781 | CZ13: 719.093287 | DB13: 2003-09-01 | DC13: 1064 | DD13: 1052 | DE13: 0.02901353965 | DF13: 0.0233463035 | DH13: 1991Q2 | DI13: 16.64 | DJ13: 13.72 | DK13: 14.55 | DM13: 1991-06-01 | DN13: 14.87 | DO13: 14.55 | DP13: 0.02481047553 | DQ13: 0.03632478632 | DR13: 0.04889263434 | DS13: 0.05158498023 | DU13: 1998-03-01 | DV13: 67.4 | DW13: 68.6 | DX13: 66 | DY13: 1949-03-01 | DZ13: 3.9 | EC13: 2011-09-01 | ED13: 966.5740103 | EE13: 966.5740103 | EF13: 1011.886285 | EG13: 1013.564147 | EJ13: 1991Q3 | EK13: 45233000 | EL13: 498869500 | EN13: 1991Q3 | EO13: 2996300 | EP13: 34067300 | ER13: 15.09628542 | ES13: 14.64364655 | ET13: 0.04325554287 | EU13: 0.03406535875 | EV13: 1991-09-01 | EW13: 14.98529017 | EX13: 14.49009047 | EY13: 0.04653628928 | EZ13: 0.04385892185
A14: 2009-12-01 | B14: 2009Q4 | C14: 999.240122 | D14: 0.01231716734 | F14: 2009Q4 | G14: 992 | H14: 0.007106598985 | I14: 1017 | J14: 0.01194029851 | K14: 991 | L14: 0.02481902792 | N14: 2009Q4 | O14: 1093 | P14: 0.01958955224 | Q14: -0.001826484018 | R14: 1093 | S14: 0.01958955224 | T14: -0.001826484018 | V14: 2009Q4 | W14: 1068 | X14: 0.03689320388 | Y14: 1068 | Z14: 0.03689320388 | AA14: 0.005649717514 | AC14: 2009Q4 | AD14: 36.68 | AE14: 25.1 | AF14: 27.18 | AG14: 0.02527348171 | AH14: 0.01835893593 | AJ14: 2009Q4 | AK14: 30.78 | AL14: 0.0508706043 | AM14: 0.01083743842 | AO14: 2009Q4 | AP14: 25.39 | AQ14: 0.02751922299 | AR14: -0.00157294534 | AT14: 2009Q4 | AU14: 142344700 | AV14: 0.04711185719 | AX14: 2009Q4 | AY14: 5237700 | AZ14: 0.02143219314 | BA14: 0.02322163143 | BC14: 2009Q4 | BD14: 1011 | BE14: 1011 | BF14: .. | BK14: 2009-12-01 | BL14: 12.5 | BM14: 0.04166666667 | BP14: 2009-12-01 | BQ14: 30.4873559 | BR14: 34.52541629 | BS14: 28.47954254 | BV14: 2009Q4 | BW14: 1003 | BX14: 1014 | BY14: 1014 | CD14: 2009Q4 | CE14: 1008 | CG14: 0.002985074627 | CH14: 1007 | CI14: 0.01524058908 | CJ14: 0.002988047809 | CL14: 2009Q4 | CM14: 1003 | CN14: 1011 | CO14: 1014 | CQ14: 2003Q4 | CR14: 1069 | CS14: .. | CT14: 1058 | CU14: .. | CW14: 1995Q2 | CX14: 718.029877 | CY14: 719.904628 | CZ14: 723.278117 | DB14: 2003-12-01 | DC14: 1069 | DD14: 1058 | DE14: 0.02591170825 | DF14: 0.02420135528 | DH14: 1991Q3 | DI14: 16.77 | DJ14: 13.76 | DK14: 14.64 | DM14: 1991-09-01 | DN14: 15.1 | DO14: 14.64 | DP14: 0.04353835522 | DQ14: 0.03389830508 | DR14: 0.04649628296 | DS14: 0.04410104596 | DU14: 1998-06-01 | DV14: 67.6 | DW14: 68.8 | DX14: 66.3 | DY14: 1949-06-01 | DZ14: 4 | EC14: 2011-12-01 | ED14: 973.6468048 | EE14: 970.8462867 | EF14: 1018.331421 | EG14: 1021.834389 | EJ14: 1991Q4 | EK14: 44675000 | EL14: 504396600 | EN14: 1991Q4 | EO14: 2966400 | EP14: 34273000 | ER14: 15.0603425 | ES14: 14.71702506 | ET14: 0.02098152534 | EU14: 0.02860809045 | EV14: 1991-12-01 | EW14: 15.06196545 | EX14: 14.59200923 | EY14: 0.03683712023 | EZ14: 0.03520432076
A15: 2010-03-01 | B15: 2010Q1 | C15: 1002.279635 | D15: 0.009181331261 | F15: 2010Q1 | G15: 995 | H15: 0.006066734075 | I15: 1018 | J15: 0.002955665025 | K15: 996 | L15: 0.02574665294 | N15: 2010Q1 | O15: 1097 | P15: 0.02046511628 | Q15: 0.003659652333 | R15: 1097 | S15: 0.02046511628 | T15: 0.003659652333 | V15: 2010Q1 | W15: 1078 | X15: 0.03853564547 | Y15: 1078 | Z15: 0.03853564547 | AA15: 0.00936329588 | AC15: 2010Q1 | AD15: 36.47 | AE15: 25.23 | AF15: 27.23 | AG15: 0.02138034509 | AH15: 0.001839587932 | AJ15: 2010Q1 | AK15: 30.55 | AL15: 0.02242302544 | AM15: -0.007472384665 | AO15: 2010Q1 | AP15: 25.3 | AQ15: 0.01078705553 | AR15: -0.003544702639 | AT15: 2010Q1 | AU15: 146186000 | AV15: 0.05078388653 | AX15: 2010Q1 | AY15: 5368100 | AZ15: 0.02864752999 | BA15: 0.01799747626 | BC15: 2010Q1 | BD15: 1015 | BE15: 1015 | BF15: .. | BK15: 2010-03-01 | BL15: 12.5 | BM15: 0.04166666667 | BP15: 2010-03-01 | BQ15: 30.43206928 | BR15: 34.14247949 | BS15: 28.27511395 | BV15: 2010Q1 | BW15: 1008 | BX15: 1017 | BY15: 1019 | CD15: 2010Q1 | CE15: 1013 | CG15: 0.00496031746 | CH15: 1010 | CI15: 0.01328990203 | CJ15: 0.002979145978 | CL15: 2010Q1 | CM15: 1007 | CN15: 1015 | CO15: 1017 | CQ15: 2004Q1 | CR15: 1076 | CS15: .. | CT15: 1062 | CU15: .. | CW15: 1995Q3 | CX15: 722.21664 | CY15: 724.102323 | CZ15: 727.462947 | DB15: 2004-03-01 | DC15: 1076 | DD15: 1062 | DE15: 0.02573879886 | DF15: 0.02213666987 | DH15: 1991Q4 | DI15: 16.83 | DJ15: 13.86 | DK15: 14.72 | DM15: 1991-12-01 | DN15: 15.06 | DO15: 14.72 | DP15: 0.02101694915 | DQ15: 0.0286512928 | DR15: 0.03701658479 | DS15: 0.03533343075 | DU15: 1998-09-01 | DV15: 68.5 | DW15: 69.6 | DX15: 67.3 | DY15: 1949-09-01 | DZ15: 4.1 | EC15: 2012-03-01 | ED15: 972.3427835 | EE15: 970.4853952 | EF15: 1023.750754 | EG15: 1025.401512 | EJ15: 1992Q1 | EK15: 45910800 | EL15: 523422000 | EN15: 1992Q1 | EO15: 2948500 | EP15: 35299500 | ER15: 15.57090046 | ES15: 14.82802873 | ET15: 0.02307734147 | EU15: 0.0250217678 | EV15: 1992-03-01 | EW15: 15.14869801 | EX15: 14.68509859 | EY15: 0.02764261206 | EZ15: 0.03093547602
A16: 2010-06-01 | B16: 2010Q2 | C16: 1001.519757 | D16: -0.0007581496954 | F16: 2010Q2 | G16: 999 | H16: 0.005030181087 | I16: 1009 | J16: -0.01656920078 | K16: 996 | L16: 0.007077856421 | N16: 2010Q2 | O16: 1099 | P16: 0.01665124884 | Q16: 0.001823154057 | R16: 1099 | S16: 0.01665124884 | T16: 0.001823154057 | V16: 2010Q2 | W16: 1086 | X16: 0.03724928367 | Y16: 1086 | Z16: 0.03724928367 | AA16: 0.007421150278 | AC16: 2010Q2 | AD16: 35.72 | AE16: 24.93 | AF16: 26.92 | AG16: 0.0003716090673 | AH16: -0.01138450239 | AJ16: 2010Q2 | AK16: 31.13 | AL16: 0.0362849534 | AM16: 0.01898527005 | AO16: 2010Q2 | AP16: 25.49 | AQ16: 0.01110670369 | AR16: 0.007509881423 | AT16: 2010Q2 | AU16: 145914100 | AV16: 0.0629792597 | AX16: 2010Q2 | AY16: 5420800 | AZ16: 0.06254777819 | BA16: 0.03175475543 | BC16: 2010Q2 | BD16: 1018 | BE16: 1018 | BF16: 1016 | BG16: =BD16/BD12-1 -> 0.018 | BH16: =BE16/BE12-1 -> 0.018 | BI16: =BF16/BF12-1 -> 0.016 | BK16: 2010-06-01 | BL16: 12.75 | BM16: 0.02 | BP16: 2010-06-01 | BQ16: 30.03086442 | BR16: 34.72737034 | BS16: 28.43561419 | BV16: 2010Q2 | BW16: 1008 | BX16: 1018 | BY16: 1021 | BZ16: =BW16/BW12-1 -> 0.008 | CA16: 0.018 | CB16: =BY16/BY12-1 -> 0.021 | CD16: 2010Q2 | CE16: 1018 | CF16: =CE16/CE12-1 -> 0.018 | CG16: 0.004935834156 | CH16: 1014 | CI16: 0.014 | CJ16: 0.00396039604 | CL16: 2010Q2 | CM16: 1008 | CN16: 1018 | CO16: 1018 | CQ16: 2004Q2 | CR16: 1084 | CS16: 1077 | CT16: 1068 | CU16: 1059 | CW16: 1995Q4 | CX16: 727.101197 | CY16: 728.300018 | CZ16: 732.345248 | DB16: 2004-06-01 | DC16: 1084 | DD16: 1068 | DE16: 0.0284629981 | DF16: 0.02298850575 | DH16: 1992Q1 | DI16: 17.09 | DJ16: 13.97 | DK16: 14.83 | DM16: 1992-03-01 | DN16: 15.57 | DO16: 14.83 | DP16: 0.02299605782 | DQ16: 0.02487906012 | DR16: 0.02805114469 | DS16: 0.03092869087 | DU16: 1998-12-01 | DV16: 69.3 | DW16: 70.4 | DX16: 67.9 | DY16: 1949-12-01 | DZ16: 4.1 | EC16: 2012-06-01 | ED16: 975.4914384 | EE16: 976.4169521 | EF16: 1022.313318 | EG16: 1022.121779 | EJ16: 1992Q2 | EK16: 45700300 | EL16: 517826700 | EN16: 1992Q2 | EO16: 3007700 | EP16: 34825600 | ER16: 15.19443429 | ES16: 14.86913937 | ET16: 0.02159629384 | EU16: 0.02181139235 | EV16: 1992-06-01 | EW16: 15.22951782 | EX16: 14.76552843 | EY16: 0.02697026126 | EZ16: 0.02737602889
A17: 2010-09-01 | B17: 2010Q3 | C17: 1006.079027 | D17: =C17/C13-1 -> -0.003012048512 | F17: 2010Q3 | G17: 1004 | H17: 0.005005005005 | I17: 1013 | J17: -0.01554907677 | K17: 1002 | L17: -0.003976143141 | N17: 2010Q3 | O17: 1111 | P17: 0.01461187215 | Q17: 0.01091901729 | R17: 1111 | S17: 0.01461187215 | T17: 0.01091901729 | V17: 2010Q3 | W17: 1097 | X17: 0.0329566855 | Y17: 1097 | Z17: 0.0329566855 | AA17: 0.01012891344 | AC17: 2010Q3 | AD17: 36.02 | AE17: 25.14 | AF17: 27.17 | AG17: 0.01798426377 | AH17: 0.009286775632 | AJ17: 2010Q3 | AK17: 31.5 | AL17: 0.03448275862 | AM17: 0.01188564086 | AO17: 2010Q3 | AP17: 25.75 | AQ17: 0.01258356272 | AR17: 0.01020007846 | AT17: 2010Q3 | AU17: 147982900 | AV17: 0.06881045706 | AX17: 2010Q3 | AY17: 5447400 | AZ17: 0.05020242915 | BA17: 0.04065403124 | BC17: 2010Q3 | BD17: 1021 | BE17: 1021 | BF17: .. | BG17: =BD17/BD13-1 -> 0.01491053678 | BH17: 0.01491053678 | BK17: 2010-09-01 | BL17: 12.75 | BM17: 0.02 | BP17: 2010-09-01 | BQ17: 29.98237624 | BR17: 34.76057606 | BS17: 28.41539154 | BV17: 2010Q3 | BW17: 1011 | BX17: 1021 | BY17: 1024 | BZ17: 0.008982035928 | CA17: 0.01390268123 | CB17: =BY17/BY13-1 -> 0.01285855589 | CD17: 2010Q3 | CE17: 1022 | CF17: 0.01691542289 | CG17: 0.003929273084 | CH17: 1020 | CI17: 0.01593625498 | CJ17: 0.005917159763 | CL17: 2010Q3 | CM17: 1011 | CN17: 1021 | CO17: 1021 | CQ17: 2004Q3 | CR17: 1092 | CS17: .. | CT17: 1075 | CU17: .. | CW17: 1996Q1 | CX17: 730.590166 | CY17: 731.798096 | CZ17: 735.135135 | DB17: 2004-09-01 | DC17: 1092 | DD17: 1075 | DE17: 0.02631578947 | DF17: 0.02186311787 | DH17: 1992Q2 | DI17: 17.01 | DJ17: 14.04 | DK17: 14.87 | DM17: 1992-06-01 | DN17: 15.19 | DO17: 14.87 | DP17: 0.0215198386 | DQ17: 0.02199312715 | DR17: 0.02722488846 | DS17: 0.02734579739 | DU17: 1999-03-01 | DV17: 70 | DW17: 70.8 | DX17: 69 | DY17: 1950-03-01 | DZ17: 4.2 | EC17: 2012-09-01 | ED17: 975.7617421 | EE17: 973.9154569 | EF17: 1023.598958 | EG17: 1021.578032 | EJ17: 1992Q3 | EK17: 45277000 | EL17: 502423800 | EN17: 1992Q3 | EO17: 2974700 | EP17: 33874800 | ER17: 15.22069452 | ES17: 14.83178646 | ET17: 0.008241040871 | EU17: 0.01284788686 | EV17: 1992-09-01 | EW17: 15.26086591 | EX17: 14.81178958 | EY17: 0.01838975029 | EZ17: 0.02220131885
A18: 2010-12-01 | B18: 2010Q4 | C18: 1000 | D18: 0.0007604558537 | F18: 2010Q4 | G18: 1000 | H18: 0.008064516129 | I18: 1000 | J18: -0.01671583088 | K18: 1000 | L18: 0.009081735621 | N18: 2010Q4 | O18: 1137 | P18: 0.04025617566 | Q18: 0.02340234023 | R18: =R17*((O18/O17)-2%) -> 1114.78 | S18: 0.01992680695 | T18: 0.003402340234 | V18: 2010Q4 | W18: 1145 | X18: 0.07209737828 | Y18: =Y17*((W18/W17)-2%) -> 1123.06 | Z18: 0.05155430712 | AA18: 0.02375569736 | AC18: 2010Q4 | AD18: 36.22 | AE18: 25.45 | AF18: 27.42 | AG18: 0.008830022075 | AH18: 0.009201324991 | AJ18: 2010Q4 | AK18: 31.46 | AL18: 0.02209226771 | AM18: -0.00126984127 | AO18: 2010Q4 | AP18: 25.86 | AQ18: 0.01851122489 | AR18: 0.00427184466 | AT18: 2010Q4 | AU18: 150935700 | AV18: 0.06035349402 | AX18: 2010Q4 | AY18: 5503800 | AZ18: 0.05080474254 | BA18: 0.0479681851 | BC18: 2010Q4 | BD18: 1025 | BE18: 1025 | BF18: .. | BG18: 0.01384767557 | BH18: 0.01384767557 | BK18: 2010-12-01 | BL18: 12.75 | BM18: 0.02 | BP18: 2010-12-01 | BQ18: 29.56633245 | BR18: 33.92256816 | BS18: 27.88422164 | BV18: 2010Q4 | BW18: 1013 | BX18: 1023 | BY18: 1027 | BZ18: 0.009970089731 | CA18: 0.008875739645 | CB18: 0.01282051282 | CD18: 2010Q4 | CE18: 1027 | CF18: 0.01884920635 | CG18: 0.004892367906 | CH18: 1026 | CI18: 0.01886792453 | CJ18: 0.005882352941 | CL18: 2010Q4 | CM18: 1013 | CN18: 1025 | CO18: 1023 | CQ18: 2004Q4 | CR18: 1098 | CS18: .. | CT18: 1084 | CU18: .. | CW18: 1996Q2 | CX18: 732.683548 | CY18: 733.896944 | CZ18: 740.714908 | DB18: 2004-12-01 | DC18: 1098 | DD18: 1084 | DE18: 0.02712815716 | DF18: 0.02457466919 | DH18: 1992Q3 | DI18: 17 | DJ18: 13.97 | DK18: 14.83 | DM18: 1992-09-01 | DN18: 15.22 | DO18: 14.83 | DP18: 0.007947019868 | DQ18: 0.01297814208 | DR18: 0.01835184729 | DS18: 0.02210899766 | DU18: 1999-06-01 | DV18: 70.2 | DW18: 71.1 | DX18: 69 | DY18: 1950-06-01 | DZ18: 4.3 | EC18: 2012-12-01 | ED18: 980.2053037 | EE18: 977.4311377 | EF18: 1030.600648 | EG18: 1033.061379 | EJ18: 1992Q4 | EK18: 45481200 | EL18: 517765300 | EN18: 1992Q4 | EO18: 2959300 | EP18: 34860200 | ER18: 15.36890481 | ES18: 14.85261989 | ET18: 0.02048839897 | EU18: 0.009213467336 | EV18: 1992-12-01 | EW18: 15.33778238 | EX18: 14.84542932 | EY18: 0.01831214675 | EZ18: 0.01736704542
A19: 2011-03-01 | B19: 2011Q1 | C19: 1010 | D19: 0.007702805415 | F19: 2011Q1 | G19: 1008 | H19: 0.01306532663 | I19: 1011 | J19: -0.006876227898 | K19: 1012 | L19: 0.01606425703 | N19: 2011Q1 | O19: 1146 | P19: 0.04466727438 | Q19: 0.007915567282 | R19: =R18*O19/O18 -> 1123.604116 | S19: 0.02425170109 | T19: 0.007915567282 | V19: 2011Q1 | W19: 1154 | X19: 0.07050092764 | Y19: =Y18*W19/W18 -> 1131.887546 | Z19: 0.04998844699 | AA19: 0.007860262009 | AC19: 2011Q1 | AD19: 37.49 | AE19: 25.74 | AF19: 27.89 | AG19: 0.02423797282 | AH19: 0.01714077316 | AJ19: 2011Q1 | AK19: 31.38 | AL19: 0.0271685761 | AM19: -0.002542911634 | AO19: 2011Q1 | AP19: 25.96 | AQ19: 0.02608695652 | AR19: 0.003866976025 | AT19: 2011Q1 | AU19: 152565900 | AV19: 0.04364234605 | AX19: 2011Q1 | AY19: 5470400 | AZ19: 0.01905702204 | BA19: 0.04536600541 | BC19: 2011Q1 | BD19: 1033 | BE19: 1033 | BF19: .. | BG19: 0.01773399015 | BH19: 0.01773399015 | BK19: 2011-03-01 | BL19: 12.75 | BM19: 0.02 | BP19: 2011-03-01 | BQ19: 29.8369459 | BR19: 33.57057592 | BS19: 27.7722164 | BV19: 2011Q1 | BW19: 1014 | BX19: 1035 | BY19: 1032 | BZ19: 0.005952380952 | CA19: 0.01769911504 | CB19: 0.0127576055 | CD19: 2011Q1 | CE19: 1031 | CF19: 0.01776900296 | CG19: 0.003894839338 | CH19: 1030 | CI19: 0.0198019802 | CJ19: 0.003898635478 | CL19: 2011Q1 | CM19: 1014 | CN19: 1033 | CO19: 1035 | CQ19: 2005Q1 | CR19: 1106 | CS19: .. | CT19: 1089 | CU19: .. | CW19: 1996Q3 | CX19: 736.870311 | CY19: 738.094638 | CZ19: 744.899738 | DB19: 2005-03-01 | DC19: 1106 | DD19: 1089 | DE19: 0.02788104089 | DF19: 0.02542372881 | DH19: 1992Q4 | DI19: 17.08 | DJ19: 14.03 | DK19: 14.85 | DM19: 1992-12-01 | DN19: 15.37 | DO19: 14.85 | DP19: 0.02058432935 | DQ19: 0.008831521739 | DR19: 0.01824395751 | DS19: 0.01714958975 | DU19: 1999-09-01 | DV19: 70.8 | DW19: 71.7 | DX19: 69.9 | DY19: 1950-09-01 | DZ19: 4.4 | EC19: 2013-03-01 | ED19: 979.713799 | EE19: 976.951448 | EF19: 1031.958998 | EG19: 1032.608318 | EJ19: 1993Q1 | EK19: 45693800 | EL19: 529308400 | EN19: 1993Q1 | EO19: 2959400 | EP19: 35659900 | ER19: 15.44022437 | ES19: 14.84323848 | ET19: -0.008392326983 | EU19: 0.00102574376 | EV19: 1993-03-01 | EW19: 15.30550117 | EX19: 14.8492801 | EY19: 0.01035093322 | EZ19: 0.0111801434
A20: 2011-06-01 | B20: 2011Q2 | C20: 1015 | D20: 0.01345978739 | F20: 2011Q2 | G20: 1010 | H20: 0.01101101101 | I20: 1017 | J20: 0.00792864222 | K20: 1018 | L20: 0.02208835341 | N20: 2011Q2 | O20: 1157 | P20: 0.05277525023 | Q20: 0.009598603839 | R20: =R19*O20/O19 -> 1134.389147 | S20: 0.03220122555 | T20: 0.009598603839 | V20: 2011Q2 | W20: 1158 | X20: 0.06629834254 | Y20: =Y19*W20/W19 -> 1135.8109 | Z20: 0.04586639002 | AA20: 0.003466204506 | AC20: 2011Q2 | AD20: 38.25 | AE20: 25.8 | AF20: 28.05 | AG20: 0.04197622585 | AH20: 0.005736823234 | AJ20: 2011Q2 | AK20: 31.98 | AL20: 0.02730485063 | AM20: 0.01912045889 | AO20: 2011Q2 | AP20: 26.27 | AQ20: 0.03060023539 | AR20: 0.01194144838 | AT20: 2011Q2 | AU20: 152942500 | AV20: 0.04816806601 | AX20: 2011Q2 | AY20: 5451600 | AZ20: 0.005681818182 | BA20: 0.03109326093 | BC20: 2011Q2 | BD20: 1034 | BE20: 1034 | BF20: 1039 | BG20: 0.01571709234 | BH20: 0.01571709234 | BI20: =BF20/BF16-1 -> 0.02263779528 | BK20: 2011-06-01 | BL20: 13 | BM20: 0.01960784314 | BP20: 2011-06-01 | BQ20: 29.72281763 | BR20: 33.88719101 | BS20: 27.83666379 | BV20: 2011Q2 | BW20: 1015 | BX20: 1035 | BY20: 1035 | BZ20: 0.006944444444 | CA20: 0.01669941061 | CB20: 0.01371204701 | CD20: 2011Q2 | CE20: 1033 | CF20: 0.01473477407 | CG20: 0.00193986421 | CH20: 1035 | CI20: 0.02071005917 | CJ20: 0.004854368932 | CL20: 2011Q2 | CM20: 1015 | CN20: 1034 | CO20: 1035 | CQ20: 2005Q2 | CR20: 1125 | CS20: 1119 | CT20: 1097 | CU20: 1088 | CW20: 1996Q4 | CX20: 741.754868 | CY20: 742.991949 | CZ20: 749.78204 | DB20: 2005-06-01 | DC20: 1125 | DD20: 1097 | DE20: 0.03782287823 | DF20: 0.02715355805 | DH20: 1993Q1 | DI20: 17.09 | DJ20: 14.04 | DK20: 14.84 | DM20: 1993-03-01 | DN20: 15.44 | DO20: 14.84 | DP20: -0.008349389852 | DQ20: 0.0006743088334 | DR20: 0.01035273724 | DS20: 0.01109010632 | DU20: 1999-12-01 | DV20: 71.2 | DW20: 72 | DX20: 70.4 | DY20: 1950-12-01 | DZ20: 4.6 | EC20: 2013-06-01 | ED20: 984.4821429 | EE20: 983.5629252 | EF20: 1031.519049 | EG20: 1033.050883 | EJ20: 1993Q2 | EK20: 46523400 | EL20: 526442700 | EN20: 1993Q2 | EO20: 3033900 | EP20: 35301800 | ER20: 15.33451992 | ES20: 14.91263052 | ET20: 0.00921953637 | EU20: 0.002924927099 | EV20: 1993-06-01 | EW20: 15.34089023 | EX20: 14.86033815 | EY20: 0.007312930276 | EZ20: 0.006421017661
A21: 2011-09-01 | B21: 2011Q3 | C21: 1020 | D21: 0.01383685836 | F21: 2011Q3 | G21: 1016 | H21: 0.01195219124 | I21: 1021 | J21: 0.00789733465 | K21: 1026 | L21: 0.02395209581 | N21: 2011Q3 | O21: 1162 | P21: 0.04590459046 | Q21: 0.004321521175 | R21: =R20*O21/O20 -> 1139.291434 | S21: 0.02546483672 | T21: 0.004321521175 | V21: 2011Q3 | W21: 1168 | X21: 0.06472196901 | Y21: =Y20*W21/W20 -> 1145.619284 | Z21: 0.04432022228 | AA21: 0.008635578584 | AC21: 2011Q3 | AD21: 36.86 | AE21: 25.74 | AF21: 27.76 | AG21: 0.02171512698 | AH21: -0.01033868093 | AJ21: 2011Q3 | AK21: 32.1 | AL21: 0.01904761905 | AM21: 0.003752345216 | AO21: 2011Q3 | AP21: 26.58 | AQ21: 0.03223300971 | AR21: 0.01180053293 | AT21: 2011Q3 | AU21: 150863800 | AV21: 0.01946778986 | AX21: 2011Q3 | AY21: 5433800 | AZ21: -0.002496603884 | BA21: 0.01795659868 | BC21: 2011Q3 | BD21: 1039 | BE21: 1039 | BF21: .. | BG21: 0.01762977473 | BH21: 0.01762977473 | BK21: 2011-09-01 | BL21: 13 | BM21: 0.01960784314 | BP21: 2011-09-01 | BQ21: 29.28895009 | BR21: 33.86798623 | BS21: 28.04395869 | BV21: 2011Q3 | BW21: 1019 | BX21: 1039 | BY21: 1041 | BZ21: 0.007912957468 | CA21: 0.01762977473 | CB21: 0.0166015625 | CD21: 2011Q3 | CE21: 1040 | CF21: 0.01761252446 | CG21: 0.006776379477 | CH21: 1040 | CI21: 0.01960784314 | CJ21: 0.004830917874 | CL21: 2011Q3 | CM21: 1020 | CN21: 1039 | CO21: 1039 | CQ21: 2005Q3 | CR21: 1138 | CS21: .. | CT21: 1108 | CU21: .. | CW21: 1997Q1 | CX21: 746.639425 | CY21: 747.889259 | CZ21: 755.361813 | DB21: 2005-09-01 | DC21: 1138 | DD21: 1108 | DE21: 0.04212454212 | DF21: 0.03069767442 | DH21: 1993Q2 | DI21: 17.12 | DJ21: 14.12 | DK21: 14.91 | DM21: 1993-06-01 | DN21: 15.33 | DO21: 14.91 | DP21: 0.009216589862 | DQ21: 0.002689979825 | DR21: 0.007296711914 | DS21: 0.006281609439 | DU21: 2000-03-01 | DV21: 71.4 | DW21: 72.2 | DX21: 70.5 | DY21: 1951-03-01 | DZ21: 4.8 | EC21: 2013-09-01 | ED21: 978.0909857 | EE21: 976.2695872 | EF21: 1031.103059 | EG21: 1026.4219 | EJ21: 1993Q3 | EK21: 46761800 | EL21: 520878300 | EN21: 1993Q3 | EO21: 3059300 | EP21: 35079300 | ER21: 15.28513059 | ES21: 14.84859447 | ET21: 0.004233450813 | EU21: 0.001133242415 | EV21: 1993-09-01 | EW21: 15.35645485 | EX21: 14.86427866 | EY21: 0.006263664116 | EZ21: 0.0035437361
A22: 2011-12-01 | B22: 2011Q4 | C22: 1024 | D22: 0.024 | F22: 2011Q4 | G22: 1017 | H22: 0.017 | I22: 1028 | J22: 0.028 | K22: 1029 | L22: 0.029 | N22: 2011Q4 | O22: 1158 | P22: 0.01846965699 | Q22: -0.003442340792 | R22: 1135.369604 | S22: 0.01846965699 | T22: -0.003442340792 | V22: 2011Q4 | W22: 1174 | X22: 0.02532751092 | Y22: 1151.504314 | Z22: 0.02532751092 | AA22: 0.005136986301 | AC22: 2011Q4 | AD22: 37.9 | AE22: 26.01 | AF22: 28.21 | AG22: 0.0288110868 | AH22: 0.01621037464 | AJ22: 2011Q4 | AK22: 32.41 | AL22: 0.03019707565 | AM22: 0.009657320872 | AO22: 2011Q4 | AP22: 26.59 | AQ22: 0.02822892498 | AR22: 0.0003762227239 | AT22: 2011Q4 | AU22: 152487700 | AV22: 0.01028252428 | AX22: 2011Q4 | AY22: 5406200 | AZ22: -0.01773320251 | BA22: 0.001007355072 | BC22: 2011Q4 | BD22: 1043 | BE22: 1043 | BF22: .. | BG22: 0.01756097561 | BH22: 0.01756097561 | BK22: 2011-12-01 | BL22: 13 | BM22: 0.01960784314 | BP22: 2011-12-01 | BQ22: 29.86654577 | BR22: 34.31317789 | BS22: 28.15141623 | BV22: 2011Q4 | BW22: 1024 | BX22: 1040 | BY22: 1045 | BZ22: 0.01085883514 | CA22: 0.01661779081 | CB22: 0.01752677702 | CD22: 2011Q4 | CE22: 1046 | CF22: 0.01850048685 | CG22: 0.005769230769 | CH22: 1047 | CI22: 0.02046783626 | CJ22: 0.006730769231 | CL22: 2011Q4 | CM22: 1024 | CN22: 1043 | CO22: 1040 | CQ22: 2005Q4 | CR22: 1149 | CS22: .. | CT22: 1117 | CU22: .. | CW22: 1997Q2 | CX22: 750.826188 | CY22: 752.086954 | CZ22: 759.546643 | DB22: 2005-12-01 | DC22: 1149 | DD22: 1117 | DE22: 0.04644808743 | DF22: 0.03044280443 | DH22: 1993Q3 | DI22: 17.09 | DJ22: 14.04 | DK22: 14.85 | DM22: 1993-09-01 | DN22: 15.29 | DO22: 14.85 | DP22: 0.004599211564 | DQ22: 0.001348617667 | DR22: 0.006459256024 | DS22: 0.00338093023 | DU22: 2000-06-01 | DV22: 71.8 | DW22: 72.5 | DX22: 71.1 | DY22: 1951-06-01 | DZ22: 5.1 | EC22: 2013-12-01 | ED22: 980.9074074 | EE22: 976.3577441 | EF22: 1031.123293 | EG22: 1029.962586 | EJ22: 1993Q4 | EK22: 46491400 | EL22: 535393000 | EN22: 1993Q4 | EO22: 3039900 | EP22: 35952100 | ER22: 15.29372677 | ES22: 14.8918422 | ET22: -0.004891567888 | EU22: 0.002640766966 | EV22: 1993-12-01 | EW22: 15.33763903 | EX22: 14.87411994 | EY22: -9.345741121e-06 | EZ22: 0.00193262306
A23: 2012-03-01 | B23: 2012Q1 | C23: 1027 | D23: =C23/C19-1 -> 0.01683168317 | F23: 2012Q1 | G23: 1018 | H23: 0.009920634921 | I23: 1031 | J23: 0.01978239367 | K23: 1034 | L23: 0.02173913043 | N23: 2012Q1 | O23: 1164 | P23: =O23/O19-1 -> 0.01570680628 | Q23: 0.00518134715 | R23: 1141.252348 | S23: =R23/R19-1 -> 0.01570680628 | T23: 0.00518134715 | V23: 2012Q1 | W23: 1177 | X23: 0.01993067591 | Y23: 1154.44683 | Z23: 0.01993067591 | AA23: 0.002555366269 | AC23: 2012Q1 | AD23: 37.56 | AE23: 26.29 | AF23: 28.43 | AG23: 0.01936177842 | AH23: 0.00779865296 | AJ23: 2012Q1 | AK23: 32.46 | AL23: 0.034416826 | AM23: 0.001542733724 | AO23: 2012Q1 | AP23: 26.96 | AQ23: 0.03852080123 | AR23: 0.01391500564 | AT23: 2012Q1 | AU23: 156316700 | AV23: =AU23/AU19-1 -> 0.02458478598 | AX23: 2012Q1 | AY23: 5497400 | AZ23: =AY23/AY19-1 -> 0.0049356537 | BA23: =SUM(AY20:AY23)/SUM(AY16:AY19)-1 -> -0.002444786287 | BC23: 2012Q1 | BD23: 1047 | BE23: 1047 | BF23: .. | BG23: 0.01355275895 | BH23: 0.01355275895 | BK23: 2012-03-01 | BL23: 13 | BM23: 0.01960784314 | BP23: 2012-03-01 | BQ23: 29.94431271 | BR23: 34.18896907 | BS23: 28.39601375 | BV23: 2012Q1 | BW23: 1024 | BX23: 1045 | BY23: 1048 | BZ23: 0.009861932939 | CA23: 0.009661835749 | CB23: 0.01550387597 | CD23: 2012Q1 | CE23: 1049 | CF23: 0.01745877789 | CG23: 0.002868068834 | CH23: 1052 | CI23: 0.0213592233 | CJ23: 0.004775549188 | CL23: 2012Q1 | CM23: 1024 | CN23: 1047 | CO23: 1045 | CQ23: 2006Q1 | CR23: 1160 | CS23: .. | CT23: 1124 | CU23: .. | CW23: 1997Q3 | CX23: 755.012951 | CY23: 755.585033 | CZ23: 763.731473 | DB23: 2006-03-01 | DC23: 1160 | DD23: 1124 | DE23: 0.04882459313 | DF23: 0.03213957759 | DH23: 1993Q4 | DI23: 17.13 | DJ23: 14.11 | DK23: 14.89 | DM23: 1993-12-01 | DN23: 15.29 | DO23: 14.89 | DP23: -0.005204944697 | DQ23: 0.002693602694 | DR23: 4.001703183e-05 | DS23: 0.001851246555 | DU23: 2000-09-01 | DV23: 72.5 | DW23: 73.3 | DX23: 71.5 | DY23: 1951-09-01 | DZ23: 5.3 | EC23: 2014-03-01 | ED23: 978.522651 | EE23: 973.0813758 | EF23: 1031.35622 | EG23: 1030.190072 | EJ23: 1994Q1 | EK23: 48039800 | EL23: 555002200 | EN23: 1994Q1 | EO23: 3082700 | EP23: 37052500 | ER23: 15.58367665 | ES23: 14.97880575 | ET23: 0.00929081559 | EU23: 0.009133267325 | EV23: 1994-03-01 | EW23: =SUM(EK20:EK23)/SUM(EO20:EO23) -> 15.37487516 | EX23: 14.90885214 | EY23: 0.004532617961 | EZ23: 0.004011779611
A24: 2012-06-01 | B24: 2012Q2 | C24: 1035 | D24: =C24/C20-1 -> 0.0197044335 | F24: 2012Q2 | G24: 1028 | H24: 0.01782178218 | I24: 1036 | J24: 0.01868239921 | K24: 1044 | L24: 0.02554027505 | N24: 2012Q2 | O24: 1168 | P24: 0.009507346586 | Q24: 0.003436426117 | R24: 1145.174178 | S24: 0.009507346586 | T24: 0.003436426117 | V24: 2012Q2 | W24: 1182 | X24: 0.0207253886 | Y24: 1159.351022 | Z24: 0.0207253886 | AA24: 0.00424808836 | AC24: 2012Q2 | AD24: 37.85 | AE24: 26.6 | AF24: 28.71 | AG24: 0.02352941176 | AH24: 0.009848751319 | AJ24: 2012Q2 | AK24: 32.56 | AL24: 0.01813633521 | AM24: 0.003080714726 | AO24: 2012Q2 | AP24: 27 | AQ24: 0.02778835173 | AR24: 0.001483679525 | AT24: 2012Q2 | AU24: 160645200 | AV24: =AU24/AU20-1 -> 0.05036337186 | AX24: 2012Q2 | AY24: 5596300 | AZ24: =AY24/AY20-1 -> 0.02654266637 | BA24: =SUM(AY21:AY24)/SUM(AY17:AY20)-1 -> 0.002765941883 | BC24: 2012Q2 | BD24: 1054 | BE24: 1054 | BF24: 1069 | BG24: =BD24/BD20-1 -> 0.01934235977 | BH24: =BE24/BE20-1 -> 0.01934235977 | BI24: =BF24/BF20-1 -> 0.02887391723 | BK24: 2012-06-01 | BL24: 13.5 | BM24: 0.03846153846 | BP24: 2012-06-01 | BQ24: 30.13566781 | BR24: 34.17684932 | BS24: 28.34075342 | BV24: 2012Q2 | BW24: 1025 | BX24: 1055 | BY24: 1052 | BZ24: 0.009852216749 | CA24: 0.0193236715 | CB24: 0.01642512077 | CD24: 2012Q2 | CE24: 1054 | CF24: 0.02032913843 | CG24: 0.004766444233 | CH24: 1057 | CI24: 0.02125603865 | CJ24: 0.004752851711 | CL24: 2012Q2 | CM24: 1025 | CN24: 1054 | CO24: 1055 | CQ24: 2006Q2 | CR24: 1167 | CS24: 1164 | CT24: 1131 | CU24: 1127 | CW24: 1997Q4 | CX24: 757.804126 | CY24: 759.083112 | CZ24: 765.823888 | DB24: 2006-06-01 | DC24: 1167 | DD24: 1131 | DE24: 0.03733333333 | DF24: 0.03099361896 | DH24: 1994Q1 | DI24: 17.28 | DJ24: 14.23 | DK24: 14.98 | DM24: 1994-03-01 | DN24: 15.58 | DO24: 14.98 | DP24: 0.009067357513 | DQ24: 0.009433962264 | DR24: 0.004402412776 | DS24: 0.004036574911 | DU24: 2000-12-01 | DV24: 73.1 | DW24: 73.8 | DX24: 72.2 | DY24: 1951-12-01 | DZ24: 5.7 | EC24: 2014-06-01 | ED24: 979.6845188 | EE24: 974.2569038 | EF24: 1030.825228 | EG24: 1031.38799 | EJ24: 1994Q2 | EK24: 48905700 | EL24: 568271700 | EN24: 1994Q2 | EO24: 3169600 | EP24: 37637500 | ER24: 15.42961257 | ES24: 15.09855065 | ET24: =ER24/ER20-1 -> 0.006201214321 | EU24: 0.01246729274 | EV24: 1994-06-01 | EW24: 15.39883415 | EX24: 14.95693289 | EY24: 0.003777090001 | EZ24: 0.006500171072
A25: 2012-09-01 | B25: 2012Q3 | C25: 1043 | D25: =C25/C21-1 -> 0.02254901961 | F25: 2012Q3 | G25: 1042 | H25: 0.02559055118 | I25: 1042 | J25: 0.02056807052 | K25: 1047 | L25: 0.02046783626 | N25: 2012Q3 | O25: 1171 | P25: 0.007745266781 | Q25: 0.002568493151 | R25: 1148.11555 | S25: 0.007745266781 | T25: 0.002568493151 | V25: 2012Q3 | W25: 1193 | X25: 0.02140410959 | Y25: 1170.140245 | Z25: 0.02140410959 | AA25: 0.009306260575 | AC25: 2012Q3 | AD25: 38.09 | AE25: 26 | AF25: 28.24 | AG25: 0.01729106628 | AH25: -0.01637060258 | AJ25: 2012Q3 | AK25: 32.66 | AL25: 0.01744548287 | AM25: 0.003071253071 | AO25: 2012Q3 | AP25: 27.31 | AQ25: 0.02746425884 | AR25: 0.01148148148 | AT25: 2012Q3 | AU25: 157379800 | AV25: =AU25/AU21-1 -> 0.04319127584 | AX25: 2012Q3 | AY25: 5572600 | AZ25: =AY25/AY21-1 -> 0.02554381832 | BA25: =SUM(AY22:AY25)/SUM(AY18:AY21)-1 -> 0.009739427986 | BC25: 2012Q3 | BD25: 1057 | BE25: 1057 | BF25: .. | BG25: =BD25/BD21-1 -> 0.01732435034 | BH25: 0.01732435034 | BK25: 2012-09-01 | BL25: 13.5 | BM25: 0.03846153846 | BP25: 2012-09-01 | BQ25: 29.5663877 | BR25: 34.19398804 | BS25: 28.59270709 | BV25: 2012Q3 | BW25: 1030 | BX25: 1055 | BY25: 1055 | BZ25: 0.01079489696 | CA25: 0.01539942252 | CB25: 0.01344860711 | CD25: 2012Q3 | CE25: 1060 | CF25: 0.01923076923 | CG25: 0.00569259962 | CH25: 1062 | CI25: 0.02115384615 | CJ25: 0.004730368969 | CL25: 2012Q3 | CM25: 1031 | CN25: 1057 | CO25: 1055 | CQ25: 2006Q3 | CR25: 1196 | CS25: .. | CT25: 1143 | CU25: .. | CW25: 1998Q1 | CX25: 760.595302 | CY25: 761.881575 | CZ25: 765.823888 | DB25: 2006-09-01 | DC25: 1196 | DD25: 1143 | DE25: 0.05096660808 | DF25: 0.03158844765 | DH25: 1994Q2 | DI25: 17.32 | DJ25: 14.39 | DK25: 15.1 | DM25: 1994-06-01 | DN25: 15.43 | DO25: 15.1 | DP25: 0.006523157208 | DQ25: 0.01274312542 | DR25: 0.003731594937 | DS25: 0.006543829387 | DU25: 2001-03-01 | DV25: 73.6 | DW25: 74.1 | DX25: 73 | DY25: 1952-03-01 | DZ25: 5.9 | EC25: 2014-09-01 | ED25: 979.1209341 | EE25: 972.8098415 | EF25: 1037.208191 | EG25: 1036.022311 | EJ25: 1994Q3 | EK25: 47417700 | EL25: 562151400 | EN25: 1994Q3 | EO25: 3142300 | EP25: 37235200 | ER25: 15.09012507 | ES25: 15.09731115 | ET25: -0.0127578575 | EU25: 0.0167501831 | EV25: 1994-09-01 | EW25: 15.34879569 | EX25: 15.01797977 | EY25: -0.000498758314 | EZ25: 0.01034030086
A26: 2012-12-01 | B26: 2012Q4 | C26: 1039 | D26: =C26/C22-1 -> 0.0146484375 | F26: 2012Q4 | G26: 1029 | H26: 0.01179941003 | I26: 1045 | J26: 0.01653696498 | K26: 1045 | L26: 0.01554907677 | N26: 2012Q4 | O26: 1169 | P26: 0.009499136442 | Q26: -0.00170794193 | R26: 1146.154635 | S26: 0.009499136442 | T26: -0.00170794193 | V26: 2012Q4 | W26: 1206 | X26: 0.0272572402 | Y26: 1182.891144 | Z26: 0.0272572402 | AA26: 0.01089689858 | AC26: 2012Q4 | AD26: 38.16 | AE26: 26.25 | AF26: 28.43 | AG26: 0.00779865296 | AH26: 0.006728045326 | AJ26: 2012Q4 | AK26: 33.27 | AL26: 0.02653502006 | AM26: 0.01867728108 | AO26: 2012Q4 | AP26: 27.3 | AQ26: 0.02670176758 | AR26: -0.0003661662395 | AT26: 2012Q4 | AU26: 160010000 | AV26: =AU26/AU22-1 -> 0.04933053617 | AX26: 2012Q4 | AY26: 5627300 | AZ26: =AY26/AY22-1 -> 0.04089748807 | BA26: =SUM(AY23:AY26)/SUM(AY19:AY22)-1 -> 0.02442790185 | BC26: 2012Q4 | BD26: 1060 | BE26: 1060 | BF26: .. | BG26: 0.0162991371 | BH26: 0.0162991371 | BK26: 2012-12-01 | BL26: 13.5 | BM26: 0.03846153846 | BP26: 2012-12-01 | BQ26: 29.8162361 | BR26: 34.89223268 | BS26: 28.63113772 | BV26: 2012Q4 | BW26: 1040 | BX26: 1057 | BY26: 1060 | BZ26: 0.015625 | CA26: 0.01634615385 | CB26: 0.01435406699 | CD26: 2012Q4 | CE26: 1063 | CF26: 0.01625239006 | CG26: 0.002830188679 | CH26: 1067 | CI26: 0.01910219675 | CJ26: 0.004708097928 | CL26: 2012Q4 | CM26: 1040 | CN26: 1060 | CO26: 1057 | CQ26: 2006Q4 | CR26: 1210 | CS26: .. | CT26: 1153 | CU26: .. | CW26: 1998Q2 | CX26: 765.479859 | CY26: 766.778885 | CZ26: 769.311247 | DB26: 2006-12-01 | DC26: 1210 | DD26: 1153 | DE26: 0.05308964317 | DF26: 0.03222918532 | DH26: 1994Q3 | DI26: 17.22 | DJ26: 14.4 | DK26: 15.1 | DM26: 1994-09-01 | DN26: 15.09 | DO26: 15.1 | DP26: -0.01308044474 | DQ26: 0.01683501684 | DR26: -0.0007139488755 | DS26: 0.01041314721 | DU26: 2001-06-01 | DV26: 74.1 | DW26: 74.4 | DX26: 73.6 | DY26: 1952-06-01 | DZ26: 6.1 | EC26: 2014-12-01 | ED26: 982.5630744 | EE26: 975.3383459 | EF26: 1042.158211 | EG26: 1042.681538 | EJ26: 1994Q4 | EK26: 50283500 | EL26: 582578300 | EN26: 1994Q4 | EO26: 3175100 | EP26: 38436200 | ER26: 15.83682404 | ES26: 15.15702125 | ET26: 0.03551111367 | EU26: 0.0178070007 | EV26: 1994-12-01 | EW26: 15.48538947 | EX26: 15.08368238 | EY26: 0.009633192928 | EZ26: 0.01408906493
A27: 2013-03-01 | B27: 2013Q1 | C27: 1045 | D27: =C27/C23-1 -> 0.01752677702 | F27: 2013Q1 | G27: 1035 | H27: 0.01669941061 | I27: 1050 | J27: 0.01842870999 | K27: 1053 | L27: 0.01837524178 | N27: 2013Q1 | O27: 1174 | P27: 0.008591065292 | Q27: 0.004277159966 | R27: 1151.056922 | S27: 0.008591065292 | T27: 0.004277159966 | V27: 2013Q1 | W27: 1221 | X27: 0.03738317757 | Y27: 1197.603721 | Z27: 0.03738317757 | AA27: 0.01243781095 | AC27: 2013Q1 | AD27: 37.4 | AE27: 26.34 | AF27: 28.37 | AG27: -0.002110446711 | AH27: -0.002110446711 | AJ27: 2013Q1 | AK27: 32.77 | AL27: 0.00955021565 | AM27: -0.01502855425 | AO27: 2013Q1 | AP27: 27.52 | AQ27: 0.02077151335 | AR27: 0.008058608059 | AT27: 2013Q1 | AU27: 159906100 | AV27: =AU27/AU23-1 -> 0.02296235783 | AX27: 2013Q1 | AY27: 5636700 | AZ27: =AY27/AY23-1 -> 0.02533925128 | BA27: =SUM(AY24:AY27)/SUM(AY20:AY23)-1 -> 0.02955160861 | BC27: 2013Q1 | BD27: 1064 | BE27: 1064 | BF27: .. | BG27: 0.01623686724 | BH27: 0.01623686724 | BK27: 2013-03-01 | BL27: 13.5 | BM27: 0.03846153846 | BP27: 2013-03-01 | BQ27: 29.62659284 | BR27: 34.22148211 | BS27: 28.73894378 | BV27: 2013Q1 | BW27: 1043 | BX27: 1061 | BY27: 1064 | BZ27: 0.0185546875 | CA27: 0.01531100478 | CB27: 0.01526717557 | CD27: 2013Q1 | CE27: 1067 | CF27: 0.01715919924 | CG27: 0.003762935089 | CH27: 1071 | CI27: 0.0180608365 | CJ27: 0.003748828491 | CL27: 2013Q1 | CM27: 1043 | CN27: 1064 | CO27: 1061 | CQ27: 2007Q1 | CR27: 1217 | CS27: .. | CT27: 1160 | CU27: .. | CW27: 1998Q3 | CX27: 768.968828 | CY27: 769.577348 | CZ27: 771.403662 | DB27: 2007-03-01 | DC27: 1217 | DD27: 1160 | DE27: 0.04913793103 | DF27: 0.03202846975 | DH27: 1994Q4 | DI27: 17.52 | DJ27: 14.41 | DK27: 15.16 | DM27: 1994-12-01 | DN27: 15.84 | DO27: 15.16 | DP27: 0.03597122302 | DQ27: 0.01813297515 | DR27: =GEOMEAN(DN24:DN27)/GEOMEAN(DN20:DN23)-1 -> 0.009469829913 | DS27: 0.01428044699 | DU27: 2001-09-01 | DV27: 74.9 | DW27: 75.7 | DX27: 73.9 | DY27: 1952-09-01 | DZ27: 6.2 | EC27: 2015-03-01 | ED27: 986.0167364 | EE27: 976.9707113 | EF27: 1044.508533 | EG27: 1043.305012 | EJ27: 1995Q1 | EK27: 49190000 | EL27: 594886200 | EN27: 1995Q1 | EO27: 3099700 | EP27: 38977100 | ER27: 15.86927767 | ES27: 15.26245411 | ET27: 0.01832693474 | EU27: 0.01893664714 | EV27: 1995-03-01 | EW27: 15.55585658 | EX27: 15.15495581 | EY27: =EW27/EW23-1 -> 0.01177124466 | EZ27: 0.01650721776
A28: 2013-06-01 | B28: 2013Q2 | C28: 1033 | D28: -0.00193236715 | F28: 2013Q2 | G28: 1017 | H28: -0.01070038911 | I28: 1037 | J28: 0.0009652509653 | K28: 1055 | L28: 0.01053639847 | N28: 2013Q2 | O28: 1176 | P28: 0.006849315068 | Q28: 0.001703577513 | R28: 1153.017836 | S28: 0.006849315068 | T28: 0.001703577513 | V28: 2013Q2 | W28: 1229 | X28: 0.03976311337 | Y28: 1205.450428 | Z28: 0.03976311337 | AA28: 0.006552006552 | AC28: 2013Q2 | AD28: 37.8 | AE28: 26.4 | AF28: 28.5 | AG28: -0.007314524556 | AH28: 0.004582305252 | AJ28: 2013Q2 | AK28: 33.36 | AL28: 0.02457002457 | AM28: 0.0180042722 | AO28: 2013Q2 | AP28: 27.55 | AQ28: 0.02037037037 | AR28: 0.001090116279 | AT28: 2013Q2 | AU28: 163872800 | AV28: =AU28/AU24-1 -> 0.0200914811 | AX28: 2013Q2 | AY28: 5750100 | AZ28: =AY28/AY24-1 -> 0.02748244376 | BA28: =SUM(AY25:AY28)/SUM(AY21:AY24)-1 -> 0.02977153877 | BC28: 2013Q2 | BD28: 1071 | BE28: 1071 | BF28: 1088 | BG28: 0.01612903226 | BH28: 0.01612903226 | BI28: =BF28/BF24-1 -> 0.01777362021 | BK28: 2013-06-01 | BL28: 13.75 | BM28: 0.01851851852 | BP28: 2013-06-01 | BQ28: 29.71173469 | BR28: 34.77836735 | BS28: 28.72134354 | BV28: 2013Q2 | BW28: 1043 | BX28: 1070 | BY28: 1067 | BZ28: 0.01756097561 | CA28: 0.01421800948 | CB28: 0.01425855513 | CD28: 2013Q2 | CE28: 1073 | CF28: 0.01802656546 | CG28: 0.005623242737 | CH28: 1075 | CI28: 0.01702932829 | CJ28: 0.003734827264 | CL28: 2013Q2 | CM28: 1043 | CN28: 1071 | CO28: 1070 | CQ28: 2007Q2 | CR28: 1224 | CS28: 1232 | CT28: 1168 | CU28: 1173 | CW28: 1998Q4 | CX28: 771.06221 | CY28: 772.375811 | CZ28: 772.798605 | DB28: 2007-06-01 | DC28: 1224 | DD28: 1168 | DE28: 0.04884318766 | DF28: 0.03271441202 | DH28: 1995Q1 | DI28: 17.73 | DJ28: 14.53 | DK28: 15.26 | DM28: 1995-03-01 | DN28: 15.87 | DO28: 15.26 | DP28: 0.01861360719 | DQ28: 0.01869158879 | DR28: 0.01184892054 | DS28: 0.01659801021 | DU28: 2001-12-01 | DV28: 75.4 | DW28: 76.3 | DX28: 74.4 | DY28: 1952-12-01 | DZ28: 6.3 | EC28: 2015-06-01 | ED28: 984.6108333 | EE28: 974.7016667 | EF28: 1041.981 | EG28: 1043.336165 | EJ28: 1995Q2 | EK28: 49344500 | EL28: 597392300 | EN28: 1995Q2 | EO28: 3124400 | EP28: 38795400 | ER28: 15.79327231 | ES28: 15.39853436 | ET28: 0.02356894817 | EU28: 0.01986837821 | EV28: 1995-06-01 | EW28: 15.64690826 | EX28: 15.2303754 | EY28: 0.01610992835 | EZ28: 0.01828199111
A29: 2013-09-01 | B29: 2013Q3 | C29: 1038 | D29: -0.004793863854 | F29: 2013Q3 | G29: 1022 | H29: -0.01919385797 | I29: 1044 | J29: 0.001919385797 | K29: 1057 | L29: 0.009551098376 | N29: 2013Q3 | O29: 1187 | P29: 0.01366353544 | Q29: 0.009353741497 | R29: 1163.802867 | S29: 0.01366353544 | T29: 0.009353741497 | V29: 2013Q3 | W29: 1237 | X29: 0.03688181056 | Y29: 1213.297135 | Z29: 0.03688181056 | AA29: 0.006509357201 | AC29: 2013Q3 | AD29: 38.11 | AE29: 26.45 | AF29: 28.56 | AG29: 0.01133144476 | AH29: 0.002105263158 | AJ29: 2013Q3 | AK29: 33.87 | AL29: 0.03704837722 | AM29: 0.01528776978 | AO29: 2013Q3 | AP29: 27.99 | AQ29: 0.02489930428 | AR29: 0.01597096189 | AT29: 2013Q3 | AU29: 167360700 | AV29: 0.06341919357 | AX29: 2013Q3 | AY29: 5860300 | AZ29: 0.0516276065 | BA29: 0.03633027523 | BC29: 2013Q3 | BD29: 1074 | BE29: 1074 | BF29: .. | BG29: 0.01608325449 | BH29: 0.01608325449 | BK29: 2013-09-01 | BL29: 13.75 | BM29: 0.01851851852 | BP29: 2013-09-01 | BQ29: 29.49836563 | BR29: 34.98283067 | BS29: 28.90963774 | BV29: 2013Q3 | BW29: 1050 | BX29: 1072 | BY29: 1071 | BZ29: 0.01941747573 | CA29: 0.01611374408 | CB29: 0.01516587678 | CD29: 2013Q3 | CE29: 1077 | CF29: 0.01603773585 | CG29: 0.003727865797 | CH29: 1079 | CI29: 0.01600753296 | CJ29: 0.003720930233 | CL29: 2013Q3 | CM29: 1050 | CN29: 1074 | CO29: 1072 | CQ29: 2007Q3 | CR29: 1237 | CS29: .. | CT29: 1178 | CU29: .. | CW29: 1999Q1 | CX29: 774.551179 | CY29: 775.174274 | CZ29: 772.798605 | DB29: 2007-09-01 | DC29: 1237 | DD29: 1178 | DE29: 0.03428093645 | DF29: 0.03062117235 | DH29: 1995Q2 | DI29: 17.76 | DJ29: 14.69 | DK29: 15.4 | DM29: 1995-06-01 | DN29: 15.79 | DO29: 15.4 | DP29: 0.02333117304 | DQ29: 0.01986754967 | DR29: 0.01604696026 | DS29: 0.01838119858 | DU29: 2002-03-01 | DV29: 76.2 | DW29: 76.9 | DX29: 75.4 | DY29: 1953-03-01 | DZ29: 6.3 | EC29: 2015-09-01 | ED29: 984.0332226 | EE29: 975.0548173 | EF29: 1049.068579 | EG29: 1049.544806 | EJ29: 1995Q3 | EK29: 50583900 | EL29: 603536500 | EN29: 1995Q3 | EO29: 3156100 | EP29: 38955400 | ER29: 16.02734387 | ES29: 15.49301252 | ET29: 0.06210808737 | EU29: 0.02621005633 | EV29: 1995-09-01 | EW29: 15.88189052 | EX29: 15.32824474 | EY29: 0.03473202965 | EZ29: 0.02065956779
A30: 2013-12-01 | B30: 2013Q4 | C30: 1035 | D30: -0.00384985563 | F30: 2013Q4 | G30: 1017 | H30: -0.01166180758 | I30: 1044 | J30: -0.000956937799 | K30: 1049 | L30: 0.003827751196 | N30: 2013Q4 | O30: 1188 | P30: 0.01625320787 | Q30: 0.0008424599832 | R30: 1164.783325 | S30: 0.01625320787 | T30: 0.0008424599832 | V30: 2013Q4 | W30: 1241 | X30: 0.02902155887 | Y30: 1217.220489 | Z30: 0.02902155887 | AA30: 0.003233629749 | AC30: 2013Q4 | AD30: 38.97 | AE30: 26.86 | AF30: 29.08 | AG30: 0.0228631727 | AH30: 0.01820728291 | AJ30: 2013Q4 | AK30: 34.4 | AL30: 0.03396453261 | AM30: 0.01564806614 | AO30: 2013Q4 | AP30: 28.03 | AQ30: 0.02673992674 | AR30: 0.001429081815 | AT30: 2013Q4 | AU30: 172557200 | AV30: 0.07841509906 | AX30: 2013Q4 | AY30: 5934700 | AZ30: 0.0546265527 | BA30: 0.03984103061 | BC30: 2013Q4 | BD30: 1078 | BE30: 1078 | BF30: .. | BG30: 0.01698113208 | BH30: 0.01698113208 | BK30: 2013-12-01 | BL30: 13.75 | BM30: 0.01851851852 | BP30: 2013-12-01 | BQ30: 30.01016835 | BR30: 35.5003367 | BS30: 28.92658249 | BV30: 2013Q4 | BW30: 1051 | BX30: 1073 | BY30: 1073 | BZ30: 0.01057692308 | CA30: 0.0151371807 | CB30: 0.01226415094 | CD30: 2013Q4 | CE30: 1083 | CF30: 0.01881467545 | CG30: 0.005571030641 | CH30: 1085 | CI30: 0.01686972821 | CJ30: 0.005560704356 | CL30: 2013Q4 | CM30: 1051 | CN30: 1078 | CO30: 1073 | CQ30: 2007Q4 | CR30: 1260 | CS30: .. | CT30: 1191 | CU30: .. | CW30: 1999Q2 | CX30: 776.644561 | CY30: 777.273122 | CZ30: 772.798605 | DB30: 2007-12-01 | DC30: 1260 | DD30: 1191 | DE30: 0.04132231405 | DF30: 0.03295750217 | DH30: 1995Q3 | DI30: 17.91 | DJ30: 14.77 | DK30: 15.49 | DM30: 1995-09-01 | DN30: 16.03 | DO30: 15.49 | DP30: 0.06229290921 | DQ30: 0.02582781457 | DR30: 0.03491435973 | DS30: 0.02062538746 | DU30: 2002-06-01 | DV30: 76.5 | DW30: 77.3 | DX30: 75.7 | DY30: 1953-06-01 | DZ30: 6.4 | EC30: 2015-12-01 | ED30: 994.375626 | EE30: 988.0592654 | EF30: 1049.43591 | EG30: 1050.748025 | EJ30: 1995Q4 | EK30: 51151200 | EL30: 620947500 | EN30: 1995Q4 | EO30: 3132500 | EP30: 39808100 | ER30: 16.32919393 | ES30: 15.59852141 | ET30: 0.03109019184 | EU30: 0.02912842528 | EV30: 1995-12-01 | EW30: 16.00530661 | EX30: 15.43902042 | EY30: 0.0335746893 | EZ30: 0.02355777766
A31: 2014-03-01 | B31: 2014Q1 | C31: 1041 | D31: -0.003827751196 | F31: 2014Q1 | G31: 1022 | H31: -0.01256038647 | I31: 1051 | J31: 0.0009523809524 | K31: 1056 | L31: 0.002849002849 | N31: 2014Q1 | O31: 1192 | P31: 0.01533219761 | Q31: 0.003367003367 | R31: 1168.705154 | S31: 0.01533219761 | T31: 0.003367003367 | V31: 2014Q1 | W31: 1247 | X31: 0.02129402129 | Y31: 1223.10552 | Z31: 0.02129402129 | AA31: 0.004834810637 | AC31: 2014Q1 | AD31: 39.54 | AE31: 27.21 | AF31: 29.43 | AG31: 0.03736341205 | AH31: 0.01203576341 | AJ31: 2014Q1 | AK31: 34.06 | AL31: 0.03936527312 | AM31: -0.00988372093 | AO31: 2014Q1 | AP31: 28.2 | AQ31: 0.02470930233 | AR31: 0.006064930432 | AT31: 2014Q1 | AU31: 177347700 | AV31: 0.1090740128 | AX31: 2014Q1 | AY31: 6025400 | AZ31: 0.06895878794 | BA31: 0.05071123216 | BC31: 2014Q1 | BD31: 1079 | BE31: 1079 | BF31: .. | BG31: 0.01409774436 | BH31: 0.01409774436 | BK31: 2014-03-01 | BL31: 13.75 | BM31: 0.01851851852 | BP31: 2014-03-01 | BQ31: 30.26944631 | BR31: 35.03151007 | BS31: 29.00436242 | BV31: 2014Q1 | BW31: 1053 | BX31: 1073 | BY31: 1076 | BZ31: 0.009587727709 | CA31: 0.01131008483 | CB31: 0.01127819549 | CD31: 2014Q1 | CE31: 1085 | CF31: 0.01686972821 | CG31: 0.001846722068 | CH31: 1088 | CI31: 0.01587301587 | CJ31: 0.002764976959 | CL31: 2014Q1 | CM31: 1053 | CN31: 1079 | CO31: 1073 | CQ31: 2008Q1 | CR31: 1273 | CS31: .. | CT31: 1200 | CU31: .. | CW31: 1999Q3 | CX31: 780.13353 | CY31: 780.7712 | CZ31: .. | DB31: 2008-03-01 | DC31: 1273 | DD31: 1200 | DE31: 0.04601479047 | DF31: 0.03448275862 | DH31: 1995Q4 | DI31: 18.11 | DJ31: 14.86 | DK31: 15.6 | DM31: 1995-12-01 | DN31: 16.33 | DO31: 15.6 | DP31: 0.03093434343 | DQ31: 0.0290237467 | DR31: 0.03365412439 | DS31: 0.0233438651 | DU31: 2002-09-01 | DV31: 77.2 | DW31: 78.2 | DX31: 76.1 | DY31: 1953-09-01 | DZ31: 6.5 | EC31: 2016-03-01 | ED31: 997.2225 | EE31: 990.0158333 | EF31: 1056.471238 | EG31: 1057.775718 | EJ31: 1996Q1 | EK31: 50855300 | EL31: 631776200 | EN31: 1996Q1 | EO31: 3101600 | EP31: 40191300 | ER31: 16.39647279 | ES31: 15.71922779 | ET31: 0.03322111612 | EU31: 0.02992793179 | EV31: 1996-03-01 | EW31: 16.13594522 | EX31: 15.55403733 | EY31: 0.03729069076 | EZ31: 0.02633340082
A32: 2014-06-01 | B32: 2014Q2 | C32: 1043 | D32: 0.00968054211 | F32: 2014Q2 | G32: 1022 | H32: 0.004916420846 | I32: 1052 | J32: 0.01446480231 | K32: 1064 | L32: 0.008530805687 | N32: 2014Q2 | O32: 1195 | P32: 0.01615646259 | Q32: 0.002516778523 | R32: 1171.646526 | S32: 0.01615646259 | T32: 0.002516778523 | V32: 2014Q2 | W32: 1250 | X32: 0.01708706265 | Y32: 1226.048035 | Z32: 0.01708706265 | AA32: 0.002405773857 | AC32: 2014Q2 | AD32: 38.54 | AE32: 27 | AF32: 29.09 | AG32: 0.02070175439 | AH32: -0.01155283724 | AJ32: 2014Q2 | AK32: 33.76 | AL32: 0.01199040767 | AM32: -0.008807985907 | AO32: 2014Q2 | AP32: 28.25 | AQ32: 0.02540834846 | AR32: 0.001773049645 | AT32: 2014Q2 | AU32: 176575900 | AV32: 0.07751805059 | AX32: 2014Q2 | AY32: 6069300 | AZ32: 0.05551207805 | BA32: 0.05768881687 | BC32: 2014Q2 | BD32: 1083 | BE32: 1083 | BF32: 1101 | BG32: 0.01120448179 | BH32: 0.01120448179 | BI32: =BF32/BF28-1 -> 0.01194852941 | BK32: 2014-06-01 | BL32: 14.25 | BM32: 0.03636363636 | BP32: 2014-06-01 | BQ32: 29.84463598 | BR32: 34.63578243 | BS32: 28.98284519 | BV32: 2014Q2 | BW32: 1054 | BX32: 1077 | BY32: 1078 | BZ32: =BW32/BW28-1 -> 0.01054650048 | CA32: 0.006542056075 | CB32: 0.01030927835 | CD32: 2014Q2 | CE32: 1089 | CF32: 0.01491146319 | CG32: 0.003686635945 | CH32: 1094 | CI32: 0.0176744186 | CJ32: 0.005514705882 | CL32: 2014Q2 | CM32: 1054 | CN32: 1083 | CO32: 1077 | CQ32: 2008Q2 | CR32: 1287 | CS32: 1299 | CT32: 1210 | CU32: 1216 | CW32: 1999Q4 | CX32: 782.924705 | CY32: 783.569664 | CZ32: .. | DB32: 2008-06-01 | DC32: 1287 | DD32: 1210 | DE32: 0.05147058824 | DF32: 0.03595890411 | DH32: 1996Q1 | DI32: 18.12 | DJ32: 15.03 | DK32: 15.72 | DM32: 1996-03-01 | DN32: 16.4 | DO32: 15.72 | DP32: 0.03339634531 | DQ32: 0.03014416776 | DR32: 0.03738413954 | DS32: 0.02620803859 | DU32: 2002-12-01 | DV32: 77.7 | DW32: 78.8 | DX32: 76.5 | DY32: 1953-12-01 | DZ32: 6.4 | EC32: 2016-06-01 | ED32: 994.8788382 | EE32: 986.8049793 | EF32: 1055.964501 | EG32: 1056.413039 | EJ32: 1996Q2 | EK32: 52963200 | EL32: 638692100 | EN32: 1996Q2 | EO32: 3218700 | EP32: 40065700 | ER32: 16.45484202 | ES32: 15.94111921 | ET32: 0.04188933717 | EU32: 0.03523613589 | EV32: 1996-06-01 | EW32: 16.30226269 | EX32: 15.68950104 | EY32: 0.04188395636 | EZ32: 0.03014539209
A33: 2014-09-01 | B33: 2014Q3 | C33: 1047 | D33: 0.008670520231 | F33: 2014Q3 | G33: 1022 | H33: 0 | I33: 1059 | J33: 0.01436781609 | K33: 1067 | L33: 0.009460737938 | N33: 2014Q3 | O33: 1199 | P33: 0.0101095198 | Q33: 0.003347280335 | R33: 1175.568355 | S33: 0.0101095198 | T33: 0.003347280335 | V33: 2014Q3 | W33: 1261 | X33: 0.0194017785 | Y33: 1236.837258 | Z33: 0.0194017785 | AA33: 0.0088 | AC33: 2014Q3 | AD33: 39.48 | AE33: 27.14 | AF33: 29.35 | AG33: 0.02766106443 | AH33: 0.008937779306 | AJ33: 2014Q3 | AK33: 34.18 | AL33: 0.009152642456 | AM33: 0.01244075829 | AO33: 2014Q3 | AP33: 28.66 | AQ33: 0.0239371204 | AR33: 0.01451327434 | AT33: 2014Q3 | AU33: 178842900 | AV33: 0.06860750463 | AX33: 2014Q3 | AY33: 6093700 | AZ33: 0.03982731259 | BA33: 0.05458941 | BC33: 2014Q3 | BD33: 1086 | BE33: 1086 | BF33: .. | BG33: 0.01117318436 | BH33: 0.01117318436 | BK33: 2014-09-01 | BL33: 14.25 | BM33: 0.03636363636 | BP33: 2014-09-01 | BQ33: 30.01092577 | BR33: 34.94969141 | BS33: 29.30538782 | BV33: 2014Q3 | BW33: 1058 | BX33: 1079 | BY33: 1082 | BZ33: 0.007619047619 | CA33: 0.006529850746 | CB33: 0.01027077498 | CD33: 2014Q3 | CE33: 1093 | CF33: 0.01485608171 | CG33: 0.003673094582 | CH33: 1099 | CI33: 0.01853568119 | CJ33: 0.004570383912 | CL33: 2014Q3 | CM33: 1059 | CN33: 1086 | CO33: 1079 | CQ33: 2008Q3 | CR33: 1307 | CS33: .. | CT33: 1225 | CU33: .. | CW33: 2000Q1 | CX33: 785.715881 | CY33: 786.368127 | CZ33: .. | DB33: 2008-09-01 | DC33: 1307 | DD33: 1225 | DE33: 0.05658852061 | DF33: 0.03989813243 | DH33: 1996Q2 | DI33: 18.4 | DJ33: 15.24 | DK33: 15.94 | DM33: 1996-06-01 | DN33: 16.45 | DO33: 15.94 | DP33: 0.04179860671 | DQ33: 0.03506493506 | DR33: 0.04203305546 | DS33: 0.03000982645 | DU33: 2003-03-01 | DV33: 79.1 | DW33: 79.3 | DX33: 78.8 | DY33: 1954-03-01 | DZ33: 6.5 | EC33: 2016-09-01 | ED33: 997.8461538 | EE33: 991.5872622 | EF33: 1059.161834 | EG33: 1057.908975 | EJ33: 1996Q3 | EK33: 54586900 | EL33: 646920900 | EN33: 1996Q3 | EO33: 3294900 | EP33: 40356800 | ER33: 16.56708853 | ES33: 16.03003459 | ET33: 0.03367648821 | EU33: 0.03466221102 | EV33: 1996-09-01 | EW33: 16.43877719 | EX33: 15.82288141 | EY33: 0.035064256 | EZ33: 0.03226962256
A34: 2014-12-01 | B34: 2014Q4 | C34: 1046 | D34: 0.01062801932 | F34: 2014Q4 | G34: 1023 | H34: 0.005899705015 | I34: 1058 | J34: 0.01340996169 | K34: 1062 | L34: 0.012392755 | N34: 2014Q4 | O34: 1197 | P34: 0.007575757576 | Q34: -0.001668056714 | R34: 1173.607441 | S34: 0.007575757576 | T34: -0.001668056714 | V34: 2014Q4 | W34: 1267 | X34: 0.02095084609 | Y34: 1242.722288 | Z34: 0.02095084609 | AA34: 0.004758128469 | AC34: 2014Q4 | AD34: 39.71 | AE34: 27.62 | AF34: 29.82 | AG34: 0.02544704264 | AH34: 0.01601362862 | AJ34: 2014Q4 | AK34: 34.89 | AL34: 0.01424418605 | AM34: 0.02077238151 | AO34: 2014Q4 | AP34: 28.79 | AQ34: 0.02711380664 | AR34: 0.00453593859 | AT34: 2014Q4 | AU34: 182170300 | AV34: 0.05570964295 | AX34: 2014Q4 | AY34: 6108700 | AZ34: 0.02931908942 | BA34: 0.04811101813 | BC34: 2014Q4 | BD34: 1088 | BE34: 1088 | BF34: .. | BG34: 0.009276437848 | BH34: 0.009276437848 | BK34: 2014-12-01 | BL34: 14.25 | BM34: 0.03636363636 | BP34: 2014-12-01 | BQ34: 30.54245614 | BR34: 35.73528822 | BS34: 29.48750209 | BV34: 2014Q4 | BW34: 1065 | BX34: 1080 | BY34: 1085 | BZ34: 0.013320647 | CA34: 0.006523765144 | CB34: 0.01118359739 | CD34: 2014Q4 | CE34: 1096 | CF34: 0.01200369344 | CG34: 0.00274473925 | CH34: 1105 | CI34: 0.01843317972 | CJ34: 0.005459508644 | CL34: 2014Q4 | CM34: 1066 | CN34: 1088 | CO34: 1080 | CQ34: 2008Q4 | CR34: 1314 | CS34: .. | CT34: 1233 | CU34: .. | CW34: 2000Q2 | CX34: 789.902644 | CY34: 789.866205 | CZ34: 785.353095 | DB34: 2008-12-01 | DC34: 1314 | DD34: 1233 | DE34: 0.04285714286 | DF34: 0.03526448363 | DH34: 1996Q3 | DI34: 18.7 | DJ34: 15.29 | DK34: 16.03 | DM34: 1996-09-01 | DN34: 16.57 | DO34: 16.03 | DP34: 0.03368683718 | DQ34: 0.03486120077 | DR34: 0.03494595572 | DS34: 0.03226992989 | DU34: 2003-06-01 | DV34: 79.5 | DW34: 79.7 | DX34: 79 | DY34: 1954-06-01 | DZ34: 6.5 | EC34: 2016-12-01 | ED34: 997.2981878 | EE34: 992.8459638 | EF34: 1059.232083 | EG34: 1060.475635 | EJ34: 1996Q4 | EK34: 55391300 | EL34: 668794900 | EN34: 1996Q4 | EO34: 3302100 | EP34: 41310800 | ER34: 16.7745677 | ES34: 16.18934758 | ET34: 0.02727469381 | EU34: 0.0378770627 | EV34: 1996-12-01 | EW34: 16.55119104 | EX34: 15.97153305 | EY34: 0.03410646501 | EZ34: 0.03449134825
A35: 2015-03-01 | B35: 2015Q1 | C35: 1047 | D35: 0.005763688761 | F35: 2015Q1 | G35: 1024 | H35: 0.001956947162 | I35: 1060 | J35: 0.008563273073 | K35: 1062 | L35: 0.005681818182 | N35: 2015Q1 | O35: 1195 | P35: 0.002516778523 | Q35: -0.001670843776 | R35: 1171.646526 | S35: 0.002516778523 | T35: -0.001670843776 | V35: 2015Q1 | W35: 1269 | X35: 0.01764234162 | Y35: 1244.683965 | Z35: 0.01764234162 | AA35: 0.001578531965 | AC35: 2015Q1 | AD35: 39.91 | AE35: 27.55 | AF35: 29.82 | AG35: 0.01325178389 | AH35: 0 | AJ35: 2015Q1 | AK35: 34.74 | AL35: 0.01996476806 | AM35: -0.004299226139 | AO35: 2015Q1 | AP35: 28.78 | AQ35: 0.02056737589 | AR35: -0.0003473428274 | AT35: 2015Q1 | AU35: 184582800 | AV35: 0.04079613099 | AX35: 2015Q1 | AY35: 6188900 | AZ35: 0.02713512796 | BA35: 0.03776330583 | BC35: 2015Q1 | BD35: 1090 | BE35: 1090 | BF35: .. | BG35: 0.01019462465 | BH35: 0.01019462465 | BK35: 2015-03-01 | BL35: 14.25 | BM35: 0.03636363636 | BP35: 2015-03-01 | BQ35: 30.59357322 | BR35: 35.64120502 | BS35: 29.52659414 | BV35: 2015Q1 | BW35: 1067 | BX35: 1080 | BY35: 1088 | BZ35: 0.01329534663 | CA35: 0.006523765144 | CB35: 0.01115241636 | CD35: 2015Q1 | CE35: 1099 | CF35: 0.01290322581 | CG35: 0.002737226277 | CH35: 1108 | CI35: 0.01838235294 | CJ35: 0.002714932127 | CL35: 2015Q1 | CM35: 1067 | CN35: 1090 | CO35: 1080 | CQ35: 2009Q1 | CR35: 1329 | CS35: .. | CT35: 1240 | CU35: .. | CW35: 2000Q3 | CX35: 791.996025 | CY35: 792.664669 | CZ35: .. | DB35: 2009-03-01 | DC35: 1329 | DD35: 1240 | DE35: 0.04399057345 | DF35: 0.03333333333 | DH35: 1996Q4 | DI35: 19.05 | DJ35: 15.41 | DK35: 16.19 | DM35: 1996-12-01 | DN35: 16.77 | DO35: 16.19 | DP35: 0.02694427434 | DQ35: 0.03782051282 | DR35: 0.03394310017 | DS35: 0.03446902182 | DU35: 2003-09-01 | DV35: 81.1 | DW35: 80.8 | DX35: 81.3 | DY35: 1954-09-01 | DZ35: 6.5 | EC35: 2017-03-01 | ED35: 990.1818923 | EE35: 984.0097879 | EJ35: 1997Q1 | EK35: 54926700 | EL35: 656056600 | EN35: 1997Q1 | EO35: 3224100 | EP35: 40034600 | ER35: 17.0362892 | ES35: 16.38724004 | ET35: 0.03902158818 | EU35: 0.04249650511 | EV35: 1997-03-01 | EW35: 16.70793264 | EX35: 16.13709827 | EY35: 0.03544802696 | EZ35: 0.0374861478
A36: 2015-06-01 | B36: 2015Q2 | C36: 1050 | D36: 0.006711409396 | F36: 2015Q2 | G36: 1026 | H36: 0.003913894325 | I36: 1063 | J36: 0.01045627376 | K36: 1071 | L36: 0.006578947368 | N36: 2015Q2 | O36: 1200 | P36: 0.004184100418 | Q36: 0.004184100418 | R36: 1176.548813 | S36: 0.004184100418 | T36: 0.004184100418 | V36: 2015Q2 | W36: 1272 | X36: 0.0176 | Y36: 1247.62648 | Z36: 0.0176 | AA36: 0.002364066194 | AC36: 2015Q2 | AD36: 39.44 | AE36: 27.62 | AF36: 29.84 | AG36: 0.02578205569 | AH36: 0.0006706908115 | AJ36: 2015Q2 | AK36: 35.01 | AL36: 0.03702606635 | AM36: 0.007772020725 | AO36: 2015Q2 | AP36: 29.04 | AQ36: 0.02796460177 | AR36: 0.009034051425 | AT36: 2015Q2 | AU36: 189026800 | AV36: 0.07051302018 | AX36: 2015Q2 | AY36: 6333600 | AZ36: 0.04354703178 | BA36: 0.03496067343 | BC36: 2015Q2 | BD36: 1093 | BE36: 1093 | BF36: 1110 | BG36: =BD36/BD32-1 -> 0.009233610342 | BH36: =BE36/BE32-1 -> 0.009233610342 | BI36: =BF36/BF32-1 -> 0.008174386921 | BK36: 2015-06-01 | BL36: 14.75 | BM36: 0.0350877193 | BP36: 2015-06-01 | BQ36: 30.48653333 | BR36: 35.76855 | BS36: 29.6692 | BV36: 2015Q2 | BW36: 1068 | BX36: 1082 | BY36: 1090 | BZ36: 0.01328273245 | CA36: 0.004642525534 | CB36: 0.01113172542 | CD36: 2015Q2 | CE36: 1103 | CF36: 0.01285583104 | CG36: 0.003639672429 | CH36: 1114 | CI36: 0.01828153565 | CJ36: 0.005415162455 | CL36: 2015Q2 | CM36: 1069 | CN36: 1093 | CO36: 1082 | CQ36: 2009Q2 | CR36: 1343 | CS36: 1356 | CT36: 1244 | CU36: 1250 | CW36: 2000Q4 | CX36: 795.484995 | CY36: 796.162747 | CZ36: .. | DB36: 2009-06-01 | DC36: =CR$36*CN12/1000 -> 1343 | DD36: =CT$36*CY70/1000 -> 1244 | DE36: 0.04351204351 | DF36: 0.02809917355 | DH36: 1997Q1 | DI36: 19.27 | DJ36: 15.61 | DK36: 16.39 | DM36: 1997-03-01 | DN36: 17.04 | DO36: 16.39 | DP36: 0.03902439024 | DQ36: 0.04262086514 | DR36: 0.03534798986 | DS36: 0.03758716477 | DU36: 2003-12-01 | DV36: 81.9 | DW36: 82.1 | DX36: 81.6 | DY36: 1954-12-01 | DZ36: 6.5 | EJ36: 1997Q2 | EK36: 57259900 | EL36: 676711200 | EN36: 1997Q2 | EO36: 3351800 | EP36: 40985400 | ER36: 17.08332836 | ES36: 16.51103076 | ET36: 0.03819461428 | EU36: 0.03575103718 | EV36: 1997-06-01 | EW36: 16.86529162 | EX36: 16.27956648 | EY36: 0.03453685815 | EZ36: 0.03760893615
A37: 2015-09-01 | B37: 2015Q3 | C37: 1053 | D37: 0.005730659026 | F37: 2015Q3 | G37: 1031 | H37: 0.008806262231 | I37: 1062 | J37: 0.00283286119 | K37: 1074 | L37: 0.006560449859 | N37: 2015Q3 | O37: 1204 | P37: 0.004170141785 | Q37: 0.003333333333 | R37: 1180.470642 | S37: 0.004170141785 | T37: 0.003333333333 | V37: 2015Q3 | W37: 1264 | X37: 0.002379064235 | Y37: 1239.779773 | Z37: 0.002379064235 | AA37: -0.006289308176 | AC37: 2015Q3 | AD37: 39.98 | AE37: 27.51 | AF37: 29.81 | AG37: 0.01567291312 | AH37: -0.00100536193 | AJ37: 2015Q3 | AK37: 35.37 | AL37: 0.03481568169 | AM37: 0.01028277635 | AO37: 2015Q3 | AP37: 29.31 | AQ37: 0.02267969295 | AR37: 0.009297520661 | AT37: 2015Q3 | AU37: 188509800 | AV37: 0.05405246728 | AX37: 2015Q3 | AY37: 6324100 | AZ37: 0.037809541 | BA37: 0.03449805373 | BC37: 2015Q3 | BD37: 1096 | BE37: 1095 | BF37: .. | BG37: =BD37/BD33-1 -> 0.009208103131 | BH37: 0.008287292818 | BK37: 2015-09-01 | BL37: 14.75 | BM37: 0.0350877193 | BP37: 2015-09-01 | BQ37: 30.354701 | BR37: 36.01629568 | BS37: 29.84556478 | BV37: 2015Q3 | BW37: 1071 | BX37: 1086 | BY37: 1093 | BZ37: 0.01228733459 | CA37: 0.006487488415 | CB37: 0.0101663586 | CD37: 2015Q3 | CE37: 1105 | CF37: 0.010978957 | CG37: 0.001813236627 | CH37: 1118 | CI37: 0.01728844404 | CJ37: 0.003590664273 | CL37: 2015Q3 | CM37: 1072 | CN37: 1096 | CO37: 1086 | CQ37: 2009Q3 | CR37: 1352 | CS37: .. | CT37: .. | CU37: .. | CW37: 2001Q1 | CX37: 799.671758 | CY37: 800.360442 | CZ37: .. | DB37: 2009-09-01 | DC37: =CR$36*CN13/1000 -> 1351.058 | DD37: 1250.22 | DE37: 0.03370925784 | DF37: 0.0205877551 | DH37: 1997Q2 | DI37: 19.36 | DJ37: 15.74 | DK37: 16.51 | DM37: 1997-06-01 | DN37: 17.08 | DO37: 16.51 | DP37: 0.03829787234 | DQ37: 0.03575909661 | DR37: 0.03447712709 | DS37: 0.03776108431 | DU37: 2004-03-01 | DV37: 82.4 | DW37: 82.5 | DX37: 82.3 | DY37: 1955-03-01 | DZ37: 6.5 | EJ37: 1997Q3 | EK37: 60946800 | EL37: 680299400 | EN37: 1997Q3 | EO37: 3515500 | EP37: 40895800 | ER37: 17.33659508 | ES37: 16.6349454 | ET37: 0.04644790464 | EU37: 0.03773608865 | EV37: 1997-09-01 | EW37: 17.06235861 | EX37: 16.43030058 | EY37: 0.03793356454 | EZ37: 0.03838865662
A38: 2015-12-01 | B38: 2015Q4 | C38: 1052 | D38: 0.005736137667 | F38: 2015Q4 | G38: 1032 | H38: 0.008797653959 | I38: 1062 | J38: 0.003780718336 | K38: 1068 | L38: 0.005649717514 | N38: 2015Q4 | O38: 1198 | P38: 0.0008354218881 | Q38: -0.004983388704 | R38: 1174.587898 | S38: 0.0008354218881 | T38: -0.004983388704 | V38: 2015Q4 | W38: 1271 | X38: 0.003157063931 | Y38: 1246.645642 | Z38: 0.003157063931 | AA38: 0.005537974684 | AC38: 2015Q4 | AD38: 40.44 | AE38: 27.97 | AF38: 30.26 | AG38: 0.01475519785 | AH38: 0.0150956055 | AJ38: 2015Q4 | AK38: 35.47 | AL38: 0.01662367441 | AM38: 0.002827254736 | AO38: 2015Q4 | AP38: 29.41 | AQ38: 0.0215352553 | AR38: 0.003411804845 | AT38: 2015Q4 | AU38: 191541000 | AV38: 0.05143923021 | AX38: 2015Q4 | AY38: 6329300 | AZ38: 0.03611242981 | BA38: 0.03616892551 | BC38: 2015Q4 | BD38: 1102 | BE38: 1102 | BF38: .. | BG38: 0.01286764706 | BH38: 0.01286764706 | BK38: 2015-12-01 | BL38: 14.75 | BM38: 0.0350877193 | BP38: 2015-12-01 | BQ38: 30.96724541 | BR38: 36.29901503 | BS38: 30.09737896 | BV38: 2015Q4 | BW38: 1074 | BX38: 1095 | BY38: 1098 | BZ38: 0.008450704225 | CA38: 0.01388888889 | CB38: 0.01198156682 | CD38: 2015Q4 | CE38: 1110 | CF38: 0.01277372263 | CG38: 0.004524886878 | CH38: 1123 | CI38: 0.01628959276 | CJ38: 0.004472271914 | CL38: 2015Q4 | CM38: 1075 | CN38: 1102 | CO38: 1095 | CQ38: 2009Q4 | CR38: 1358 | CS38: .. | CT38: .. | CU38: .. | CW38: 2001Q2 | CX38: 803.858521 | CY38: 803.858521 | CZ38: 800 | DB38: 2009-12-01 | DC38: 1357.773 | DD38: 1255.196 | DE38: 0.03331278539 | DF38: 0.01800162206 | DH38: 1997Q3 | DI38: 19.61 | DJ38: 15.83 | DK38: 16.63 | DM38: 1997-09-01 | DN38: 17.34 | DO38: 16.63 | DP38: 0.04646952323 | DQ38: 0.03742981909 | DR38: 0.0376605173 | DS38: 0.03840443981 | DU38: 2004-06-01 | DV38: 82.8 | DW38: 82.9 | DX38: 82.6 | DY38: 1955-06-01 | DZ38: 6.6 | EJ38: 1997Q4 | EK38: 59482600 | EL38: 691890700 | EN38: 1997Q4 | EO38: 3423500 | EP38: 41446600 | ER38: 17.37479188 | ES38: 16.69354543 | ET38: 0.03578179725 | EU38: 0.03114380288 | EV38: 1997-12-01 | EW38: 17.21181807 | EX38: 16.55802008 | EY38: 0.03991416857 | EZ38: 0.03672077279
A39: 2016-03-01 | B39: 2016Q1 | C39: 1053 | D39: 0.005730659026 | F39: 2016Q1 | G39: 1031 | H39: 0.0068359375 | I39: 1063 | J39: 0.002830188679 | K39: 1070 | L39: 0.007532956685 | N39: 2016Q1 | O39: 1200 | P39: 0.004184100418 | Q39: 0.001669449082 | R39: 1176.548813 | S39: 0.004184100418 | T39: 0.001669449082 | V39: 2016Q1 | W39: 1270 | X39: 0.0007880220646 | Y39: 1245.664803 | Z39: 0.0007880220646 | AA39: -0.0007867820614 | AC39: 2016Q1 | AD39: 40.27 | AE39: 28.08 | AF39: 30.35 | AG39: 0.01777330651 | AH39: 0.002974223397 | AJ39: 2016Q1 | AK39: 35.62 | AL39: 0.02533103051 | AM39: 0.004228925853 | AO39: 2016Q1 | AP39: 29.48 | AQ39: 0.02432244614 | AR39: 0.002380142809 | AT39: 2016Q1 | AU39: 197211700 | AV39: 0.06841861755 | AX39: 2016Q1 | AY39: 6497700 | AZ39: 0.04989578116 | BA39: 0.0418673295 | BC39: 2016Q1 | BD39: 1107 | BE39: 1106 | BF39: .. | BG39: 0.01559633028 | BH39: 0.01467889908 | BK39: 2016-03-01 | BL39: 14.75 | BM39: 0.0350877193 | BP39: 2016-03-01 | BQ39: 31.00758333 | BR39: 36.39176667 | BS39: 30.11873333 | BV39: 2016Q1 | BW39: 1079 | BX39: 1099 | BY39: 1102 | BZ39: 0.01124648547 | CA39: 0.01759259259 | CB39: 0.01286764706 | CD39: 2016Q1 | CE39: 1114 | CF39: 0.01364877161 | CG39: 0.003603603604 | CH39: 1128 | CI39: 0.01805054152 | CJ39: 0.004452359751 | CL39: 2016Q1 | CM39: 1079 | CN39: 1107 | CO39: 1099 | CQ39: 2010Q1 | CR39: 1363 | CS39: .. | CT39: .. | CU39: .. | CW39: 2001Q3 | CX39: 808.045284 | CY39: 808.755831 | CZ39: .. | DB39: 2010-03-01 | DC39: 1363.145 | DD39: 1258.928 | DE39: 0.02569224981 | DF39: 0.01526451613 | DH39: 1997Q4 | DI39: 19.69 | DJ39: 15.9 | DK39: 16.69 | DM39: 1997-12-01 | DN39: 17.37 | DO39: 16.69 | DP39: 0.03577817531 | DQ39: 0.03088326127 | DR39: 0.03988487563 | DS39: 0.03666478429 | DU39: 2004-09-01 | DV39: 83.6 | DW39: 84 | DX39: 83.1 | DY39: 1955-09-01 | DZ39: 6.6 | EJ39: 1998Q1 | EK39: 57318000 | EL39: 681708800 | EN39: 1998Q1 | EO39: 3279100 | EP39: 40602400 | ER39: 17.47979629 | ES39: 16.78986464 | ET39: 0.02603308053 | EU39: 0.02456939669 | EV39: 1998-03-01 | EW39: =SUM(EK36:EK39)/SUM(EO36:EO39) -> 17.31827795 | EX39: 16.65715103 | EY39: 0.03653027156 | EZ39: 0.03222715433
A40: 2016-06-01 | B40: 2016Q2 | C40: 1056 | D40: 0.005714285714 | F40: 2016Q2 | G40: 1032 | H40: 0.005847953216 | I40: 1067 | J40: 0.003762935089 | K40: 1080 | L40: 0.008403361345 | N40: 2016Q2 | O40: 1205 | P40: 0.004166666667 | Q40: 0.004166666667 | R40: =R39*O40/O39 -> 1181.451099 | S40: =R40/R36-1 -> 0.004166666667 | T40: 0.004166666667 | V40: 2016Q2 | W40: 1272 | X40: 0 | Y40: =Y39*W40/W39 -> 1247.62648 | Z40: =Y40/Y36-1 -> 0 | AA40: 0.00157480315 | AC40: 2016Q2 | AD40: 39.5 | AE40: 27.86 | AF40: 30.04 | AG40: =AF40/AF36-1 -> 0.006702412869 | AH40: -0.01021416804 | AJ40: 2016Q2 | AK40: 35.88 | AL40: =AK40/AK36-1 -> 0.02485004284 | AM40: 0.007299270073 | AO40: 2016Q2 | AP40: 29.67 | AQ40: 0.02169421488 | AR40: 0.00644504749 | AT40: 2016Q2 | AU40: 196740600 | AV40: 0.04080797009 | AX40: 2016Q2 | AY40: 6549700 | AZ40: 0.03411961602 | BA40: 0.03947033153 | BC40: 2016Q2 | BD40: 1109 | BE40: 1109 | BF40: .. | BG40: 0.01463860933 | BH40: 0.01463860933 | BK40: 2016-06-01 | BL40: 15.25 | BM40: =BL40/BL36-1 -> 0.03389830508 | BP40: 2016-06-01 | BQ40: 30.56351867 | BR40: 36.50529461 | BS40: 30.18707054 | BV40: 2016Q2 | BW40: 1080 | BX40: 1100 | BY40: 1104 | BZ40: 0.01123595506 | CA40: 0.01663585952 | CB40: 0.0128440367 | CD40: 2016Q2 | CE40: 1118 | CF40: 0.01359927471 | CG40: 0.003590664273 | CH40: 1132 | CI40: 0.01615798923 | CJ40: 0.003546099291 | CL40: 2016Q2 | CM40: 1080 | CN40: 1109 | CO40: 1100 | CQ40: 2010Q2 | CR40: 1367 | CS40: 1377 | CT40: .. | CU40: .. | CW40: 2001Q4 | CX40: 812.929841 | CY40: 812.953526 | CZ40: .. | DB40: 2010-06-01 | DC40: 1367.174 | DD40: 1263.904 | DE40: 0.018 | DF40: 0.016 | DG40: =CA16 -> 0.018 | DH40: 1998Q1 | DI40: 19.84 | DJ40: 15.99 | DK40: 16.79 | DM40: 1998-03-01 | DN40: 17.48 | DO40: 16.79 | DP40: =DN40/DN36-1 -> 0.02582159624 | DQ40: 0.02440512508 | DR40: 0.03656558473 | DS40: 0.03210689267 | DU40: 2004-12-01 | DV40: 84.5 | DW40: 85.1 | DX40: 83.8 | DY40: 1955-12-01 | DZ40: 6.7 | EJ40: 1998Q2 | EK40: 59205500 | EL40: 695149200 | EN40: 1998Q2 | EO40: 3384800 | EP40: 40942000 | ER40: 17.49158 | ES40: 16.97887744 | ET40: =ER40/ER36-1 -> 0.02389766416 | EU40: 0.0283354011 | EV40: 1998-06-01 | EW40: 17.41929294 | EX40: 16.77406661 | EY40: 0.03284860623 | EZ40: 0.03037550971
A41: 2016-09-01 | B41: 2016Q3 | C41: 1062 | D41: 0.008547008547 | F41: 2016Q3 | G41: 1036 | H41: 0.004849660524 | I41: 1073 | J41: 0.01035781544 | K41: 1084 | L41: 0.009310986965 | N41: 2016Q3 | O41: 1209 | P41: 0.00415282392 | Q41: 0.003319502075 | R41: =R40*O41/O40 -> 1185.372929 | S41: =R41/R37-1 -> 0.00415282392 | T41: 0.003319502075 | V41: 2016Q3 | W41: 1288 | X41: 0.01898734177 | Y41: =Y40*W41/W40 -> 1263.319895 | Z41: =Y41/Y37-1 -> 0.01898734177 | AA41: 0.01257861635 | AC41: 2016Q3 | AD41: 39.67 | AE41: 28.04 | AF41: 30.21 | AG41: =AF41/AF37-1 -> 0.013418316 | AH41: 0.005659121172 | AJ41: 2016Q3 | AK41: 36.53 | AL41: =AK41/AK37-1 -> 0.03279615493 | AM41: 0.01811594203 | AO41: 2016Q3 | AP41: 29.84 | AQ41: 0.01808256568 | AR41: 0.005729693293 | AT41: 2016Q3 | AU41: 197074000 | AV41: 0.04543105982 | AX41: 2016Q3 | AY41: 6524000 | AZ41: 0.03160924084 | BA41: 0.03788373612 | BC41: 2016Q3 | BD41: 1116 | BE41: 1116 | BF41: .. | BG41: 0.01824817518 | BH41: 0.01917808219 | BK41: 2016-09-01 | BL41: 15.25 | BM41: =BL41/BL37-1 -> 0.03389830508 | BP41: 2016-09-01 | BQ41: 30.63478908 | BR41: 37.04365591 | BS41: 30.25958644 | BV41: 2016Q3 | BW41: 1090 | BX41: 1109 | BY41: 1112 | BZ41: 0.01774042951 | CA41: 0.0211786372 | CB41: 0.01738334858 | CD41: 2016Q3 | CE41: 1124 | CF41: 0.01719457014 | CG41: 0.005366726297 | CH41: 1136 | CI41: 0.01610017889 | CJ41: 0.003533568905 | CL41: 2016Q3 | CM41: 1091 | CN41: 1116 | CO41: 1109 | CQ41: Table information: | CW41: 2002Q1 | CX41: 816.720257 | CY41: 816.720257 | CZ41: .. | DB41: 2010-09-01 | DC41: 1371.203 | DD41: 1270.124 | DE41: 0.01491053678 | DF41: 0.01592039801 | DG41: =CA17 -> 0.01390268123 | DH41: 1998Q2 | DI41: 20.17 | DJ41: 16.14 | DK41: 16.98 | DM41: 1998-06-01 | DN41: 17.49 | DO41: 16.98 | DP41: 0.02400468384 | DQ41: 0.0284675954 | DR41: 0.03297968452 | DS41: 0.03028562999 | DU41: 2005-03-01 | DV41: 85.7 | DW41: 85.9 | DX41: 85.4 | DY41: 1956-03-01 | DZ41: 6.7 | EJ41: 1998Q3 | EK41: 60858300 | EL41: 693133700 | EN41: 1998Q3 | EO41: 3474200 | EP41: 40651000 | ER41: 17.5172126 | ES41: 17.05084008 | ET41: 0.01041828086 | EU41: 0.02500126511 | EV41: 1998-09-01 | EW41: 17.46581524 | EX41: 16.87758888 | EY41: 0.02364600613 | EZ41: 0.02722337945
A42: 2016-12-01 | B42: 2016Q4 | C42: 1064 | D42: 0.01140684411 | F42: 2016Q4 | G42: 1038 | H42: 0.005813953488 | I42: 1079 | J42: 0.01600753296 | K42: 1079 | L42: 0.01029962547 | N42: 2016Q4 | O42: 1214 | P42: 0.01335559265 | Q42: 0.004135649297 | R42: =R41*O42/O41 -> 1190.275215 | S42: =R42/R38-1 -> 0.01335559265 | T42: 0.004135649297 | V42: 2016Q4 | W42: 1297 | X42: 0.0204563336 | Y42: =Y41*W42/W41 -> 1272.147441 | Z42: =Y42/Y38-1 -> 0.0204563336 | AA42: 0.00698757764 | AC42: 2016Q4 | AD42: 38.9 | AE42: 27.86 | AF42: 29.92 | AG42: =AF42/AF38-1 -> -0.01123595506 | AH42: -0.009599470374 | AJ42: 2016Q4 | AK42: 36.95 | AL42: =AK42/AK38-1 -> 0.04172540175 | AM42: 0.0114973994 | AO42: 2016Q4 | AP42: 29.8 | AQ42: =AP42/AP38-1 -> 0.01326079565 | AR42: -0.001340482574 | AT42: 2016Q4 | AU42: 200363900 | AV42: 0.04606272286 | AX42: 2016Q4 | AY42: 6696700 | AZ42: 0.0580474934 | BA42: 0.04338275891 | BC42: 2016Q4 | BD42: 1120 | BE42: 1120 | BF42: .. | BG42: 0.01633393829 | BH42: 0.01633393829 | BK42: 2016-12-01 | BL42: 15.25 | BM42: =BL42/BL38-1 -> 0.03389830508 | BP42: 2016-12-01 | BQ42: 30.21574959 | BR42: 37.31523888 | BS42: 30.09456343 | BV42: 2016Q4 | BW42: 1097 | BX42: 1115 | BY42: 1117 | BZ42: 0.02141527002 | CA42: 0.01826484018 | CB42: 0.01730418944 | CD42: 2016Q4 | CE42: 1125 | CF42: 0.01351351351 | CG42: 0.0008896797153 | CH42: 1141 | CI42: 0.0160284951 | CJ42: 0.004401408451 | CL42: 2016Q4 | CM42: 1097 | CN42: 1120 | CO42: 1115 | CQ42: Units: | CW42: 2002Q2 | CX42: 820.73955 | CY42: 820.73955 | CZ42: 814.4 | DB42: 2010-12-01 | DC42: 1376.575 | DD42: 1276.344 | DE42: 0.01384767557 | DF42: 0.01684836472 | DG42: 0.008875739645 | DH42: 1998Q3 | DI42: 20.2 | DJ42: 16.22 | DK42: 17.05 | DM42: 1998-09-01 | DN42: 17.52 | DO42: 17.05 | DP42: 0.01038062284 | DQ42: 0.02525556224 | DR42: 0.02395621511 | DS42: 0.0272496319 | DU42: 2005-06-01 | DV42: 86.1 | DW42: 86.6 | DX42: 85.6 | DY42: 1956-06-01 | DZ42: 7 | EJ42: 1998Q4 | EK42: 61386800 | EL42: 704161100 | EN42: 1998Q4 | EO42: 3455500 | EP42: 40959600 | ER42: 17.76495442 | ES42: 17.19160099 | ET42: 0.02245566701 | EU42: 0.02983521773 | EV42: 1998-12-01 | EW42: 17.56478048 | EX42: 17.00317367 | EY42: 0.0205069805 | EZ42: 0.02688446952
A43: 2017-03-01 | B43: 2017Q1 | C43: 1069 | D43: 0.01519468186 | F43: 2017Q1 | G43: 1044 | H43: 0.01260911736 | I43: 1083 | J43: 0.01881467545 | K43: 1088 | L43: 0.01682242991 | N43: 2017Q1 | O43: 1226 | P43: 0.02166666667 | Q43: 0.009884678748 | R43: =R42*O43/O42 -> 1202.040704 | S43: =R43/R39-1 -> 0.02166666667 | T43: 0.009884678748 | V43: 2017Q1 | W43: 1304 | X43: 0.02677165354 | Y43: =Y42*W43/W42 -> 1279.01331 | Z43: =Y43/Y39-1 -> 0.02677165354 | AA43: 0.005397070162 | AC43: 2017Q1 | AD43: 39.98 | AE43: 28.41 | AF43: 30.63 | AG43: =AF43/AF39-1 -> 0.009225700165 | AH43: 0.02372994652 | AJ43: 2017Q1 | AK43: 37.07 | AL43: =AK43/AK39-1 -> 0.04070746771 | AM43: 0.003247631935 | AO43: 2017Q1 | AP43: 29.96 | AQ43: =AP43/AP39-1 -> 0.01628222524 | AR43: 0.005369127517 | AT43: 2017Q1 | AU43: 207264500 | AV43: 0.05097466327 | AX43: 2017Q1 | AY43: 6767600 | AZ43: =AY43/AY39-1 -> 0.0415377749 | BA43: =SUM(AY40:AY43)/SUM(AY36:AY39)-1 -> 0.04133068076 | BC43: 2017Q1 | BD43: 1123 | BE43: 1122 | BG43: =BD43/BD39-1 -> 0.01445347787 | BH43: =BE43/BE39-1 -> 0.01446654611 | BK43: 2017-03-01 | BL43: 15.25 | BM43: =BL43/BL39-1 -> 0.03389830508 | BP43: 2017-03-01 | BQ43: 30.63 | BR43: 37.07 | BS43: 29.96 | BV43: 2017Q1 | BW43: 1100 | BX43: 1116 | BY43: 1120 | BZ43: 0.01946246525 | CA43: 0.01546860783 | CB43: 0.01633393829 | CD43: 2017Q1 | CE43: 1128 | CF43: =CE43/CE39-1 -> 0.01256732496 | CG43: =CE43/CE42-1 -> 0.002666666667 | CH43: 1145 | CI43: =CH43/CH39-1 -> 0.01507092199 | CJ43: =CH43/CH42-1 -> 0.003505696757 | CL43: 2017Q1 | CM43: 1100 | CN43: 1123 | CO43: 1116 | CQ43: Index, Magnitude = Units | CW43: 2002Q3 | CX43: 826.366559 | CY43: 826.366559 | CZ43: .. | DB43: 2011-03-01 | DC43: 1387.319 | DD43: 1282.564 | DE43: 0.01773399015 | DF43: 0.01877470356 | DG43: 0.01769911504 | DH43: 1998Q4 | DI43: 20.4 | DJ43: 16.35 | DK43: 17.19 | DM43: 1998-12-01 | DN43: 17.76 | DO43: 17.19 | DP43: 0.02245250432 | DQ43: 0.02995805872 | DR43: =GEOMEAN(DN40:DN43)/GEOMEAN(DN36:DN39)-1 -> 0.0206468115 | DS43: 0.02701906893 | DU43: 2005-09-01 | DV43: 87.7 | DW43: 88 | DX43: 87.3 | DY43: 1956-09-01 | DZ43: 7.1 | EJ43: 1999Q1 | EK43: 60795000 | EL43: 712655700 | EN43: 1999Q1 | EO43: 3407800 | EP43: 41262400 | ER43: 17.8399554 | ES43: 17.27130996 | ET43: 0.02060430825 | EU43: 0.02867475882 | EV43: 1999-03-01 | EW43: 17.65342545 | EX43: 17.1235827 | EY43: =EW43/EW39-1 -> 0.01935224124 | EZ43: 0.02800188746
A44: 2017-06-01 | B44: 2017Q2 | C44: =C43*(1+$Q$44) -> 1072.207 | D44: 0.01534753788 | G44: =G43*(1+$Q$44) -> 1047.132 | H44: =G44/G40-1 -> 0.0146627907 | I44: =I43*(1+$Q$44) -> 1086.249 | J44: =I44/I40-1 -> 0.01804029991 | K44: =K43*(1+$Q$44) -> 1091.264 | L44: =K44/K40-1 -> 0.01042962963 | N44: 2017Q2 | O44: =O43*(1+$Q$44) -> 1229.678 | P44: 0.02047966805 | Q44: 0.003 | R44: =R43*(1+$T$44) -> 1205.646826 | S44: =R44/R40-1 -> 0.02047966805 | T44: 0.003 | V44: 2017Q2 | W44: =W43*(1+$Q$44) -> 1307.912 | X44: 0.0282327044 | Y44: =Y43*(1+$Q$44) -> 1282.85035 | Z44: =Y44/Y40-1 -> 0.0282327044 | AA44: 0.003 | AC44: 2017Q2 | AD44: =AD43*(1+$AR$44) -> 40.06812681 | AE44: =AE43*(1+$AR$44) -> 28.47262338 | AF44: =AF43*(1+$AR$44) -> 30.69751686 | AG44: =AF44/AF40-1 -> 0.02188804469 | AH44: =AF44/AF43-1 -> 0.002204272363 | AJ44: 2017Q2 | AK44: =AK43*(1+$AR$44) -> 37.15171238 | AL44: =AK44/AK40-1 -> 0.03544348875 | AM44: 0.002204272363 | AO44: 2017Q2 | AP44: =AP40*(1+AQ44) -> 30.02604 | AQ44: 0.012 | AR44: 0.002204272363 | BC44: 2017Q2 | BK44: 2017-06-01 | BL44: 15.75 | BM44: =BL44/BL40-1 -> 0.03278688525 | BV44: 2017Q2 | BW44: =BW43*(1+$CJ$44) -> 1105.998603 | BX44: =BX43*(1+$CJ$44) -> 1122.085855 | BY44: =BY43*(1+$CJ$44) -> 1126.107668 | BZ44: 0.0240727802 | CA44: 0.02007805002 | CB44: 0.0200250617 | CD44: 2017Q2 | CE44: =CE43*(1+CJ44) -> 1134.151294 | CF44: =CE44/CE40-1 -> 0.014446596 | CG44: =CE44/CE43-1 -> 0.005453275109 | CH44: =CH40*(1+CI44) -> 1151.244 | CI44: 0.017 | CJ44: =CH44/CH43-1 -> 0.005453275109 | CL44: 2017Q2 | CM44: =CM43*(1+$CJ$44) -> 1105.998603 | CN44: =CN43*(1+$CJ$44) -> 1129.124028 | CO44: =CO43*(1+$CJ$44) -> 1122.085855 | CW44: 2002Q4 | CX44: 830.385852 | CY44: 830.385852 | CZ44: .. | DB44: 2011-06-01 | DC44: 1388.662 | DD44: 1287.54 | DE44: 0.01571709234 | DF44: 0.0187007874 | DG44: 0.01669941061 | DH44: 1999Q1 | DI44: 20.66 | DJ44: 16.4 | DK44: 17.27 | DM44: 1999-03-01 | DN44: 17.84 | DO44: 17.27 | DP44: 0.02059496568 | DQ44: 0.0285884455 | DR44: 0.01934425394 | DS44: 0.02806596583 | DU44: 2005-12-01 | DV44: 88.6 | DW44: 89.1 | DX44: 88 | DY44: 1956-12-01 | DZ44: 7.1 | EJ44: 1999Q2 | EK44: 63526000 | EL44: 710254300 | EN44: 1999Q2 | EO44: 3606600 | EP44: 40926100 | ER44: 17.61381911 | ES44: 17.35455614 | ET44: 0.006988454139 | EU44: 0.02212623915 | EV44: 1999-06-01 | EW44: 17.68246785 | EX44: 17.21746212 | EY44: 0.0151082429 | EZ44: 0.02643339395
CQ45: Footnotes: | CW45: 2003Q1 | CX45: 835.209003 | CY45: 835.209003 | CZ45: .. | DB45: 2011-09-01 | DC45: 1395.377 | DD45: 1295.004 | DE45: 0.01762977473 | DF45: 0.01958863859 | DG45: 0.01762977473 | DH45: 1999Q2 | DI45: 20.62 | DJ45: 16.49 | DK45: 17.35 | DM45: 1999-06-01 | DN45: 17.61 | DO45: 17.35 | DP45: 0.006861063465 | DQ45: 0.02179034158 | DR45: 0.01505080504 | DS45: 0.02639322618 | DU45: 2006-03-01 | DV45: 89.2 | DW45: 89.6 | DX45: 88.6 | DY45: 1957-03-01 | DZ45: 7.1 | EJ45: 1999Q3 | EK45: 62943900 | EL45: 708688400 | EN45: 1999Q3 | EO45: 3505700 | EP45: 40346100 | ER45: 17.95473087 | ES45: 17.56522687 | ET45: 0.02497647778 | EU45: 0.03016782718 | EV45: 1999-09-01 | EW45: 17.79184436 | EX45: 17.34471009 | EY45: 0.0186666989 | EZ45: 0.02767701049
B46: Since 2007 | C46: =C43/C3-1 -> 0.1684418605 | G46: =G43/G3-1 -> 0.1447368421 | I46: =I43/I3-1 -> 0.1545842217 | K46: =K43/K3-1 -> 0.2279909707 | O46: =O43/O3-1 -> 0.2138613861 | R46: =R43/R3-1 -> 0.1901393105 | W46: =W43/W3-1 -> 0.2975124378 | Y46: =Y43/Y3-1 -> 0.2726500597 | CQ46: Base: June 2001 Quarter (=1000) | CW46: 2003Q2 | CX46: 839.228296 | CY46: 839.228296 | CZ46: 832 | DB46: 2011-12-01 | DC46: 1400.749 | DD46: 1302.468 | DE46: 0.01756097561 | DF46: 0.02046783626 | DG46: 0.01661779081 | DH46: 1999Q3 | DI46: 20.88 | DJ46: 16.68 | DK46: 17.57 | DM46: 1999-09-01 | DN46: 17.95 | DO46: 17.57 | DP46: 0.024543379 | DQ46: 0.03049853372 | DR46: 0.01858931374 | DS46: 0.02770291461 | DU46: 2006-06-01 | DV46: 90 | DW46: 90.8 | DX46: 89.1 | DY46: 1957-06-01 | DZ46: 7.2 | EJ46: 1999Q4 | EK46: 64475900 | EL46: 730539100 | EN46: 1999Q4 | EO46: 3595500 | EP46: 41775300 | ER46: 17.93238771 | ES46: 17.48734539 | ET46: 0.009424920684 | EU46: 0.01720284231 | EV46: 1999-12-01 | EW46: 17.83422596 | EX46: 17.41914212 | EY46: 0.01534009936 | EZ46: 0.02446416534
B47: Jun09-Jun16 | C47: =C40/C12-1 -> 0.05359818071 | G47: =G40/G12-1 -> 0.03822937626 | I47: =I40/I12-1 -> 0.03996101365 | K47: =K40/K12-1 -> 0.09201213347 | O47: =O40/O12-1 -> 0.1147086031 | R47: =R40/R12-1 -> 0.09292423625 | W47: =W40/W12-1 -> 0.2148997135 | Y47: =Y40/Y12-1 -> 0.1916203251 | AM47: =PRODUCT(1+AM41:AM44)-1 -> 0.03544348875 | CW47: 2003Q3 | CX47: 845.659164 | CY47: 845.659164 | CZ47: .. | DB47: 2012-03-01 | DC47: 1406.121 | DD47: 1308.688 | DE47: 0.01355275895 | DF47: 0.0203685742 | DG47: 0.009661835749 | DH47: 1999Q4 | DI47: 21.1 | DJ47: 16.56 | DK47: 17.49 | DM47: 1999-12-01 | DN47: 17.93 | DO47: 17.49 | DP47: 0.009572072072 | DQ47: 0.01745200698 | DR47: 0.01536610544 | DS47: 0.0245689409 | DU47: 2006-09-01 | DV47: 91.4 | DW47: 91.3 | DX47: 91.5 | DY47: 1957-09-01 | DZ47: 7.2 | EJ47: 2000Q1 | EK47: 63807900 | EL47: 735232600 | EN47: 2000Q1 | EO47: 3534800 | EP47: 41872800 | ER47: 18.05134661 | ES47: 17.55871592 | ET47: 0.01184931294 | EU47: 0.01664065804 | EV47: 2000-03-01 | EW47: 17.88674118 | EX47: 17.49156653 | EY47: 0.01321645702 | EZ47: 0.02148988555
B48: Since 2010 | C48: =C43/C15-1 -> 0.06656861286 | G48: =G43/G15-1 -> 0.04924623116 | I48: =I43/I15-1 -> 0.06385068762 | K48: =K43/K15-1 -> 0.09236947791 | N48: Since 2010 | O48: =O43/O15-1 -> 0.1175934366 | R48: =R43/R15-1 -> 0.09575269244 | W48: =W43/W15-1 -> 0.2096474954 | Y48: =Y43/Y15-1 -> 0.1864687477 | AC48: Since 2010 | AD48: =AD39/AD15-1 -> 0.104195229 | AE48: =AE39/AE15-1 -> 0.112960761 | AF48: =AF39/AF15-1 -> 0.1145795079 | AK48: =AK39/AK15-1 -> 0.1659574468 | AP48: =AP39/AP15-1 -> 0.1652173913 | BD48: =BD39/BD15-1 -> 0.09064039409 | BV48: Since 2010 | BW48: =BW39/BW15-1 -> 0.07043650794 | BX48: =BX39/BX15-1 -> 0.08062930187 | BY48: =BY39/BY15-1 -> 0.08145240432 | CE48: =CE39/CE15-1 -> 0.09970384995 | CH48: =CH39/CH15-1 -> 0.1168316832 | CM48: =CM39/CM15-1 -> 0.07149950348 | CN48: =CN39/CN15-1 -> 0.09064039409 | CO48: =CO39/CO15-1 -> 0.08062930187 | CQ48: Symbols: | CW48: 2003Q4 | CX48: 849.678457 | CY48: 850.482315 | CZ48: .. | DB48: 2012-06-01 | DC48: 1415.522 | DD48: 1313.664 | DE48: 0.01934235977 | DF48: 0.02028985507 | DG48: 0.0193236715 | DH48: 2000Q1 | DI48: 21.1 | DJ48: 16.7 | DK48: 17.56 | DM48: 2000-03-01 | DN48: 18.05 | DO48: 17.56 | DP48: 0.01177130045 | DQ48: 0.01679212507 | DR48: 0.01316433953 | DS48: 0.02161866652 | DU48: 2006-12-01 | DV48: 92.6 | DW48: 92.3 | DX48: 92.7 | DY48: 1957-12-01 | DZ48: 7.2 | EJ48: 2000Q2 | EK48: 65874200 | EL48: 739850300 | EN48: 2000Q2 | EO48: 3707600 | EP48: 41812800 | ER48: 17.76734276 | ES48: 17.69434958 | ET48: 0.008716090761 | EU48: 0.0195794946 | EV48: 2000-06-01 | EW48: 17.92450291 | EX48: 17.5765221 | EY48: 0.01368785525 | EZ48: 0.0208544079
B49: Mar10-Jun15 | C49: =C36/C15-1 -> 0.04761182741 | G49: =G36/G15-1 -> 0.03115577889 | I49: =I36/I15-1 -> 0.0442043222 | K49: =K36/K15-1 -> 0.07530120482 | N49: Mar10-Jun15 | O49: =O36/O15-1 -> 0.09389243391 | R49: =R36/R15-1 -> 0.07251487025 | W49: =W36/W15-1 -> 0.1799628942 | Y49: =Y36/Y15-1 -> 0.1573529502 | AC49: Mar10-Jun15 | AD49: =AD36/AD15-1 -> 0.08143679737 | AE49: =AE36/AE15-1 -> 0.09472849782 | AF49: =AF36/AF15-1 -> 0.09585016526 | AK49: =AK36/AK15-1 -> 0.14599018 | AP49: =AP36/AP15-1 -> 0.147826087 | BD49: =BD36/BD15-1 -> 0.07684729064 | BV49: Mar10-Jun15 | BW49: =BW36/BW15-1 -> 0.05952380952 | BX49: =BX36/BX15-1 -> 0.06391347099 | BY49: =BY36/BY15-1 -> 0.06967615309 | CE49: =CE36/CE15-1 -> 0.08884501481 | CH49: =CH36/CH15-1 -> 0.102970297 | CM49: =CM36/CM15-1 -> 0.06156901688 | CN49: =CN36/CN15-1 -> 0.07684729064 | CO49: =CO36/CO15-1 -> 0.06391347099 | CQ49: .. figure not available | CW49: 2004Q1 | CX49: 853.697749 | CY49: 853.697749 | CZ49: .. | DB49: 2012-09-01 | DC49: 1419.551 | DD49: 1319.884 | DE49: 0.01732435034 | DF49: 0.01921229587 | DG49: 0.01539942252 | DH49: 2000Q2 | DI49: 21.37 | DJ49: 16.75 | DK49: 17.69 | DM49: 2000-06-01 | DN49: 17.77 | DO49: 17.69 | DP49: 0.009085746735 | DQ49: 0.01959654179 | DR49: 0.01372352905 | DS49: 0.02106986666 | DU49: 2007-03-01 | DV49: 93.6 | DW49: 93.8 | DX49: 93.3 | DY49: 1958-03-01 | DZ49: 7.2 | EJ49: 2000Q3 | EK49: 68469400 | EL49: 749227500 | EN49: 2000Q3 | EO49: 3827200 | EP49: 41932700 | ER49: 17.89020694 | ES49: 17.86738035 | ET49: -0.003593700599 | EU49: 0.01720179749 | EV49: 2000-09-01 | EW49: 17.90832657 | EX49: 17.65210558 | EY49: 0.006546944296 | EZ49: 0.01772272279
B50: Jun10-Jun16 | C50: =C40/C16-1 -> 0.05439757191 | G50: =G40/G16-1 -> 0.03303303303 | I50: =I40/I16-1 -> 0.0574826561 | K50: =K40/K16-1 -> 0.0843373494 | N50: Jun10-Jun16 | O50: =O40/O16-1 -> 0.09645131938 | R50: =R40/R16-1 -> 0.0750237483 | W50: =W40/W16-1 -> 0.1712707182 | Y50: =Y40/Y16-1 -> 0.14882733 | AC50: Jun10-Jun15 | AD50: =AD36/AD16-1 -> 0.1041433371 | AE50: =AE36/AE16-1 -> 0.107902126 | AF50: =AF36/AF16-1 -> 0.1084695394 | AK50: =AK36/AK16-1 -> 0.1246386123 | AP50: =AP36/AP16-1 -> 0.1392703021 | BD50: =BD36/BD16-1 -> 0.07367387033 | BV50: Jun10-Jun15 | BW50: =BW36/BW16-1 -> 0.05952380952 | BX50: =BX36/BX16-1 -> 0.06286836935 | BY50: =BY36/BY16-1 -> 0.06758080313 | CE50: =CE36/CE16-1 -> 0.08349705305 | CH50: =CH36/CH16-1 -> 0.09861932939 | CM50: =CM36/CM16-1 -> 0.06051587302 | CN50: =CN36/CN16-1 -> 0.07367387033 | CO50: =CO36/CO16-1 -> 0.06286836935 | CQ50: C: Confidential | CW50: 2004Q2 | CX50: 858.5209 | CY50: 858.5209 | CZ50: 847.2 | DB50: 2012-12-01 | DC50: 1423.58 | DD50: 1326.104 | DE50: 0.0162991371 | DF50: 0.01814708691 | DG50: 0.01634615385 | DH50: 2000Q3 | DI50: 21.69 | DJ50: 16.89 | DK50: 17.87 | DM50: 2000-09-01 | DN50: 17.89 | DO50: 17.87 | DP50: -0.003342618384 | DQ50: 0.01707455891 | DR50: 0.006754109292 | DS50: 0.01772821042 | DU50: 2007-06-01 | DV50: 93.9 | DW50: 94.4 | DX50: 93.4 | DY50: 1958-06-01 | DZ50: 7.2 | EJ50: 2000Q4 | EK50: 68304000 | EL50: 772775700 | EN50: 2000Q4 | EO50: 3791300 | EP50: 43099100 | ER50: 18.01598396 | ES50: 17.93020504 | ET50: 0.004661747102 | EU50: 0.0253245782 | EV50: 2000-12-01 | EW50: 17.92997059 | EX50: 17.76394195 | EY50: 0.005368589106 | EZ50: 0.01979430612
CQ51: E: Early Estimate | CW51: 2004Q3 | CX51: 864.14791 | CY51: 864.14791 | CZ51: .. | DB51: 2013-03-01 | DC51: 1428.952 | DD51: 1331.08 | DE51: 0.01623686724 | DF51: 0.01711026616 | DG51: 0.01531100478 | DH51: 2000Q4 | DI51: 21.7 | DJ51: 16.98 | DK51: 17.93 | DM51: 2000-12-01 | DN51: 18.02 | DO51: 17.93 | DP51: 0.005019520357 | DQ51: 0.0251572327 | DR51: 0.005617223878 | DS51: 0.01964959182 | DU51: 2007-09-01 | DV51: 95.2 | DW51: 95.2 | DX51: 95.3 | DY51: 1958-09-01 | DZ51: 7.2 | EJ51: 2001Q1 | EK51: 69214700 | EL51: 774794800 | EN51: 2001Q1 | EO51: 3780400 | EP51: 42775800 | ER51: 18.30882975 | ES51: 18.11292366 | ET51: 0.0142639299 | EU51: 0.0315631134 | EV51: 2001-03-01 | EW51: 17.99637904 | EX51: 17.90261254 | EY51: 0.00612956022 | EZ51: 0.02349966804
AC52: Incr to 2012 (June years) | CQ52: P: Provisional | CW52: 2004Q4 | CX52: 870.578778 | CY52: 871.382637 | CZ52: .. | DB52: 2013-06-01 | DC52: 1438.353 | DD52: 1336.056 | DE52: 0.01612903226 | DF52: 0.01704545455 | DG52: 0.01421800948 | DH52: 2001Q1 | DI52: 21.89 | DJ52: 17.2 | DK52: 18.11 | DM52: 2001-03-01 | DN52: 18.31 | DO52: 18.11 | DP52: 0.01440443213 | DQ52: 0.03132118451 | DR52: 0.006270865241 | DS52: 0.02327270757 | DU52: 2007-12-01 | DV52: 96.2 | DW52: 96.5 | DX52: 96 | DY52: 1958-12-01 | DZ52: 7.3 | EJ52: 2001Q2 | EK52: 72467800 | EL52: 794567000 | EN52: 2001Q2 | EO52: 3957100 | EP52: 43446600 | ER52: 18.31336079 | ES52: 18.28835858 | ET52: 0.0307315532 | EU52: 0.03357054765 | EV52: 2001-06-01 | EW52: 18.13336155 | EX52: 18.0513237 | EY52: 0.01165213001 | EZ52: 0.02701339896
AC53: 2007 | AD53: =AD24/AD4-1 -> 0.1386883273 | AE53: =AE24/AE4-1 -> 0.2003610108 | AF53: =AF24/AF4-1 -> 0.1932668329 | AJ53: =(1+AH5) -> 1.012468828 | AK53: =AK24/AK4-1 -> 0.1970588235 | AP53: =AP24/AP4-1 -> 0.1795543906 | CQ53: R: Revised | CW53: 2005Q1 | CX53: 875.401929 | CY53: 875.401929 | CZ53: .. | DB53: 2013-09-01 | DC53: 1442.382 | DD53: 1342.276 | DE53: 0.01608325449 | DF53: 0.01696512724 | DG53: 0.01611374408 | DH53: 2001Q2 | DI53: 22.07 | DJ53: 17.35 | DK53: 18.29 | DM53: 2001-06-01 | DN53: 18.31 | DO53: 18.29 | DP53: 0.03038829488 | DQ53: 0.0339174675 | DR53: 0.01154011362 | DS53: 0.0268470756 | DU53: 2008-03-01 | DV53: 96.8 | DW53: 97.1 | DX53: 96.5 | DY53: 1959-03-01 | DZ53: 7.3 | EJ53: 2001Q3 | EK53: 76971900 | EL53: 795200400 | EN53: 2001Q3 | EO53: 4089900 | EP53: 43011200 | ER53: 18.8199956 | ES53: 18.48821702 | ET53: 0.05197193427 | EU53: 0.03474693326 | EV53: 2001-09-01 | EW53: 18.37274549 | EX53: 18.20512242 | EY53: 0.02593312769 | EZ53: 0.03132866153
AC54: 2008 | AD54: =AD24/AD8-1 -> 0.105432243 | AE54: =AE24/AE8-1 -> 0.1181168558 | AF54: =AF24/AF8-1 -> 0.121484375 | AJ54: =AJ53*(1+AH6) -> 1.030756442 | AK54: =AK24/AK8-1 -> 0.129379119 | AP54: =AP24/AP8-1 -> 0.1203319502 | CQ54: S: Suppressed | CW54: 2005Q2 | CX54: 881.028939 | CY54: 881.832797 | CZ54: 870.4 | DB54: 2013-12-01 | DC54: 1447.754 | DD54: 1347.252 | DE54: 0.01698113208 | DF54: 0.01594746717 | DG54: 0.0151371807 | DH54: 2001Q3 | DI54: 22.53 | DJ54: 17.48 | DK54: 18.49 | DM54: 2001-09-01 | DN54: 18.82 | DO54: 18.49 | DP54: 0.0519843488 | DQ54: 0.03469501959 | DR54: 0.02529527872 | DS54: 0.03126591181 | DU54: 2008-06-01 | DV54: 97.3 | DW54: 97.6 | DX54: 96.9 | DY54: 1959-06-01 | DZ54: 7.3 | EJ54: 2001Q4 | EK54: 76646200 | EL54: 823292100 | EN54: 2001Q4 | EO54: 4110100 | EP54: 44422300 | ER54: 18.64825673 | ES54: 18.53330647 | ET54: 0.03509510063 | EU54: 0.03363605879 | EV54: 2001-12-01 | EW54: 18.5286651 | EX54: 18.35730488 | EY54: 0.0333907131 | EZ54: 0.03340266063
AC55: 2009 | AD55: =AD24/AD12-1 -> 0.04097909791 | AE55: =AE24/AE12-1 -> 0.07042253521 | AF55: =AF24/AF12-1 -> 0.06688963211 | AJ55: =AJ54*(1+AH7) -> 1.054031588 | AK55: =AK24/AK12-1 -> 0.08388814913 | AP55: =AP24/AP12-1 -> 0.07100357001 | CW55: 2005Q3 | CX55: 890.675241 | CY55: 890.675241 | CZ55: .. | DB55: 2014-03-01 | DC55: 1449.097 | DD55: 1352.228 | DE55: 0.01409774436 | DF55: 0.01588785047 | DG55: 0.01131008483 | DH55: 2001Q4 | DI55: 22.77 | DJ55: 17.51 | DK55: 18.53 | DM55: 2001-12-01 | DN55: 18.65 | DO55: 18.53 | DP55: 0.03496115427 | DQ55: 0.03346346905 | DR55: 0.03284784009 | DS55: 0.03334852746 | DU55: 2008-09-01 | DV55: 98.3 | DW55: 98.4 | DX55: 98 | DY55: 1959-09-01 | DZ55: 7.4 | EJ55: 2002Q1 | EK55: 77538200 | EL55: 840523600 | EN55: 2002Q1 | EO55: 4094600 | EP55: 44770700 | ER55: 18.93669711 | ES55: 18.77396601 | ET55: 0.03429314534 | EU55: 0.03649561821 | EV55: 2002-03-01 | EW55: =SUM(EK52:EK55)/SUM(EO52:EO55) -> 18.68260551 | EX55: 18.52301897 | EY55: 0.03813136344 | EZ55: 0.03465451907
AC56: 2010 | AD56: =AD24/AD16-1 -> 0.05963045913 | AE56: =AE24/AE16-1 -> 0.06698756518 | AF56: =AF24/AF16-1 -> 0.06649331352 | AJ56: =AJ55*(1+AH8) -> 1.06400665 | AK56: =AK24/AK16-1 -> 0.04593639576 | AP56: =AP24/AP16-1 -> 0.05923891722 | CQ56: Status flags are not displayed | CW56: 2005Q4 | CX56: 897.909968 | CY56: 897.909968 | CZ56: .. | DB56: 2014-06-01 | DC56: 1454.469 | DD56: 1358.448 | DE56: 0.01120448179 | DF56: 0.01675977654 | DG56: 0.006542056075 | DH56: 2002Q1 | DI56: 23.48 | DJ56: 17.62 | DK56: 18.77 | DM56: 2002-03-01 | DN56: 18.94 | DO56: 18.77 | DP56: 0.03440742764 | DQ56: 0.03644395362 | DR56: 0.03790228654 | DS56: 0.03462935396 | DU56: 2008-12-01 | DV56: 99.8 | DW56: 100 | DX56: 99.7 | DY56: 1959-12-01 | DZ56: 7.5 | EJ56: 2002Q2 | EK56: 78559000 | EL56: 848807600 | EN56: 2002Q2 | EO56: 4168800 | EP56: 45330700 | ER56: 18.84451161 | ES56: 18.72478475 | ET56: =ER56/ER52-1 -> 0.02900345936 | EU56: 0.02386360503 | EV56: 2002-06-01 | EW56: 18.81235346 | EX56: 18.63196307 | EY56: 0.03744434855 | EZ56: 0.03216602684
AC57: 2011 | AD57: =AD24/AD20-1 -> -0.01045751634 | AE57: =AE24/AE20-1 -> 0.03100775194 | AF57: =AF24/AF20-1 -> 0.02352941176 | AJ57: =SUM(AJ53:AJ56)/4 -> 1.040315877 | AK57: =AK24/AK20-1 -> 0.01813633521 | AP57: =AP24/AP20-1 -> 0.02778835173 | CW57: 2006Q1 | CX57: 903.536977 | CY57: 903.536977 | CZ57: .. | DB57: 2014-09-01 | DC57: 1458.498 | DD57: 1363.424 | DE57: 0.01117318436 | DF57: 0.01575532901 | DG57: 0.006529850746 | DH57: 2002Q2 | DI57: 23.14 | DJ57: 17.6 | DK57: 18.72 | DM57: 2002-06-01 | DN57: 18.84 | DO57: 18.72 | DP57: 0.02894593119 | DQ57: 0.02351011482 | DR57: 0.03753887523 | DS57: 0.03201583823 | DU57: 2009-03-01 | DV57: 100.8 | DW57: 100.6 | DX57: 101.1 | DY57: 1960-03-01 | DZ57: 7.5 | EJ57: 2002Q3 | EK57: 79370100 | EL57: 858365600 | EN57: 2002Q3 | EO57: 4153900 | EP57: 45045200 | ER57: 19.10736898 | ES57: 19.05565077 | ET57: 0.01526957741 | EU57: 0.03069164243 | EV57: 2002-09-01 | EW57: 18.8846098 | EX57: 18.77267667 | EY57: 0.02785997927 | EZ57: 0.0311755253
CQ58: Table reference: | CW58: 2006Q2 | CX58: 909.163987 | CY58: 909.163987 | CZ58: 901.6 | DB58: 2014-12-01 | DC58: 1461.184 | DD58: 1370.888 | DE58: 0.009276437848 | DF58: 0.01754385965 | DG58: 0.006523765144 | DH58: 2002Q3 | DI58: 23.55 | DJ58: 17.91 | DK58: 19.06 | DM58: 2002-09-01 | DN58: 19.11 | DO58: 19.06 | DP58: 0.01540913921 | DQ58: 0.03082747431 | DR58: 0.02840060982 | DS58: 0.03105010079 | DU58: 2009-06-01 | DV58: 101.1 | DW58: 101 | DX58: 101.3 | DY58: 1960-06-01 | DZ58: 7.6 | EJ58: 2002Q4 | EK58: 82275900 | EL58: 885186400 | EN58: 2002Q4 | EO58: 4249000 | EP58: 46112700 | ER58: 19.36359143 | ES58: 19.19615204 | ET58: 0.03835933353 | EU58: 0.03576510038 | EV58: 2002-12-01 | EW58: 19.06501143 | EX58: 18.93907347 | EY58: 0.02894684152 | EZ58: 0.03169139467
CQ59: LCI022AA | CW59: 2006Q3 | CX59: 918.810289 | CY59: 918.810289 | CZ59: .. | DB59: 2015-03-01 | DC59: 1463.87 | DD59: 1374.62 | DE59: 0.01019462465 | DF59: 0.01655933763 | DG59: 0.006523765144 | DH59: 2002Q4 | DI59: 23.6 | DJ59: 18.09 | DK59: 19.2 | DM59: 2002-12-01 | DN59: 19.36 | DO59: 19.2 | DP59: 0.03806970509 | DQ59: 0.0361575823 | DR59: =GEOMEAN(DN56:DN59)/GEOMEAN(DN52:DN55)-1 -> 0.02917195306 | DS59: 0.03172140037 | DU59: 2009-09-01 | DV59: 102.7 | DW59: 101.8 | DX59: 103.7 | DY59: 1960-09-01 | DZ59: 7.7 | EJ59: 2003Q1 | EK59: 82896100 | EL59: 895488300 | EN59: 2003Q1 | EO59: 4258200 | EP59: 46614100 | ER59: 19.46740407 | ES59: 19.21067445 | ET59: 0.02802531777 | EU59: 0.02326138459 | EV59: 2003-03-01 | EW59: 19.19804039 | EX59: 19.04858803 | EY59: =EW59/EW55-1 -> 0.02758902553 | EZ59: 0.02837383402
B60: Table information: | F60: Table information: | N60: Table information: | V60: Table information: | AC60: Table information: | AJ60: Table information: | AO60: Table information: | AT60: Table information: | AX60: Table information: | BC60: Table information: | BV60: Table information: | CD60: Table information: | CL60: Table information: | CO60: Table information: | CW60: 2006Q4 | CX60: 926.848875 | CY60: 926.848875 | CZ60: .. | DB60: 2015-06-01 | DC60: 1467.899 | DD60: 1380.84 | DE60: =DC60/DC56-1 -> 0.009233610342 | DF60: 0.01648351648 | DG60: 0.004642525534 | DH60: 2003Q1 | DI60: 23.9 | DJ60: 18.07 | DK60: 19.21 | DM60: 2003-03-01 | DN60: 19.47 | DO60: 19.21 | DP60: 0.02798310454 | DQ60: 0.02344166223 | DR60: 0.02757026603 | DS60: 0.02847030402 | DU60: 2009-12-01 | DV60: 103.7 | DW60: 102.7 | DX60: 104.8 | DY60: 1960-12-01 | DZ60: 7.8 | EJ60: 2003Q2 | EK60: 84913900 | EL60: 901310500 | EN60: 2003Q2 | EO60: 4365300 | EP60: 46402700 | ER60: 19.45201933 | ES60: 19.423665 | ET60: 0.03223791292 | EU60: 0.03732380709 | EV60: 2003-06-01 | EW60: 19.34971574 | EX60: 19.22278576 | EY60: 0.02856433002 | EZ60: 0.03171016857
B61: Units: | F61: Units: | N61: Units: | V61: Units: | AC61: Units: | AJ61: Units: | AO61: Units: | AT61: Units: | AX61: Units: | BC61: Units: | BV61: Units: | CD61: Units: | CL61: Units: | CO61: Units: | CQ61: Last updated: | CW61: 2007Q1 | CX61: 932.475884 | CY61: 932.475884 | CZ61: .. | DB61: 2015-09-01 | DC61: 1471.928 | DD61: 1385.816 | DE61: 0.009208103131 | DF61: 0.01642335766 | DG61: 0.006487488415 | DH61: 2003Q2 | DI61: 23.65 | DJ61: 18.34 | DK61: 19.42 | DM61: 2003-06-01 | DN61: 19.45 | DO61: 19.42 | DP61: 0.03237791932 | DQ61: 0.03739316239 | DR61: 0.0284260463 | DS61: 0.03194028539 | DU61: 2010-03-01 | DV61: 104.5 | DW61: 104 | DX61: 105.2 | DY61: 1961-03-01 | DZ61: 7.8 | EJ61: 2003Q3 | EK61: 83367500 | EL61: 902014600 | EN61: 2003Q3 | EO61: 4226100 | EP61: 45896500 | ER61: 19.72681669 | ES61: 19.65323282 | ET61: 0.03241930948 | EU61: 0.0313598342 | EV61: 2003-09-01 | EW61: 19.50179547 | EX61: 19.37024959 | EY61: 0.03268193919 | EZ61: 0.03183205705
B62: Index, Magnitude = Units | F62: Index, Magnitude = Units | N62: Index, Magnitude = Units | V62: Index, Magnitude = Units | AC62: $, Magnitude = Units | AJ62: $, Magnitude = Units | AO62: $, Magnitude = Units | AT62: $, Magnitude = Units | AX62: Number, Magnitude = Units | BC62: Index, Magnitude = Units | BV62: Index, Magnitude = Units | CD62: Index, Magnitude = Units | CL62: Index, Magnitude = Units | CO62: Index, Magnitude = Units | CQ62: All Salary and Wage Rates: 22 October 2010 10:45am | CW62: 2007Q2 | CX62: 938.102894 | CY62: 938.906752 | CZ62: 938.4 | DB62: 2015-12-01 | DC62: 1479.986 | DD62: 1392.036 | DE62: 0.01286764706 | DF62: 0.01542649728 | DG62: 0.01388888889 | DH62: 2003Q3 | DI62: 24.24 | DJ62: 18.45 | DK62: 19.65 | DM62: 2003-09-01 | DN62: 19.73 | DO62: 19.65 | DP62: 0.03244374673 | DQ62: 0.03095487933 | DR62: 0.03271241914 | DS62: 0.03197216955 | DU62: 2010-06-01 | DV62: 105.1 | DW62: 104.5 | DX62: 105.7 | DY62: 1961-06-01 | DZ62: 7.9 | EJ62: 2003Q4 | EK62: 88055400 | EL62: 934859800 | EN62: 2003Q4 | EO62: 4320000 | EP62: 47129700 | ER62: 20.38319444 | ES62: 19.83589541 | ET62: 0.05265567675 | EU62: 0.03332664664 | EV62: 2003-12-01 | EW62: 19.75776372 | EX62: 19.5313621 | EY62: 0.03633631662 | EZ62: 0.03127336902
CQ63: All Labour Costs: 22 October 2010 10:45am | CW63: 2007Q3 | CX63: 946.945338 | CY63: 946.945338 | CZ63: .. | DB63: 2016-03-01 | DC63: 1486.701 | DD63: 1397.012 | DE63: 0.01559633028 | DF63: 0.01628959276 | DG63: 0.01759259259 | DH63: 2003Q4 | DI63: 24.65 | DJ63: 18.57 | DK63: 19.84 | DM63: 2003-12-01 | DN63: 20.38 | DO63: 19.84 | DP63: 0.05268595041 | DQ63: 0.03333333333 | DR63: 0.03632858451 | DS63: 0.03126823943 | DU63: 2010-09-01 | DV63: 106.5 | DW63: 106.2 | DX63: 107 | DY63: 1961-09-01 | DZ63: 7.8 | EJ63: 2004Q1 | EK63: 89663100 | EL63: 948894300 | EN63: 2004Q1 | EO63: 4460200 | EP63: 47779000 | ER63: 20.1029326 | ES63: 19.86007032 | ET63: 0.03264577723 | EU63: 0.03380390797 | EV63: 2004-03-01 | EW63: 19.91756085 | EX63: 19.69510475 | EY63: 0.03747884885 | EZ63: 0.0339404009
B64: Footnotes: | F64: Footnotes: | N64: Footnotes: | V64: Footnotes: | AC64: Footnotes: | AJ64: Footnotes: | AO64: Footnotes: | AT64: Footnotes: | AX64: Footnotes: | BC64: Footnotes: | BV64: Footnotes: | CD64: Footnotes: | CL64: Footnotes: | CO64: Footnotes: | CW64: 2007Q4 | CX64: 956.59164 | CY64: 957.395498 | CZ64: .. | DB64: 2016-06-01 | DC64: 1489.387 | DD64: 1401.988 | DE64: 0.01463860933 | DF64: 0.01531531532 | DG64: =CA40 -> 0.01663585952 | DH64: 2004Q1 | DI64: 24.8 | DJ64: 18.6 | DK64: 19.86 | DM64: 2004-03-01 | DN64: 20.1 | DO64: 19.86 | DP64: 0.03235747304 | DQ64: 0.03383654347 | DR64: 0.03742929985 | DS64: 0.03387691795 | DU64: 2010-12-01 | DV64: 107.4 | DW64: 106.9 | DX64: 108 | DY64: 1961-12-01 | DZ64: 7.8 | EJ64: 2004Q2 | EK64: 91146100 | EL64: 963269900 | EN64: 2004Q2 | EO64: 4472300 | EP64: 47463400 | ER64: 20.38013997 | ES64: 20.29500415 | ET64: 0.04771333107 | EU64: 0.04485966723 | EV64: 2004-06-01 | EW64: 20.15219182 | EX64: 19.91324416 | EY64: 0.04147224169 | EZ64: 0.03591874843
B65: The sheep, beef, and grain farming, and poultry, deer, and other livestock farming series have a base of the December 2013 quarter (= 1000) | V65: Base: June 2006 quarter (=1000). | BC65: Base: June 2009 Quarter (=1000) | BV65: Base: June 2009 Quarter (=1000) | CD65: Base: June 2009 Quarter (=1000) | CL65: Base: June 2009 Quarter (=1000) | CO65: Base: June 2009 Quarter (=1000) | CQ65: Source: Statistics New Zealand | CW65: 2008Q1 | CX65: 963.826367 | CY65: 964.630225 | CZ65: .. | DB65: 2016-09-01 | DC65: 1498.788 | DD65: 1408.208 | DE65: 0.01824817518 | DF65: 0.01615798923 | DG65: =CA41 -> 0.0211786372 | DH65: 2004Q2 | DI65: 24.6 | DJ65: 19.15 | DK65: 20.3 | DM65: 2004-06-01 | DN65: 20.38 | DO65: 20.3 | DP65: 0.04781491003 | DQ65: 0.04531410917 | DR65: 0.0412858725 | DS65: 0.0358448169 | DU65: 2011-03-01 | DV65: 108 | DW65: 107.7 | DX65: 108.5 | DY65: 1962-03-01 | DZ65: 7.8 | EJ65: 2004Q3 | EK65: 91362000 | EL65: 960387900 | EN65: 2004Q3 | EO65: 4406600 | EP65: 47227800 | ER65: 20.73299142 | ES65: 20.33522417 | ET65: 0.05100542835 | EU65: 0.03470122996 | EV65: 2004-09-01 | EW65: 20.3989218 | EX65: 20.08129698 | EY65: 0.04600224298 | EZ65: 0.03670822072
F66: Symbols: | N66: From the September 1999 quarter residential sections and interest are excluded. | V66: Percentage changes are calculated from index numbers which are rounded prior to the June 2006 quarter. | AC66: Symbols: | AJ66: Symbols: | AO66: Symbols: | AT66: Symbols: | AX66: Symbols: | BC66: The measured sector (used in productivity statistics) is ANZSIC divisions A to K and P from 1978, and includes divisions LC (Business services) and Q (Personal and other community services) from 1996 onwards. | CL66: The measured sector (used in productivity statistics) is ANZSIC divisions A to K and P from 1978, and includes divisions LC (Business services) and Q (Personal and other community services) from 1996 onwards. | CQ66: Contact: Information Centre | CW66: 2008Q2 | CX66: 971.864952 | CY66: 972.66881 | CZ66: 972.8 | DB66: 2016-12-01 | DC66: 1504.16 | DD66: 1414.428 | DE66: 0.01633393829 | DF66: 0.01608579088 | DG66: =CA42 -> 0.01826484018 | DH66: 2004Q3 | DI66: 25.06 | DJ66: 19.1 | DK66: 20.34 | DM66: 2004-09-01 | DN66: 20.73 | DO66: 20.34 | DP66: =DN66/DN62-1 -> 0.0506842372 | DQ66: 0.03511450382 | DR66: 0.04585488886 | DS66: 0.03688807826 | DU66: 2011-06-01 | DV66: 108.9 | DW66: 108.2 | DX66: 109.6 | DY66: 1962-06-01 | DZ66: 7.8 | EJ66: 2004Q4 | EK66: 94356300 | EL66: 994417900 | EN66: 2004Q4 | EO66: 4523000 | EP66: 49040500 | ER66: 20.86144152 | ES66: 20.2774829 | ET66: 0.02346281286 | EU66: 0.02226203938 | EV66: 2004-12-01 | EW66: 20.51984369 | EX66: 20.19192661 | EY66: 0.03857116525 | EZ66: 0.03382070871
B67: Symbols: | F67: .. figure not available | N67: Percentage changes are calculated from index numbers which are unrounded prior to the June 2006 quarter. | V67: From the September 2006 quarter, prices for fresh fruit and vegetables are seasonally unadjusted. They were seasonally adjusted until the June 2006 quarter. | AC67: .. figure not available | AJ67: .. figure not available | AO67: .. figure not available | AT67: .. figure not available | AX67: .. figure not available | BC67: The former measured sector (used in productivity statistics) is ANZSIC divisions A to K and P. | BV67: Symbols: | CD67: Symbols: | CL67: The former measured sector (used in productivity statistics) is ANZSIC divisions A to K and P. | CO67: Symbols: | CQ67: Telephone: 0508 525 525 | CW67: 2008Q3 | CX67: 983.92283 | CY67: 984.726688 | CZ67: .. | DB67: 2017-03-01 | DC67: =CR$36*CN43/1000 -> 1508.189 | DD67: =CT$36*CY101/1000 -> 1419.404 | DE67: =DC67/DC63-1 -> 0.01445347787 | DF67: =DD67/DD63-1 -> 0.0160284951 | DG67: =CA43 -> 0.01546860783 | DH67: 2004Q4 | DI67: 25.3 | DJ67: 18.98 | DK67: 20.28 | DM67: 2004-12-01 | DN67: 20.86 | DO67: 20.28 | DP67: 0.02355250245 | DQ67: 0.02217741935 | DR67: 0.03854245586 | DS67: 0.03407810352 | DU67: 2011-09-01 | DV67: 109.9 | DW67: 109.6 | DX67: 110.3 | DY67: 1962-09-01 | DZ67: 7.8 | EJ67: 2005Q1 | EK67: 95368200 | EL67: 1011032900 | EN67: 2005Q1 | EO67: 4504800 | EP67: 49107800 | ER67: 21.17035162 | ES67: 20.58803082 | ET67: 0.05309767694 | EU67: 0.03665447737 | EV67: 2005-03-01 | EW67: 20.78733658 | EX67: 20.37501964 | EY67: 0.04366878775 | EZ67: 0.03452202475
B68: .. figure not available | F68: C: Confidential | N68: Base: June 2006 quarter (=1000). | AC68: C: Confidential | AJ68: C: Confidential | AO68: C: Confidential | AT68: C: Confidential | AX68: C: Confidential | BV68: .. figure not available | CD68: .. figure not available | CO68: .. figure not available | CQ68: Email:info@stats.govt.nz | CW68: 2008Q4 | CX68: 991.157556 | CY68: 991.157556 | CZ68: .. | DB68: 2017-06-01 | DC68: =CR$36*CN44/1000 -> 1516.41357 | DD68: =CT$36*CY102/1000 -> 1427.144401 | DE68: =DC68/DC64-1 -> 0.01814610275 | DF68: =DD68/DD64-1 -> 0.01794337791 | DH68: 2005Q1 | DI68: 26.38 | DJ68: 19.18 | DK68: 20.59 | DM68: 2005-03-01 | DN68: 21.17 | DO68: 20.59 | DP68: 0.05323383085 | DQ68: 0.03675730111 | DR68: 0.04375346193 | DS68: 0.03480769104 | DU68: 2011-12-01 | DV68: 110.6 | DW68: 110.1 | DX68: 111.2 | DY68: 1962-12-01 | DZ68: 7.8 | EJ68: 2005Q2 | EK68: 99437000 | EL68: 1017682100 | EN68: 2005Q2 | EO68: 4598700 | EP68: 48434100 | ER68: =EK68/EO68 -> 21.62284994 | ES68: 21.01168598 | ET68: 0.06097651757 | EU68: 0.03531321431 | EV68: 2005-06-01 | EW68: 21.10139133 | EX68: 20.55372111 | EY68: 0.04710155181 | EZ68: 0.03216336558
B69: C: Confidential | F69: E: Early Estimate | V69: Symbols: | AC69: E: Early Estimate | AJ69: E: Early Estimate | AO69: E: Early Estimate | AT69: E: Early Estimate | AX69: E: Early Estimate | BC69: Symbols: | BV69: C: Confidential | CD69: C: Confidential | CL69: Symbols: | CO69: C: Confidential | CW69: 2009Q1 | CX69: 996.784566 | CY69: 996.784566 | CZ69: .. | DH69: 2005Q2 | DI69: 26.9 | DJ69: 19.55 | DK69: 21.01 | DM69: 2005-06-01 | DN69: 21.62 | DO69: 21.01 | DP69: 0.06084396467 | DQ69: 0.03497536946 | DR69: 0.04698307934 | DS69: 0.03223943943 | DU69: 2012-03-01 | DV69: 111.3 | DW69: 110.9 | DX69: 111.7 | DY69: 1963-03-01 | DZ69: 7.8 | EJ69: 2005Q3 | EK69: 101427500 | EL69: 1024966800 | EN69: 2005Q3 | EO69: 4633000 | EP69: 48328200 | ER69: 21.89240233 | ES69: 21.20846214 | ET69: 0.0559210625 | EU69: 0.04294213646 | EV69: 2005-09-01 | EW69: 21.39100194 | EX69: 20.76900743 | EY69: 0.04863394994 | EZ69: 0.0342463163
B70: E: Early Estimate | F70: P: Provisional | N70: From the September 2006 quarter, prices for fresh fruit and vegetables are seasonally unadjusted. They were seasonally adjusted until the June 2006 quarter. | V70: .. figure not available | AC70: P: Provisional | AJ70: P: Provisional | AO70: P: Provisional | AT70: P: Provisional | AX70: P: Provisional | BC70: .. figure not available | BV70: E: Early Estimate | CD70: E: Early Estimate | CL70: .. figure not available | CO70: E: Early Estimate | CW70: 2009Q2 | CX70: 1000 | CY70: 1000 | CZ70: 1000 | DH70: 2005Q3 | DI70: 26.7 | DJ70: 19.8 | DK70: 21.21 | DM70: 2005-09-01 | DN70: 21.89 | DO70: 21.21 | DP70: 0.05595754945 | DQ70: 0.04277286136 | DR70: 0.04829429817 | DS70: 0.03414343653 | DU70: 2012-06-01 | DV70: 111.7 | DW70: 111.6 | DX70: 111.9 | DY70: 1963-06-01 | DZ70: 7.8 | EJ70: 2005Q4 | EK70: 103789100 | EL70: 1051844900 | EN70: 2005Q4 | EO70: 4670800 | EP70: 49170300 | ER70: 22.22084011 | ES70: 21.39187477 | ET70: 0.06516321466 | EU70: 0.05495711074 | EV70: 2005-12-01 | EW70: 21.7316934 | EX70: 21.04962203 | EY70: 0.05905745341 | EZ70: 0.04247714596
B71: P: Provisional | F71: R: Revised | V71: C: Confidential | AC71: R: Revised | AJ71: R: Revised | AO71: R: Revised | AT71: R: Revised | AX71: R: Revised | BC71: C: Confidential | BV71: P: Provisional | CD71: P: Provisional | CL71: C: Confidential | CO71: P: Provisional | CW71: 2009Q3 | CX71: 1005 | CY71: 1005 | CZ71: .. | DH71: 2005Q4 | DI71: 26.97 | DJ71: 19.94 | DK71: 21.39 | DM71: 2005-12-01 | DN71: 22.22 | DO71: 21.39 | DP71: 0.06519654842 | DQ71: 0.05473372781 | DR71: 0.05879804354 | DS71: 0.04228123213 | DU71: 2012-09-01 | DV71: 113.4 | DW71: 113.4 | DX71: 113.4 | DY71: 1963-09-01 | DZ71: 7.9 | EJ71: 2006Q1 | EK71: 104952600 | EL71: 1077154200 | EN71: 2006Q1 | EO71: 4635800 | EP71: 49682000 | ER71: 22.63958756 | ES71: 21.680975 | ET71: 0.0694006391 | EU71: 0.05308638735 | EV71: 2006-03-01 | EW71: =SUM(EK68:EK71)/SUM(EO68:EO71) -> 22.09513278 | EX71: 21.32585196 | EY71: 0.06291311974 | EZ71: 0.04666657171
B72: R: Revised | F72: S: Suppressed | N72: Symbols: | V72: E: Early Estimate | AC72: S: Suppressed | AJ72: S: Suppressed | AO72: S: Suppressed | AT72: S: Suppressed | AX72: S: Suppressed | BC72: E: Early Estimate | BV72: R: Revised | CD72: R: Revised | CL72: E: Early Estimate | CO72: R: Revised | CW72: 2009Q4 | CX72: 1009 | CY72: 1009 | CZ72: .. | DH72: 2006Q1 | DI72: 28.35 | DJ72: 20.06 | DK72: 21.68 | DM72: 2006-03-01 | DN72: 22.64 | DO72: 21.68 | DP72: 0.0694378838 | DQ72: 0.05293831957 | DR72: 0.06284717149 | DS72: 0.04632445259 | DU72: 2012-12-01 | DV72: 114.4 | DW72: 114 | DX72: 114.9 | DY72: 1963-12-01 | DZ72: 7.9 | EJ72: 2006Q2 | EK72: 106746100 | EL72: 1089351100 | EN72: 2006Q2 | EO72: 4743200 | EP72: 49627200 | ER72: 22.50508096 | ES72: 21.95068632 | ET72: =ER72/ER68-1 -> 0.0408008669 | EU72: 0.04468943313 | EV72: 2006-06-01 | EW72: 22.31546128 | EX72: 21.56072654 | EY72: 0.05753506631 | EZ72: 0.04899382531
B73: S: Suppressed | N73: .. figure not available | V73: P: Provisional | BC73: P: Provisional | BV73: S: Suppressed | CD73: S: Suppressed | CL73: P: Provisional | CO73: S: Suppressed | CW73: 2010Q1 | CX73: 1012 | CY73: 1012 | CZ73: .. | DH73: 2006Q2 | DI73: 27.42 | DJ73: 20.52 | DK73: 21.95 | DM73: 2006-06-01 | DN73: 22.5 | DO73: 21.95 | DP73: 0.04070305273 | DQ73: 0.04474059971 | DR73: =GEOMEAN(DN70:DN73)/GEOMEAN(DN66:DN69)-1 -> 0.05776611559 | DS73: =GEOMEAN(DO70:DO73)/GEOMEAN(DO66:DO69)-1 -> 0.04878384563 | DU73: 2013-03-01 | DV73: 115 | DW73: 114.7 | DX73: 115.3 | DY73: 1964-03-01 | DZ73: 8 | EJ73: 2006Q3 | EK73: 110494700 | EL73: 1101352000 | EN73: 2006Q3 | EO73: 4744100 | EP73: 49397100 | ER73: 23.29097194 | ES73: 22.29588377 | ET73: 0.06388378908 | EU73: 0.05127300693 | EV73: 2006-09-01 | EW73: 22.66599801 | EX73: 21.83028312 | EY73: 0.05960431723 | EZ73: 0.05109900833
F74: Status flags are not displayed | N74: C: Confidential | V74: R: Revised | AC74: Status flags are not displayed | AJ74: Status flags are not displayed | AO74: Status flags are not displayed | AT74: Status flags are not displayed | AX74: Status flags are not displayed | BC74: R: Revised | CL74: R: Revised | CW74: 2010Q2 | CX74: 1016 | CY74: 1016 | CZ74: 1013 | DH74: 2006Q3 | DI74: 27.52 | DJ74: 20.91 | DK74: 22.3 | DM74: 2006-09-01 | DN74: 23.29 | DO74: 22.3 | DP74: 0.06395614436 | DQ74: 0.05139085337 | DR74: =GEOMEAN(DN71:DN74)/GEOMEAN(DN67:DN70)-1 -> 0.0597635244 | DS74: =GEOMEAN(DO71:DO74)/GEOMEAN(DO67:DO70)-1 -> 0.05094407958 | DU74: 2013-06-01 | DV74: 115.4 | DW74: 115.1 | DX74: 115.8 | DY74: 1964-06-01 | DZ74: 8 | EJ74: 2006Q4 | EK74: 113209900 | EL74: 1138738000 | EN74: 2006Q4 | EO74: 4848500 | EP74: 50686300 | ER74: 23.34946891 | ES74: 22.46638638 | ET74: 0.05079145474 | EU74: 0.0502298944 | EV74: 2006-12-01 | EW74: 22.95026777 | EX74: 22.10009449 | EY74: 0.05607360373 | EZ74: 0.04990457589
B75: Status flags are not displayed | N75: E: Early Estimate | V75: S: Suppressed | BC75: S: Suppressed | BV75: Status flags are not displayed | CD75: Status flags are not displayed | CL75: S: Suppressed | CO75: Status flags are not displayed | CW75: 2010Q3 | CX75: 1021 | CY75: 1021 | CZ75: .. | DH75: 2006Q4 | DI75: 28.04 | DJ75: 21.03 | DK75: 22.47 | DM75: 2006-12-01 | DN75: 23.35 | DO75: 22.47 | DP75: 0.05085508551 | DQ75: 0.05049088359 | DR75: =GEOMEAN(DN72:DN75)/GEOMEAN(DN68:DN71)-1 -> 0.05617829328 | DS75: 0.04988558157 | DU75: 2013-09-01 | DV75: 116.7 | DW75: 116.9 | DX75: 116.4 | DY75: 1964-09-01 | DZ75: 8.1 | EJ75: 2007Q1 | EK75: 116668500 | EL75: 1142860800 | EN75: 2007Q1 | EO75: 4890000 | EP75: 50346200 | ER75: 23.85858896 | ES75: 22.70004092 | ET75: 0.05384379889 | EU75: 0.04700277158 | EV75: 2007-03-01 | EW75: 23.2562078 | EX75: 22.35516063 | EY75: =EW75/EW71-1 -> 0.05254890462 | EZ75: 0.04826577061
F76: Table reference: | N76: P: Provisional | AC76: Table reference: | AJ76: Table reference: | AO76: Table reference: | AT76: Table reference: | AX76: Table reference: | CW76: 2010Q4 | CX76: 1026 | CY76: 1026 | CZ76: .. | DH76: 2007Q1 | DI76: 28.9 | DJ76: 21.18 | DK76: 22.7 | DM76: 2007-03-01 | DN76: 23.86 | DO76: 22.7 | DP76: 0.0538869258 | DQ76: 0.04704797048 | DR76: 0.05231764026 | DS76: 0.04841417334 | DU76: 2013-12-01 | DV76: 117.6 | DW76: 117.5 | DX76: 117.7 | DY76: 1964-12-01 | DZ76: 8.2 | EJ76: 2007Q2 | EK76: 116171600 | EL76: 1158245300 | EN76: 2007Q2 | EO76: 4828700 | EP76: 50606600 | ER76: 24.05856649 | ES76: 22.88723803 | ET76: 0.06902821335 | EU76: 0.04266616986 | EV76: 2007-06-01 | EW76: 23.64132399 | EX76: 22.58894716 | EY76: 0.05941453305 | EZ76: 0.0476895167
B77: Table reference: | F77: PPI027AA | N77: R: Revised | V77: Status flags are not displayed | AC77: QEX001AA | AJ77: QEX001AA | AO77: QEX001AA | AT77: QEX022AA | AX77: QEX023AA | BC77: Status flags are not displayed | BV77: Table reference: | CD77: Table reference: | CL77: Status flags are not displayed | CO77: Table reference: | CW77: 2011Q1 | CX77: 1030 | CY77: 1031 | CZ77: .. | DH77: 2007Q2 | DI77: 28.66 | DJ77: 21.39 | DK77: 22.89 | DM77: 2007-06-01 | DN77: 24.06 | DO77: 22.89 | DP77: 0.06933333333 | DQ77: 0.04282460137 | DR77: 0.05948160248 | DS77: 0.04793315853 | DU77: 2014-03-01 | DV77: 118.3 | DW77: 118.2 | DX77: 118.4 | DY77: 1965-03-01 | DZ77: 8.2 | EJ77: 2007Q3 | EK77: 119118400 | EL77: 1161910800 | EN77: 2007Q3 | EO77: 4890500 | EP77: 50112200 | ER77: 24.3571005 | ES77: 23.1861862 | ET77: 0.04577432661 | EU77: 0.03993124655 | EV77: 2007-09-01 | EW77: 23.90664878 | EX77: 22.80904708 | EY77: 0.05473620756 | EZ77: 0.0448351475
B78: PPI021AA | N78: S: Suppressed | BV78: LCI025AA | CD78: LCI027AA | CO78: LCI026AA | CW78: 2011Q2 | CX78: 1035 | CY78: 1035 | CZ78: 1037 | DH78: 2007Q3 | DI78: 28.89 | DJ78: 21.68 | DK78: 23.19 | DM78: 2007-09-01 | DN78: 24.36 | DO78: 23.19 | DP78: 0.04594246458 | DQ78: 0.0399103139 | DR78: 0.05496836519 | DS78: 0.04506067357 | DU78: 2014-06-01 | DV78: 118.8 | DW78: 118.6 | DX78: 119.1 | DY78: 1965-06-01 | DZ78: 8.3 | EJ78: 2007Q4 | EK78: 120987300 | EL78: 1210771400 | EN78: 2007Q4 | EO78: 4877800 | EP78: 51736000 | ER78: 24.80366149 | ES78: 23.40288001 | ET78: 0.0622794713 | EU78: 0.04168421257 | EV78: 2007-12-01 | EW78: 24.26981064 | EX78: 23.04617975 | EY78: 0.05749575071 | EZ78: 0.04280910501
F79: Last updated: | V79: Table reference: | AC79: Last updated: | AJ79: Last updated: | AO79: Last updated: | AT79: Last updated: | AX79: Last updated: | BC79: Table reference: | CL79: Table reference: | CW79: 2011Q3 | CX79: 1041 | CY79: 1041 | CZ79: .. | DH79: 2007Q4 | DI79: 29.43 | DJ79: 21.87 | DK79: 23.4 | DM79: 2007-12-01 | DN79: 24.8 | DO79: 23.4 | DP79: 0.06209850107 | DQ79: 0.04138851802 | DR79: 0.05777896958 | DS79: 0.04278945188 | DU79: 2014-09-01 | DV79: 120.1 | DW79: 120.1 | DX79: 120.2 | DY79: 1965-09-01 | DZ79: 8.4 | EJ79: 2008Q1 | EK79: 125989700 | EL79: 1221554000 | EN79: 2008Q1 | EO79: 4967700 | EP79: 51433100 | ER79: 25.36177708 | ES79: 23.75034754 | ET79: 0.0630040664 | EU79: 0.04626893079 | EV79: 2008-03-01 | EW79: 24.64985407 | EX79: 23.30928662 | EY79: 0.05992577472 | EZ79: 0.04268034589
B80: Last updated: | F80: 17 May 2017 10:45am | N80: Status flags are not displayed | V80: CPI010AA | AC80: 01 February 2017 10:45am | AJ80: 01 February 2017 10:45am | AO80: 01 February 2017 10:45am | AT80: 01 February 2017 10:45am | AX80: 01 February 2017 10:45am | BC80: LCI028AA | BV80: Last updated: | CD80: Last updated: | CL80: LCI028AA | CO80: Last updated: | CW80: 2011Q4 | CX80: 1047 | CY80: 1047 | CZ80: .. | DH80: 2008Q1 | DI80: 30.5 | DJ80: 22.1 | DK80: 23.75 | DM80: 2008-03-01 | DN80: 25.36 | DO80: 23.75 | DP80: 0.06286672255 | DQ80: 0.04625550661 | DR80: 0.06002504538 | DS80: 0.04259208565 | DU80: 2014-12-01 | DV80: 120.9 | DW80: 120.6 | DX80: 121.2 | DY80: 1965-12-01 | DZ80: 8.5 | EJ80: 2008Q2 | EK80: 129711200 | EL80: 1236620100 | EN80: 2008Q2 | EO80: 5066100 | EP80: 51305600 | ER80: 25.60375832 | ES80: 24.10302384 | ET80: 0.06422626336 | EU80: 0.05312068725 | EV80: 2008-06-01 | EW80: 25.03808182 | EX80: 23.61273522 | EY80: 0.05908120156 | EZ80: 0.0453225222
B81: Health Care and Social Assistance: 17 May 2017 10:45am | BV81: Central Government Administration, Defence and Public Safety: 01 February 2017 10:45am | CD81: Health Care and Social Assistance: 01 February 2017 10:45am | CO81: Health Care and Social Assistance: 01 February 2017 10:45am | CW81: 2012Q1 | CX81: 1051 | CY81: 1052 | CZ81: .. | DH81: 2008Q2 | DI81: 30.04 | DJ81: 22.56 | DK81: 24.1 | DM81: 2008-06-01 | DN81: 25.6 | DO81: 24.1 | DP81: 0.06400665004 | DQ81: 0.05286151158 | DR81: 0.05870249334 | DS81: 0.04509174976 | DU81: 2015-03-01 | DV81: 121.4 | DW81: 121.3 | DX81: 121.5 | DY81: 1966-03-01 | DZ81: 8.6 | EJ81: 2008Q3 | EK81: 133403000 | EL81: 1235507400 | EN81: 2008Q3 | EO81: 5112600 | EP81: 50473700 | ER81: 26.09298596 | ES81: 24.47824114 | ET81: 0.07126814849 | EU81: 0.05572520354 | EV81: 2008-09-01 | EW81: 25.47373678 | EX81: 23.93018389 | EY81: 0.06555029988 | EZ81: 0.04915316309
F82: Source: Statistics New Zealand | N82: Table reference: | V82: Last updated: | AC82: Source: Statistics New Zealand | AJ82: Source: Statistics New Zealand | AO82: Source: Statistics New Zealand | AT82: Source: Statistics New Zealand | AX82: Source: Statistics New Zealand | BC82: Last updated: | BV82: Health Care and Social Assistance: 01 February 2017 10:45am | CD82: All Industries Combined: 01 February 2017 10:45am | CL82: Last updated: | CW82: 2012Q2 | CX82: 1056 | CY82: 1056 | CZ82: 1064 | DH82: 2008Q3 | DI82: 30.73 | DJ82: 22.8 | DK82: 24.48 | DM82: 2008-09-01 | DN82: 26.09 | DO82: 24.48 | DP82: =DN82/DN78-1 -> 0.0710180624 | DQ82: 0.05562742561 | DR82: 0.06499160851 | DS82: 0.04901841992 | DU82: 2015-06-01 | DV82: 121.9 | DW82: 121.5 | DX82: 122.3 | DY82: 1966-06-01 | DZ82: 8.6 | EJ82: 2008Q4 | EK82: 135940300 | EL82: 1252534400 | EN82: 2008Q4 | EO82: 5127800 | EP82: 50686000 | ER82: 26.51045283 | ES82: 24.71164424 | ET82: 0.06881207196 | EU82: 0.05592321263 | EV82: 2008-12-01 | EW82: 25.89715994 | EX82: 24.25823793 | EY82: 0.06705241002 | EZ82: 0.05259258527
B83: Source: Statistics New Zealand | F83: Contact: Information Centre | N83: CPI009AA | V83: 20 April 2017 10:45am | AC83: Contact: Information Centre | AJ83: Contact: Information Centre | AO83: Contact: Information Centre | AT83: Contact: Information Centre | AX83: Contact: Information Centre | BC83: Health Care and Social Assistance: 01 February 2017 10:45am | BV83: All Industries Combined: 01 February 2017 10:45am | CL83: Central Government Administration, Defence and Public Safety: 01 February 2017 10:45am | CO83: Source: Statistics New Zealand | CW83: 2012Q3 | CX83: 1061 | CY83: 1061 | CZ83: .. | DH83: 2008Q4 | DI83: 31.02 | DJ83: 23 | DK83: 24.71 | DM83: 2008-12-01 | DN83: 26.51 | DO83: 24.71 | DP83: 0.0689516129 | DQ83: 0.05598290598 | DR83: 0.0667054121 | DS83: 0.05267459009 | DU83: 2015-09-01 | DV83: 123.3 | DW83: 123.1 | DX83: 123.6 | DY83: 1966-09-01 | DZ83: 8.6 | EJ83: 2009Q1 | EK83: 139120900 | EL83: 1254227400 | EN83: 2009Q1 | EO83: 5218600 | EP83: 50101000 | ER83: 26.65866324 | ES83: 25.03397936 | ET83: 0.05113546101 | EU83: 0.05404686482 | EV83: 2009-03-01 | EW83: 26.22035459 | EX83: 24.57906029 | EY83: 0.06371236566 | EZ83: 0.05447501186
B84: Contact: Information Centre | F84: Telephone: 0508 525 525 | AC84: Telephone: 0508 525 525 | AJ84: Telephone: 0508 525 525 | AO84: Telephone: 0508 525 525 | AT84: Telephone: 0508 525 525 | AX84: Telephone: 0508 525 525 | CD84: Source: Statistics New Zealand | CL84: Health Care and Social Assistance: 01 February 2017 10:45am | CO84: Contact: Information Centre | CW84: 2012Q4 | CX84: 1066 | CY84: 1066 | CZ84: .. | DH84: 2009Q1 | DI84: 31.84 | DJ84: 23.24 | DK84: 25.03 | DM84: 2009-03-01 | DN84: 26.66 | DO84: 25.03 | DP84: 0.05126182965 | DQ84: 0.05389473684 | DR84: 0.06378171244 | DS84: 0.05459087592 | DU84: 2015-12-01 | DV84: 123.8 | DW84: 123.5 | DX84: 124.2 | DY84: 1966-12-01 | DZ84: 8.7 | EJ84: 2009Q2 | EK84: 137269000 | EL84: 1242158800 | EN84: 2009Q2 | EO84: 5101700 | EP84: 49264300 | ER84: 26.90652136 | ES84: 25.21417741 | ET84: 0.05088171137 | EU84: 0.04610017283 | EV84: 2009-06-01 | EW84: 26.54253989 | EX84: 24.85689066 | EY84: 0.0600867944 | EZ84: 0.05269001775
B85: Telephone: 0508 525 525 | F85: Email:info@stats.govt.nz | N85: Last updated: | V85: Source: Statistics New Zealand | AC85: Email:info@stats.govt.nz | AJ85: Email:info@stats.govt.nz | AO85: Email:info@stats.govt.nz | AT85: Email:info@stats.govt.nz | AX85: Email:info@stats.govt.nz | BC85: Source: Statistics New Zealand | BV85: Source: Statistics New Zealand | CD85: Contact: Information Centre | CO85: Telephone: 0508 525 525 | CW85: 2013Q1 | CX85: 1070 | CY85: 1070 | CZ85: .. | DH85: 2009Q2 | DI85: 31.76 | DJ85: 23.42 | DK85: 25.21 | DM85: 2009-06-01 | DN85: 26.91 | DO85: 25.21 | DP85: 0.051171875 | DQ85: 0.04605809129 | DR85: 0.06055908257 | DS85: 0.05288308323 | DU85: 2016-03-01 | DV85: 124.4 | DW85: 124.1 | DX85: 124.8 | DY85: 1967-03-01 | DZ85: 8.8 | EJ85: 2009Q3 | EK85: 138455700 | EL85: 1234131500 | EN85: 2009Q3 | EO85: 5187000 | EP85: 48523800 | ER85: 26.69282822 | ES85: 25.43352953 | ET85: 0.02298864029 | EU85: 0.0390260222 | EV85: 2009-09-01 | EW85: 26.69170006 | EX85: 25.09404301 | EY85: 0.04781250967 | EZ85: 0.04863561118
B86: Email:info@stats.govt.nz | N86: 20 April 2017 10:45am | V86: Contact: Information Centre | BC86: Contact: Information Centre | BV86: Contact: Information Centre | CD86: Telephone: 0508 525 525 | CL86: Source: Statistics New Zealand | CO86: Email:info@stats.govt.nz | CW86: 2013Q2 | CX86: 1074 | CY86: 1074 | CZ86: 1085 | DH86: 2009Q3 | DI86: 32.12 | DJ86: 23.57 | DK86: 25.43 | DM86: 2009-09-01 | DN86: 26.69 | DO86: 25.43 | DP86: 0.02299731698 | DQ86: 0.03880718954 | DR86: 0.04846585731 | DS86: 0.04866365994 | DU86: 2016-06-01 | DV86: 124.8 | DW86: 124.5 | DX86: 125.1 | DY86: 1967-06-01 | DZ86: 8.9 | EJ86: 2009Q4 | EK86: 142344700 | EL86: 1254203500 | EN86: 2009Q4 | EO86: 5237700 | EP86: 49402500 | ER86: 27.1769479 | ES86: 25.38745003 | ET86: 0.02514084069 | EU86: 0.02734766575 | EV86: 2009-12-01 | EW86: 26.85901663 | EX86: 25.26575485 | EY86: 0.0371413968 | EZ86: 0.04153298063
V87: Telephone: 0508 525 525 | BC87: Telephone: 0508 525 525 | BV87: Telephone: 0508 525 525 | CD87: Email:info@stats.govt.nz | CL87: Contact: Information Centre | CW87: 2013Q3 | CX87: 1078 | CY87: 1079 | CZ87: .. | DH87: 2009Q4 | DI87: 32.36 | DJ87: 23.48 | DK87: 25.39 | DM87: 2009-12-01 | DN87: 27.18 | DO87: 25.39 | DP87: 0.02527348171 | DQ87: 0.02751922299 | DR87: 0.03758745421 | DS87: 0.04152448759 | DU87: 2016-09-01 | DV87: 126.1 | DW87: 126 | DX87: 126.2 | DY87: 1967-09-01 | DZ87: 9 | EJ87: 2010Q1 | EK87: 146186000 | EL87: 1257498100 | EN87: 2010Q1 | EO87: 5368100 | EP87: 49705600 | ER87: 27.23235409 | ES87: 25.29892205 | ET87: 0.02151986555 | EU87: 0.01058332307 | EV87: 2010-03-01 | EW87: =SUM(EK84:EK87)/SUM(EO84:EO87) -> 27.0049726 | EX87: 25.33310394 | EY87: 0.02992400456 | EZ87: 0.03067829458
N88: Source: Statistics New Zealand | V88: Email:info@stats.govt.nz | BC88: Email:info@stats.govt.nz | BV88: Email:info@stats.govt.nz | CL88: Telephone: 0508 525 525 | CW88: 2013Q4 | CX88: 1083 | CY88: 1083 | CZ88: .. | DH88: 2010Q1 | DI88: 32.6 | DJ88: 23.4 | DK88: 25.3 | DM88: 2010-03-01 | DN88: 27.23 | DO88: 25.3 | DP88: 0.02138034509 | DQ88: 0.01078705553 | DR88: 0.03013433335 | DS88: 0.0307066883 | DU88: 2016-12-01 | DV88: 126.8 | DW88: 126.5 | DX88: 127.2 | DY88: 1967-12-01 | DZ88: 9 | EJ88: 2010Q2 | EK88: 145914100 | EL88: 1278079100 | EN88: 2010Q2 | EO88: 5420800 | EP88: 50149700 | ER88: 26.91744761 | ES88: 25.48527907 | ET88: =ER88/ER84-1 -> 0.0004060819843 | EU88: 0.0107519537 | EV88: 2010-06-01 | EW88: 27.0062837 | EX88: 25.40131236 | EY88: 0.01747171946 | EZ88: 0.02190224441
N89: Contact: Information Centre | CL89: Email:info@stats.govt.nz | CW89: 2014Q1 | CX89: 1086 | CY89: 1087 | CZ89: .. | DH89: 2010Q2 | DI89: 32.59 | DJ89: 23.53 | DK89: 25.49 | DM89: 2010-06-01 | DN89: 26.92 | DO89: 25.49 | DP89: 0.0003716090673 | DQ89: 0.01110670369 | DR89: 0.01745630728 | DS89: 0.02198704568 | DY89: 1968-03-01 | DZ89: 9.1 | EJ89: 2010Q3 | EK89: 147982900 | EL89: 1279582300 | EN89: 2010Q3 | EO89: 5447400 | EP89: 49691000 | ER89: 27.16578551 | ES89: 25.75078586 | ET89: 0.0177185154 | EU89: 0.01247394038 | EV89: 2010-09-01 | EW89: 27.12245972 | EX89: 25.48074178 | EY89: 0.01613833713 | EZ89: 0.01540998273
N90: Telephone: 0508 525 525 | CW90: 2014Q2 | CX90: 1091 | CY90: 1092 | CZ90: 1104 | DH90: 2010Q3 | DI90: 32.69 | DJ90: 23.77 | DK90: 25.75 | DM90: 2010-09-01 | DN90: 27.17 | DO90: 25.75 | DP90: 0.01798426377 | DQ90: 0.01258356272 | DR90: 0.01620753508 | DS90: 0.01547531926 | DY90: 1968-06-01 | DZ90: 9.1 | EJ90: 2010Q4 | EK90: 150935700 | EL90: 1303105800 | EN90: 2010Q4 | EO90: 5503800 | EP90: 50400200 | ER90: 27.42390712 | ES90: 25.85517121 | ET90: 0.009087084491 | EU90: 0.0184233226 | EV90: 2010-12-01 | EW90: 27.18564772 | EX90: 25.59817401 | EY90: 0.01216094744 | EZ90: 0.01315690591
N91: Email:info@stats.govt.nz | CW91: 2014Q3 | CX91: 1096 | CY91: 1096 | CZ91: .. | DH91: 2010Q4 | DI91: 32.8 | DJ91: 23.91 | DK91: 25.86 | DM91: 2010-12-01 | DN91: 27.42 | DO91: 25.86 | DP91: 0.008830022075 | DQ91: 0.01851122489 | DR91: =GEOMEAN(DN88:DN91)/GEOMEAN(DN84:DN87)-1 -> 0.0121082832 | DS91: 0.01324236181 | DY91: 1968-09-01 | DZ91: 9.2 | EJ91: 2011Q1 | EK91: 152565900 | EL91: 1316045600 | EN91: 2011Q1 | EO91: 5470400 | EP91: 50703700 | ER91: 27.88934996 | ES91: 25.95561271 | ET91: 0.02412556264 | EU91: 0.02595725827 | EV91: 2011-03-01 | EW91: 27.35041021 | EX91: 25.76238824 | EY91: =EW91/EW87-1 -> 0.01279162975 | EZ91: 0.01694558635
